Workbook

Sheet 1.1
A2: CUADRO 1.1 COSTA RICA: CANDIDATURAS EN PROPIEDAD Y SUPLENCIA, POR SEXO
A3: SEGÚN TIPO DE CANDIDATURAS, ELECCIONES MUNICIPALES FEBRERO 2016
A4: (cifras absolutas y relativas)
A6: TIPO DE CANDIDATURA | B6: TOTAL | G6: EN PROPIEDAD | L6: EN SUPLENCIA
B7: TOTAL | C7: MUJERES | E7: HOMBRES | G7: TOTAL | H7: MUJERES | J7: HOMBRES | L7: TOTAL | M7: MUJERES | O7: HOMBRES
C8: Absoluto | D8: % | E8: Absoluto | F8: % | H8: Absoluto | I8: % | J8: Absoluto | K8: % | M8: Absoluto | N8: % | O8: Absoluto | P8: %
A10: TOTAL | B10: =SUM(B11:B19) -> 31879 | C10: =SUM(C11:C19) -> 15680 | D10: =+C10/$B10*100 -> 49.1859845 | E10: =SUM(E11:E19) -> 16199 | F10: =+E10/$B10*100 -> 50.8140155 | G10: =SUM(G11:G19) -> 17034 | H10: =SUM(H11:H19) -> 7927 | I10: =+H10/$G10*100 -> 46.53633909 | J10: =SUM(J11:J19) -> 9107 | K10: =+J10/$G10*100 -> 53.46366091 | L10: =SUM(L11:L19) -> 14845 | M10: =SUM(M11:M19) -> 7753 | N10: =+M10/$L10*100 -> 52.22633883 | O10: =SUM(O11:O19) -> 7092 | P10: =+O10/$L10*100 -> 47.77366117
A11: ALCALDÍA | B11: =+G11+L11 -> 605 | C11: 116 | D11: =+C11/$B11*100 -> 19.17355372 | E11: =+J11+O11 -> 489 | F11: =+E11/$B11*100 -> 80.82644628 | G11: =+H11+J11 -> 605 | H11: 116 | I11: =+H11/$G11*100 -> 19.17355372 | J11: 489 | K11: =+J11/$G11*100 -> 80.82644628 | L11: =+M11+O11 -> 0 | M11: 0 | N11: 0 | O11: 0 | P11: 0
A12: VICEALCALDÍA PRIMERA | B12: 593 | C12: 481 | D12: =+C12/$B12*100 -> 81.11298482 | E12: 112 | F12: =+E12/$B12*100 -> 18.88701518 | G12: 593 | H12: 481 | I12: =+H12/$G12*100 -> 81.11298482 | J12: 112 | K12: =+J12/$G12*100 -> 18.88701518 | L12: 0 | M12: 0 | N12: 0 | O12: 0 | P12: 0
A13: VICEALCALDÍA SEGUNDA | B13: =+G13+L13 -> 582 | C13: =+H13+M13 -> 148 | D13: 25.42955326 | E13: =+J13+O13 -> 434 | F13: 74.57044674 | G13: 0 | H13: 0 | I13: 0 | J13: 0 | K13: 0 | L13: =+M13+O13 -> 582 | M13: 148 | N13: =+M13/$L13*100 -> 25.42955326 | O13: 434 | P13: =+O13/$L13*100 -> 74.57044674
A14: REGIDORÍA | B14: =+G14+L14 -> 7016 | C14: =+H14+M14 -> 3412 | D14: =+C14/$B14*100 -> 48.63169897 | E14: =+J14+O14 -> 3604 | F14: =+E14/$B14*100 -> 51.36830103 | G14: =+H14+J14 -> 3547 | H14: 1638 | I14: =+H14/$G14*100 -> 46.17987031 | J14: 1909 | K14: =+J14/$G14*100 -> 53.82012969 | L14: =+M14+O14 -> 3469 | M14: 1774 | N14: 51.13865667 | O14: 1695 | P14: 48.86134333
A15: CONCEJALÍA DE DISTRITO | B15: 16546 | C15: 8274 | D15: 50.00604376 | E15: 8272 | F15: 49.99395624 | G15: 8840 | H15: 4410 | I15: 49.88687783 | J15: 4430 | K15: 50.11312217 | L15: 7706 | M15: 3864 | N15: 50.14274591 | O15: 3842 | P15: 49.85725409
A16: CONCEJALÍA MUNICIPAL DE DISTRITO | B16: 349 | C16: 175 | D16: 50.14326648 | E16: 174 | F16: 49.85673352 | G16: 177 | H16: 88 | I16: 49.71751412 | J16: 89 | K16: 50.28248588 | L16: 172 | M16: 87 | N16: 50.58139535 | O16: 85 | P16: 49.41860465
A17: INTENDENCIA | B17: 53 | C17: 14 | D17: 26.41509434 | E17: 39 | F17: 73.58490566 | G17: 53 | H17: 14 | I17: 26.41509434 | J17: 39 | K17: 73.58490566 | L17: 0 | M17: 0 | N17: 0 | O17: 0 | P17: 0
A18: VICEINTENDENCIA | B18: 50 | C18: 38 | D18: 76 | E18: 12 | F18: 24 | G18: 50 | H18: 38 | I18: 76 | J18: 12 | K18: 24 | L18: 0 | M18: 0 | N18: 0 | O18: 0 | P18: 0
A19: SINDICATURA | B19: 6085 | C19: 3022 | D19: 49.663106 | E19: 3063 | F19: 50.336894 | G19: 3169 | H19: 1142 | I19: 36.03660461 | J19: 2027 | K19: 63.96339539 | L19: 2916 | M19: 1880 | N19: 64.47187929 | O19: 1036 | P19: 35.52812071
A22: Fuente: Tribunal Supremo de Elecciones.

Sheet 1.2
A2: CUADRO 1.2 COSTA RICA: CANDIDATURAS EN PROPIEDAD A ALCALDES(AS), REGIDORES(AS), SÍNDICOS(AS), CONCEJALES(AS) E INTENDENTES(AS)
A3: POR SEXO, SEGÚN PARTIDO POLÍTICO, ELECCIONES MUNICIPALES FEBRERO 2016
A4: (cifras absolutas y relativas)
A6: PARTIDO POLÍTICO | B6: ALCALDES(AS) | G6: REGIDORES(AS) | L6: SÍNDICOS(AS) | Q6: CONCEJALES(AS) 1/ | V6: INTENDENTES(AS)
B7: TOTAL | C7: MUJERES | E7: HOMBRES | G7: TOTAL | H7: MUJERES | J7: HOMBRES | L7: TOTAL | M7: MUJERES | O7: HOMBRES | Q7: TOTAL | R7: MUJERES | T7: HOMBRES | V7: TOTAL | W7: MUJERES | Y7: HOMBRES
C8: Absoluto | D8: % | E8: Absoluto | F8: % | H8: Absoluto | I8: % | J8: Absoluto | K8: % | M8: Absoluto | N8: % | O8: Absoluto | P8: % | R8: Absoluto | S8: % | T8: Absoluto | U8: % | W8: Absoluto | X8: % | Y8: Absoluto | Z8: %
A10: TOTAL | B10: =SUM(B11:B69) -> 605 | C10: =SUM(C11:C69) -> 116 | D10: =+C10/$B10*100 -> 19.17355372 | E10: =SUM(E11:E69) -> 489 | F10: =+E10/$B10*100 -> 80.82644628 | G10: =SUM(G11:G69) -> 3547 | H10: =SUM(H11:H69) -> 1638 | I10: =+H10/$G10*100 -> 46.17987031 | J10: =SUM(J11:J69) -> 1909 | K10: =+J10/$G10*100 -> 53.82012969 | L10: =SUM(L11:L69) -> 3169 | M10: =SUM(M11:M69) -> 1142 | N10: =+M10/L10*100 -> 36.03660461 | O10: =SUM(O11:O69) -> 2027 | P10: =+O10/$L10*100 -> 63.96339539 | Q10: =SUM(Q11:Q69) -> 9017 | R10: =SUM(R11:R69) -> 4498 | S10: =+R10/$Q10*100 -> 49.88355329 | T10: =SUM(T11:T69) -> 4519 | U10: =+T10/$Q10*100 -> 50.11644671 | V10: =SUM(V11:V69) -> 53 | W10: =SUM(W11:W69) -> 14 | X10: =+W10/$V10*100 -> 26.41509434 | Y10: =SUM(Y11:Y69) -> 39 | Z10: =+Y10/$V10*100 -> 73.58490566
A11: ACCESIBILIDAD SIN EXCLUSIÓN | B11: =+C11+E11 -> 18 | C11: 4 | D11: =+C11/$B11*100 -> 22.22222222 | E11: 14 | F11: =+E11/$B11*100 -> 77.77777778 | G11: =+H11+J11 -> 134 | H11: 61 | I11: =+H11/$G11*100 -> 45.52238806 | J11: 73 | K11: =+J11/$G11*100 -> 54.47761194 | L11: =+M11+O11 -> 89 | M11: 34 | N11: =+M11/$L11*100 -> 38.20224719 | O11: 55 | P11: =+O11/$L11*100 -> 61.79775281 | Q11: =+R11+T11 -> 96 | R11: 47 | S11: =+R11/$Q11*100 -> 48.95833333 | T11: 49 | U11: =+T11/$Q11*100 -> 51.04166667 | V11: =+W11+Y11 -> 1 | W11: 0 | X11: =+W11/$V11*100 -> 0 | Y11: 1 | Z11: =+Y11/$V11*100 -> 100
A12: ACCIÓN CANTONAL SIQUIRRES INDEPENDIENTE | B12: 1 | C12: 0 | D12: =+C12/$B12*100 -> 0 | E12: 1 | F12: =+E12/$B12*100 -> 100 | G12: 7 | H12: 3 | I12: =+H12/$G12*100 -> 42.85714286 | J12: 4 | K12: =+J12/$G12*100 -> 57.14285714 | L12: 6 | M12: 3 | N12: 50 | O12: 3 | P12: 50 | Q12: 5 | R12: 3 | S12: 60 | T12: 2 | U12: 40 | V12: 0 | W12: 0 | X12: 0 | Y12: 0 | Z12: 0
A13: ACCIÓN CIUDADANA | B13: 74 | C13: 12 | D13: 16.21621622 | E13: 62 | F13: 83.78378378 | G13: 433 | H13: 206 | I13: 47.57505774 | J13: 227 | K13: 52.42494226 | L13: 410 | M13: 160 | N13: 39.02439024 | O13: 250 | P13: 60.97560976 | Q13: 1317 | R13: 654 | S13: 49.65831435 | T13: 663 | U13: 50.34168565 | V13: 7 | W13: 0 | X13: =+W13/$V13*100 -> 0 | Y13: 7 | Z13: =+Y13/$V13*100 -> 100
A14: ACUERDO DE ALIANZA DE QUEPOS | B14: 1 | C14: 1 | D14: 100 | E14: 0 | F14: 0 | G14: 5 | H14: 2 | I14: 40 | J14: 3 | K14: 60 | L14: 3 | M14: 1 | N14: 33.33333333 | O14: 2 | P14: 66.66666667 | Q14: 12 | R14: 6 | S14: 50 | T14: 6 | U14: 50 | V14: 0 | W14: 0 | X14: 0 | Y14: 0 | Z14: 0
A15: ALIANZA CRISTIANA SANTANEÑA | B15: 1 | C15: 0 | D15: 0 | E15: 1 | F15: 100 | G15: 7 | H15: 3 | I15: 42.85714286 | J15: 4 | K15: 57.14285714 | L15: 3 | M15: 2 | N15: 66.66666667 | O15: 1 | P15: 33.33333333 | Q15: 0 | R15: 0 | S15: 0 | T15: 0 | U15: 0 | V15: 0 | W15: 0 | X15: 0 | Y15: 0 | Z15: 0
A16: ALIANZA DEMÓCRATA CRISTIANA | B16: 8 | C16: 4 | D16: 50 | E16: 4 | F16: 50 | G16: 44 | H16: 19 | I16: 43.18181818 | J16: 25 | K16: 56.81818182 | L16: 38 | M16: 17 | N16: 44.73684211 | O16: 21 | P16: 55.26315789 | Q16: 138 | R16: 69 | S16: 50 | T16: 69 | U16: 50 | V16: 2 | W16: 1 | X16: 50 | Y16: 1 | Z16: 50
A17: ALIANZA POR PALMARES | B17: 1 | C17: 0 | D17: 0 | E17: 1 | F17: 100 | G17: 5 | H17: 2 | I17: 40 | J17: 3 | K17: 60 | L17: 7 | M17: 0 | N17: 0 | O17: 7 | P17: 100 | Q17: 23 | R17: 13 | S17: 56.52173913 | T17: 10 | U17: 43.47826087 | V17: 0 | W17: 0 | X17: 0 | Y17: 0 | Z17: 0
A18: ALIANZA POR SAN JOSÉ | B18: 1 | C18: 0 | D18: 0 | E18: 1 | F18: 100 | G18: 11 | H18: 5 | I18: 45.45454545 | J18: 6 | K18: 54.54545455 | L18: 11 | M18: 8 | N18: 72.72727273 | O18: 3 | P18: 27.27272727 | Q18: 43 | R18: 22 | S18: 51.1627907 | T18: 21 | U18: 48.8372093 | V18: 0 | W18: 0 | X18: 0 | Y18: 0 | Z18: 0
A19: ALIANZA SANCARLEÑA | B19: 1 | C19: 0 | D19: 0 | E19: 1 | F19: 100 | G19: 9 | H19: 4 | I19: 44.44444444 | J19: 5 | K19: 55.55555556 | L19: 10 | M19: 3 | N19: 30 | O19: 7 | P19: 70 | Q19: 31 | R19: 16 | S19: 51.61290323 | T19: 15 | U19: 48.38709677 | V19: 0 | W19: 0 | X19: 0 | Y19: 0 | Z19: 0
A20: ALIANZA SOCIAL POR LA UNIÓN | B20: 1 | C20: 0 | D20: 0 | E20: 1 | F20: 100 | G20: 9 | H20: 5 | I20: 55.55555556 | J20: 4 | K20: 44.44444444 | L20: 7 | M20: 3 | N20: 42.85714286 | O20: 4 | P20: 57.14285714 | Q20: 5 | R20: 0 | S20: 0 | T20: 5 | U20: 100 | V20: 0 | W20: 0 | X20: 0 | Y20: 0 | Z20: 0
A21: AUTÉNTICO LABRADOR DE CORONADO | B21: 1 | C21: 0 | D21: 0 | E21: 1 | F21: 100 | G21: 7 | H21: 3 | I21: 42.85714286 | J21: 4 | K21: 57.14285714 | L21: 4 | M21: 2 | N21: 50 | O21: 2 | P21: 50 | Q21: 15 | R21: 8 | S21: 53.33333333 | T21: 7 | U21: 46.66666667 | V21: 0 | W21: 0 | X21: 0 | Y21: 0 | Z21: 0
A22: AUTÉNTICO LIMONENSE | B22: 1 | C22: 0 | D22: 0 | E22: 1 | F22: 100 | G22: 9 | H22: 5 | I22: 55.55555556 | J22: 4 | K22: 44.44444444 | L22: 4 | M22: 1 | N22: 25 | O22: 3 | P22: 75 | Q22: 16 | R22: 8 | S22: 50 | T22: 8 | U22: 50 | V22: 0 | W22: 0 | X22: 0 | Y22: 0 | Z22: 0
A23: AUTÉNTICO SIQUIRREÑO | B23: 1 | C23: 1 | D23: 100 | E23: 0 | F23: 0 | G23: 7 | H23: 3 | I23: 42.85714286 | J23: 4 | K23: 57.14285714 | L23: 6 | M23: 5 | N23: 83.33333333 | O23: 1 | P23: 16.66666667 | Q23: 20 | R23: 11 | S23: 55 | T23: 9 | U23: 45 | V23: 0 | W23: 0 | X23: 0 | Y23: 0 | Z23: 0
A24: AUTÓNOMO OROMONTANO | B24: 1 | C24: 1 | D24: 100 | E24: 0 | F24: 0 | G24: 5 | H24: 2 | I24: 40 | J24: 3 | K24: 60 | L24: 3 | M24: 0 | N24: 0 | O24: 3 | P24: 100 | Q24: 12 | R24: 6 | S24: 50 | T24: 6 | U24: 50 | V24: 0 | W24: 0 | X24: 0 | Y24: 0 | Z24: 0
A25: AVANCE MONTES DE OCA | B25: 1 | C25: 0 | D25: 0 | E25: 1 | F25: 100 | G25: 7 | H25: 3 | I25: 42.85714286 | J25: 4 | K25: 57.14285714 | L25: 4 | M25: 3 | N25: 75 | O25: 1 | P25: 25 | Q25: 7 | R25: 4 | S25: 57.14285714 | T25: 3 | U25: 42.85714286 | V25: 0 | W25: 0 | X25: 0 | Y25: 0 | Z25: 0
A26: BARVA UNIDA | B26: 1 | C26: 1 | D26: 100 | E26: 0 | F26: 0 | G26: 5 | H26: 2 | I26: 40 | J26: 3 | K26: 60 | L26: 3 | M26: 2 | N26: 66.66666667 | O26: 1 | P26: 33.33333333 | Q26: 2 | R26: 0 | S26: 0 | T26: 2 | U26: 100 | V26: 0 | W26: 0 | X26: 0 | Y26: 0 | Z26: 0
A27: COALICIÓN ALIANZA POR BELÉN | B27: 1 | C27: 0 | D27: 0 | E27: 1 | F27: 100 | G27: 5 | H27: 3 | I27: 60 | J27: 2 | K27: 40 | L27: 3 | M27: 1 | N27: 33.33333333 | O27: 2 | P27: 66.66666667 | Q27: 10 | R27: 4 | S27: 40 | T27: 6 | U27: 60 | V27: 0 | W27: 0 | X27: 0 | Y27: 0 | Z27: 0
A28: COALICIÓN GENTE MONTES DE OCA | B28: 1 | C28: 0 | D28: 0 | E28: 1 | F28: 100 | G28: 7 | H28: 3 | I28: 42.85714286 | J28: 4 | K28: 57.14285714 | L28: 4 | M28: 2 | N28: 50 | O28: 2 | P28: 50 | Q28: 16 | R28: 8 | S28: 50 | T28: 8 | U28: 50 | V28: 0 | W28: 0 | X28: 0 | Y28: 0 | Z28: 0
A29: COALICIÓN SOMOS TIBÁS | B29: 1 | C29: 0 | D29: 0 | E29: 1 | F29: 100 | G29: 5 | H29: 2 | I29: 40 | J29: 3 | K29: 60 | L29: 4 | M29: 2 | N29: 50 | O29: 2 | P29: 50 | Q29: 13 | R29: 6 | S29: 46.15384615 | T29: 7 | U29: 53.84615385 | V29: 0 | W29: 0 | X29: 0 | Y29: 0 | Z29: 0
A30: COALICIÓN UNIDOS POR GUATUSO | B30: 1 | C30: 0 | D30: 0 | E30: 1 | F30: 100 | G30: 5 | H30: 2 | I30: 40 | J30: 3 | K30: 60 | L30: 3 | M30: 1 | N30: 33.33333333 | O30: 2 | P30: 66.66666667 | Q30: 6 | R30: 3 | S30: 50 | T30: 3 | U30: 50 | V30: 0 | W30: 0 | X30: 0 | Y30: 0 | Z30: 0
A31: CURRIDABAT SIGLO XXI | B31: 1 | C31: 0 | D31: 0 | E31: 1 | F31: 100 | G31: 7 | H31: 3 | I31: 42.85714286 | J31: 4 | K31: 57.14285714 | L31: 4 | M31: 0 | N31: 0 | O31: 4 | P31: 100 | Q31: 16 | R31: 8 | S31: 50 | T31: 8 | U31: 50 | V31: 0 | W31: 0 | X31: 0 | Y31: 0 | Z31: 0
A32: DE LOS TRABAJADORES | B32: 5 | C32: 2 | D32: 40 | E32: 3 | F32: 60 | G32: 15 | H32: 8 | I32: 53.33333333 | J32: 7 | K32: 46.66666667 | L32: 4 | M32: 1 | N32: 25 | O32: 3 | P32: 75 | Q32: 4 | R32: 1 | S32: 25 | T32: 3 | U32: 75 | V32: 0 | W32: 0 | X32: 0 | Y32: 0 | Z32: 0
A33: DEL SOL | B33: 1 | C33: 1 | D33: 100 | E33: 0 | F33: 0 | G33: 7 | H33: 3 | I33: 42.85714286 | J33: 4 | K33: 57.14285714 | L33: 6 | M33: 3 | N33: 50 | O33: 3 | P33: 50 | Q33: 19 | R33: 10 | S33: 52.63157895 | T33: 9 | U33: 47.36842105 | V33: 0 | W33: 0 | X33: 0 | Y33: 0 | Z33: 0
A34: DEMÓCRATA | B34: 1 | C34: 0 | D34: 0 | E34: 1 | F34: 100 | G34: 7 | H34: 4 | I34: 57.14285714 | J34: 3 | K34: 42.85714286 | L34: 3 | M34: 1 | N34: 33.33333333 | O34: 2 | P34: 66.66666667 | Q34: 0 | R34: 0 | S34: 0 | T34: 0 | U34: 0 | V34: 0 | W34: 0 | X34: 0 | Y34: 0 | Z34: 0
A35: DESAMPARADOS UNIDO | B35: 1 | C35: 0 | D35: 0 | E35: 1 | F35: 100 | G35: 11 | H35: 5 | I35: 45.45454545 | J35: 6 | K35: 54.54545455 | L35: 13 | M35: 4 | N35: 30.76923077 | O35: 9 | P35: 69.23076923 | Q35: 34 | R35: 16 | S35: 47.05882353 | T35: 18 | U35: 52.94117647 | V35: 0 | W35: 0 | X35: 0 | Y35: 0 | Z35: 0
A36: ECOLÓGICO COMUNAL COSTARRICENSE | B36: 1 | C36: 0 | D36: 0 | E36: 1 | F36: 100 | G36: 11 | H36: 5 | I36: 45.45454545 | J36: 6 | K36: 54.54545455 | L36: 12 | M36: 4 | N36: 33.33333333 | O36: 8 | P36: 66.66666667 | Q36: 30 | R36: 12 | S36: 40 | T36: 18 | U36: 60 | V36: 0 | W36: 0 | X36: 0 | Y36: 0 | Z36: 0
A37: FRENTE AMPLIO | B37: 59 | C37: 17 | D37: 28.81355932 | E37: 42 | F37: 71.18644068 | G37: 367 | H37: 165 | I37: 44.95912807 | J37: 202 | K37: 55.04087193 | L37: 306 | M37: 116 | N37: 37.90849673 | O37: 190 | P37: 62.09150327 | Q37: 855 | R37: 429 | S37: 50.1754386 | T37: 426 | U37: 49.8245614 | V37: 4 | W37: 2 | X37: 50 | Y37: 2 | Z37: 50
A38: FUERZA DEMOCRÁTICA DESAMPARADEÑA | B38: 1 | C38: 0 | D38: 0 | E38: 1 | F38: 100 | G38: 5 | H38: 2 | I38: 40 | J38: 3 | K38: 60 | L38: 10 | M38: 2 | N38: 20 | O38: 8 | P38: 80 | Q38: 17 | R38: 8 | S38: 47.05882353 | T38: 9 | U38: 52.94117647 | V38: 0 | W38: 0 | X38: 0 | Y38: 0 | Z38: 0
A39: FUERZAS UNIDAS PARA EL CAMBIO | B39: 1 | C39: 0 | D39: 0 | E39: 1 | F39: 100 | G39: 11 | H39: 6 | I39: 54.54545455 | J39: 5 | K39: 45.45454545 | L39: 11 | M39: 4 | N39: 36.36363636 | O39: 7 | P39: 63.63636364 | Q39: 7 | R39: 3 | S39: 42.85714286 | T39: 4 | U39: 57.14285714 | V39: 0 | W39: 0 | X39: 0 | Y39: 0 | Z39: 0
A40: GARABITO ECOLÓGICO | B40: 1 | C40: 0 | D40: 0 | E40: 1 | F40: 100 | G40: 5 | H40: 3 | I40: 60 | J40: 2 | K40: 40 | L40: 2 | M40: 1 | N40: 50 | O40: 1 | P40: 50 | Q40: 4 | R40: 2 | S40: 50 | T40: 2 | U40: 50 | V40: 0 | W40: 0 | X40: 0 | Y40: 0 | Z40: 0
A41: INDEPENDIENTE ESCAZUCEÑO | B41: 1 | C41: 0 | D41: 0 | E41: 1 | F41: 100 | G41: 7 | H41: 4 | I41: 57.14285714 | J41: 3 | K41: 42.85714286 | L41: 3 | M41: 3 | N41: 100 | O41: 0 | P41: 0 | Q41: 11 | R41: 5 | S41: 45.45454545 | T41: 6 | U41: 54.54545455 | V41: 0 | W41: 0 | X41: 0 | Y41: 0 | Z41: 0
A42: INTEGRACIÓN NACIONAL | B42: 8 | C42: 1 | D42: 12.5 | E42: 7 | F42: 87.5 | G42: 43 | H42: 18 | I42: 41.86046512 | J42: 25 | K42: 58.13953488 | L42: 46 | M42: 17 | N42: 36.95652174 | O42: 29 | P42: 63.04347826 | Q42: 147 | R42: 74 | S42: 50.34013605 | T42: 73 | U42: 49.65986395 | V42: 3 | W42: 1 | X42: 33.33333333 | Y42: 2 | Z42: 66.66666667
A43: JUSTICIA GENERALEÑA | B43: 1 | C43: 0 | D43: 0 | E43: 1 | F43: 100 | G43: 9 | H43: 4 | I43: 44.44444444 | J43: 5 | K43: 55.55555556 | L43: 9 | M43: 2 | N43: 22.22222222 | O43: 7 | P43: 77.77777778 | Q43: 25 | R43: 12 | S43: 48 | T43: 13 | U43: 52 | V43: 0 | W43: 0 | X43: 0 | Y43: 0 | Z43: 0
A44: LIBERACIÓN NACIONAL | B44: 81 | C44: 13 | D44: 16.04938272 | E44: 68 | F44: 83.95061728 | G44: 488 | H44: 226 | I44: 46.31147541 | J44: 262 | K44: 53.68852459 | L44: 477 | M44: 184 | N44: 38.57442348 | O44: 293 | P44: 61.42557652 | Q44: 1835 | R44: 918 | S44: 50.02724796 | T44: 917 | U44: 49.97275204 | V44: 8 | W44: 2 | X44: 25 | Y44: 6 | Z44: 75
A45: LIGA RAMONENSE | B45: 1 | C45: 0 | D45: 0 | E45: 1 | F45: 100 | G45: 7 | H45: 4 | I45: 57.14285714 | J45: 3 | K45: 42.85714286 | L45: 10 | M45: 0 | N45: 0 | O45: 10 | P45: 100 | Q45: 7 | R45: 4 | S45: 57.14285714 | T45: 3 | U45: 42.85714286 | V45: 0 | W45: 0 | X45: 0 | Y45: 0 | Z45: 0
A46: LIMÓN INDEPENDIENTE | B46: 1 | C46: 1 | D46: 100 | E46: 0 | F46: 0 | G46: 9 | H46: 4 | I46: 44.44444444 | J46: 5 | K46: 55.55555556 | L46: 4 | M46: 1 | N46: 25 | O46: 3 | P46: 75 | Q46: 16 | R46: 8 | S46: 50 | T46: 8 | U46: 50 | V46: 0 | W46: 0 | X46: 0 | Y46: 0 | Z46: 0
A47: MOVIMIENTO AVANCE SANTO DOMINGO | B47: 1 | C47: 0 | D47: 0 | E47: 1 | F47: 100 | G47: 5 | H47: 3 | I47: 60 | J47: 2 | K47: 40 | L47: 8 | M47: 2 | N47: 25 | O47: 6 | P47: 75 | Q47: 27 | R47: 13 | S47: 48.14814815 | T47: 14 | U47: 51.85185185 | V47: 0 | W47: 0 | X47: 0 | Y47: 0 | Z47: 0
A48: MOVIMIENTO LIBERTARIO | B48: 67 | C48: 12 | D48: 17.91044776 | E48: 55 | F48: 82.08955224 | G48: 300 | H48: 138 | I48: 46 | J48: 162 | K48: 54 | L48: 279 | M48: 92 | N48: 32.97491039 | O48: 187 | P48: 67.02508961 | Q48: 505 | R48: 251 | S48: 49.7029703 | T48: 254 | U48: 50.2970297 | V48: 5 | W48: 1 | X48: 20 | Y48: 4 | Z48: 80
A49: NUEVA GENERACIÓN | B49: 42 | C49: 12 | D49: 28.57142857 | E49: 30 | F49: 71.42857143 | G49: 217 | H49: 97 | I49: 44.70046083 | J49: 120 | K49: 55.29953917 | L49: 189 | M49: 81 | N49: 42.85714286 | O49: 108 | P49: 57.14285714 | Q49: 213 | R49: 103 | S49: 48.35680751 | T49: 110 | U49: 51.64319249 | V49: 3 | W49: 1 | X49: 33.33333333 | Y49: 2 | Z49: 66.66666667
A50: NUEVA MAYORÍA GRIEGA | B50: 1 | C50: 0 | D50: 0 | E50: 1 | F50: 100 | G50: 7 | H50: 3 | I50: 42.85714286 | J50: 4 | K50: 57.14285714 | L50: 8 | M50: 2 | N50: 25 | O50: 6 | P50: 75 | Q50: 32 | R50: 16 | S50: 50 | T50: 16 | U50: 50 | V50: 0 | W50: 0 | X50: 0 | Y50: 0 | Z50: 0
A51: PARRITA INDEPENDIENTE | B51: 1 | C51: 0 | D51: 0 | E51: 1 | F51: 100 | G51: 5 | H51: 2 | I51: 40 | J51: 3 | K51: 60 | L51: 1 | M51: 0 | N51: 0 | O51: 1 | P51: 100 | Q51: 4 | R51: 2 | S51: 50 | T51: 2 | U51: 50 | V51: 0 | W51: 0 | X51: 0 | Y51: 0 | Z51: 0
A52: PROGRESO COMUNAL DESAMPARADEÑO | B52: 1 | C52: 0 | D52: 0 | E52: 1 | F52: 100 | G52: 2 | H52: 1 | I52: 50 | J52: 1 | K52: 50 | L52: 1 | M52: 0 | N52: 0 | O52: 1 | P52: 100 | Q52: 4 | R52: 2 | S52: 50 | T52: 2 | U52: 50 | V52: 0 | W52: 0 | X52: 0 | Y52: 0 | Z52: 0
A53: PUEBLO GARABITO | B53: 1 | C53: 0 | D53: 0 | E53: 1 | F53: 100 | G53: 5 | H53: 3 | I53: 60 | J53: 2 | K53: 40 | L53: 2 | M53: 1 | N53: 50 | O53: 1 | P53: 50 | Q53: 7 | R53: 4 | S53: 57.14285714 | T53: 3 | U53: 42.85714286 | V53: 0 | W53: 0 | X53: 0 | Y53: 0 | Z53: 0
A54: PURISCALEÑOS DE CORAZÓN | B54: 1 | C54: 0 | D54: 0 | E54: 1 | F54: 100 | G54: 5 | H54: 2 | I54: 40 | J54: 3 | K54: 60 | L54: 8 | M54: 3 | N54: 37.5 | O54: 5 | P54: 62.5 | Q54: 0 | R54: 0 | S54: 0 | T54: 0 | U54: 0 | V54: 0 | W54: 0 | X54: 0 | Y54: 0 | Z54: 0
A55: RECUPERANDO VALORES | B55: 3 | C55: 0 | D55: 0 | E55: 3 | F55: 100 | G55: 22 | H55: 10 | I55: 45.45454545 | J55: 12 | K55: 54.54545455 | L55: 16 | M55: 10 | N55: 62.5 | O55: 6 | P55: 37.5 | Q55: 45 | R55: 22 | S55: 48.88888889 | T55: 23 | U55: 51.11111111 | V55: 0 | W55: 0 | X55: 0 | Y55: 0 | Z55: 0
A56: RENOVACIÓN CARTAGO | B56: 1 | C56: 0 | D56: 0 | E56: 1 | F56: 100 | G56: 9 | H56: 4 | I56: 44.44444444 | J56: 5 | K56: 55.55555556 | L56: 11 | M56: 4 | N56: 36.36363636 | O56: 7 | P56: 63.63636364 | Q56: 8 | R56: 4 | S56: 50 | T56: 4 | U56: 50 | V56: 0 | W56: 0 | X56: 0 | Y56: 0 | Z56: 0
A57: RENOVACIÓN COSTARRICENSE | B57: 32 | C57: 5 | D57: 15.625 | E57: 27 | F57: 84.375 | G57: 228 | H57: 104 | I57: 45.61403509 | J57: 124 | K57: 54.38596491 | L57: 172 | M57: 62 | N57: 36.04651163 | O57: 110 | P57: 63.95348837 | Q57: 509 | R57: 260 | S57: 51.0805501 | T57: 249 | U57: 48.9194499 | V57: 1 | W57: 0 | X57: 0 | Y57: 1 | Z57: 100
A58: RENOVEMOS ALAJUELA | B58: 1 | C58: 0 | D58: 0 | E58: 1 | F58: 100 | G58: 10 | H58: 5 | I58: 50 | J58: 5 | K58: 50 | L58: 14 | M58: 5 | N58: 35.71428571 | O58: 9 | P58: 64.28571429 | Q58: 47 | R58: 24 | S58: 51.06382979 | T58: 23 | U58: 48.93617021 | V58: 0 | W58: 0 | X58: 0 | Y58: 0 | Z58: 0
A59: REPUBLICANO SOCIAL CRISTIANO | B59: 63 | C59: 11 | D59: 17.46031746 | E59: 52 | F59: 82.53968254 | G59: 356 | H59: 171 | I59: 48.03370787 | J59: 185 | K59: 51.96629213 | L59: 327 | M59: 91 | N59: 27.82874618 | O59: 236 | P59: 72.17125382 | Q59: 899 | R59: 444 | S59: 49.38820912 | T59: 455 | U59: 50.61179088 | V59: 8 | W59: 3 | X59: 37.5 | Y59: 5 | Z59: 62.5
A60: RESCATE CANTONAL LA UNIÓN | B60: 1 | C60: 0 | D60: 0 | E60: 1 | F60: 100 | G60: 9 | H60: 4 | I60: 44.44444444 | J60: 5 | K60: 55.55555556 | L60: 8 | M60: 3 | N60: 37.5 | O60: 5 | P60: 62.5 | Q60: 31 | R60: 16 | S60: 51.61290323 | T60: 15 | U60: 48.38709677 | V60: 0 | W60: 0 | X60: 0 | Y60: 0 | Z60: 0
A61: RESTAURACIÓN NACIONAL | B61: 14 | C61: 3 | D61: 21.42857143 | E61: 11 | F61: 78.57142857 | G61: 73 | H61: 34 | I61: 46.57534247 | J61: 39 | K61: 53.42465753 | L61: 55 | M61: 22 | N61: 40 | O61: 33 | P61: 60 | Q61: 76 | R61: 41 | S61: 53.94736842 | T61: 35 | U61: 46.05263158 | V61: 1 | W61: 0 | X61: 0 | Y61: 1 | Z61: 100
A62: RESTAURACIÓN PARRITEÑA | B62: 1 | C62: 0 | D62: 0 | E62: 1 | F62: 100 | G62: 4 | H62: 2 | I62: 50 | J62: 2 | K62: 50 | L62: 1 | M62: 1 | N62: 100 | O62: 0 | P62: 0 | Q62: 3 | R62: 2 | S62: 66.66666667 | T62: 1 | U62: 33.33333333 | V62: 0 | W62: 0 | X62: 0 | Y62: 0 | Z62: 0
A63: SOLIDARIDAD | B63: 1 | C63: 0 | D63: 0 | E63: 1 | F63: 100 | G63: 11 | H63: 5 | I63: 45.45454545 | J63: 6 | K63: 54.54545455 | L63: 11 | M63: 4 | N63: 36.36363636 | O63: 7 | P63: 63.63636364 | Q63: 38 | R63: 20 | S63: 52.63157895 | T63: 18 | U63: 47.36842105 | V63: 0 | W63: 0 | X63: 0 | Y63: 0 | Z63: 0
A64: TODO POR FLORES | B64: 1 | C64: 0 | D64: 0 | E64: 1 | F64: 100 | G64: 5 | H64: 3 | I64: 60 | J64: 2 | K64: 40 | L64: 3 | M64: 0 | N64: 0 | O64: 3 | P64: 100 | Q64: 11 | R64: 5 | S64: 45.45454545 | T64: 6 | U64: 54.54545455 | V64: 0 | W64: 0 | X64: 0 | Y64: 0 | Z64: 0
A65: UNIDAD SOCIAL CRISTIANA | B65: 79 | C65: 13 | D65: 16.4556962 | E65: 66 | F65: 83.5443038 | G65: 475 | H65: 214 | I65: 45.05263158 | J65: 261 | K65: 54.94736842 | L65: 457 | M65: 148 | N65: 32.38512035 | O65: 309 | P65: 67.61487965 | Q65: 1635 | R65: 817 | S65: 49.96941896 | T65: 818 | U65: 50.03058104 | V65: 8 | W65: 3 | X65: 37.5 | Y65: 5 | Z65: 62.5
A66: UNIÓN GUARQUEÑO | B66: 1 | C66: 0 | D66: 0 | E66: 1 | F66: 100 | G66: 5 | H66: 2 | I66: 40 | J66: 3 | K66: 60 | L66: 4 | M66: 0 | N66: 0 | O66: 4 | P66: 100 | Q66: 16 | R66: 8 | S66: 50 | T66: 8 | U66: 50 | V66: 0 | W66: 0 | X66: 0 | Y66: 0 | Z66: 0
A67: VERDE | B67: 3 | C67: 0 | D67: 0 | E67: 3 | F67: 100 | G67: 22 | H67: 12 | I67: 54.54545455 | J67: 10 | K67: 45.45454545 | L67: 16 | M67: 5 | N67: 31.25 | O67: 11 | P67: 68.75 | Q67: 20 | R67: 10 | S67: 50 | T67: 10 | U67: 50 | V67: 0 | W67: 0 | X67: 0 | Y67: 0 | Z67: 0
A68: VIVA PUNTARENAS | B68: 6 | C68: 1 | D68: 16.66666667 | E68: 5 | F68: 83.33333333 | G68: 30 | H68: 13 | I68: 43.33333333 | J68: 17 | K68: 56.66666667 | L68: 34 | M68: 12 | N68: 35.29411765 | O68: 22 | P68: 64.70588235 | Q68: 64 | R68: 32 | S68: 50 | T68: 32 | U68: 50 | V68: 2 | W68: 0 | X68: 0 | Y68: 2 | Z68: 100
A69: YUNTA PROGRESISTA ESCAZUCEÑA | B69: 1 | C69: 0 | D69: 0 | E69: 1 | F69: 100 | G69: 7 | H69: 4 | I69: 57.14285714 | J69: 3 | K69: 42.85714286 | L69: 2 | M69: 1 | N69: 50 | O69: 1 | P69: 50 | Q69: 9 | R69: 4 | S69: 44.44444444 | T69: 5 | U69: 55.55555556 | V69: 0 | W69: 0 | X69: 0 | Y69: 0 | Z69: 0
A72: 1/ Incluye Concejales de Distrito y Concejales Municipales de Distrito.
A73: Fuente: Tribunal Supremo de Elecciones.

Sheet 1.3
A2: CUADRO 1.3 COSTA RICA: CANDIDATURAS EN PROPIEDAD A ALCALDES(AS), REGIDORES(AS), SÍNDICOS(AS), CONCEJALES(AS) E INTENDENTES(AS)
A3: SEGÚN GRUPOS DE EDAD, ELECCIONES MUNICIPALES FEBRERO 2016
A4: (cifras absolutas y relativas)
A6: GRUPOS DE EDAD | B6: ALCALDES(AS) | D6: REGIDORES(AS) | F6: SÍNDICOS(AS) | H6: CONCEJALES(AS) 1/ | J6: INTENDENTES(AS)
B7: Absoluto | C7: % | D7: Absoluto | E7: % | F7: Absoluto | G7: % | H7: Absoluto | I7: % | J7: Absoluto | K7: %
A9: TOTAL | B9: =SUM(B10:B24) -> 605 | C9: =+B9/B$9*100 -> 100 | D9: =SUM(D10:D24) -> 3547 | E9: =+D9/D$9*100 -> 100 | F9: =SUM(F10:F24) -> 3169 | G9: =+F9/F$9*100 -> 100 | H9: =SUM(H10:H24) -> 9017 | I9: =+H9/H$9*100 -> 100 | J9: =SUM(J10:J24) -> 53 | K9: =+J9/J$9*100 -> 100
A10: MENOS DE 20 AÑOS | B10: 0 | C10: =+B10/B$9*100 -> 0 | D10: 36 | E10: =+D10/D$9*100 -> 1.014942205 | F10: 20 | G10: 0.6311139161 | H10: 174 | I10: =+H10/H$9*100 -> 1.929688366 | J10: 0 | K10: 0
A11: DE 20 A 24 AÑOS | B11: 5 | C11: =+B11/B$9*100 -> 0.826446281 | D11: 220 | E11: 6.202424584 | F11: 139 | G11: 4.386241717 | H11: 727 | I11: 8.062548519 | J11: 0 | K11: 0
A12: DE 25 A 29 AÑOS | B12: 15 | C12: 2.479338843 | D12: 288 | E12: 8.119537637 | F12: 219 | G12: 6.910697381 | H12: 938 | I12: 10.40257292 | J12: 2 | K12: 3.773584906
A13: DE 30 A 34 AÑOS | B13: 34 | C13: 5.619834711 | D13: 369 | E13: 10.4031576 | F13: 257 | G13: 8.109813821 | H13: 948 | I13: 10.51347455 | J13: 3 | K13: 5.660377358
A14: DE 35 A 39 AÑOS | B14: 38 | C14: 6.280991736 | D14: 357 | E14: 10.06484353 | F14: 313 | G14: 9.876932786 | H14: 925 | I14: 10.2584008 | J14: 5 | K14: 9.433962264
A15: DE 40 A 44 AÑOS | B15: 56 | C15: 9.256198347 | D15: 335 | E15: 9.444601071 | F15: 350 | G15: 11.04449353 | H15: 986 | I15: 10.93490074 | J15: 3 | K15: 5.660377358
A16: DE 45 A 49 AÑOS | B16: 68 | C16: 11.23966942 | D16: 428 | E16: 12.0665351 | F16: 435 | G16: 13.72672767 | H16: 1039 | I16: 11.52267938 | J16: 16 | K16: 30.18867925
A17: DE 50 A 54 AÑOS | B17: 128 | C17: 21.15702479 | D17: 443 | E17: 12.48942769 | F17: 451 | G17: 14.23161881 | H17: 1054 | I17: 11.68903183 | J17: 10 | K17: 18.86792453
A18: DE 55 A 59 AÑOS | B18: 124 | C18: 20.49586777 | D18: 437 | E18: 12.32027065 | F18: 399 | G18: 12.59072263 | H18: 832 | I18: 9.227015637 | J18: 7 | K18: 13.20754717
A19: DE 60 A 64 AÑOS | B19: 92 | C19: 15.20661157 | D19: 326 | E19: 9.19086552 | F19: 274 | G19: 8.64626065 | H19: 601 | I19: 6.665187978 | J19: 5 | K19: 9.433962264
A20: DE 65 A 69 AÑOS | B20: 33 | C20: 5.454545455 | D20: 190 | E20: 5.356639414 | F20: 193 | G20: 6.09024929 | H20: 413 | I20: 4.580237329 | J20: 2 | K20: 3.773584906
A21: DE 70 A 74 AÑOS | B21: 6 | C21: 0.9917355372 | D21: 84 | E21: 2.368198478 | F21: 78 | G21: 2.461344273 | H21: 224 | I21: 2.484196518 | J21: 0 | K21: 0
A22: DE 75 A 79 AÑOS | B22: 4 | C22: 0.6611570248 | D22: 25 | E22: 0.7048209755 | F22: 28 | G22: 0.8835594825 | H22: 95 | I22: 1.053565487 | J22: 0 | K22: 0
A23: DE 80 A 84 AÑOS | B23: 1 | C23: 0.1652892562 | D23: 8 | E23: 0.2255427122 | F23: 10 | G23: 0.315556958 | H23: 45 | I23: 0.4990573361 | J23: 0 | K23: 0
A24: 85 AÑOS Y MÁS | B24: 1 | C24: 0.1652892562 | D24: 1 | E24: 0.02819283902 | F24: 3 | G24: 0.09466708741 | H24: 16 | I24: 0.1774426084 | J24: 0 | K24: 0
A27: 1/ Incluye Concejales de Distrito y Concejales Municipales de Distrito.
A28: Fuente: Tribunal Supremo de Elecciones.

Sheet 1.4
A2: CUADRO 1.4 COSTA RICA: CANDIDATURAS EN PROPIEDAD A ALCALDES(AS), REGIDORES(AS), SÍNDICOS(AS), CONCEJALES(AS) E INTENDENTES(AS)
A3: POR SEXO,SEGÚN GRUPOS DE EDAD, ELECCIONES MUNICIPALES FEBRERO 2016
A4: (cifras absolutas y relativas)
A6: GRUPOS DE EDAD | B6: ALCALDES(AS) | G6: REGIDORES(AS) | L6: SÍNDICOS(AS) | Q6: CONCEJALES(AS) 1/ | V6: INTENDENTES(AS)
B7: TOTAL | C7: MUJERES | E7: HOMBRES | G7: TOTAL | H7: MUJERES | J7: HOMBRES | L7: TOTAL | M7: MUJERES | O7: HOMBRES | Q7: TOTAL | R7: MUJERES | T7: HOMBRES | V7: TOTAL | W7: MUJERES | Y7: HOMBRES
C8: Absoluto | D8: % | E8: Absoluto | F8: % | H8: Absoluto | I8: % | J8: Absoluto | K8: % | M8: Absoluto | N8: % | O8: Absoluto | P8: % | R8: Absoluto | S8: % | T8: Absoluto | U8: % | W8: Absoluto | X8: % | Y8: Absoluto | Z8: %
A10: TOTAL | B10: =SUM(B11:B25) -> 605 | C10: =SUM(C11:C25) -> 116 | D10: =+C10/$B10*100 -> 19.17355372 | E10: =SUM(E11:E25) -> 489 | F10: =+E10/$B10*100 -> 80.82644628 | G10: =SUM(G11:G25) -> 3547 | H10: =SUM(H11:H25) -> 1638 | I10: =+H10/$G10*100 -> 46.17987031 | J10: =SUM(J11:J25) -> 1909 | K10: =+J10/$G10*100 -> 53.82012969 | L10: =SUM(L11:L25) -> 3169 | M10: =SUM(M11:M25) -> 1142 | N10: =+M10/$L10*100 -> 36.03660461 | O10: =SUM(O11:O25) -> 2027 | P10: =+O10/$L10*100 -> 63.96339539 | Q10: =SUM(Q11:Q25) -> 9017 | R10: =SUM(R11:R25) -> 4498 | S10: =+R10/$Q10*100 -> 49.88355329 | T10: =SUM(T11:T25) -> 4519 | U10: =+T10/$Q10*100 -> 50.11644671 | V10: =SUM(V11:V25) -> 53 | W10: =SUM(W11:W25) -> 14 | X10: =+W10/$V10*100 -> 26.41509434 | Y10: =SUM(Y11:Y25) -> 39 | Z10: =+Y10/$V10*100 -> 73.58490566
A11: MENOS DE 20 AÑOS | B11: =+C11+E11 -> 0 | C11: 0 | D11: 0 | E11: 0 | F11: 0 | G11: =+H11+J11 -> 36 | H11: 22 | I11: =+H11/$G11*100 -> 61.11111111 | J11: 14 | K11: =+J11/$G11*100 -> 38.88888889 | L11: =+M11+O11 -> 20 | M11: 9 | N11: =+M11/$L11*100 -> 45 | O11: 11 | P11: =+O11/$L11*100 -> 55 | Q11: =+R11+T11 -> 174 | R11: 95 | S11: =+R11/$Q11*100 -> 54.59770115 | T11: 79 | U11: =+T11/$Q11*100 -> 45.40229885 | V11: =+W11+Y11 -> 0 | W11: 0 | X11: 0 | Y11: 0 | Z11: 0
A12: DE 20 A 24 AÑOS | B12: 5 | C12: 2 | D12: =+C12/$B12*100 -> 40 | E12: 3 | F12: =+E12/$B12*100 -> 60 | G12: 220 | H12: 102 | I12: =+H12/$G12*100 -> 46.36363636 | J12: 118 | K12: =+J12/$G12*100 -> 53.63636364 | L12: 139 | M12: 59 | N12: 42.44604317 | O12: 80 | P12: 57.55395683 | Q12: =+R12+T12 -> 727 | R12: 388 | S12: 53.37001376 | T12: 339 | U12: 46.62998624 | V12: 0 | W12: 0 | X12: 0 | Y12: 0 | Z12: 0
A13: DE 25 A 29 AÑOS | B13: 15 | C13: 4 | D13: 26.66666667 | E13: 11 | F13: 73.33333333 | G13: 288 | H13: 148 | I13: 51.38888889 | J13: 140 | K13: 48.61111111 | L13: 219 | M13: 90 | N13: 41.09589041 | O13: 129 | P13: 58.90410959 | Q13: =+R13+T13 -> 938 | R13: 515 | S13: 54.90405117 | T13: 423 | U13: 45.09594883 | V13: 2 | W13: 2 | X13: =+W13/$V13*100 -> 100 | Y13: 0 | Z13: =+Y13/$V13*100 -> 0
A14: DE 30 A 34 AÑOS | B14: 34 | C14: 8 | D14: 23.52941176 | E14: 26 | F14: 76.47058824 | G14: 369 | H14: 190 | I14: 51.49051491 | J14: 179 | K14: 48.50948509 | L14: 257 | M14: 120 | N14: 46.692607 | O14: 137 | P14: 53.307393 | Q14: 948 | R14: 555 | S14: 58.5443038 | T14: 393 | U14: 41.4556962 | V14: 3 | W14: 1 | X14: 33.33333333 | Y14: 2 | Z14: 66.66666667
A15: DE 35 A 39 AÑOS | B15: 38 | C15: 10 | D15: 26.31578947 | E15: 28 | F15: 73.68421053 | G15: 357 | H15: 188 | I15: 52.66106443 | J15: 169 | K15: 47.33893557 | L15: 313 | M15: 147 | N15: 46.96485623 | O15: 166 | P15: 53.03514377 | Q15: 925 | R15: 524 | S15: 56.64864865 | T15: 401 | U15: 43.35135135 | V15: 5 | W15: 2 | X15: 40 | Y15: 3 | Z15: 60
A16: DE 40 A 44 AÑOS | B16: 56 | C16: 12 | D16: 21.42857143 | E16: 44 | F16: 78.57142857 | G16: 335 | H16: 165 | I16: 49.25373134 | J16: 170 | K16: 50.74626866 | L16: 350 | M16: 140 | N16: 40 | O16: 210 | P16: 60 | Q16: 986 | R16: 532 | S16: 53.95537525 | T16: 454 | U16: 46.04462475 | V16: 3 | W16: 0 | X16: 0 | Y16: 3 | Z16: 100
A17: DE 45 A 49 AÑOS | B17: 68 | C17: 17 | D17: 25 | E17: 51 | F17: 75 | G17: 428 | H17: 213 | I17: 49.76635514 | J17: 215 | K17: 50.23364486 | L17: 435 | M17: 162 | N17: 37.24137931 | O17: 273 | P17: 62.75862069 | Q17: 1039 | R17: 524 | S17: 50.43310876 | T17: 515 | U17: 49.56689124 | V17: 16 | W17: 4 | X17: 25 | Y17: 12 | Z17: 75
A18: DE 50 A 54 AÑOS | B18: 128 | C18: 29 | D18: 22.65625 | E18: 99 | F18: 77.34375 | G18: 443 | H18: 212 | I18: 47.85553047 | J18: 231 | K18: 52.14446953 | L18: 451 | M18: 161 | N18: 35.69844789 | O18: 290 | P18: 64.30155211 | Q18: 1054 | R18: 520 | S18: 49.33586338 | T18: 534 | U18: 50.66413662 | V18: 10 | W18: 1 | X18: =+W18/$V18*100 -> 10 | Y18: 9 | Z18: 90
A19: DE 55 A 59 AÑOS | B19: 124 | C19: 20 | D19: 16.12903226 | E19: 104 | F19: 83.87096774 | G19: 437 | H19: 181 | I19: 41.4187643 | J19: 256 | K19: 58.5812357 | L19: 399 | M19: 125 | N19: 31.3283208 | O19: 274 | P19: 68.6716792 | Q19: 832 | R19: 371 | S19: 44.59134615 | T19: 461 | U19: 55.40865385 | V19: 7 | W19: 3 | X19: =+W19/$V19*100 -> 42.85714286 | Y19: 4 | Z19: 57.14285714
A20: DE 60 A 64 AÑOS | B20: 92 | C20: 11 | D20: 11.95652174 | E20: 81 | F20: 88.04347826 | G20: 326 | H20: 133 | I20: 40.79754601 | J20: 193 | K20: 59.20245399 | L20: 274 | M20: 78 | N20: 28.46715328 | O20: 196 | P20: 71.53284672 | Q20: 601 | R20: 233 | S20: 38.7687188 | T20: 368 | U20: 61.2312812 | V20: 5 | W20: 1 | X20: =+W20/$V20*100 -> 20 | Y20: 4 | Z20: 80
A21: DE 65 A 69 AÑOS | B21: 33 | C21: 3 | D21: 9.090909091 | E21: 30 | F21: 90.90909091 | G21: 190 | H21: 62 | I21: 32.63157895 | J21: 128 | K21: 67.36842105 | L21: 193 | M21: 34 | N21: 17.61658031 | O21: 159 | P21: 82.38341969 | Q21: 413 | R21: 140 | S21: 33.89830508 | T21: 273 | U21: 66.10169492 | V21: 2 | W21: 0 | X21: 0 | Y21: 2 | Z21: 100
A22: DE 70 A 74 AÑOS | B22: 6 | C22: 0 | D22: 0 | E22: 6 | F22: 100 | G22: 84 | H22: 16 | I22: 19.04761905 | J22: 68 | K22: 80.95238095 | L22: 78 | M22: 12 | N22: 15.38461538 | O22: 66 | P22: 84.61538462 | Q22: 224 | R22: 63 | S22: 28.125 | T22: 161 | U22: 71.875 | V22: 0 | W22: 0 | X22: 0 | Y22: 0 | Z22: 0
A23: DE 75 A 79 AÑOS | B23: 4 | C23: 0 | D23: 0 | E23: 4 | F23: 100 | G23: 25 | H23: 5 | I23: 20 | J23: 20 | K23: 80 | L23: 28 | M23: 4 | N23: 14.28571429 | O23: 24 | P23: 85.71428571 | Q23: 95 | R23: 26 | S23: 27.36842105 | T23: 69 | U23: 72.63157895 | V23: 0 | W23: 0 | X23: 0 | Y23: 0 | Z23: 0
A24: DE 80 A 84 AÑOS | B24: 1 | C24: 0 | D24: =+C24/$B24*100 -> 0 | E24: 1 | F24: =+E24/$B24*100 -> 100 | G24: 8 | H24: 1 | I24: 12.5 | J24: 7 | K24: 87.5 | L24: 10 | M24: 0 | N24: 0 | O24: 10 | P24: 100 | Q24: 45 | R24: 8 | S24: 17.77777778 | T24: 37 | U24: 82.22222222 | V24: 0 | W24: 0 | X24: 0 | Y24: 0 | Z24: 0
A25: 85 AÑOS Y MÁS | B25: 1 | C25: 0 | D25: =+C25/$B25*100 -> 0 | E25: 1 | F25: =+E25/$B25*100 -> 100 | G25: 1 | H25: 0 | I25: 0 | J25: 1 | K25: =+J25/$G25*100 -> 100 | L25: 3 | M25: 1 | N25: 33.33333333 | O25: 2 | P25: 66.66666667 | Q25: 16 | R25: 4 | S25: 25 | T25: 12 | U25: 75 | V25: 0 | W25: 0 | X25: 0 | Y25: 0 | Z25: 0
A28: 1/ Incluye Concejales de Distrito y Concejales Municipales de Distrito.
A29: Fuente: Tribunal Supremo de Elecciones.

Sheet 1.5
A2: CUADRO 1.5 COSTA RICA: CANDIDATURAS EN PROPIEDAD A ALCALDES(AS), REGIDORES(AS), SÍNDICOS(AS), CONCEJALES(AS) E INTENDENTES(AS)
A3: POR SEXO, SEGÚN PROVINCIA, ELECCIONES MUNICIPALES FEBRERO 2016
A4: (cifras absolutas y relativas)
A6: PROVINCIA | B6: ALCALDES(AS) | G6: REGIDORES(AS) | L6: SÍNDICOS(AS) | Q6: CONCEJALES (AS)1/ | V6: INTENDENTES(AS)
B7: TOTAL | C7: MUJERES | E7: HOMBRES | G7: TOTAL | H7: MUJERES | J7: HOMBRES | L7: TOTAL | M7: MUJERES | O7: HOMBRES | Q7: TOTAL | R7: MUJERES | T7: HOMBRES | V7: TOTAL | W7: MUJERES | Y7: HOMBRES
C8: Absoluto | D8: % | E8: Absoluto | F8: % | H8: Absoluto | I8: % | J8: Absoluto | K8: % | M8: Absoluto | N8: % | O8: Absoluto | P8: % | R8: Absoluto | S8: % | T8: Absoluto | U8: % | W8: Absoluto | X8: % | Y8: Absoluto | Z8: %
A10: TOTAL | B10: =SUM(B11:B17) -> 605 | C10: =SUM(C11:C17) -> 116 | D10: =+C10/$B10*100 -> 19.17355372 | E10: =SUM(E11:E17) -> 489 | F10: =+E10/$B10*100 -> 80.82644628 | G10: =SUM(G11:G17) -> 3547 | H10: =SUM(H11:H17) -> 1638 | I10: =+H10/$G10*100 -> 46.17987031 | J10: =SUM(J11:J17) -> 1909 | K10: =+J10/$G10*100 -> 53.82012969 | L10: =SUM(L11:L17) -> 3169 | M10: =SUM(M11:M17) -> 1142 | N10: =+M10/$L10*100 -> 36.03660461 | O10: =SUM(O11:O17) -> 2027 | P10: =+O10/$L10*100 -> 63.96339539 | Q10: =SUM(Q11:Q17) -> 9017 | R10: =SUM(R11:R17) -> 4498 | S10: =+R10/$Q10*100 -> 49.88355329 | T10: =SUM(T11:T17) -> 4519 | U10: =+T10/$Q10*100 -> 50.11644671 | V10: =SUM(V11:V17) -> 53 | W10: =SUM(W11:W17) -> 14 | X10: =+W10/$V10*100 -> 26.41509434 | Y10: =SUM(Y11:Y17) -> 39 | Z10: =+Y10/$V10*100 -> 73.58490566
A11: SAN JOSÉ | B11: =+C11+E11 -> 159 | C11: 27 | D11: =+C11/$B11*100 -> 16.98113208 | E11: 132 | F11: =+E11/$B11*100 -> 83.01886792 | G11: =+H11+J11 -> 1023 | H11: 480 | I11: =+H11/$G11*100 -> 46.92082111 | J11: 543 | K11: =+J11/$G11*100 -> 53.07917889 | L11: =+M11+O11 -> 857 | M11: 336 | N11: =+M11/$L11*100 -> 39.20653442 | O11: 521 | P11: =+O11/$L11*100 -> 60.79346558 | Q11: =+R11+T11 -> 2359 | R11: 1180 | S11: =+R11/$Q11*100 -> 50.02119542 | T11: 1179 | U11: =+T11/$Q11*100 -> 49.97880458 | V11: =+W11+Y11 -> 0 | W11: 0 | X11: 0 | Y11: 0 | Z11: 0
A12: ALAJUELA | B12: 107 | C12: 21 | D12: 19.62616822 | E12: 86 | F12: 80.37383178 | G12: 616 | H12: 280 | I12: =+H12/$G12*100 -> 45.45454545 | J12: 336 | K12: =+J12/$G12*100 -> 54.54545455 | L12: 720 | M12: 238 | N12: 33.05555556 | O12: 482 | P12: 66.94444444 | Q12: 2053 | R12: 1021 | S12: 49.73209937 | T12: 1032 | U12: 50.26790063 | V12: 6 | W12: 2 | X12: =+W12/$V12*100 -> 33.33333333 | Y12: 4 | Z12: =+Y12/$V12*100 -> 66.66666667
A13: CARTAGO | B13: 68 | C13: 16 | D13: 23.52941176 | E13: 52 | F13: 76.47058824 | G13: 416 | H13: 197 | I13: 47.35576923 | J13: 219 | K13: 52.64423077 | L13: 385 | M13: 141 | N13: 36.62337662 | O13: 244 | P13: 63.37662338 | Q13: 969 | R13: 487 | S13: 50.25799794 | T13: 482 | U13: 49.74200206 | V13: 13 | W13: 3 | X13: 23.07692308 | Y13: 10 | Z13: 76.92307692
A14: HEREDIA | B14: 69 | C14: 20 | D14: 28.98550725 | E14: 49 | F14: 71.01449275 | G14: 369 | H14: 172 | I14: 46.61246612 | J14: 197 | K14: 53.38753388 | L14: 276 | M14: 105 | N14: 38.04347826 | O14: 171 | P14: 61.95652174 | Q14: 822 | R14: 415 | S14: 50.486618 | T14: 407 | U14: 49.513382 | V14: 0 | W14: 0 | X14: 0 | Y14: 0 | Z14: 0
A15: GUANACASTE | B15: 61 | C15: 12 | D15: 19.67213115 | E15: 49 | F15: 80.32786885 | G15: 330 | H15: 148 | I15: 44.84848485 | J15: 182 | K15: 55.15151515 | L15: 314 | M15: 114 | N15: 36.30573248 | O15: 200 | P15: 63.69426752 | Q15: 981 | R15: 483 | S15: 49.23547401 | T15: 498 | U15: 50.76452599 | V15: 7 | W15: 2 | X15: 28.57142857 | Y15: 5 | Z15: 71.42857143
A16: PUNTARENAS | B16: 87 | C16: 12 | D16: 13.79310345 | E16: 75 | F16: 86.20689655 | G16: 437 | H16: 195 | I16: 44.62242563 | J16: 242 | K16: 55.37757437 | L16: 379 | M16: 122 | N16: 32.18997361 | O16: 257 | P16: 67.81002639 | Q16: 1108 | R16: 550 | S16: 49.63898917 | T16: 558 | U16: 50.36101083 | V16: 27 | W16: 7 | X16: 25.92592593 | Y16: 20 | Z16: 74.07407407
A17: LIMÓN | B17: 54 | C17: 8 | D17: 14.81481481 | E17: 46 | F17: 85.18518519 | G17: 356 | H17: 166 | I17: 46.62921348 | J17: 190 | K17: 53.37078652 | L17: 238 | M17: 86 | N17: 36.13445378 | O17: 152 | P17: 63.86554622 | Q17: 725 | R17: 362 | S17: 49.93103448 | T17: 363 | U17: 50.06896552 | V17: 0 | W17: 0 | X17: 0 | Y17: 0 | Z17: 0
A20: 1/ Incluye Concejales de Distrito y Concejales Municipales de Distrito.
A21: Fuente: Tribunal Supremo de Elecciones.

Sheet 1.6
A2: CUADRO 1.6 COSTA RICA: CANDIDATURAS A REGIDORES(AS) EN PROPIEDAD, POR ORDEN DEL PUESTO Y SEXO
A3: SEGÚN PARTIDO POLÍTICO, ELECCIONES MUNICIPALES FEBRERO 2016
A4: (cifras absolutas y relativas)
A6: PARTIDO POLÍTICO | B6: TOTAL | G6: PRIMER PUESTO | L6: SEGUNDO PUESTO | Q6: TERCER PUESTO | V6: CUARTO PUESTO | AA6: QUINTO PUESTO | AF6: SEXTO PUESTO Y MÁS
B7: TOTAL | C7: MUJERES | E7: HOMBRES | G7: TOTAL | H7: MUJERES | J7: HOMBRES | L7: TOTAL | M7: MUJERES | O7: HOMBRES | Q7: TOTAL | R7: MUJERES | T7: HOMBRES | V7: TOTAL | W7: MUJERES | Y7: HOMBRES | AA7: TOTAL | AB7: MUJERES | AD7: HOMBRES | AF7: TOTAL | AG7: MUJERES | AI7: HOMBRES
C8: Absoluto | D8: % | E8: Absoluto | F8: % | H8: Absoluto | I8: % | J8: Absoluto | K8: % | M8: Absoluto | N8: % | O8: Absoluto | P8: % | R8: Absoluto | S8: % | T8: Absoluto | U8: % | W8: Absoluto | X8: % | Y8: Absoluto | Z8: % | AB8: Absoluto | AC8: % | AD8: Absoluto | AE8: % | AG8: Absoluto | AH8: % | AI8: Absoluto | AJ8: %
A10: TOTAL | B10: =SUM(B11:B69) -> 5894 | C10: =SUM(C11:C69) -> 2931 | D10: =+C10/$B10*100 -> 49.7285375 | E10: =SUM(E11:E69) -> 2990 | F10: =+E10/$B10*100 -> 50.72955548 | G10: =SUM(G11:G69) -> 635 | H10: =SUM(H11:H69) -> 166 | I10: =+H10/$G10*100 -> 26.14173228 | J10: =SUM(J11:J69) -> 469 | K10: =+J10/$G10*100 -> 73.85826772 | L10: =SUM(L11:L69) -> 615 | M10: =SUM(M11:M69) -> 454 | N10: =+M10/$L10*100 -> 73.82113821 | O10: =SUM(O11:O69) -> 161 | P10: =+O10/$L10*100 -> 26.17886179 | Q10: =SUM(Q11:Q69) -> 584 | R10: =SUM(R11:R69) -> 154 | S10: =+R10/$Q10*100 -> 26.36986301 | T10: =SUM(T11:T69) -> 430 | U10: =+T10/$Q10*100 -> 73.63013699 | V10: =SUM(V11:V69) -> 548 | W10: =SUM(W11:W69) -> 396 | X10: =+W10/$V10*100 -> 72.26277372 | Y10: =SUM(Y11:Y69) -> 152 | Z10: =+Y10/$V10*100 -> 27.73722628 | AA10: =SUM(AA11:AA69) -> 491 | AB10: =SUM(AB11:AB69) -> 126 | AC10: =+AB10/$AA10*100 -> 25.66191446 | AD10: =SUM(AD11:AD69) -> 365 | AE10: =+AD10/$AA10*100 -> 74.33808554 | AF10: =SUM(AF11:AF69) -> 674 | AG10: =SUM(AG11:AG69) -> 342 | AH10: =+AG10/$AF10*100 -> 50.74183976 | AI10: =SUM(AI11:AI69) -> 332 | AJ10: =+AI10/$AF10*100 -> 49.25816024
A11: ACCESIBILIDAD SIN EXCLUSIÓN | B11: =+C11+E11 -> 239 | C11: 116 | D11: =+C11/$B11*100 -> 48.53556485 | E11: 123 | F11: =+E11/$B11*100 -> 51.46443515 | G11: =+H11+J11 -> 21 | H11: 5 | I11: =+H11/$G11*100 -> 23.80952381 | J11: 16 | K11: =+J11/$G11*100 -> 76.19047619 | L11: =+M11+O11 -> 21 | M11: 16 | N11: =+M11/$L11*100 -> 76.19047619 | O11: 5 | P11: =+O11/$L11*100 -> 23.80952381 | Q11: =+R11+T11 -> 20 | R11: 4 | S11: =+R11/$Q11*100 -> 20 | T11: 16 | U11: =+T11/$Q11*100 -> 80 | V11: =+W11+Y11 -> 19 | W11: 15 | X11: =+W11/$V11*100 -> 78.94736842 | Y11: 4 | Z11: =+Y11/$V11*100 -> 21.05263158 | AA11: =+AB11+AD11 -> 17 | AB11: 3 | AC11: =+AB11/$AA11*100 -> 17.64705882 | AD11: 14 | AE11: =+AD11/$AA11*100 -> 82.35294118 | AF11: =+AG11+AI11 -> 36 | AG11: 18 | AH11: =+AG11/$AF11*100 -> 50 | AI11: 18 | AJ11: =+AI11/$AF11*100 -> 50
A12: ACCIÓN CANTONAL SIQUIRRES INDEPENDIENTE | B12: 20 | C12: 10 | D12: 50 | E12: 10 | F12: 50 | G12: =+H12+J12 -> 1 | H12: 0 | I12: 0 | J12: 1 | K12: 100 | L12: 1 | M12: 1 | N12: 100 | O12: 0 | P12: 0 | Q12: 1 | R12: 0 | S12: =+R12/$Q12*100 -> 0 | T12: 1 | U12: =+T12/$Q12*100 -> 100 | V12: =+W12+Y12 -> 1 | W12: 1 | X12: =+W12/$V12*100 -> 100 | Y12: 0 | Z12: =+Y12/$V12*100 -> 0 | AA12: =+AB12+AD12 -> 1 | AB12: 0 | AC12: =+AB12/$AA12*100 -> 0 | AD12: 1 | AE12: =+AD12/$AA12*100 -> 100 | AF12: =+AG12+AI12 -> 2 | AG12: 1 | AH12: =+AG12/$AF12*100 -> 50 | AI12: 1 | AJ12: =+AI12/$AF12*100 -> 50
A13: ACCIÓN CIUDADANA | B13: 851 | C13: 418 | D13: 49.1186839 | E13: 433 | F13: 50.8813161 | G13: 76 | H13: 25 | I13: 32.89473684 | J13: 51 | K13: 67.10526316 | L13: 75 | M13: 50 | N13: 66.66666667 | O13: 25 | P13: 33.33333333 | Q13: 74 | R13: 25 | S13: 33.78378378 | T13: 49 | U13: 66.21621622 | V13: 70 | W13: 47 | X13: 67.14285714 | Y13: 23 | Z13: 32.85714286 | AA13: 63 | AB13: 20 | AC13: 31.74603175 | AD13: 43 | AE13: 68.25396825 | AF13: 75 | AG13: 39 | AH13: 52 | AI13: 36 | AJ13: 48
A14: ACUERDO DE ALIANZA DE QUEPOS | B14: 9 | C14: 4 | D14: 44.44444444 | E14: 5 | F14: 55.55555556 | G14: 1 | H14: 0 | I14: 0 | J14: 1 | K14: 100 | L14: 1 | M14: 1 | N14: 100 | O14: 0 | P14: 0 | Q14: 1 | R14: 0 | S14: 0 | T14: 1 | U14: 100 | V14: 1 | W14: 1 | X14: 100 | Y14: 0 | Z14: 0 | AA14: 1 | AB14: 0 | AC14: 0 | AD14: 1 | AE14: 100 | AF14: 0 | AG14: 0 | AH14: 0 | AI14: 0 | AJ14: 0
A15: ALIANZA CRISTIANA SANTANEÑA | B15: 52 | C15: 26 | D15: 50 | E15: 26 | F15: 50 | G15: 1 | H15: 0 | I15: 0 | J15: 1 | K15: 100 | L15: 1 | M15: 1 | N15: 100 | O15: 0 | P15: 0 | Q15: 1 | R15: 0 | S15: 0 | T15: 1 | U15: 100 | V15: 1 | W15: 1 | X15: 100 | Y15: 0 | Z15: 0 | AA15: 1 | AB15: 0 | AC15: 0 | AD15: 1 | AE15: 100 | AF15: 2 | AG15: 1 | AH15: 50 | AI15: 1 | AJ15: 50
A16: ALIANZA DEMÓCRATA CRISTIANA | B16: 44 | C16: 24 | D16: 54.54545455 | E16: 20 | F16: 45.45454545 | G16: 8 | H16: 0 | I16: 0 | J16: 8 | K16: 100 | L16: 8 | M16: 8 | N16: 100 | O16: 0 | P16: 0 | Q16: 8 | R16: 0 | S16: 0 | T16: 8 | U16: 100 | V16: 7 | W16: 7 | X16: 100 | Y16: 0 | Z16: 0 | AA16: 6 | AB16: 0 | AC16: 0 | AD16: 6 | AE16: 100 | AF16: 7 | AG16: 4 | AH16: 57.14285714 | AI16: 3 | AJ16: 42.85714286
A17: ALIANZA POR PALMARES | B17: 11 | C17: 5 | D17: 45.45454545 | E17: 6 | F17: 54.54545455 | G17: 1 | H17: 0 | I17: 0 | J17: 1 | K17: 100 | L17: 1 | M17: 1 | N17: 100 | O17: 0 | P17: 0 | Q17: 1 | R17: 0 | S17: 0 | T17: 1 | U17: 100 | V17: 1 | W17: 1 | X17: 100 | Y17: 0 | Z17: 0 | AA17: 1 | AB17: 0 | AC17: 0 | AD17: 1 | AE17: 100 | AF17: 0 | AG17: 0 | AH17: 0 | AI17: 0 | AJ17: 0
A18: ALIANZA POR SAN JOSÉ | B18: 11 | C18: 5 | D18: 45.45454545 | E18: 6 | F18: 54.54545455 | G18: 1 | H18: 0 | I18: 0 | J18: 1 | K18: 100 | L18: 1 | M18: 1 | N18: 100 | O18: 0 | P18: 0 | Q18: 1 | R18: 0 | S18: 0 | T18: 1 | U18: 100 | V18: 1 | W18: 1 | X18: 100 | Y18: 0 | Z18: 0 | AA18: 1 | AB18: 0 | AC18: 0 | AD18: 1 | AE18: 100 | AF18: 6 | AG18: 3 | AH18: 50 | AI18: 3 | AJ18: 50
A19: ALIANZA SANCARLEÑA | B19: 7 | C19: 3 | D19: 42.85714286 | E19: 4 | F19: 57.14285714 | G19: 1 | H19: 0 | I19: 0 | J19: 1 | K19: 100 | L19: 1 | M19: 1 | N19: 100 | O19: 0 | P19: 0 | Q19: 1 | R19: 0 | S19: 0 | T19: 1 | U19: 100 | V19: 1 | W19: 1 | X19: 100 | Y19: 0 | Z19: 0 | AA19: 1 | AB19: 0 | AC19: 0 | AD19: 1 | AE19: 100 | AF19: 4 | AG19: 2 | AH19: 50 | AI19: 2 | AJ19: 50
A20: ALIANZA SOCIAL POR LA UNIÓN | B20: 16 | C20: 8 | D20: 50 | E20: 8 | F20: 50 | G20: 1 | H20: 1 | I20: 100 | J20: 0 | K20: 0 | L20: 1 | M20: 0 | N20: 0 | O20: 1 | P20: 100 | Q20: 1 | R20: 1 | S20: 100 | T20: 0 | U20: 0 | V20: 1 | W20: 0 | X20: 0 | Y20: 1 | Z20: 100 | AA20: 1 | AB20: 1 | AC20: 100 | AD20: 0 | AE20: 0 | AF20: 4 | AG20: 2 | AH20: 50 | AI20: 2 | AJ20: 50
A21: AUTÉNTICO LABRADOR DE CORONADO | B21: 44 | C21: 22 | D21: 50 | E21: 22 | F21: 50 | G21: 1 | H21: 0 | I21: 0 | J21: 1 | K21: 100 | L21: 1 | M21: 1 | N21: 100 | O21: 0 | P21: 0 | Q21: 1 | R21: 0 | S21: 0 | T21: 1 | U21: 100 | V21: 1 | W21: 1 | X21: 100 | Y21: 0 | Z21: 0 | AA21: 1 | AB21: 0 | AC21: 0 | AD21: 1 | AE21: 100 | AF21: 2 | AG21: 1 | AH21: 50 | AI21: 1 | AJ21: 50
A22: AUTÉNTICO LIMONENSE | B22: 14 | C22: 8 | D22: 57.14285714 | E22: 6 | F22: 42.85714286 | G22: 1 | H22: 1 | I22: 100 | J22: 0 | K22: 0 | L22: 1 | M22: 0 | N22: 0 | O22: 1 | P22: 100 | Q22: 1 | R22: 1 | S22: 100 | T22: 0 | U22: 0 | V22: 1 | W22: 0 | X22: 0 | Y22: 1 | Z22: 100 | AA22: 1 | AB22: 1 | AC22: 100 | AD22: 0 | AE22: 0 | AF22: 4 | AG22: 2 | AH22: 50 | AI22: 2 | AJ22: 50
A23: AUTÉNTICO SIQUIRREÑO | C23: 14 | E23: 13 | G23: 1 | H23: 0 | I23: 0 | J23: 1 | K23: 100 | L23: 1 | M23: 1 | N23: 100 | O23: 0 | P23: 0 | Q23: 1 | R23: 0 | S23: 0 | T23: 1 | U23: 100 | V23: 1 | W23: 1 | X23: 100 | Y23: 0 | Z23: 0 | AA23: 1 | AB23: 0 | AC23: 0 | AD23: 1 | AE23: 100 | AF23: 2 | AG23: 1 | AH23: 50 | AI23: 1 | AJ23: 50
A24: AUTÓNOMO OROMONTANO | B24: 43 | C24: 21 | D24: 48.8372093 | E24: 22 | F24: 51.1627907 | G24: 1 | H24: 0 | I24: 0 | J24: 1 | K24: 100 | L24: 1 | M24: 1 | N24: 100 | O24: 0 | P24: 0 | Q24: 1 | R24: 0 | S24: 0 | T24: 1 | U24: 100 | V24: 1 | W24: 1 | X24: 100 | Y24: 0 | Z24: 0 | AA24: 1 | AB24: 0 | AC24: 0 | AD24: 1 | AE24: 100 | AF24: 0 | AG24: 0 | AH24: 0 | AI24: 0 | AJ24: 0
A25: AVANCE MONTES DE OCA | B25: 51 | C25: 25 | D25: 49.01960784 | E25: 26 | F25: 50.98039216 | G25: 1 | H25: 0 | I25: 0 | J25: 1 | K25: 100 | L25: 1 | M25: 1 | N25: 100 | O25: 0 | P25: 0 | Q25: 1 | R25: 0 | S25: 0 | T25: 1 | U25: 100 | V25: 1 | W25: 1 | X25: 100 | Y25: 0 | Z25: 0 | AA25: 1 | AB25: 0 | AC25: 0 | AD25: 1 | AE25: 100 | AF25: 2 | AG25: 1 | AH25: 50 | AI25: 1 | AJ25: 50
A26: BARVA UNIDA | B26: 15 | C26: 9 | D26: 60 | E26: 6 | F26: 40 | G26: 1 | H26: 0 | I26: 0 | J26: 1 | K26: 100 | L26: 1 | M26: 1 | N26: 100 | O26: 0 | P26: 0 | Q26: 1 | R26: 0 | S26: 0 | T26: 1 | U26: 100 | V26: 1 | W26: 1 | X26: 100 | Y26: 0 | Z26: 0 | AA26: 1 | AB26: 0 | AC26: 0 | AD26: 1 | AE26: 100 | AF26: 0 | AG26: 0 | AH26: 0 | AI26: 0 | AJ26: 0
A27: COALICIÓN ALIANZA POR BELÉN | B27: 16 | C27: 8 | D27: 50 | E27: 8 | F27: 50 | G27: 1 | H27: 1 | I27: 100 | J27: 0 | K27: 0 | L27: 1 | M27: 0 | N27: 0 | O27: 1 | P27: 100 | Q27: 1 | R27: 1 | S27: 100 | T27: 0 | U27: 0 | V27: 1 | W27: 0 | X27: 0 | Y27: 1 | Z27: 100 | AA27: 1 | AB27: 1 | AC27: 100 | AD27: 0 | AE27: 0 | AF27: 0 | AG27: 0 | AH27: 0 | AI27: 0 | AJ27: 0
A28: COALICIÓN GENTE MONTES DE OCA | B28: 23 | C28: 11 | D28: 47.82608696 | E28: 12 | F28: 52.17391304 | G28: 1 | H28: 0 | I28: 0 | J28: 1 | K28: 100 | L28: 1 | M28: 1 | N28: 100 | O28: 0 | P28: 0 | Q28: 1 | R28: 0 | S28: 0 | T28: 1 | U28: 100 | V28: 1 | W28: 1 | X28: 100 | Y28: 0 | Z28: 0 | AA28: 1 | AB28: 0 | AC28: 0 | AD28: 1 | AE28: 100 | AF28: 2 | AG28: 1 | AH28: 50 | AI28: 1 | AJ28: 50
A29: COALICIÓN SOMOS TIBÁS | B29: 19 | C29: 10 | D29: 52.63157895 | E29: 9 | F29: 47.36842105 | G29: 1 | H29: 0 | I29: 0 | J29: 1 | K29: 100 | L29: 1 | M29: 1 | N29: 100 | O29: 0 | P29: 0 | Q29: 1 | R29: 0 | S29: 0 | T29: 1 | U29: 100 | V29: 1 | W29: 1 | X29: 100 | Y29: 0 | Z29: 0 | AA29: 1 | AB29: 0 | AC29: 0 | AD29: 1 | AE29: 100 | AF29: 0 | AG29: 0 | AH29: 0 | AI29: 0 | AJ29: 0
A30: COALICIÓN UNIDOS POR GUATUSO | B30: 89 | C30: 45 | D30: 50.56179775 | E30: 44 | F30: 49.43820225 | G30: 1 | H30: 0 | I30: 0 | J30: 1 | K30: 100 | L30: 1 | M30: 1 | N30: 100 | O30: 0 | P30: 0 | Q30: 1 | R30: 0 | S30: 0 | T30: 1 | U30: 100 | V30: 1 | W30: 1 | X30: 100 | Y30: 0 | Z30: 0 | AA30: 1 | AB30: 0 | AC30: 0 | AD30: 1 | AE30: 100 | AF30: 0 | AG30: 0 | AH30: 0 | AI30: 0 | AJ30: 0
A31: CURRIDABAT SIGLO XXI | B31: 7 | C31: 3 | D31: 42.85714286 | E31: 4 | F31: 57.14285714 | G31: 1 | H31: 0 | I31: 0 | J31: 1 | K31: 100 | L31: 1 | M31: 1 | N31: 100 | O31: 0 | P31: 0 | Q31: 1 | R31: 0 | S31: 0 | T31: 1 | U31: 100 | V31: 1 | W31: 1 | X31: 100 | Y31: 0 | Z31: 0 | AA31: 1 | AB31: 0 | AC31: 0 | AD31: 1 | AE31: 100 | AF31: 2 | AG31: 1 | AH31: 50 | AI31: 1 | AJ31: 50
A32: DE LOS TRABAJADORES | B32: 24 | C32: 12 | D32: 50 | E32: 12 | F32: 50 | G32: 8 | H32: 4 | I32: 50 | J32: 4 | K32: 50 | L32: 4 | M32: 3 | N32: 75 | O32: 1 | P32: 25 | Q32: 1 | R32: 0 | S32: 0 | T32: 1 | U32: 100 | V32: 1 | W32: 1 | X32: 100 | Y32: 0 | Z32: 0 | AA32: 1 | AB32: 0 | AC32: 0 | AD32: 1 | AE32: 100 | AF32: 0 | AG32: 0 | AH32: 0 | AI32: 0 | AJ32: 0
A33: DEL SOL | B33: 9 | C33: 5 | D33: 55.55555556 | E33: 4 | F33: 44.44444444 | G33: 1 | H33: 0 | I33: 0 | J33: 1 | K33: 100 | L33: 1 | M33: 1 | N33: 100 | O33: 0 | P33: 0 | Q33: 1 | R33: 0 | S33: 0 | T33: 1 | U33: 100 | V33: 1 | W33: 1 | X33: 100 | Y33: 0 | Z33: 0 | AA33: 1 | AB33: 0 | AC33: 0 | AD33: 1 | AE33: 100 | AF33: 2 | AG33: 1 | AH33: 50 | AI33: 1 | AJ33: 50
A34: DEMÓCRATA | B34: 140 | C34: 65 | D34: 46.42857143 | E34: 75 | F34: 53.57142857 | G34: 1 | H34: 1 | I34: 100 | J34: 0 | K34: 0 | L34: 1 | M34: 0 | N34: 0 | O34: 1 | P34: 100 | Q34: 1 | R34: 1 | S34: 100 | T34: 0 | U34: 0 | V34: 1 | W34: 0 | X34: 0 | Y34: 1 | Z34: 100 | AA34: 1 | AB34: 1 | AC34: 100 | AD34: 0 | AE34: 0 | AF34: 2 | AG34: 1 | AH34: 50 | AI34: 1 | AJ34: 50
A35: DESAMPARADOS UNIDO | B35: 1782 | C35: 889 | D35: 49.88776655 | E35: 893 | F35: 50.11223345 | G35: 1 | H35: 0 | I35: 0 | J35: 1 | K35: 100 | L35: 1 | M35: 1 | N35: 100 | O35: 0 | P35: 0 | Q35: 1 | R35: 0 | S35: 0 | T35: 1 | U35: 100 | V35: 1 | W35: 1 | X35: 100 | Y35: 0 | Z35: 0 | AA35: 1 | AB35: 0 | AC35: 0 | AD35: 1 | AE35: 100 | AF35: 6 | AG35: 3 | AH35: 50 | AI35: 3 | AJ35: 50
A36: ECOLÓGICO COMUNAL COSTARRICENSE | B36: 24 | C36: 12 | D36: 50 | E36: 12 | F36: 50 | G36: 1 | H36: 0 | I36: 0 | J36: 1 | K36: 100 | L36: 1 | M36: 1 | N36: 100 | O36: 0 | P36: 0 | Q36: 1 | R36: 0 | S36: 0 | T36: 1 | U36: 100 | V36: 1 | W36: 1 | X36: 100 | Y36: 0 | Z36: 0 | AA36: 1 | AB36: 0 | AC36: 0 | AD36: 1 | AE36: 100 | AF36: 6 | AG36: 3 | AH36: 50 | AI36: 3 | AJ36: 50
A37: FRENTE AMPLIO | B37: 11 | C37: 6 | D37: 54.54545455 | E37: 5 | F37: 45.45454545 | G37: 59 | H37: 12 | I37: 20.33898305 | J37: 47 | K37: 79.66101695 | L37: 59 | M37: 47 | N37: 79.66101695 | O37: 12 | P37: 20.33898305 | Q37: 59 | R37: 12 | S37: 20.33898305 | T37: 47 | U37: 79.66101695 | V37: 59 | W37: 46 | X37: 77.96610169 | Y37: 13 | Z37: 22.03389831 | AA37: 54 | AB37: 11 | AC37: 20.37037037 | AD37: 43 | AE37: 79.62962963 | AF37: 77 | AG37: 37 | AH37: 48.05194805 | AI37: 40 | AJ37: 51.94805195
A38: FUERZA DEMOCRÁTICA DESAMPARADEÑA | B38: 903 | C38: 445 | D38: 49.28017719 | E38: 458 | F38: 50.71982281 | G38: 1 | H38: 0 | I38: 0 | J38: 1 | K38: 100 | L38: 1 | M38: 1 | N38: 100 | O38: 0 | P38: 0 | Q38: 1 | R38: 0 | S38: 0 | T38: 1 | U38: 100 | V38: 1 | W38: 1 | X38: 100 | Y38: 0 | Z38: 0 | AA38: 1 | AB38: 0 | AC38: 0 | AD38: 1 | AE38: 100 | AF38: 0 | AG38: 0 | AH38: 0 | AI38: 0 | AJ38: 0
A39: FUERZAS UNIDAS PARA EL CAMBIO | B39: 11 | C39: 6 | D39: 54.54545455 | E39: 5 | F39: 45.45454545 | G39: 1 | H39: 1 | I39: 100 | J39: 0 | K39: 0 | L39: 1 | M39: 0 | N39: 0 | O39: 1 | P39: 100 | Q39: 1 | R39: 1 | S39: 100 | T39: 0 | U39: 0 | V39: 1 | W39: 0 | X39: 0 | Y39: 1 | Z39: 100 | AA39: 1 | AB39: 1 | AC39: 100 | AD39: 0 | AE39: 0 | AF39: 6 | AG39: 3 | AH39: 50 | AI39: 3 | AJ39: 50
A40: GARABITO ECOLÓGICO | B40: 19 | C40: 9 | D40: 47.36842105 | E40: 10 | F40: 52.63157895 | G40: 1 | H40: 1 | I40: 100 | J40: 0 | K40: 0 | L40: 1 | M40: 0 | N40: 0 | O40: 1 | P40: 100 | Q40: 1 | R40: 1 | S40: 100 | T40: 0 | U40: 0 | V40: 1 | W40: 0 | X40: 0 | Y40: 1 | Z40: 100 | AA40: 1 | AB40: 1 | AC40: 100 | AD40: 0 | AE40: 0 | AF40: 0 | AG40: 0 | AH40: 0 | AI40: 0 | AJ40: 0
A41: INDEPENDIENTE ESCAZUCEÑO | B41: 289 | C41: 145 | D41: 50.17301038 | E41: 144 | F41: 49.82698962 | G41: 1 | H41: 1 | I41: 100 | J41: 0 | K41: 0 | L41: 1 | M41: 0 | N41: 0 | O41: 1 | P41: 100 | Q41: 1 | R41: 1 | S41: 100 | T41: 0 | U41: 0 | V41: 1 | W41: 0 | X41: 0 | Y41: 1 | Z41: 100 | AA41: 1 | AB41: 1 | AC41: 100 | AD41: 0 | AE41: 0 | AF41: 2 | AG41: 1 | AH41: 50 | AI41: 1 | AJ41: 50
A42: INTEGRACIÓN NACIONAL | B42: 51 | C42: 23 | D42: 45.09803922 | E42: 28 | F42: 54.90196078 | G42: 8 | H42: 1 | I42: 12.5 | J42: 7 | K42: 87.5 | L42: 8 | M42: 7 | N42: 87.5 | O42: 1 | P42: 12.5 | Q42: 8 | R42: 1 | S42: 12.5 | T42: 7 | U42: 87.5 | V42: 5 | W42: 4 | X42: 80 | Y42: 1 | Z42: 20 | AA42: 5 | AB42: 1 | AC42: 20 | AD42: 4 | AE42: 80 | AF42: 9 | AG42: 4 | AH42: 44.44444444 | AI42: 5 | AJ42: 55.55555556
A43: JUSTICIA GENERALEÑA | B43: 21 | C43: 12 | D43: 57.14285714 | E43: 9 | F43: 42.85714286 | G43: 1 | H43: 0 | I43: 0 | J43: 1 | K43: 100 | L43: 1 | M43: 1 | N43: 100 | O43: 0 | P43: 0 | Q43: 1 | R43: 0 | S43: 0 | T43: 1 | U43: 100 | V43: 1 | W43: 1 | X43: 100 | Y43: 0 | Z43: 0 | AA43: 1 | AB43: 0 | AC43: 0 | AD43: 1 | AE43: 100 | AF43: 4 | AG43: 2 | AH43: 50 | AI43: 2 | AJ43: 50
A44: LIBERACIÓN NACIONAL | B44: 5 | C44: 1 | D44: 20 | E44: 4 | F44: 80 | G44: 81 | H44: 24 | I44: 29.62962963 | J44: 57 | K44: 70.37037037 | L44: 81 | M44: 57 | N44: 70.37037037 | O44: 24 | P44: 29.62962963 | Q44: 81 | R44: 24 | S44: 29.62962963 | T44: 57 | U44: 70.37037037 | V44: 79 | W44: 53 | X44: 67.08860759 | Y44: 26 | Z44: 32.91139241 | AA44: 74 | AB44: 22 | AC44: 29.72972973 | AD44: 52 | AE44: 70.27027027 | AF44: 92 | AG44: 46 | AH44: 50 | AI44: 46 | AJ44: 50
A45: LIGA RAMONENSE | B45: 11 | C45: 5 | D45: 45.45454545 | E45: 6 | F45: 54.54545455 | G45: 1 | H45: 1 | I45: 100 | J45: 0 | K45: 0 | L45: 1 | M45: 0 | N45: 0 | O45: 1 | P45: 100 | Q45: 1 | R45: 1 | S45: 100 | T45: 0 | U45: 0 | V45: 1 | W45: 0 | X45: 0 | Y45: 1 | Z45: 100 | AA45: 1 | AB45: 1 | AC45: 100 | AD45: 0 | AE45: 0 | AF45: 2 | AG45: 1 | AH45: 50 | AI45: 1 | AJ45: 50
A46: LIMÓN INDEPENDIENTE | B46: 12 | C46: 6 | D46: 50 | E46: 6 | F46: 50 | G46: 1 | H46: 0 | I46: 0 | J46: 1 | K46: 100 | L46: 1 | M46: 1 | N46: 100 | O46: 0 | P46: 0 | Q46: 1 | R46: 0 | S46: 0 | T46: 1 | U46: 100 | V46: 1 | W46: 1 | X46: 100 | Y46: 0 | Z46: 0 | AA46: 1 | AB46: 0 | AC46: 0 | AD46: 1 | AE46: 100 | AF46: 4 | AG46: 2 | AH46: 50 | AI46: 2 | AJ46: 50
A47: MOVIMIENTO AVANCE SANTO DOMINGO | B47: 16 | C47: 8 | D47: 50 | E47: 8 | F47: 50 | G47: 1 | H47: 1 | I47: 100 | J47: 0 | K47: 0 | L47: 1 | M47: 0 | N47: 0 | O47: 1 | P47: 100 | Q47: 1 | R47: 1 | S47: 100 | T47: 0 | U47: 0 | V47: 1 | W47: 0 | X47: 0 | Y47: 1 | Z47: 100 | AA47: 1 | AB47: 1 | AC47: 100 | AD47: 0 | AE47: 0 | AF47: 0 | AG47: 0 | AH47: 0 | AI47: 0 | AJ47: 0
A48: MOVIMIENTO LIBERTARIO | B48: 890 | C48: 441 | D48: 49.5505618 | E48: 449 | F48: 50.4494382 | G48: 66 | H48: 15 | I48: 22.72727273 | J48: 51 | K48: 77.27272727 | L48: 65 | M48: 50 | N48: 76.92307692 | O48: 15 | P48: 23.07692308 | Q48: 53 | R48: 13 | S48: 24.52830189 | T48: 40 | U48: 75.47169811 | V48: 44 | W48: 33 | X48: 75 | Y48: 11 | Z48: 25 | AA48: 31 | AB48: 6 | AC48: 19.35483871 | AD48: 25 | AE48: 80.64516129 | AF48: 41 | AG48: 21 | AH48: 51.2195122 | AI48: 20 | AJ48: 48.7804878
A49: NUEVA GENERACIÓN | B49: 32 | C49: 16 | D49: 50 | E49: 16 | F49: 50 | G49: 49 | H49: 11 | I49: 22.44897959 | J49: 38 | K49: 77.55102041 | L49: 43 | M49: 31 | N49: 72.09302326 | O49: 12 | P49: 27.90697674 | Q49: 38 | R49: 9 | S49: 23.68421053 | T49: 29 | U49: 76.31578947 | V49: 34 | W49: 23 | X49: 67.64705882 | Y49: 11 | Z49: 32.35294118 | AA49: 28 | AB49: 8 | AC49: 28.57142857 | AD49: 20 | AE49: 71.42857143 | AF49: 25 | AG49: 15 | AH49: 60 | AI49: 10 | AJ49: 40
A50: NUEVA MAYORÍA GRIEGA | B50: 27 | C50: 13 | D50: 48.14814815 | E50: 14 | F50: 51.85185185 | G50: 1 | H50: 0 | I50: 0 | J50: 1 | K50: 100 | L50: 1 | M50: 1 | N50: 100 | O50: 0 | P50: 0 | Q50: 1 | R50: 0 | S50: 0 | T50: 1 | U50: 100 | V50: 1 | W50: 1 | X50: 100 | Y50: 0 | Z50: 0 | AA50: 1 | AB50: 0 | AC50: 0 | AD50: 1 | AE50: 100 | AF50: 2 | AG50: 1 | AH50: 50 | AI50: 1 | AJ50: 50
A51: PARRITA INDEPENDIENTE | B51: 28 | C51: 14 | D51: 50 | E51: 14 | F51: 50 | G51: 1 | H51: 0 | I51: 0 | J51: 1 | K51: 100 | L51: 1 | M51: 1 | N51: 100 | O51: 0 | P51: 0 | Q51: 1 | R51: 0 | S51: 0 | T51: 1 | U51: 100 | V51: 1 | W51: 1 | X51: 100 | Y51: 0 | Z51: 0 | AA51: 1 | AB51: 0 | AC51: 0 | AD51: 1 | AE51: 100 | AF51: 0 | AG51: 0 | AH51: 0 | AI51: 0 | AJ51: 0
A52: PROGRESO COMUNAL DESAMPARADEÑO | B52: 8 | C52: 3 | D52: 37.5 | E52: 5 | F52: 62.5 | G52: 1 | H52: 0 | I52: 0 | J52: 1 | K52: 100 | L52: 1 | M52: 1 | N52: 100 | O52: 0 | P52: 0 | Q52: 0 | R52: 0 | S52: 0 | T52: 0 | U52: 0 | V52: 0 | W52: 0 | X52: 0 | Y52: 0 | Z52: 0 | AA52: 0 | AB52: 0 | AC52: 0 | AD52: 0 | AE52: 0 | AF52: 0 | AG52: 0 | AH52: 0 | AI52: 0 | AJ52: 0
A53: PUEBLO GARABITO | G53: 1 | H53: 1 | I53: 100 | J53: 0 | K53: 0 | L53: 1 | M53: 0 | N53: 0 | O53: 1 | P53: 100 | Q53: 1 | R53: 1 | S53: =+R53/$Q53*100 -> 100 | T53: 0 | U53: =+T53/$Q53*100 -> 0 | V53: 1 | W53: 0 | X53: =+W53/$V53*100 -> 0 | Y53: 1 | Z53: =+Y53/$V53*100 -> 100 | AA53: 1 | AB53: 1 | AC53: 100 | AD53: 0 | AE53: 0 | AF53: 0 | AG53: 0 | AH53: 0 | AI53: 0 | AJ53: 0
A54: PURISCALEÑOS DE CORAZÓN | G54: 1 | H54: 0 | I54: 0 | J54: 1 | K54: 100 | L54: 1 | M54: 1 | N54: 100 | O54: 0 | P54: 0 | Q54: 1 | R54: 0 | S54: 0 | T54: 1 | U54: 100 | V54: 1 | W54: 1 | X54: 100 | Y54: 0 | Z54: 0 | AA54: 1 | AB54: 0 | AC54: 0 | AD54: 1 | AE54: 100 | AF54: 0 | AG54: 0 | AH54: 0 | AI54: 0 | AJ54: 0
A55: RECUPERANDO VALORES | G55: 4 | H55: 0 | I55: 0 | J55: 4 | K55: 100 | L55: 4 | M55: 4 | N55: 100 | O55: 0 | P55: 0 | Q55: 3 | R55: 0 | S55: 0 | T55: 3 | U55: 100 | V55: 3 | W55: 3 | X55: 100 | Y55: 0 | Z55: 0 | AA55: 2 | AB55: 0 | AC55: 0 | AD55: 2 | AE55: 100 | AF55: 6 | AG55: 3 | AH55: 50 | AI55: 3 | AJ55: 50
A56: RENOVACIÓN CARTAGO | G56: 1 | H56: 0 | I56: 0 | J56: 1 | K56: 100 | L56: 1 | M56: 1 | N56: 100 | O56: 0 | P56: 0 | Q56: 1 | R56: 0 | S56: 0 | T56: 1 | U56: 100 | V56: 1 | W56: 1 | X56: 100 | Y56: 0 | Z56: 0 | AA56: 1 | AB56: 0 | AC56: 0 | AD56: 1 | AE56: 100 | AF56: 4 | AG56: 2 | AH56: 50 | AI56: 2 | AJ56: 50
A57: RENOVACIÓN COSTARRICENSE | G57: 35 | H57: 7 | I57: 20 | J57: 28 | K57: 80 | L57: 35 | M57: 28 | N57: 80 | O57: 7 | P57: 20 | Q57: 35 | R57: 8 | S57: 22.85714286 | T57: 27 | U57: 77.14285714 | V57: 35 | W57: 27 | X57: 77.14285714 | Y57: 8 | Z57: 22.85714286 | AA57: 32 | AB57: 6 | AC57: 18.75 | AD57: 26 | AE57: 81.25 | AF57: 56 | AG57: 28 | AH57: 50 | AI57: 28 | AJ57: 50
A58: RENOVEMOS ALAJUELA | G58: 1 | H58: 0 | I58: 0 | J58: 1 | K58: 100 | L58: 1 | M58: 1 | N58: 100 | O58: 0 | P58: 0 | Q58: 1 | R58: 0 | S58: 0 | T58: 1 | U58: 100 | V58: 1 | W58: 1 | X58: 100 | Y58: 0 | Z58: 0 | AA58: 1 | AB58: 0 | AC58: 0 | AD58: 1 | AE58: 100 | AF58: 5 | AG58: 3 | AH58: 60 | AI58: 2 | AJ58: 40
A59: REPUBLICANO SOCIAL CRISTIANO | G59: 68 | H59: 24 | I59: 35.29411765 | J59: 44 | K59: 64.70588235 | L59: 66 | M59: 41 | N59: 62.12121212 | O59: 25 | P59: 37.87878788 | Q59: 62 | R59: 23 | S59: 37.09677419 | T59: 39 | U59: 62.90322581 | V59: 57 | W59: 34 | X59: 59.64912281 | Y59: 23 | Z59: 40.35087719 | AA59: 48 | AB59: 20 | AC59: 41.66666667 | AD59: 28 | AE59: 58.33333333 | AF59: 55 | AG59: 29 | AH59: 52.72727273 | AI59: 26 | AJ59: 47.27272727
A60: RESCATE CANTONAL LA UNIÓN | G60: 1 | H60: 0 | I60: 0 | J60: 1 | K60: 100 | L60: 1 | M60: 1 | N60: 100 | O60: 0 | P60: 0 | Q60: 1 | R60: 0 | S60: 0 | T60: 1 | U60: 100 | V60: 1 | W60: 1 | X60: 100 | Y60: 0 | Z60: 0 | AA60: 1 | AB60: 0 | AC60: 0 | AD60: 1 | AE60: 100 | AF60: 4 | AG60: 2 | AH60: 50 | AI60: 2 | AJ60: 50
A61: RESTAURACIÓN NACIONAL | G61: 21 | H61: 7 | I61: 33.33333333 | J61: 14 | K61: 66.66666667 | L61: 15 | M61: 12 | N61: 80 | O61: 3 | P61: 20 | Q61: 12 | R61: 3 | S61: 25 | T61: 9 | U61: 75 | V61: 7 | W61: 6 | X61: 85.71428571 | Y61: 1 | Z61: 14.28571429 | AA61: 6 | AB61: 0 | AC61: 0 | AD61: 6 | AE61: 100 | AF61: 12 | AG61: 6 | AH61: 50 | AI61: 6 | AJ61: 50
A62: RESTAURACIÓN PARRITEÑA | G62: 1 | H62: 0 | I62: 0 | J62: 1 | K62: 100 | L62: 1 | M62: 1 | N62: 100 | O62: 0 | P62: 0 | Q62: 1 | R62: 0 | S62: 0 | T62: 1 | U62: 100 | V62: 1 | W62: 1 | X62: 100 | Y62: 0 | Z62: 0 | AA62: 0 | AB62: 0 | AC62: 0 | AD62: 0 | AE62: 0 | AF62: 0 | AG62: 0 | AH62: 0 | AI62: 0 | AJ62: 0
A63: SOLIDARIDAD | G63: 1 | H63: 0 | I63: 0 | J63: 1 | K63: 100 | L63: 1 | M63: 1 | N63: 100 | O63: 0 | P63: 0 | Q63: 1 | R63: 0 | S63: 0 | T63: 1 | U63: 100 | V63: 1 | W63: 1 | X63: 100 | Y63: 0 | Z63: 0 | AA63: 1 | AB63: 0 | AC63: 0 | AD63: 1 | AE63: 100 | AF63: 6 | AG63: 3 | AH63: 50 | AI63: 3 | AJ63: 50
A64: TODO POR FLORES | G64: 1 | H64: 1 | I64: 100 | J64: 0 | K64: 0 | L64: 1 | M64: 0 | N64: 0 | O64: 1 | P64: 100 | Q64: 1 | R64: 1 | S64: 100 | T64: 0 | U64: 0 | V64: 1 | W64: 0 | X64: 0 | Y64: 1 | Z64: 100 | AA64: 1 | AB64: 1 | AC64: 100 | AD64: 0 | AE64: 0 | AF64: 0 | AG64: 0 | AH64: 0 | AI64: 0 | AJ64: 0
A65: UNIDAD SOCIAL CRISTIANA | G65: 79 | H65: 16 | I65: 20.25316456 | J65: 63 | K65: 79.74683544 | L65: 79 | M65: 63 | N65: 79.74683544 | O65: 16 | P65: 20.25316456 | Q65: 79 | R65: 17 | S65: 21.51898734 | T65: 62 | U65: 78.48101266 | V65: 77 | W65: 61 | X65: 79.22077922 | Y65: 16 | Z65: 20.77922078 | AA65: 74 | AB65: 14 | AC65: 18.91891892 | AD65: 60 | AE65: 81.08108108 | AF65: 87 | AG65: 43 | AH65: 49.42528736 | AI65: 44 | AJ65: 50.57471264
A66: UNIÓN GUARQUEÑO | G66: 1 | H66: 0 | I66: 0 | J66: 1 | K66: 100 | L66: 1 | M66: 1 | N66: 100 | O66: 0 | P66: 0 | Q66: 1 | R66: 0 | S66: 0 | T66: 1 | U66: 100 | V66: 1 | W66: 1 | X66: 100 | Y66: 0 | Z66: 0 | AA66: 1 | AB66: 0 | AC66: 0 | AD66: 1 | AE66: 100 | AF66: 0 | AG66: 0 | AH66: 0 | AI66: 0 | AJ66: 0
A67: VERDE | G67: 3 | H67: 2 | I67: 66.66666667 | J67: 1 | K67: 33.33333333 | L67: 3 | M67: 1 | N67: 33.33333333 | O67: 2 | P67: 66.66666667 | Q67: 3 | R67: 2 | S67: 66.66666667 | T67: 1 | U67: 33.33333333 | V67: 3 | W67: 1 | X67: 33.33333333 | Y67: 2 | Z67: 66.66666667 | AA67: 3 | AB67: 2 | AC67: 66.66666667 | AD67: 1 | AE67: 33.33333333 | AF67: 7 | AG67: 4 | AH67: 57.14285714 | AI67: 3 | AJ67: 42.85714286
A68: VIVA PUNTARENAS | G68: 6 | H68: 1 | I68: 16.66666667 | J68: 5 | K68: 83.33333333 | L68: 6 | M68: 5 | N68: 83.33333333 | O68: 1 | P68: 16.66666667 | Q68: 6 | R68: 1 | S68: 16.66666667 | T68: 5 | U68: 83.33333333 | V68: 6 | W68: 5 | X68: 83.33333333 | Y68: 1 | Z68: 16.66666667 | AA68: 6 | AB68: 1 | AC68: 16.66666667 | AD68: 5 | AE68: 83.33333333 | AF68: 0 | AG68: 0 | AH68: 0 | AI68: 0 | AJ68: 0
A69: YUNTA PROGRESISTA ESCAZUCEÑA | G69: 1 | H69: 1 | I69: 100 | J69: 0 | K69: 0 | L69: 1 | M69: 0 | N69: 0 | O69: 1 | P69: 100 | Q69: 1 | R69: 1 | S69: 100 | T69: 0 | U69: 0 | V69: 1 | W69: 0 | X69: 0 | Y69: 1 | Z69: 100 | AA69: 1 | AB69: 1 | AC69: 100 | AD69: 0 | AE69: 0 | AF69: 2 | AG69: 1 | AH69: 50 | AI69: 1 | AJ69: 50
A72: Fuente: Tribunal Supremo de Elecciones.

Sheet 1.7
A2: CUADRO 1.7 COSTA RICA: CANDIDATURAS A CONCEJALES(AS) 1/ EN PROPIEDAD, POR ORDEN DEL PUESTO Y SEXO
A3: SEGÚN PARTIDO POLÍTICO, ELECCIONES MUNICIPALES FEBRERO 2016
A4: (cifras absolutas y relativas)
A6: PARTIDO POLÍTICO | B6: TOTAL | G6: PRIMER PUESTO | L6: SEGUNDO PUESTO | Q6: TERCER PUERTO | V6: CUARTO PUESTO
B7: TOTAL | C7: MUJERES | E7: HOMBRES | G7: TOTAL | H7: MUJERES | J7: HOMBRES | L7: TOTAL | M7: MUJERES | O7: HOMBRES | Q7: TOTAL | R7: MUJERES | T7: HOMBRES | V7: TOTAL | W7: MUJERES | Y7: HOMBRES
C8: Absoluto | D8: % | E8: Absoluto | F8: % | H8: Absoluto | I8: % | J8: Absoluto | K8: % | M8: Absoluto | N8: % | O8: Absoluto | P8: % | R8: Absoluto | S8: % | T8: Absoluto | U8: % | W8: Absoluto | X8: % | Y8: Absoluto | Z8: %
A10: TOTAL | B10: =SUM(B11:B66) -> 5894 | C10: =SUM(C11:C66) -> 2931 | D10: =+C10/$B10*100 -> 49.7285375 | E10: =SUM(E11:E66) -> 2990 | F10: =+E10/$B10*100 -> 50.72955548 | G10: =SUM(G11:G66) -> 2821 | H10: =SUM(H11:H66) -> 1307 | I10: =+H10/$G10*100 -> 46.33108827 | J10: =SUM(J11:J66) -> 1514 | K10: =+J10/$G10*100 -> 53.66891173 | L10: =SUM(L11:L66) -> 2449 | M10: =SUM(M11:M66) -> 1323 | N10: =+M10/$L10*100 -> 54.02204982 | O10: =SUM(O11:O66) -> 1126 | P10: =+O10/$L10*100 -> 45.97795018 | Q10: =SUM(Q11:Q66) -> 2144 | R10: =SUM(R11:R66) -> 976 | S10: =+R10/$Q10*100 -> 45.52238806 | T10: =SUM(T11:T66) -> 1168 | U10: =+T10/$Q10*100 -> 54.47761194 | V10: =SUM(V11:V66) -> 1603 | W10: =SUM(W11:W66) -> 892 | X10: =+W10/$V10*100 -> 55.64566438 | Y10: =SUM(Y11:Y66) -> 711 | Z10: =+Y10/$V10*100 -> 44.35433562
A11: ACCESIBILIDAD SIN EXCLUSIÓN | B11: =+C11+E11 -> 239 | C11: 116 | D11: =+C11/$B11*100 -> 48.53556485 | E11: 123 | F11: =+E11/$B11*100 -> 51.46443515 | G11: =+H11+J11 -> 30 | H11: 12 | I11: =+H11/$G11*100 -> 40 | J11: 18 | K11: =+J11/$G11*100 -> 60 | L11: =+M11+O11 -> 25 | M11: 16 | N11: =+M11/$L11*100 -> 64 | O11: 9 | P11: =+O11/$L11*100 -> 36 | Q11: =+R11+T11 -> 22 | R11: 7 | S11: =+R11/$Q11*100 -> 31.81818182 | T11: 15 | U11: =+T11/$Q11*100 -> 68.18181818 | V11: =+W11+Y11 -> 19 | W11: 12 | X11: =+W11/$V11*100 -> 63.15789474 | Y11: 7 | Z11: =+Y11/$V11*100 -> 36.84210526
A12: ACCIÓN CANTONAL SIQUIRRES INDEPENDIENTE | B12: 20 | C12: 10 | D12: 50 | E12: 10 | F12: 50 | G12: =+H12+J12 -> 3 | H12: 1 | I12: =+H12/$G12*100 -> 33.33333333 | J12: 2 | K12: =+J12/$G12*100 -> 66.66666667 | L12: =+M12+O12 -> 2 | M12: 2 | N12: =+M12/$L12*100 -> 100 | O12: 0 | P12: =+O12/$L12*100 -> 0 | Q12: =+R12+T12 -> 0 | R12: 0 | S12: 0 | T12: 0 | U12: 0 | V12: =+W12+Y12 -> 0 | W12: 0 | X12: 0 | Y12: 0 | Z12: 0
A13: ACCIÓN CIUDADANA | B13: 851 | C13: 418 | D13: 49.1186839 | E13: 433 | F13: 50.8813161 | G13: 412 | H13: 198 | I13: 48.05825243 | J13: 214 | K13: 51.94174757 | L13: 373 | M13: 197 | N13: 52.8150134 | O13: 176 | P13: 47.1849866 | Q13: 312 | R13: 143 | S13: =+R13/$Q13*100 -> 45.83333333 | T13: 169 | U13: =+T13/$Q13*100 -> 54.16666667 | V13: 220 | W13: 116 | X13: =+W13/$V13*100 -> 52.72727273 | Y13: 104 | Z13: =+Y13/$V13*100 -> 47.27272727
A14: ACUERDO DE ALIANZA DE QUEPOS | B14: 9 | C14: 4 | D14: 44.44444444 | E14: 5 | F14: 55.55555556 | G14: 3 | H14: 1 | I14: 33.33333333 | J14: 2 | K14: 66.66666667 | L14: 3 | M14: 2 | N14: 66.66666667 | O14: 1 | P14: 33.33333333 | Q14: 3 | R14: 1 | S14: 33.33333333 | T14: 2 | U14: 66.66666667 | V14: 3 | W14: 2 | X14: 66.66666667 | Y14: 1 | Z14: 33.33333333
A15: ALIANZA DEMÓCRATA CRISTIANA | B15: 52 | C15: 26 | D15: 50 | E15: 26 | F15: 50 | G15: 38 | H15: 21 | I15: 55.26315789 | J15: 17 | K15: 44.73684211 | L15: 37 | M15: 17 | N15: 45.94594595 | O15: 20 | P15: 54.05405405 | Q15: 32 | R15: 17 | S15: 53.125 | T15: 15 | U15: 46.875 | V15: 31 | W15: 14 | X15: 45.16129032 | Y15: 17 | Z15: 54.83870968
A16: ALIANZA POR PALMARES | B16: 44 | C16: 24 | D16: 54.54545455 | E16: 20 | F16: 45.45454545 | G16: 7 | H16: 2 | I16: 28.57142857 | J16: 5 | K16: 71.42857143 | L16: 7 | M16: 6 | N16: 85.71428571 | O16: 1 | P16: 14.28571429 | Q16: 6 | R16: 3 | S16: 50 | T16: 3 | U16: 50 | V16: 3 | W16: 2 | X16: 66.66666667 | Y16: 1 | Z16: 33.33333333
A17: ALIANZA POR SAN JOSÉ | B17: 11 | C17: 5 | D17: 45.45454545 | E17: 6 | F17: 54.54545455 | G17: 11 | H17: 6 | I17: 54.54545455 | J17: 5 | K17: 45.45454545 | L17: 11 | M17: 5 | N17: 45.45454545 | O17: 6 | P17: 54.54545455 | Q17: 11 | R17: 6 | S17: 54.54545455 | T17: 5 | U17: 45.45454545 | V17: 10 | W17: 5 | X17: 50 | Y17: 5 | Z17: 50
A18: ALIANZA SANCARLEÑA | B18: 11 | C18: 5 | D18: 45.45454545 | E18: 6 | F18: 54.54545455 | G18: 10 | H18: 5 | I18: 50 | J18: 5 | K18: 50 | L18: 9 | M18: 5 | N18: 55.55555556 | O18: 4 | P18: 44.44444444 | Q18: 8 | R18: 3 | S18: 37.5 | T18: 5 | U18: 62.5 | V18: 4 | W18: 3 | X18: 75 | Y18: 1 | Z18: 25
A19: ALIANZA SOCIAL POR LA UNIÓN | B19: 7 | C19: 3 | D19: 42.85714286 | E19: 4 | F19: 57.14285714 | G19: 5 | H19: 0 | I19: 0 | J19: 5 | K19: 100 | L19: 0 | M19: 0 | N19: 0 | O19: 0 | P19: 0 | Q19: 0 | R19: 0 | S19: 0 | T19: 0 | U19: 0 | V19: 0 | W19: 0 | X19: 0 | Y19: 0 | Z19: 0
A20: AUTÉNTICO LABRADOR DE CORONADO | B20: 16 | C20: 8 | D20: 50 | E20: 8 | F20: 50 | G20: 5 | H20: 4 | I20: 80 | J20: 1 | K20: 20 | L20: 5 | M20: 1 | N20: 20 | O20: 4 | P20: 80 | Q20: 4 | R20: 3 | S20: 75 | T20: 1 | U20: 25 | V20: 1 | W20: 0 | X20: 0 | Y20: 1 | Z20: 100
A21: AUTÉNTICO LIMONENSE | B21: 44 | C21: 22 | D21: 50 | E21: 22 | F21: 50 | G21: 4 | H21: 1 | I21: 25 | J21: 3 | K21: 75 | L21: 4 | M21: 3 | N21: 75 | O21: 1 | P21: 25 | Q21: 4 | R21: 1 | S21: 25 | T21: 3 | U21: 75 | V21: 4 | W21: 3 | X21: 75 | Y21: 1 | Z21: 25
A22: AUTÉNTICO SIQUIRREÑO | B22: 14 | C22: 8 | D22: 57.14285714 | E22: 6 | F22: 42.85714286 | G22: 6 | H22: 4 | I22: 66.66666667 | J22: 2 | K22: 33.33333333 | L22: 5 | M22: 2 | N22: 40 | O22: 3 | P22: 60 | Q22: 5 | R22: 3 | S22: 60 | T22: 2 | U22: 40 | V22: 4 | W22: 2 | X22: 50 | Y22: 2 | Z22: 50
A23: AUTÓNOMO OROMONTANO | C23: 14 | E23: 13 | G23: 3 | H23: 2 | I23: 66.66666667 | J23: 1 | K23: 33.33333333 | L23: 3 | M23: 1 | N23: 33.33333333 | O23: 2 | P23: 66.66666667 | Q23: 3 | R23: 2 | S23: 66.66666667 | T23: 1 | U23: 33.33333333 | V23: 3 | W23: 1 | X23: 33.33333333 | Y23: 2 | Z23: 66.66666667
A24: AVANCE MONTES DE OCA | B24: 43 | C24: 21 | D24: 48.8372093 | E24: 22 | F24: 51.1627907 | G24: 3 | H24: 2 | I24: 66.66666667 | J24: 1 | K24: 33.33333333 | L24: 2 | M24: 1 | N24: 50 | O24: 1 | P24: 50 | Q24: 2 | R24: 1 | S24: 50 | T24: 1 | U24: 50 | V24: 0 | W24: 0 | X24: 0 | Y24: 0 | Z24: 0
A25: BARVA UNIDA | B25: 51 | C25: 25 | D25: 49.01960784 | E25: 26 | F25: 50.98039216 | G25: 2 | H25: 0 | I25: 0 | J25: 2 | K25: 100 | L25: 0 | M25: 0 | N25: 0 | O25: 0 | P25: 0 | Q25: 0 | R25: 0 | S25: 0 | T25: 0 | U25: 0 | V25: 0 | W25: 0 | X25: 0 | Y25: 0 | Z25: 0
A26: COALICIÓN ALIANZA POR BELÉN | B26: 15 | C26: 9 | D26: 60 | E26: 6 | F26: 40 | G26: 3 | H26: 1 | I26: 33.33333333 | J26: 2 | K26: 66.66666667 | L26: 3 | M26: 2 | N26: 66.66666667 | O26: 1 | P26: 33.33333333 | Q26: 3 | R26: 0 | S26: 0 | T26: 3 | U26: 100 | V26: 1 | W26: 1 | X26: 100 | Y26: 0 | Z26: 0
A27: COALICIÓN GENTE MONTES DE OCA | B27: 16 | C27: 8 | D27: 50 | E27: 8 | F27: 50 | G27: 4 | H27: 3 | I27: 75 | J27: 1 | K27: 25 | L27: 4 | M27: 1 | N27: 25 | O27: 3 | P27: 75 | Q27: 4 | R27: 3 | S27: 75 | T27: 1 | U27: 25 | V27: 4 | W27: 1 | X27: 25 | Y27: 3 | Z27: 75
A28: COALICIÓN SOMOS TIBÁS | B28: 23 | C28: 11 | D28: 47.82608696 | E28: 12 | F28: 52.17391304 | G28: 5 | H28: 3 | I28: 60 | J28: 2 | K28: 40 | L28: 5 | M28: 2 | N28: 40 | O28: 3 | P28: 60 | Q28: 3 | R28: 1 | S28: 33.33333333 | T28: 2 | U28: 66.66666667 | V28: 0 | W28: 0 | X28: 0 | Y28: 0 | Z28: 0
A29: COALICIÓN UNIDOS POR GUATUSO | B29: 19 | C29: 10 | D29: 52.63157895 | E29: 9 | F29: 47.36842105 | G29: 3 | H29: 1 | I29: 33.33333333 | J29: 2 | K29: 66.66666667 | L29: 3 | M29: 2 | N29: 66.66666667 | O29: 1 | P29: 33.33333333 | Q29: 0 | R29: 0 | S29: 0 | T29: 0 | U29: 0 | V29: 0 | W29: 0 | X29: 0 | Y29: 0 | Z29: 0
A30: CURRIDABAT SIGLO XXI | B30: 89 | C30: 45 | D30: 50.56179775 | E30: 44 | F30: 49.43820225 | G30: 4 | H30: 4 | I30: 100 | J30: 0 | K30: 0 | L30: 4 | M30: 0 | N30: 0 | O30: 4 | P30: 100 | Q30: 4 | R30: 4 | S30: 100 | T30: 0 | U30: 0 | V30: 4 | W30: 0 | X30: 0 | Y30: 4 | Z30: 100
A31: DE LOS TRABAJADORES | B31: 7 | C31: 3 | D31: 42.85714286 | E31: 4 | F31: 57.14285714 | G31: 4 | H31: 1 | I31: 25 | J31: 3 | K31: 75 | L31: 0 | M31: 0 | N31: 0 | O31: 0 | P31: 0 | Q31: 0 | R31: 0 | S31: 0 | T31: 0 | U31: 0 | V31: 0 | W31: 0 | X31: 0 | Y31: 0 | Z31: 0
A32: DEL SOL | B32: 24 | C32: 12 | D32: 50 | E32: 12 | F32: 50 | G32: 6 | H32: 2 | I32: 33.33333333 | J32: 4 | K32: 66.66666667 | L32: 5 | M32: 3 | N32: 60 | O32: 2 | P32: 40 | Q32: 5 | R32: 2 | S32: 40 | T32: 3 | U32: 60 | V32: 3 | W32: 3 | X32: 100 | Y32: 0 | Z32: 0
A33: DESAMPARADOS UNIDO | B33: 9 | C33: 5 | D33: 55.55555556 | E33: 4 | F33: 44.44444444 | G33: 11 | H33: 1 | I33: 9.090909091 | J33: 10 | K33: 90.90909091 | L33: 9 | M33: 8 | N33: 88.88888889 | O33: 1 | P33: 11.11111111 | Q33: 8 | R33: 1 | S33: 12.5 | T33: 7 | U33: 87.5 | V33: 6 | W33: 6 | X33: 100 | Y33: 0 | Z33: 0
A34: ECOLÓGICO COMUNAL COSTARRICENSE | B34: 140 | C34: 65 | D34: 46.42857143 | E34: 75 | F34: 53.57142857 | G34: 12 | H34: 3 | I34: 25 | J34: 9 | K34: 75 | L34: 10 | M34: 6 | N34: 60 | O34: 4 | P34: 40 | Q34: 5 | R34: 1 | S34: 20 | T34: 4 | U34: 80 | V34: 3 | W34: 2 | X34: 66.66666667 | Y34: 1 | Z34: 33.33333333
A35: FRENTE AMPLIO | B35: 1782 | C35: 889 | D35: 49.88776655 | E35: 893 | F35: 50.11223345 | G35: 290 | H35: 148 | I35: 51.03448276 | J35: 142 | K35: 48.96551724 | L35: 234 | M35: 121 | N35: 51.70940171 | O35: 113 | P35: 48.29059829 | Q35: 193 | R35: 89 | S35: 46.11398964 | T35: 104 | U35: 53.88601036 | V35: 138 | W35: 71 | X35: 51.44927536 | Y35: 67 | Z35: 48.55072464
A36: FUERZA DEMOCRÁTICA DESAMPARADEÑA | B36: 24 | C36: 12 | D36: 50 | E36: 12 | F36: 50 | G36: 10 | H36: 5 | I36: 50 | J36: 5 | K36: 50 | L36: 6 | M36: 3 | N36: 50 | O36: 3 | P36: 50 | Q36: 1 | R36: 0 | S36: 0 | T36: 1 | U36: 100 | V36: 0 | W36: 0 | X36: 0 | Y36: 0 | Z36: 0
A37: FUERZAS UNIDAS PARA EL CAMBIO | B37: 11 | C37: 6 | D37: 54.54545455 | E37: 5 | F37: 45.45454545 | G37: 3 | H37: 1 | I37: 33.33333333 | J37: 2 | K37: 66.66666667 | L37: 2 | M37: 1 | N37: 50 | O37: 1 | P37: 50 | Q37: 2 | R37: 1 | S37: 50 | T37: 1 | U37: 50 | V37: 0 | W37: 0 | X37: 0 | Y37: 0 | Z37: 0
A38: GARABITO ECOLÓGICO | B38: 903 | C38: 445 | D38: 49.28017719 | E38: 458 | F38: 50.71982281 | G38: 2 | H38: 0 | I38: 0 | J38: 2 | K38: 100 | L38: 2 | M38: 2 | N38: 100 | O38: 0 | P38: 0 | Q38: 0 | R38: 0 | S38: 0 | T38: 0 | U38: 0 | V38: 0 | W38: 0 | X38: 0 | Y38: 0 | Z38: 0
A39: INDEPENDIENTE ESCAZUCEÑO | B39: 11 | C39: 6 | D39: 54.54545455 | E39: 5 | F39: 45.45454545 | G39: 3 | H39: 0 | I39: 0 | J39: 3 | K39: 100 | L39: 3 | M39: 3 | N39: 100 | O39: 0 | P39: 0 | Q39: 3 | R39: 0 | S39: 0 | T39: 3 | U39: 100 | V39: 2 | W39: 2 | X39: 100 | Y39: 0 | Z39: 0
A40: INTEGRACIÓN NACIONAL | B40: 19 | C40: 9 | D40: 47.36842105 | E40: 10 | F40: 52.63157895 | G40: 48 | H40: 24 | I40: 50 | J40: 24 | K40: 50 | L40: 44 | M40: 22 | N40: 50 | O40: 22 | P40: 50 | Q40: 34 | R40: 17 | S40: 50 | T40: 17 | U40: 50 | V40: 21 | W40: 11 | X40: 52.38095238 | Y40: 10 | Z40: 47.61904762
A41: JUSTICIA GENERALEÑA | B41: 289 | C41: 145 | D41: 50.17301038 | E41: 144 | F41: 49.82698962 | G41: 8 | H41: 1 | I41: 12.5 | J41: 7 | K41: 87.5 | L41: 8 | M41: 7 | N41: 87.5 | O41: 1 | P41: 12.5 | Q41: 7 | R41: 2 | S41: 28.57142857 | T41: 5 | U41: 71.42857143 | V41: 2 | W41: 2 | X41: 100 | Y41: 0 | Z41: 0
A42: LIBERACIÓN NACIONAL | B42: 51 | C42: 23 | D42: 45.09803922 | E42: 28 | F42: 54.90196078 | G42: 476 | H42: 208 | I42: 43.69747899 | J42: 268 | K42: 56.30252101 | L42: 473 | M42: 265 | N42: 56.02536998 | O42: 208 | P42: 43.97463002 | Q42: 461 | R42: 209 | S42: 45.3362256 | T42: 252 | U42: 54.6637744 | V42: 425 | W42: 236 | X42: 55.52941176 | Y42: 189 | Z42: 44.47058824
A43: LIGA RAMONENSE | B43: 21 | C43: 12 | D43: 57.14285714 | E43: 9 | F43: 42.85714286 | G43: 4 | H43: 3 | I43: 75 | J43: 1 | K43: 25 | L43: 2 | M43: 0 | N43: 0 | O43: 2 | P43: 100 | Q43: 1 | R43: 1 | S43: 100 | T43: 0 | U43: 0 | V43: 0 | W43: 0 | X43: 0 | Y43: 0 | Z43: 0
A44: LIMÓN INDEPENDIENTE | B44: 5 | C44: 1 | D44: 20 | E44: 4 | F44: 80 | G44: 4 | H44: 2 | I44: 50 | J44: 2 | K44: 50 | L44: 4 | M44: 2 | N44: 50 | O44: 2 | P44: 50 | Q44: 4 | R44: 2 | S44: 50 | T44: 2 | U44: 50 | V44: 4 | W44: 2 | X44: 50 | Y44: 2 | Z44: 50
A45: MOVIMIENTO AVANCE SANTO DOMINGO | B45: 11 | C45: 5 | D45: 45.45454545 | E45: 6 | F45: 54.54545455 | G45: 8 | H45: 4 | I45: 50 | J45: 4 | K45: 50 | L45: 8 | M45: 4 | N45: 50 | O45: 4 | P45: 50 | Q45: 7 | R45: 3 | S45: 42.85714286 | T45: 4 | U45: 57.14285714 | V45: 4 | W45: 2 | X45: 50 | Y45: 2 | Z45: 50
A46: MOVIMIENTO LIBERTARIO | B46: 12 | C46: 6 | D46: 50 | E46: 6 | F46: 50 | G46: 247 | H46: 111 | I46: 44.93927126 | J46: 136 | K46: 55.06072874 | L46: 127 | M46: 68 | N46: 53.54330709 | O46: 59 | P46: 46.45669291 | Q46: 85 | R46: 41 | S46: 48.23529412 | T46: 44 | U46: 51.76470588 | V46: 46 | W46: 31 | X46: 67.39130435 | Y46: 15 | Z46: 32.60869565
A47: NUEVA GENERACIÓN | B47: 16 | C47: 8 | D47: 50 | E47: 8 | F47: 50 | G47: 87 | H47: 40 | I47: 45.97701149 | J47: 47 | K47: 54.02298851 | L47: 56 | M47: 31 | N47: 55.35714286 | O47: 25 | P47: 44.64285714 | Q47: 46 | R47: 20 | S47: 43.47826087 | T47: 26 | U47: 56.52173913 | V47: 24 | W47: 12 | X47: 50 | Y47: 12 | Z47: 50
A48: NUEVA MAYORÍA GRIEGA | B48: 890 | C48: 441 | D48: 49.5505618 | E48: 449 | F48: 50.4494382 | G48: 8 | H48: 2 | I48: 25 | J48: 6 | K48: 75 | L48: 8 | M48: 6 | N48: 75 | O48: 2 | P48: 25 | Q48: 8 | R48: 2 | S48: 25 | T48: 6 | U48: 75 | V48: 8 | W48: 6 | X48: 75 | Y48: 2 | Z48: 25
A49: PARRITA INDEPENDIENTE | B49: 32 | C49: 16 | D49: 50 | E49: 16 | F49: 50 | G49: 1 | H49: 1 | I49: 100 | J49: 0 | K49: 0 | L49: 1 | M49: 0 | N49: 0 | O49: 1 | P49: 100 | Q49: 1 | R49: 1 | S49: 100 | T49: 0 | U49: 0 | V49: 1 | W49: 0 | X49: 0 | Y49: 1 | Z49: 100
A50: PROGRESO COMUNAL DESAMPARADEÑO | B50: 27 | C50: 13 | D50: 48.14814815 | E50: 14 | F50: 51.85185185 | G50: 1 | H50: 0 | I50: 0 | J50: 1 | K50: 100 | L50: 1 | M50: 1 | N50: 100 | O50: 0 | P50: 0 | Q50: 1 | R50: 0 | S50: 0 | T50: 1 | U50: 100 | V50: 1 | W50: 1 | X50: 100 | Y50: 0 | Z50: 0
A51: PUEBLO GARABITO | B51: 28 | C51: 14 | D51: 50 | E51: 14 | F51: 50 | G51: 2 | H51: 1 | I51: 50 | J51: 1 | K51: 50 | L51: 2 | M51: 1 | N51: 50 | O51: 1 | P51: 50 | Q51: 2 | R51: 1 | S51: 50 | T51: 1 | U51: 50 | V51: 1 | W51: 1 | X51: 100 | Y51: 0 | Z51: 0
A52: RECUPERANDO VALORES | B52: 8 | C52: 3 | D52: 37.5 | E52: 5 | F52: 62.5 | G52: 13 | H52: 8 | I52: 61.53846154 | J52: 5 | K52: 38.46153846 | L52: 12 | M52: 4 | N52: 33.33333333 | O52: 8 | P52: 66.66666667 | Q52: 10 | R52: 6 | S52: 60 | T52: 4 | U52: 40 | V52: 10 | W52: 4 | X52: 40 | Y52: 6 | Z52: 60
A53: RENOVACIÓN CARTAGO | G53: 8 | H53: 4 | I53: 50 | J53: 4 | K53: 50 | L53: 0 | M53: 0 | N53: 0 | O53: 0 | P53: 0 | Q53: 0 | R53: 0 | S53: 0 | T53: 0 | U53: 0 | V53: 0 | W53: 0 | X53: 0 | Y53: 0 | Z53: 0
A54: RENOVACIÓN COSTARRICENSE | G54: 162 | H54: 87 | I54: 53.7037037 | J54: 75 | K54: 46.2962963 | L54: 147 | M54: 71 | N54: =+M54/$L54*100 -> 48.29931973 | O54: 76 | P54: =+O54/$L54*100 -> 51.70068027 | Q54: 121 | R54: 65 | S54: =+R54/$Q54*100 -> 53.71900826 | T54: 56 | U54: =+T54/$Q54*100 -> 46.28099174 | V54: 79 | W54: 37 | X54: =+W54/$V54*100 -> 46.83544304 | Y54: 42 | Z54: =+Y54/$V54*100 -> 53.16455696
A55: RENOVEMOS ALAJUELA | G55: 12 | H55: 6 | I55: 50 | J55: 6 | K55: 50 | L55: 12 | M55: 6 | N55: 50 | O55: 6 | P55: 50 | Q55: 12 | R55: 6 | S55: 50 | T55: 6 | U55: 50 | V55: 11 | W55: 6 | X55: 54.54545455 | Y55: 5 | Z55: 45.45454545
A56: REPUBLICANO SOCIAL CRISTIANO | G56: 291 | H56: 123 | I56: 42.26804124 | J56: 168 | K56: 57.73195876 | L56: 260 | M56: 146 | N56: 56.15384615 | O56: 114 | P56: 43.84615385 | Q56: 221 | R56: 88 | S56: 39.81900452 | T56: 133 | U56: 60.18099548 | V56: 127 | W56: 87 | X56: 68.50393701 | Y56: 40 | Z56: 31.49606299
A57: RESCATE CANTONAL LA UNIÓN | G57: 8 | H57: 4 | I57: 50 | J57: 4 | K57: 50 | L57: 8 | M57: 4 | N57: 50 | O57: 4 | P57: 50 | Q57: 8 | R57: 4 | S57: 50 | T57: 4 | U57: 50 | V57: 7 | W57: 4 | X57: 57.14285714 | Y57: 3 | Z57: 42.85714286
A58: RESTAURACIÓN NACIONAL | G58: 38 | H58: 24 | I58: 63.15789474 | J58: 14 | K58: 36.84210526 | L58: 16 | M58: 6 | N58: 37.5 | O58: 10 | P58: 62.5 | Q58: 13 | R58: 8 | S58: 61.53846154 | T58: 5 | U58: 38.46153846 | V58: 9 | W58: 3 | X58: 33.33333333 | Y58: 6 | Z58: 66.66666667
A59: RESTAURACIÓN PARRITEÑA | G59: 1 | H59: 1 | I59: 100 | J59: 0 | K59: 0 | L59: 1 | M59: 0 | N59: 0 | O59: 1 | P59: 100 | Q59: 1 | R59: 1 | S59: 100 | T59: 0 | U59: 0 | V59: 0 | W59: 0 | X59: 0 | Y59: 0 | Z59: 0
A60: SOLIDARIDAD | G60: 11 | H60: 3 | I60: 27.27272727 | J60: 8 | K60: 72.72727273 | L60: 11 | M60: 8 | N60: 72.72727273 | O60: 3 | P60: 27.27272727 | Q60: 11 | R60: 5 | S60: 45.45454545 | T60: 6 | U60: 54.54545455 | V60: 5 | W60: 4 | X60: 80 | Y60: 1 | Z60: 20
A61: TODO POR FLORES | G61: 3 | H61: 1 | I61: 33.33333333 | J61: 2 | K61: 66.66666667 | L61: 3 | M61: 2 | N61: 66.66666667 | O61: 1 | P61: 33.33333333 | Q61: 3 | R61: 1 | S61: 33.33333333 | T61: 2 | U61: 66.66666667 | V61: 2 | W61: 1 | X61: 50 | Y61: 1 | Z61: 50
A62: UNIDAD SOCIAL CRISTIANA | G62: 441 | H62: 205 | I62: 46.48526077 | J62: 236 | K62: 53.51473923 | L62: 439 | M62: 236 | N62: 53.75854214 | O62: 203 | P62: 46.24145786 | Q62: 418 | R62: 194 | S62: 46.41148325 | T62: 224 | U62: 53.58851675 | V62: 337 | W62: 182 | X62: 54.00593472 | Y62: 155 | Z62: 45.99406528
A63: UNIÓN GUARQUEÑO | G63: 4 | H63: 0 | I63: 0 | J63: 4 | K63: 100 | L63: 4 | M63: 4 | N63: 100 | O63: 0 | P63: 0 | Q63: 4 | R63: 0 | S63: 0 | T63: 4 | U63: 100 | V63: 4 | W63: 4 | X63: 100 | Y63: 0 | Z63: 0
A64: VERDE | G64: 6 | H64: 1 | I64: 16.66666667 | J64: 5 | K64: 83.33333333 | L64: 6 | M64: 5 | N64: 83.33333333 | O64: 1 | P64: 16.66666667 | Q64: 5 | R64: 1 | S64: 20 | T64: 4 | U64: 80 | V64: 3 | W64: 3 | X64: 100 | Y64: 0 | Z64: 0
A65: VIVA PUNTARENAS | G65: 24 | H65: 8 | I65: 33.33333333 | J65: 16 | K65: 66.66666667 | L65: 17 | M65: 12 | N65: 70.58823529 | O65: 5 | P65: 29.41176471 | Q65: 15 | R65: 5 | S65: 33.33333333 | T65: 10 | U65: 66.66666667 | V65: 8 | W65: 7 | X65: 87.5 | Y65: 1 | Z65: 12.5
A66: YUNTA PROGRESISTA ESCAZUCEÑA | G66: 3 | H66: 3 | I66: 100 | J66: 0 | K66: 0 | L66: 3 | M66: 0 | N66: 0 | O66: 3 | P66: 100 | Q66: 2 | R66: 1 | S66: 50 | T66: 1 | U66: 50 | V66: 1 | W66: 0 | X66: 0 | Y66: 1 | Z66: 100
A69: 1/ Incluye Concejales de Distrito y Concejales Municipales de Distrito.
A70: Fuente: Tribunal Supremo de Elecciones.

Sheet 1.8
A2: CUADRO 1.8 COSTA RICA: CANDIDATOS(AS) ELECTOS(AS) EN PROPIEDAD Y SUPLENCIA, POR SEXO
A3: SEGÚN TIPO DE CANDIDATURA, ELECCIONES MUNICIPALES FEBRERO 2016
A4: (cifras absolutas y relativas)
A6: TIPO DE CANDIDATURA | B6: TOTAL | G6: EN PROPIEDAD | L6: EN SUPLENCIA
B7: TOTAL | C7: MUJERES | E7: HOMBRES | G7: TOTAL | H7: MUJERES | J7: HOMBRES | L7: TOTAL | M7: MUJERES | O7: HOMBRES
C8: Absoluto | D8: % | E8: Absoluto | F8: % | H8: Absoluto | I8: % | J8: Absoluto | K8: % | M8: Absoluto | N8: % | O8: Absoluto | P8: %
A10: TOTAL | B10: =SUM(B11:B19) -> 6019 | C10: =SUM(C11:C19) -> 2891 | D10: =+C10/$B10*100 -> 48.03123442 | E10: =SUM(E11:E19) -> 3128 | F10: =+E10/$B10*100 -> 51.96876558 | G10: =SUM(G11:G19) -> 3083 | H10: =SUM(H11:H19) -> 1393 | I10: =+H10/$G10*100 -> 45.18326306 | J10: =SUM(J11:J19) -> 1690 | K10: =+J10/$G10*100 -> 54.81673694 | L10: =SUM(L11:L19) -> 2936 | M10: =SUM(M11:M19) -> 1498 | N10: =+M10/$L10*100 -> 51.02179837 | O10: =SUM(O11:O19) -> 1438 | P10: =+O10/$L10*100 -> 48.97820163
A11: ALCALDÍA | B11: =+G11+L11 -> 81 | C11: 12 | D11: =+C11/$B11*100 -> 14.81481481 | E11: =+J11+O11 -> 69 | F11: =+E11/$B11*100 -> 85.18518519 | G11: =+H11+J11 -> 81 | H11: 12 | I11: =+H11/$G11*100 -> 14.81481481 | J11: 69 | K11: =+J11/$G11*100 -> 85.18518519 | L11: =+M11+O11 -> 0 | M11: 0 | N11: 0 | O11: 0 | P11: 0
A12: VICEALCALDÍA PRIMERA | B12: 81 | C12: 69 | D12: =+C12/$B12*100 -> 85.18518519 | E12: 12 | F12: =+E12/$B12*100 -> 14.81481481 | G12: =+H12+J12 -> 81 | H12: 69 | I12: =+H12/$G12*100 -> 85.18518519 | J12: 12 | K12: =+J12/$G12*100 -> 14.81481481 | L12: =+M12+O12 -> 0 | M12: 0 | N12: 0 | O12: 0 | P12: 0
A13: VICEALCALDÍA SEGUNDA | B13: 80 | C13: 18 | D13: 22.5 | E13: 62 | F13: 77.5 | G13: 0 | H13: 0 | I13: 0 | J13: 0 | K13: 0 | L13: 80 | M13: 18 | N13: =+M13/$L13*100 -> 22.5 | O13: 62 | P13: =+O13/$L13*100 -> 77.5
A14: REGIDORÍA | B14: =+G14+L14 -> 1010 | C14: =+H14+M14 -> 461 | D14: =+C14/$B14*100 -> 45.64356436 | E14: =+J14+O14 -> 549 | F14: =+E14/$B14*100 -> 54.35643564 | G14: =+H14+J14 -> 505 | H14: 204 | I14: =+H14/$G14*100 -> 40.3960396 | J14: 301 | K14: =+J14/$G14*100 -> 59.6039604 | L14: =+M14+O14 -> 505 | M14: 257 | N14: =+M14/$L14*100 -> 50.89108911 | O14: 248 | P14: =+O14/$L14*100 -> 49.10891089
A15: CONCEJALÍA DE DISTRITO | B15: 3736 | C15: 1818 | D15: 48.66167024 | E15: 1918 | F15: 51.33832976 | G15: 1888 | H15: 912 | I15: 48.30508475 | J15: 976 | K15: 51.69491525 | L15: 1848 | M15: 906 | N15: 49.02597403 | O15: 942 | P15: 50.97402597
A16: CONCEJALÍA MUNICIPAL DE DISTRITO | B16: 64 | C16: 30 | D16: 46.875 | E16: 34 | F16: 53.125 | G16: 32 | H16: 14 | I16: 43.75 | J16: 18 | K16: 56.25 | L16: 32 | M16: 16 | N16: 50 | O16: 16 | P16: 50
A17: INTENDENCIA | B17: 8 | C17: 3 | D17: 37.5 | E17: 5 | F17: 62.5 | G17: 8 | H17: 3 | I17: 37.5 | J17: 5 | K17: 62.5 | L17: 0 | M17: 0 | N17: 0 | O17: 0 | P17: 0
A18: VICEINTENDENCIA | B18: 8 | C18: 5 | D18: 62.5 | E18: 3 | F18: 37.5 | G18: 8 | H18: 5 | I18: 62.5 | J18: 3 | K18: 37.5 | L18: 0 | M18: 0 | N18: 0 | O18: 0 | P18: 0
A19: SINDICATURA | B19: 951 | C19: 475 | D19: 49.94742376 | E19: 476 | F19: 50.05257624 | G19: 480 | H19: 174 | I19: =+H19/$G19*100 -> 36.25 | J19: 306 | K19: =+J19/$G19*100 -> 63.75 | L19: 471 | M19: 301 | N19: 63.90658174 | O19: 170 | P19: 36.09341826
A22: Fuente: Tribunal Supremo de Elecciones.

Sheet G1.1
A2: GRÁFICO 1.1 COSTA RICA: CANDIDATURAS ELECTAS EN PROPIEDAD, POR SEXO, SEGÚN TIPO DE PUESTO, ELECCIONES MUNICIPALES FEBRERO 2016
A5: PUESTO | B5: HOMBRES | C5: MUJERES
B6: =SUM(B7:B9) -> 1300 | C6: =SUM(C7:C9) -> 1100
A7: CONCEJALÍA DE DISTRITO | B7: 976 | C7: 912
A8: CONCEJALÍA MUNICIPAL DE DISTRITO | B8: 18 | C8: 14
A9: SINDICATURA | B9: 306 | C9: 174
A10: VICEINTENDENCIA | B10: 3 | C10: 5
A11: INTENDENCIA | B11: 5 | C11: 3
A12: REGIDURÍA | B12: 301 | C12: 204
A13: VICEALCALDÍA PRIMERA | B13: 12 | C13: 69
A14: ALCALDÍA | B14: 69 | C14: 12
A16: Fuente: Tribunal Supremo de Elecciones.
A23: Fuente: Tribunal Supremo de Elecciones.

Sheet 1.9
A2: CUADRO 1.9 COSTA RICA: ALCALDES(AS) Y VICEALCALDES(AS) ELECTOS(AS), POR SEXO
A3: SEGÚN PARTIDO POLÍTICO, ELECCIONES MUNICIPALES FEBRERO 2016
A4: (cifras absolutas y relativas)
A6: PARTIDO POLÍTICO | B6: ALCALDES(AS) | G6: VICEALCALDES(AS) PRIMEROS(AS) | L6: VICEALCALDES(AS) SEGUNDOS(AS)1/
B7: TOTAL | C7: MUJERES | E7: HOMBRES | G7: TOTAL | H7: MUJERES | J7: HOMBRES | L7: TOTAL | M7: MUJERES | O7: HOMBRES
C8: Absoluto | D8: % | E8: Absoluto | F8: % | H8: Absoluto | I8: % | J8: Absoluto | K8: % | M8: Absoluto | N8: % | O8: Absoluto | P8: %
A10: TOTAL | B10: =SUM(B12:B23) -> 81 | C10: =SUM(C12:C23) -> 12 | D10: =+C10/$B10*100 -> 14.81481481 | E10: =SUM(E12:E23) -> 69 | F10: =+E10/$B10*100 -> 85.18518519 | G10: =SUM(G12:G23) -> 81 | H10: =SUM(H12:H23) -> 69 | I10: =+H10/$G10*100 -> 85.18518519 | J10: =SUM(J12:J23) -> 12 | K10: =+J10/$G10*100 -> 14.81481481 | L10: =SUM(L12:L23) -> 80 | M10: =SUM(M12:M23) -> 18 | N10: =+M10/$L10*100 -> 22.5 | O10: =SUM(O12:O23) -> 62 | P10: =+O10/$L10*100 -> 77.5
A12: ACCESIBILIDAD SIN EXCLUSIÓN | B12: =+C12+E12 -> 1 | C12: 0 | D12: =+C12/$B12*100 -> 0 | E12: 1 | F12: =+E12/$B12*100 -> 100 | G12: =+H12+J12 -> 1 | H12: 1 | I12: =+H12/$G12*100 -> 100 | J12: 0 | K12: =+J12/$G12*100 -> 0 | L12: =+M12+O12 -> 1 | M12: 1 | N12: =+M12/$L12*100 -> 100 | O12: 0 | P12: =+O12/$L12*100 -> 0
A13: ACCIÓN CIUDADANA | B13: 6 | C13: 0 | D13: =+C13/$B13*100 -> 0 | E13: 6 | F13: =+E13/$B13*100 -> 100 | G13: 6 | H13: 6 | I13: =+H13/$G13*100 -> 100 | J13: 0 | K13: =+J13/$G13*100 -> 0 | L13: 6 | M13: 2 | N13: =+M13/$L13*100 -> 33.33333333 | O13: 4 | P13: =+O13/$L13*100 -> 66.66666667
A14: ALIANZA POR SAN JOSÉ | B14: 1 | C14: 0 | D14: 0 | E14: 1 | F14: 100 | G14: 1 | H14: 1 | I14: 100 | J14: 0 | K14: 0 | L14: 1 | M14: 0 | N14: 0 | O14: 1 | P14: 100
A15: AUTÉNTICO LIMONENSE | B15: 1 | C15: 0 | D15: 0 | E15: 1 | F15: 100 | G15: 1 | H15: 1 | I15: 100 | J15: 0 | K15: 0 | L15: 1 | M15: 0 | N15: 0 | O15: 1 | P15: 100
A16: COALICIÓN GENTE MONTES DE OCA | B16: 1 | C16: 0 | D16: 0 | E16: 1 | F16: 100 | G16: 1 | H16: 1 | I16: 100 | J16: 0 | K16: 0 | L16: 1 | M16: 0 | N16: 0 | O16: 1 | P16: 100
A17: CURRIDABAT SIGLO XXI | B17: 1 | C17: 0 | D17: 0 | E17: 1 | F17: 100 | G17: 1 | H17: 1 | I17: 100 | J17: 0 | K17: 0 | L17: 1 | M17: 0 | N17: 0 | O17: 1 | P17: 100
A18: FRENTE AMPLIO | B18: 1 | C18: 0 | D18: 0 | E18: 1 | F18: 100 | G18: 1 | H18: 1 | I18: 100 | J18: 0 | K18: 0 | L18: 1 | M18: 0 | N18: 0 | O18: 1 | P18: 100
A19: LIBERACIÓN NACIONAL | B19: 50 | C19: 8 | D19: 16 | E19: 42 | F19: 84 | G19: 50 | H19: 42 | I19: 84 | J19: 8 | K19: 16 | L19: 49 | M19: 10 | N19: 20.40816327 | O19: 39 | P19: 79.59183673
A20: NUEVA GENERACIÓN | B20: 3 | C20: 0 | D20: 0 | E20: 3 | F20: 100 | G20: 3 | H20: 3 | I20: 100 | J20: 0 | K20: 0 | L20: 3 | M20: 1 | N20: 33.33333333 | O20: 2 | P20: 66.66666667
A21: REPUBLICANO SOCIAL CRISTIANO | B21: 1 | C21: 0 | D21: 0 | E21: 1 | F21: 100 | G21: 1 | H21: 1 | I21: 100 | J21: 0 | K21: 0 | L21: 1 | M21: 0 | N21: 0 | O21: 1 | P21: 100
A22: UNIDAD SOCIAL CRISTIANA | B22: 14 | C22: 4 | D22: 28.57142857 | E22: 10 | F22: 71.42857143 | G22: 14 | H22: 10 | I22: 71.42857143 | J22: 4 | K22: 28.57142857 | L22: 14 | M22: 3 | N22: 21.42857143 | O22: 11 | P22: 78.57142857
A23: YUNTA PROGRESISTA ESCAZUCEÑA | B23: 1 | C23: 0 | D23: 0 | E23: 1 | F23: 100 | G23: 1 | H23: 1 | I23: 100 | J23: 0 | K23: 0 | L23: 1 | M23: 1 | N23: 100 | O23: 0 | P23: 0
A26: 1/ En los cantones de Aserrí y Hojancha el partido ganador fue Acción Ciudadana, pero no propuso candidaturas para Vicealcalde/sa Segundo/a.
A27: Fuente: Tribunal Supremo de Elecciones.

Sheet G1.2
A2: GRÁFICO 1.2 COSTA RICA: ALCALDÍAS GANADAS POR PARTIDO POLÍTICO,
A3: ELECCIONES MUNICIPALES FEBRERO 2016
A7: PARTIDO POLÍTICO
A8: TOTAL | B8: =SUM(B9:B20) -> 81
A9: YUNTA PROGRESISTA ESCAZUCEÑA | B9: 1
A10: REPUBLICANO SOCIAL CRISTIANO | B10: 1
A11: FRENTE AMPLIO | B11: 1
A12: CURRIDABAT SIGLO XXI | B12: 1
A13: COALICIÓN GENTE MONTES DE OCA | B13: 1
A14: AUTÉNTICO LIMONENSE | B14: 1
A15: ALIANZA POR SAN JOSÉ | B15: 1
A16: ACCESIBILIDAD SIN EXCLUSIÓN | B16: 1
A17: NUEVA GENERACIÓN | B17: 3
A18: ACCIÓN CIUDADANA | B18: 6
A19: UNIDAD SOCIAL CRISTIANA | B19: 14
A20: LIBERACIÓN NACIONAL | B20: 50
A23: Fuente: Tribunal Supremo de Elecciones.
A28: Liberación Nacional: Desamparados, Aserrí, Goicoechea, Santa Ana, Tibás, Turrubares, Dota, León Cortés Castro, Alajuela, San Ramón, Grecia, San Mateo, Poás, Orotina, San Carlos, Zarcero, Upala, Los Chiles, Guatuso, Cartago, La Unión, Jiménez, Alvarado, Oreamuno, El Guarco, Heredia, Santo Domingo, Santa Bárbara, San Rafael, Flores, Sarapiquí, Liberia, Nicoya, Santa Cruz, Bagaces, Carrillo, Cañas, Abangares, Tilarán, Esparza, Buenos Aires, Osa, Golfito, Parrita, Corredores, Garabito, Pococí, Siquirres, Matina y Guácimo.
A29: Unidad Social Cristiana: Puriscal, Tarrazú, Pérez Zeledón, Atenas, Naranjo, Valverde Vega, San Isidro, Belén, San Pablo, La Cruz, Puntarenas, Quepos, Coto Brus y Talamanca.
A30: Acción Ciudadana: Acosta, Moravia, Palmares, Turrialba, Hojancha, Montes de Oro.
A31: Nueva Generación: Mora, Alajuelita y Nandayure.
A32: Accesibilidad Sin Exclusión: Paraíso.
A33: Alianza por San José: San José.
A34: Yunta Progresita Escazuceña: Escazú.
A35: Curridabat Siglo XXI: Curridabat.
A36: Frente Amplio: Barva.
A37: Coalición Gente Montes de Oca: Montes de Oca.
A38: Repúblicano Social Cristiano: Vásquez de Coronado.
A39: Auténtico Limonense: Limón.
A41: Fuente: Tribunal Supremo de Elecciones.

Sheet 1.10
A2: CUADRO 1.10 COSTA RICA: REGIDORES(AS) ELECTOS(AS), POR CARGO Y SEXO, SEGÚN PARTIDO POLÍTICO
A3: ELECCIONES MUNICIPALES FEBRERO 2016
A4: (cifras absolutas y relativas)
A6: PARTIDO POLÍTICO | B6: TOTAL | G6: EN PROPIEDAD | L6: EN SUPLENCIA
B7: TOTAL | C7: MUJERES | E7: HOMBRES | G7: TOTAL | H7: MUJERES | J7: HOMBRES | L7: TOTAL | M7: MUJERES | O7: HOMBRES
C8: Absoluto | D8: % | E8: Absoluto | F8: % | H8: Absoluto | I8: % | J8: Absoluto | K8: % | M8: Absoluto | N8: % | O8: Absoluto | P8: %
A10: TOTAL | B10: =+G10+L10 -> 1010 | C10: =+H10+M10 -> 461 | D10: =+C10/$B10*100 -> 45.64356436 | E10: =+J10+O10 -> 549 | F10: =+E10/$B10*100 -> 54.35643564 | G10: =SUM(G12:G50) -> 505 | H10: =SUM(H12:H50) -> 204 | I10: =+H10/$G10*100 -> 40.3960396 | J10: =SUM(J12:J50) -> 301 | K10: =+J10/$G10*100 -> 59.6039604 | L10: =SUM(L12:L50) -> 505 | M10: =SUM(M12:M50) -> 257 | N10: =+M10/$L10*100 -> 50.89108911 | O10: =SUM(O12:O50) -> 248 | P10: =+O10/$L10*100 -> 49.10891089
A12: ACCESIBILIDAD SIN EXCLUSIÓN | B12: =+G12+L12 -> 16 | C12: =+H12+M12 -> 7 | D12: =+C12/$B12*100 -> 43.75 | E12: =+J12+O12 -> 9 | F12: =+E12/$B12*100 -> 56.25 | G12: =+H12+J12 -> 8 | H12: 3 | I12: =+H12/$G12*100 -> 37.5 | J12: 5 | K12: =+J12/$G12*100 -> 62.5 | L12: =+M12+O12 -> 8 | M12: 4 | N12: =+M12/$L12*100 -> 50 | O12: 4 | P12: =+O12/$L12*100 -> 50
A13: ACCIÓN CIUDADANA | B13: =+G13+L13 -> 128 | C13: 64 | D13: =+C13/$B13*100 -> 50 | E13: =+J13+O13 -> 64 | F13: =+E13/$B13*100 -> 50 | G13: =+H13+J13 -> 64 | H13: 24 | I13: =+H13/$G13*100 -> 37.5 | J13: 40 | K13: =+J13/$G13*100 -> 62.5 | L13: =+M13+O13 -> 64 | M13: 40 | N13: =+M13/$L13*100 -> 62.5 | O13: 24 | P13: =+O13/$L13*100 -> 37.5
A14: ALIANZA DEMÓCRATA CRISTIANA | B14: 8 | C14: 5 | D14: 62.5 | E14: 3 | F14: 37.5 | G14: 4 | H14: 2 | I14: 50 | J14: 2 | K14: 50 | L14: 4 | M14: 3 | N14: 75 | O14: 1 | P14: 25
A15: ALIANZA POR PALMARES | B15: 2 | C15: 0 | D15: 0 | E15: 2 | F15: 100 | G15: 1 | H15: 0 | I15: 0 | J15: 1 | K15: 100 | L15: 1 | M15: 0 | N15: 0 | O15: 1 | P15: 100
A16: ALIANZA POR SAN JOSÉ | B16: 8 | C16: 4 | D16: 50 | E16: 4 | F16: 50 | G16: 4 | H16: 2 | I16: 50 | J16: 2 | K16: 50 | L16: 4 | M16: 2 | N16: 50 | O16: 2 | P16: 50
A17: ALIANZA SOCIAL POR LA UNIÓN | B17: 2 | C17: 1 | D17: 50 | E17: 1 | F17: 50 | G17: 1 | H17: 1 | I17: 100 | J17: 0 | K17: 0 | L17: 1 | M17: 0 | N17: 0 | O17: 1 | P17: 100
A18: AUTÉNTICO LABRADOR DE CORONADO | B18: 4 | C18: 2 | D18: 50 | E18: 2 | F18: 50 | G18: 2 | H18: 1 | I18: 50 | J18: 1 | K18: 50 | L18: 2 | M18: 1 | N18: 50 | O18: 1 | P18: 50
A19: AUTÉNTICO LIMONENSE | B19: 10 | C19: 5 | D19: 50 | E19: 5 | F19: 50 | G19: 5 | H19: 3 | I19: 60 | J19: 2 | K19: 40 | L19: 5 | M19: 2 | N19: 40 | O19: 3 | P19: 60
A20: AUTÉNTICO SIQUIRREÑO | B20: 4 | C20: 2 | D20: 50 | E20: 2 | F20: 50 | G20: 2 | H20: 1 | I20: 50 | J20: 1 | K20: 50 | L20: 2 | M20: 1 | N20: 50 | O20: 1 | P20: 50
A21: AVANCE MONTES DE OCA | B21: 2 | C21: 1 | D21: 50 | E21: 1 | F21: 50 | G21: 1 | H21: 0 | I21: 0 | J21: 1 | K21: 100 | L21: 1 | M21: 1 | N21: 100 | O21: 0 | P21: 0
A22: COALICIÓN ALIANZA POR BELÉN | B22: 2 | C22: 1 | D22: 50 | E22: 1 | F22: 50 | G22: 1 | H22: 1 | I22: 100 | J22: 0 | K22: 0 | L22: 1 | M22: 0 | N22: 0 | O22: 1 | P22: 100
A23: COALICIÓN GENTE MONTES DE OCA | B23: 4 | C23: 2 | D23: 50 | E23: 2 | F23: 50 | G23: 2 | H23: 1 | I23: 50 | J23: 1 | K23: 50 | L23: 2 | M23: 1 | N23: 50 | O23: 1 | P23: 50
A24: COALICIÓN SOMOS TIBÁS | B24: 4 | C24: 2 | D24: 50 | E24: 2 | F24: 50 | G24: 2 | H24: 1 | I24: 50 | J24: 1 | K24: 50 | L24: 2 | M24: 1 | N24: 50 | O24: 1 | P24: 50
A25: CURRIDABAT SIGLO XXI | B25: 6 | C25: 3 | D25: 50 | E25: 3 | F25: 50 | G25: 3 | H25: 1 | I25: 33.33333333 | J25: 2 | K25: 66.66666667 | L25: 3 | M25: 2 | N25: 66.66666667 | O25: 1 | P25: 33.33333333
A26: DEL SOL | B26: 2 | C26: 1 | D26: 50 | E26: 1 | F26: 50 | G26: 1 | H26: 0 | I26: 0 | J26: 1 | K26: 100 | L26: 1 | M26: 1 | N26: 100 | O26: 0 | P26: 0
A27: ECOLÓGICO COMUNAL COSTARRICENSE | B27: 2 | C27: 1 | D27: 50 | E27: 1 | F27: 50 | G27: 1 | H27: 0 | I27: 0 | J27: 1 | K27: 100 | L27: 1 | M27: 1 | N27: 100 | O27: 0 | P27: 0
A28: FRENTE AMPLIO | B28: 38 | C28: 11 | D28: 28.94736842 | E28: 27 | F28: 71.05263158 | G28: 19 | H28: 2 | I28: 10.52631579 | J28: 17 | K28: 89.47368421 | L28: 19 | M28: 9 | N28: 47.36842105 | O28: 10 | P28: 52.63157895
A29: INTEGRACIÓN NACIONAL | B29: 12 | C29: 4 | D29: 33.33333333 | E29: 8 | F29: 66.66666667 | G29: 6 | H29: 2 | I29: 33.33333333 | J29: 4 | K29: 66.66666667 | L29: 6 | M29: 2 | N29: 33.33333333 | O29: 4 | P29: 66.66666667
A30: LIBERACIÓN NACIONAL | B30: 376 | C30: 184 | D30: 48.93617021 | E30: 192 | F30: 51.06382979 | G30: 188 | H30: 90 | I30: 47.87234043 | J30: 98 | K30: 52.12765957 | L30: 188 | M30: 94 | N30: 50 | O30: 94 | P30: 50
A31: LIGA RAMONENSE | B31: =+G31+L31 -> 2 | C31: 1 | D31: 50 | E31: 1 | F31: 50 | G31: 1 | H31: 1 | I31: 100 | J31: 0 | K31: 0 | L31: 1 | M31: 0 | N31: 0 | O31: 1 | P31: 100
A32: MOVIMIENTO AVANCE SANTO DOMINGO | B32: 2 | C32: 1 | D32: =+C32/$B32*100 -> 50 | E32: 1 | F32: 50 | G32: 1 | H32: 1 | I32: =+H32/$G32*100 -> 100 | J32: 0 | K32: 0 | L32: 1 | M32: 0 | N32: =+M32/$L32*100 -> 0 | O32: 1 | P32: 100
A33: MOVIMIENTO LIBERTARIO | B33: 18 | C33: 7 | D33: 38.88888889 | E33: 11 | F33: 61.11111111 | G33: 9 | H33: 1 | I33: 11.11111111 | J33: 8 | K33: 88.88888889 | L33: 9 | M33: 6 | N33: 66.66666667 | O33: 3 | P33: 33.33333333
A34: NUEVA GENERACIÓN | B34: 36 | C34: 19 | D34: 52.77777778 | E34: 17 | F34: 47.22222222 | G34: 18 | H34: 6 | I34: 33.33333333 | J34: 12 | K34: 66.66666667 | L34: 18 | M34: 13 | N34: 72.22222222 | O34: 5 | P34: 27.77777778
A35: NUEVA MAYORÍA GRIEGA | B35: 4 | C35: 2 | D35: 50 | E35: 2 | F35: 50 | G35: 2 | H35: 1 | I35: 50 | J35: 1 | K35: 50 | L35: 2 | M35: 1 | N35: 50 | O35: 1 | P35: 50
A36: PARRITA INDEPENDIENTE | B36: 2 | C36: 0 | D36: 0 | E36: 2 | F36: 100 | G36: 1 | H36: 0 | I36: 0 | J36: 1 | K36: 100 | L36: 1 | M36: 0 | N36: 0 | O36: 1 | P36: 100
A37: PUEBLO GARABITO | B37: 2 | C37: 1 | D37: 50 | E37: 1 | F37: 50 | G37: 1 | H37: 1 | I37: 100 | J37: 0 | K37: 0 | L37: 1 | M37: 0 | N37: 0 | O37: 1 | P37: 100
A38: RECUPERANDO VALORES | B38: 2 | C38: 1 | D38: 50 | E38: 1 | F38: 50 | G38: 1 | H38: 0 | I38: 0 | J38: 1 | K38: 100 | L38: 1 | M38: 1 | N38: 100 | O38: 0 | P38: 0
A39: RENOVACIÓN CARTAGO | B39: 2 | C39: 1 | D39: 50 | E39: 1 | F39: 50 | G39: 1 | H39: 0 | I39: 0 | J39: 1 | K39: 100 | L39: 1 | M39: 1 | N39: 100 | O39: 0 | P39: 0
A40: RENOVACIÓN COSTARRICENSE | B40: 20 | C40: 9 | D40: 45 | E40: 11 | F40: 55 | G40: 10 | H40: 3 | I40: 30 | J40: 7 | K40: 70 | L40: 10 | M40: 6 | N40: 60 | O40: 4 | P40: 40
A41: RENOVEMOS ALAJUELA | B41: 4 | C41: 2 | D41: 50 | E41: 2 | F41: 50 | G41: 2 | H41: 1 | I41: 50 | J41: 1 | K41: 50 | L41: 2 | M41: 1 | N41: 50 | O41: 1 | P41: 50
A42: REPUBLICANO SOCIAL CRISTIANO | B42: 48 | C42: 19 | D42: 39.58333333 | E42: 29 | F42: 60.41666667 | G42: 24 | H42: 10 | I42: 41.66666667 | J42: 14 | K42: 58.33333333 | L42: 24 | M42: 9 | N42: 37.5 | O42: 15 | P42: 62.5
A43: RESCATE CANTONAL LA UNIÓN | B43: 4 | C43: 2 | D43: 50 | E43: 2 | F43: 50 | G43: 2 | H43: 1 | I43: 50 | J43: 1 | K43: 50 | L43: 2 | M43: 1 | N43: 50 | O43: 1 | P43: 50
A44: RESTAURACIÓN NACIONAL | B44: 6 | C44: 2 | D44: 33.33333333 | E44: 4 | F44: 66.66666667 | G44: 3 | H44: 0 | I44: 0 | J44: 3 | K44: 100 | L44: 3 | M44: 2 | N44: 66.66666667 | O44: 1 | P44: 33.33333333
A45: TODO POR FLORES | B45: 2 | C45: 1 | D45: 50 | E45: 1 | F45: 50 | G45: 1 | H45: 1 | I45: 100 | J45: 0 | K45: 0 | L45: 1 | M45: 0 | N45: 0 | O45: 1 | P45: 100
A46: UNIDAD SOCIAL CRISTIANA | B46: 206 | C46: 84 | D46: 40.77669903 | E46: 122 | F46: 59.22330097 | G46: 103 | H46: 37 | I46: 35.9223301 | J46: 66 | K46: 64.0776699 | L46: 103 | M46: 47 | N46: 45.63106796 | O46: 56 | P46: 54.36893204
A47: UNIÓN GUARQUEÑO | B47: 4 | C47: 2 | D47: 50 | E47: 2 | F47: 50 | G47: 2 | H47: 1 | I47: 50 | J47: 1 | K47: 50 | L47: 2 | M47: 1 | N47: 50 | O47: 1 | P47: 50
A48: VERDE | B48: 2 | C48: 1 | D48: 50 | E48: 1 | F48: 50 | G48: 1 | H48: 1 | I48: 100 | J48: 0 | K48: 0 | L48: 1 | M48: 0 | N48: 0 | O48: 1 | P48: 100
A49: VIVA PUNTARENAS | B49: 6 | C49: 2 | D49: 33.33333333 | E49: 4 | F49: 66.66666667 | G49: 3 | H49: 1 | I49: 33.33333333 | J49: 2 | K49: 66.66666667 | L49: 3 | M49: 1 | N49: 33.33333333 | O49: 2 | P49: 66.66666667
A50: YUNTA PROGRESISTA ESCAZUCEÑA | B50: 8 | C50: 4 | D50: 50 | E50: 4 | F50: 50 | G50: 4 | H50: 2 | I50: 50 | J50: 2 | K50: 50 | L50: 4 | M50: 2 | N50: 50 | O50: 2 | P50: 50
A53: Fuente: Tribunal Supremo de Elecciones.

Sheet 1.11
A2: CUADRO 1.11 COSTA RICA: SÍNDICOS(AS) ELECTOS(AS), POR CARGO Y SEXO, SEGÚN PARTIDO POLÍTICO
A3: ELECCIONES MUNICIPALES FEBRERO 2016
A4: (cifras absolutas y relativas)
A6: PARTIDO POLÍTICO | B6: TOTAL | G6: EN PROPIEDAD | L6: EN SUPLENCIA
B7: TOTAL | C7: MUJERES | E7: HOMBRES | G7: TOTAL | H7: MUJERES | J7: HOMBRES | L7: TOTAL | M7: MUJERES | O7: HOMBRES
C8: Absoluto | D8: % | E8: Absoluto | F8: % | H8: Absoluto | I8: % | J8: Absoluto | K8: % | M8: Absoluto | N8: % | O8: Absoluto | P8: %
A10: TOTAL | B10: =+G10+L10 -> 951 | C10: =+H10+M10 -> 475 | D10: =+C10/$B10*100 -> 49.94742376 | E10: =+J10+O10 -> 476 | F10: =+E10/$B10*100 -> 50.05257624 | G10: =+H10+J10 -> 480 | H10: =SUM(H12:H33) -> 174 | I10: =+H10/$G10*100 -> 36.25 | J10: =SUM(J12:J33) -> 306 | K10: =+J10/$G10*100 -> 63.75 | L10: =+M10+O10 -> 471 | M10: =SUM(M12:M33) -> 301 | N10: =+M10/$L10*100 -> 63.90658174 | O10: =SUM(O12:O33) -> 170 | P10: =+O10/$L10*100 -> 36.09341826
A12: ACCESIBILIDAD SIN EXCLUSIÓN | B12: =+G12+L12 -> 4 | C12: =+H12+M12 -> 2 | D12: =+C12/$B12*100 -> 50 | E12: =+J12+O12 -> 2 | F12: =+E12/$B12*100 -> 50 | G12: =+H12+J12 -> 2 | H12: 1 | I12: =+H12/$G12*100 -> 50 | J12: 1 | K12: =+J12/$G12*100 -> 50 | L12: =+M12+O12 -> 2 | M12: 1 | N12: =+M12/$L12*100 -> 50 | O12: 1 | P12: =+O12/$L12*100 -> 50
A13: ACCIÓN CIUDADANA | B13: =+G13+L13 -> 64 | C13: 32 | D13: =+C13/$B13*100 -> 50 | E13: =+J13+O13 -> 32 | F13: =+E13/$B13*100 -> 50 | G13: =+H13+J13 -> 32 | H13: 15 | I13: =+H13/$G13*100 -> 46.875 | J13: 17 | K13: =+J13/$G13*100 -> 53.125 | L13: =+M13+O13 -> 32 | M13: 17 | N13: =+M13/$L13*100 -> 53.125 | O13: 15 | P13: =+O13/$L13*100 -> 46.875
A14: ALIANZA POR PALMARES | B14: 6 | C14: 3 | D14: 50 | E14: 3 | F14: 50 | G14: 3 | H14: 0 | I14: 0 | J14: 3 | K14: 100 | L14: 3 | M14: 3 | N14: 100 | O14: 0 | P14: 0
A15: ALIANZA POR SAN JOSÉ | B15: 20 | C15: 10 | D15: 50 | E15: 10 | F15: 50 | G15: 10 | H15: 7 | I15: 70 | J15: 3 | K15: 30 | L15: 10 | M15: 3 | N15: 30 | O15: 7 | P15: 70
A16: ALIANZA SOCIAL POR LA UNIÓN | B16: 2 | C16: 1 | D16: 50 | E16: 1 | F16: 50 | G16: 1 | H16: 0 | I16: 0 | J16: 1 | K16: 100 | L16: 1 | M16: 1 | N16: 100 | O16: 0 | P16: 0
A17: AUTÉNTICO LIMONENSE | B17: 6 | C17: 3 | D17: 50 | E17: 3 | F17: 50 | G17: 3 | H17: 0 | I17: 0 | J17: 3 | K17: 100 | L17: 3 | M17: 3 | N17: 100 | O17: 0 | P17: 0
A18: AUTÉNTICO SIQUIRREÑO | B18: 2 | C18: 1 | D18: 50 | E18: 1 | F18: 50 | G18: 1 | H18: 1 | I18: 100 | J18: 0 | K18: 0 | L18: 1 | M18: 0 | N18: 0 | O18: 1 | P18: 100
A19: COALICIÓN GENTE MONTES DE OCA | B19: 8 | C19: 4 | D19: 50 | E19: 4 | F19: 50 | G19: 4 | H19: 2 | I19: 50 | J19: 2 | K19: 50 | L19: 4 | M19: 2 | N19: 50 | O19: 2 | P19: 50
A20: CURRIDABAT SIGLO XXI | B20: 8 | C20: 4 | D20: 50 | E20: 4 | F20: 50 | G20: 4 | H20: 0 | I20: 0 | J20: 4 | K20: 100 | L20: 4 | M20: 4 | N20: 100 | O20: 0 | P20: 0
A21: FRENTE AMPLIO | B21: 6 | C21: 3 | D21: 50 | E21: 3 | F21: 50 | G21: 3 | H21: 1 | I21: 33.33333333 | J21: 2 | K21: 66.66666667 | L21: 3 | M21: 2 | N21: 66.66666667 | O21: 1 | P21: 33.33333333
A22: INTEGRACIÓN NACIONAL | B22: 8 | C22: 4 | D22: 50 | E22: 4 | F22: 50 | G22: 4 | H22: 1 | I22: 25 | J22: 3 | K22: 75 | L22: 4 | M22: 3 | N22: 75 | O22: 1 | P22: 25
A23: LIBERACIÓN NACIONAL | B23: 581 | C23: 290 | D23: 49.91394148 | E23: 291 | F23: 50.08605852 | G23: 294 | H23: 110 | I23: 37.41496599 | J23: 184 | K23: 62.58503401 | L23: =+M23+O23 -> 287 | M23: 180 | N23: 62.71777003 | O23: 107 | P23: 37.28222997
A24: MOVIMIENTO AVANCE SANTO DOMINGO | B24: 3 | C24: 1 | D24: 33.33333333 | E24: 2 | F24: 66.66666667 | G24: 2 | H24: 0 | I24: 0 | J24: 2 | K24: 100 | L24: 1 | M24: 1 | N24: 100 | O24: 0 | P24: 0
A25: MOVIMIENTO LIBERTARIO | B25: 6 | C25: 3 | D25: 50 | E25: 3 | F25: 50 | G25: 3 | H25: 0 | I25: 0 | J25: 3 | K25: 100 | L25: 3 | M25: 3 | N25: 100 | O25: 0 | P25: 0
A26: NUEVA GENERACIÓN | B26: 22 | C26: 11 | D26: 50 | E26: 11 | F26: 50 | G26: 11 | H26: 5 | I26: 45.45454545 | J26: 6 | K26: 54.54545455 | L26: 11 | M26: 6 | N26: 54.54545455 | O26: 5 | P26: 45.45454545
A27: NUEVA MAYORÍA GRIEGA | B27: 6 | C27: 3 | D27: 50 | E27: 3 | F27: 50 | G27: 3 | H27: 0 | I27: 0 | J27: 3 | K27: 100 | L27: 3 | M27: 3 | N27: 100 | O27: 0 | P27: 0
A28: RENOVACIÓN COSTARRICENSE | B28: 14 | C28: 7 | D28: 50 | E28: 7 | F28: 50 | G28: 7 | H28: 3 | I28: 42.85714286 | J28: 4 | K28: 57.14285714 | L28: 7 | M28: 4 | N28: 57.14285714 | O28: 3 | P28: 42.85714286
A29: REPUBLICANO SOCIAL CRISTIANO | B29: 22 | C29: 11 | D29: 50 | E29: 11 | F29: 50 | G29: 11 | H29: 4 | I29: 36.36363636 | J29: 7 | K29: 63.63636364 | L29: 11 | M29: 7 | N29: 63.63636364 | O29: 4 | P29: 36.36363636
A30: UNIDAD SOCIAL CRISTIANA | B30: =+G30+L30 -> 154 | C30: 77 | D30: 50 | E30: 77 | F30: 50 | G30: 77 | H30: 21 | I30: 27.27272727 | J30: 56 | K30: 72.72727273 | L30: 77 | M30: 56 | N30: 72.72727273 | O30: 21 | P30: 27.27272727
A31: VERDE | B31: 2 | C31: 1 | D31: =+C31/$B31*100 -> 50 | E31: 1 | F31: 50 | G31: 1 | H31: 1 | I31: =+H31/$G31*100 -> 100 | J31: 0 | K31: 0 | L31: 1 | M31: 0 | N31: 0 | O31: 1 | P31: 100
A32: VIVA PUNTARENAS | B32: 3 | C32: 2 | D32: 66.66666667 | E32: 1 | F32: 33.33333333 | G32: 2 | H32: 1 | I32: 50 | J32: 1 | K32: 50 | L32: 1 | M32: 1 | N32: 100 | O32: 0 | P32: 0
A33: YUNTA PROGRESISTA ESCAZUCEÑA | B33: 4 | C33: 2 | D33: 50 | E33: 2 | F33: 50 | G33: 2 | H33: 1 | I33: 50 | J33: 1 | K33: 50 | L33: =+M33+O33 -> 2 | M33: 1 | N33: 50 | O33: 1 | P33: 50
A36: Fuente: Tribunal Supremo de Elecciones.

Sheet 1.12
A2: CUADRO 1.12 COSTA RICA: CONCEJALES(AS) 1/ ELECTOS(AS), POR CARGO Y SEXO, SEGÚN PARTIDO POLÍTICO
A3: ELECCIONES MUNICIPALES FEBRERO 2016
A4: (cifras absolutas y relativas)
A6: PARTIDO POLÍTICO | B6: TOTAL | G6: EN PROPIEDAD | L6: EN SUPLENCIA
B7: TOTAL | C7: MUJERES | E7: HOMBRES | G7: TOTAL | H7: MUJERES | J7: HOMBRES | L7: TOTAL | M7: MUJERES | O7: HOMBRES
C8: Absoluto | D8: % | E8: Absoluto | F8: % | H8: Absoluto | I8: % | J8: Absoluto | K8: % | M8: Absoluto | N8: % | O8: Absoluto | P8: %
A10: TOTAL | B10: =+G10+L10 -> 3800 | C10: =+H10+M10 -> 1848 | D10: =+C10/B10*100 -> 48.63157895 | E10: =+J10+O10 -> 1952 | F10: =+E10/B10*100 -> 51.36842105 | G10: =SUM(G12:G54) -> 1920 | H10: =SUM(H12:H54) -> 926 | I10: =+H10/$G10*100 -> 48.22916667 | J10: =SUM(J12:J54) -> 994 | K10: =+J10/$G10*100 -> 51.77083333 | L10: =SUM(L12:L54) -> 1880 | M10: =SUM(M12:M54) -> 922 | N10: =+M10/L10*100 -> 49.04255319 | O10: =SUM(O12:O54) -> 958 | P10: =+O10/L10*100 -> 50.95744681
A12: ACCESIBILIDAD SIN EXCLUSIÓN | B12: =+G12+L12 -> 26 | C12: =+H12+M12 -> 14 | D12: =+C12/B12*100 -> 53.84615385 | E12: =+J12+O12 -> 12 | F12: =+E12/B12*100 -> 46.15384615 | G12: =+H12+J12 -> 13 | H12: 7 | I12: =+H12/$G12*100 -> 53.84615385 | J12: 6 | K12: =+J12/$G12*100 -> 46.15384615 | L12: =+M12+O12 -> 13 | M12: 7 | N12: =+M12/L12*100 -> 53.84615385 | O12: 6 | P12: =+O12/L12*100 -> 46.15384615
A13: ACCIÓN CIUDADANA | B13: =+G13+L13 -> 471 | C13: 232 | D13: =+C13/B13*100 -> 49.25690021 | E13: =+J13+O13 -> 239 | F13: =+E13/B13*100 -> 50.74309979 | G13: =+H13+J13 -> 239 | H13: 116 | I13: =+H13/$G13*100 -> 48.53556485 | J13: 123 | K13: 51.46443515 | L13: =+M13+O13 -> 232 | M13: 116 | N13: =+M13/L13*100 -> 50 | O13: 116 | P13: =+O13/L13*100 -> 50
A14: ALIANZA DEMÓCRATA CRISTIANA | B14: 30 | C14: 14 | D14: 46.66666667 | E14: 16 | F14: 53.33333333 | G14: 15 | H14: 5 | I14: 33.33333333 | J14: 10 | K14: 66.66666667 | L14: =+M14+O14 -> 15 | M14: 9 | N14: 60 | O14: 6 | P14: 40
A15: ALIANZA POR PALMARES | B15: 16 | C15: 6 | D15: 37.5 | E15: 10 | F15: 62.5 | G15: 8 | H15: 3 | I15: 37.5 | J15: 5 | K15: 62.5 | L15: 8 | M15: 3 | N15: 37.5 | O15: 5 | P15: 62.5
A16: ALIANZA POR SAN JOSÉ | B16: 42 | C16: 22 | D16: 52.38095238 | E16: 20 | F16: 47.61904762 | G16: 21 | H16: 11 | I16: 52.38095238 | J16: 10 | K16: 47.61904762 | L16: 21 | M16: 11 | N16: 52.38095238 | O16: 10 | P16: 47.61904762
A17: ALIANZA SOCIAL POR LA UNIÓN | B17: 6 | C17: 2 | D17: 33.33333333 | E17: 4 | F17: 66.66666667 | G17: 4 | H17: 0 | I17: 0 | J17: 4 | K17: 100 | L17: 2 | M17: 2 | N17: 100 | O17: 0 | P17: 0
A18: AUTÉNTICO LABRADOR DE CORONADO | B18: 10 | C18: 6 | D18: 60 | E18: 4 | F18: 40 | G18: 5 | H18: 4 | I18: 80 | J18: 1 | K18: 20 | L18: 5 | M18: 2 | N18: 40 | O18: 3 | P18: 60
A19: AUTÉNTICO LIMONENSE | B19: 16 | C19: 8 | D19: 50 | E19: 8 | F19: 50 | G19: 8 | H19: 4 | I19: 50 | J19: 4 | K19: 50 | L19: 8 | M19: 4 | N19: 50 | O19: 4 | P19: 50
A20: AUTÉNTICO SIQUIRREÑO | B20: 10 | C20: 6 | D20: 60 | E20: 4 | F20: 40 | G20: 5 | H20: 3 | I20: 60 | J20: 2 | K20: 40 | L20: 5 | M20: 3 | N20: 60 | O20: 2 | P20: 40
A21: AUTÓNOMO OROMONTANO | B21: 2 | C21: 1 | D21: 50 | E21: 1 | F21: 50 | G21: 1 | H21: 1 | I21: 100 | J21: 0 | K21: 0 | L21: 1 | M21: 0 | N21: 0 | O21: 1 | P21: 100
A22: AVANCE MONTES DE OCA | B22: 4 | C22: 2 | D22: 50 | E22: 2 | F22: 50 | G22: 2 | H22: 1 | I22: 50 | J22: 1 | K22: 50 | L22: 2 | M22: 1 | N22: 50 | O22: 1 | P22: 50
A23: COALICIÓN ALIANZA POR BELÉN | B23: 4 | C23: 2 | D23: 50 | E23: 2 | F23: 50 | G23: 2 | H23: 1 | I23: 50 | J23: 1 | K23: 50 | L23: 2 | M23: 1 | N23: 50 | O23: 1 | P23: 50
A24: COALICIÓN GENTE MONTES DE OCA | B24: 10 | C24: 6 | D24: 60 | E24: 4 | F24: 40 | G24: 5 | H24: 3 | I24: 60 | J24: 2 | K24: 40 | L24: 5 | M24: 3 | N24: 60 | O24: 2 | P24: 40
A25: COALICIÓN SOMOS TIBÁS | B25: 10 | C25: 6 | D25: 60 | E25: 4 | F25: 40 | G25: 5 | H25: 2 | I25: 40 | J25: 3 | K25: 60 | L25: 5 | M25: 4 | N25: 80 | O25: 1 | P25: 20
A26: COALICIÓN UNIDOS POR GUATUSO | B26: 2 | C26: 0 | D26: 0 | E26: 2 | F26: 100 | G26: 1 | H26: 0 | I26: 0 | J26: 1 | K26: 100 | L26: 1 | M26: 0 | N26: 0 | O26: 1 | P26: 100
A27: CURRIDABAT SIGLO XXI | B27: 20 | C27: 11 | D27: 55 | E27: 9 | F27: 45 | G27: 10 | H27: 6 | I27: 60 | J27: 4 | K27: 40 | L27: 10 | M27: 5 | N27: 50 | O27: 5 | P27: 50
A28: DEL SOL | B28: 9 | C28: 4 | D28: 44.44444444 | E28: 5 | F28: 55.55555556 | G28: 5 | H28: 1 | I28: 20 | J28: 4 | K28: 80 | L28: 4 | M28: 3 | N28: 75 | O28: 1 | P28: 25
A29: DESAMPARADOS UNIDO | B29: 4 | C29: 2 | D29: 50 | E29: 2 | F29: 50 | G29: 2 | H29: 0 | I29: 0 | J29: 2 | K29: 100 | L29: 2 | M29: 2 | N29: 100 | O29: 0 | P29: 0
A30: ECOLÓGICO COMUNAL COSTARRICENSE | B30: 10 | C30: 5 | D30: 50 | E30: 5 | F30: 50 | G30: 5 | H30: 3 | I30: 60 | J30: 2 | K30: 40 | L30: 5 | M30: 2 | N30: 40 | O30: 3 | P30: 60
A31: FRENTE AMPLIO | B31: 77 | C31: 42 | D31: 54.54545455 | E31: 35 | F31: 45.45454545 | G31: 39 | H31: 19 | I31: 48.71794872 | J31: 20 | K31: 51.28205128 | L31: 38 | M31: 23 | N31: 60.52631579 | O31: 15 | P31: 39.47368421
A32: GARABITO ECOLÓGICO | B32: 2 | C32: 1 | D32: 50 | E32: 1 | F32: 50 | G32: 1 | H32: 0 | I32: 0 | J32: 1 | K32: 100 | L32: 1 | M32: 1 | N32: 100 | O32: 0 | P32: 0
A33: INTEGRACIÓN NACIONAL | B33: 34 | C33: 15 | D33: 44.11764706 | E33: 19 | F33: 55.88235294 | G33: 17 | H33: 8 | I33: 47.05882353 | J33: 9 | K33: 52.94117647 | L33: 17 | M33: 7 | N33: 41.17647059 | O33: 10 | P33: 58.82352941
A34: LIBERACIÓN NACIONAL | B34: 1674 | C34: 829 | D34: 49.52210275 | E34: 845 | F34: 50.47789725 | G34: 841 | H34: 414 | I34: 49.22711058 | J34: 427 | K34: 50.77288942 | L34: 833 | M34: 415 | N34: 49.81992797 | O34: 418 | P34: 50.18007203
A35: LIGA RAMONENSE | B35: 2 | C35: 1 | D35: 50 | E35: 1 | F35: 50 | G35: 2 | H35: 1 | I35: 50 | J35: 1 | K35: 50 | L35: 0 | M35: 0 | N35: 0 | O35: 0 | P35: 0
A36: MOVIMIENTO AVANCE SANTO DOMINGO | B36: 16 | C36: 7 | D36: 43.75 | E36: 9 | F36: 56.25 | G36: 8 | H36: 4 | I36: 50 | J36: 4 | K36: 50 | L36: 8 | M36: 3 | N36: 37.5 | O36: 5 | P36: 62.5
A37: MOVIMIENTO LIBERTARIO | B37: 48 | C37: 26 | D37: 54.16666667 | E37: 22 | F37: 45.83333333 | G37: 25 | H37: 13 | I37: 52 | J37: 12 | K37: 48 | L37: 23 | M37: 13 | N37: 56.52173913 | O37: 10 | P37: 43.47826087
A38: NUEVA GENERACIÓN | B38: 82 | C38: 41 | D38: 50 | E38: 41 | F38: 50 | G38: 43 | H38: 24 | I38: 55.81395349 | J38: 19 | K38: 44.18604651 | L38: 39 | M38: 17 | N38: 43.58974359 | O38: 22 | P38: 56.41025641
A39: NUEVA MAYORÍA GRIEGA | B39: 28 | C39: 12 | D39: 42.85714286 | E39: 16 | F39: 57.14285714 | G39: 14 | H39: 6 | I39: 42.85714286 | J39: 8 | K39: 57.14285714 | L39: 14 | M39: 6 | N39: 42.85714286 | O39: 8 | P39: 57.14285714
A40: PARRITA INDEPENDIENTE | B40: 2 | C40: 2 | D40: 100 | E40: 0 | F40: 0 | G40: 1 | H40: 1 | I40: 100 | J40: 0 | K40: 0 | L40: 1 | M40: 1 | N40: 100 | O40: 0 | P40: 0
A41: PUEBLO GARABITO | B41: 2 | C41: 0 | D41: 0 | E41: 2 | F41: 100 | G41: 1 | H41: 0 | I41: 0 | J41: 1 | K41: 100 | L41: 1 | M41: 0 | N41: 0 | O41: 1 | P41: 100
A42: RECUPERANDO VALORES | B42: 2 | C42: 1 | D42: 50 | E42: 1 | F42: 50 | G42: 1 | H42: 1 | I42: 100 | J42: 0 | K42: 0 | L42: 1 | M42: 0 | N42: 0 | O42: 1 | P42: 100
A43: RENOVACIÓN CARTAGO | B43: 2 | C43: 1 | D43: 50 | E43: 1 | F43: 50 | G43: 1 | H43: 0 | I43: 0 | J43: 1 | K43: 100 | L43: 1 | M43: 1 | N43: 100 | O43: 0 | P43: 0
A44: RENOVACIÓN COSTARRICENSE | B44: 57 | C44: 27 | D44: 47.36842105 | E44: 30 | F44: 52.63157895 | G44: 29 | H44: 15 | I44: 51.72413793 | J44: 14 | K44: 48.27586207 | L44: 28 | M44: 12 | N44: 42.85714286 | O44: 16 | P44: 57.14285714
A45: RENOVEMOS ALAJUELA | B45: 8 | C45: 4 | D45: 50 | E45: 4 | F45: 50 | G45: 4 | H45: 2 | I45: 50 | J45: 2 | K45: 50 | L45: 4 | M45: 2 | N45: 50 | O45: 2 | P45: 50
A46: REPUBLICANO SOCIAL CRISTIANO | B46: 154 | C46: 69 | D46: 44.80519481 | E46: 85 | F46: 55.19480519 | G46: 77 | H46: 31 | I46: 40.25974026 | J46: 46 | K46: 59.74025974 | L46: 77 | M46: 38 | N46: 49.35064935 | O46: 39 | P46: 50.64935065
A47: RESCATE CANTONAL LA UNIÓN | B47: 14 | C47: 7 | D47: 50 | E47: 7 | F47: 50 | G47: 7 | H47: 3 | I47: 42.85714286 | J47: 4 | K47: 57.14285714 | L47: 7 | M47: 4 | N47: 57.14285714 | O47: 3 | P47: 42.85714286
A48: RESTAURACIÓN NACIONAL | B48: 2 | C48: 2 | D48: 100 | E48: 0 | F48: 0 | G48: 2 | H48: 2 | I48: 100 | J48: 0 | K48: 0 | L48: 0 | M48: 0 | N48: 0 | O48: 0 | P48: 0
A49: TODO POR FLORES | B49: 6 | C49: 2 | D49: 33.33333333 | E49: 4 | F49: 66.66666667 | G49: 3 | H49: 1 | I49: 33.33333333 | J49: 2 | K49: 66.66666667 | L49: 3 | M49: 1 | N49: 33.33333333 | O49: 2 | P49: 66.66666667
A50: UNIDAD SOCIAL CRISTIANA | B50: 830 | C50: 385 | D50: 46.38554217 | E50: 445 | F50: 53.61445783 | G50: 419 | H50: 198 | I50: 47.25536993 | J50: 221 | K50: 52.74463007 | L50: 411 | M50: 187 | N50: 45.49878345 | O50: 224 | P50: 54.50121655
A51: UNIÓN GUARQUEÑO | B51: 12 | C51: 6 | D51: 50 | E51: 6 | F51: 50 | G51: 6 | H51: 2 | I51: 33.33333333 | J51: 4 | K51: 66.66666667 | L51: 6 | M51: 4 | N51: 66.66666667 | O51: 2 | P51: 33.33333333
A52: VERDE | B52: 10 | C52: 4 | D52: 40 | E52: 6 | F52: 60 | G52: 5 | H52: 2 | I52: 40 | J52: 3 | K52: 60 | L52: 5 | M52: 2 | N52: 40 | O52: 3 | P52: 60
A53: VIVA PUNTARENAS | B53: 18 | C53: 8 | D53: 44.44444444 | E53: 10 | F53: 55.55555556 | G53: 9 | H53: 4 | I53: 44.44444444 | J53: 5 | K53: 55.55555556 | L53: 9 | M53: 4 | N53: 44.44444444 | O53: 5 | P53: 55.55555556
A54: YUNTA PROGRESISTA ESCAZUCEÑA | B54: 16 | C54: 7 | D54: 43.75 | E54: 9 | F54: 56.25 | G54: 9 | H54: 4 | I54: 44.44444444 | J54: 5 | K54: 55.55555556 | L54: 7 | M54: 3 | N54: 42.85714286 | O54: 4 | P54: 57.14285714
A57: 1/ Incluye Concejales de Distrito y Concejales Municipales de Distrito.
A58: Fuente: Tribunal Supremo de Elecciones.

Sheet 1.13
A2: CUADRO 1.13 COSTA RICA: INTENDENTES(AS) Y VICEINTENDENTES(AS) ELECTOS(AS), POR SEXO
A3: SEGÚN PARTIDO POLÍTICO, ELECCIONES MUNICIPALES FEBRERO 2016
A4: (cifras absolutas y relativas)
A6: PARTIDO POLÍTICO | B6: INTENDENTES(AS) | G6: VICEINTENDENTES(AS)
B7: TOTAL | C7: MUJERES | E7: HOMBRES | G7: TOTAL | H7: MUJERES | J7: HOMBRES
C8: Absoluto | D8: % | E8: Absoluto | F8: % | H8: Absoluto | I8: % | J8: Absoluto | K8: %
A10: TOTAL | B10: =SUM(B12:B15) -> 8 | C10: =SUM(C12:C15) -> 3 | D10: =+C10/$B10*100 -> 37.5 | E10: =SUM(E12:E15) -> 5 | F10: =+E10/$B10*100 -> 62.5 | G10: =SUM(G12:G15) -> 8 | H10: =SUM(H12:H15) -> 5 | I10: =+H10/$G10*100 -> 62.5 | J10: =SUM(J12:J15) -> 3 | K10: =+J10/$G10*100 -> 37.5
A12: ACCIÓN CIUDADANA | B12: =+C12+E12 -> 1 | C12: 0 | D12: =+C12/$B12*100 -> 0 | E12: 1 | F12: =+E12/$B12*100 -> 100 | G12: =+H12+J12 -> 1 | H12: 1 | I12: =+H12/$G12*100 -> 100 | J12: 0 | K12: =+J12/$G12*100 -> 0
A13: INTEGRACIÓN NACIONAL | B13: =+C13+E13 -> 1 | C13: 1 | D13: =+C13/$B13*100 -> 100 | E13: 0 | F13: =+E13/$B13*100 -> 0 | G13: =+H13+J13 -> 1 | H13: 0 | I13: =+H13/$G13*100 -> 0 | J13: 1 | K13: 100
A14: LIBERACIÓN NACIONAL | B14: =+C14+E14 -> 5 | C14: 2 | D14: 40 | E14: 3 | F14: 60 | G14: 5 | H14: 3 | I14: 60 | J14: 2 | K14: 40
A15: REPUBLICANO SOCIAL CRISTIANO | B15: =+C15+E15 -> 1 | C15: 0 | D15: 0 | E15: 1 | F15: 100 | G15: 1 | H15: 1 | I15: 100 | J15: 0 | K15: 0
A18: Fuente: Tribunal Supremo de Elecciones.

Sheet 1.14
A2: CUADRO 1.14 COSTA RICA: ALCALDES(AS) Y VICEALCALDES(AS) SELECTOS(AS), POR SEXO
A3: SEGÚN PROVINCIA, ELECCIONES MUNICIPALES FEBRERO 2016
A4: (cifras absolutas y relativas)
A6: PROVINCIA | B6: ALCALDES(AS) | G6: VICEALCALDES(AS) PRIMEROS(AS) | L6: VICEALCALDES(AS) SEGUNDOS(AS) 1/
B7: TOTAL | C7: MUJERES | E7: HOMBRES | G7: TOTAL | H7: MUJERES | J7: HOMBRES | L7: TOTAL | M7: MUJERES | O7: HOMBRES
C8: Absoluto | D8: % | E8: Absoluto | F8: % | H8: Absoluto | I8: % | J8: Absoluto | K8: % | M8: Absoluto | N8: % | O8: Absoluto | P8: %
A10: TOTAL | B10: =SUM(B12:B18) -> 81 | C10: =SUM(C12:C18) -> 12 | D10: =+C10/$B10*100 -> 14.81481481 | E10: =SUM(E12:E18) -> 69 | F10: =+E10/$B10*100 -> 85.18518519 | G10: =SUM(G12:G18) -> 81 | H10: =SUM(H12:H18) -> 69 | I10: =+H10/$G10*100 -> 85.18518519 | J10: =SUM(J12:J18) -> 12 | K10: =+J10/$G10*100 -> 14.81481481 | L10: =SUM(L12:L18) -> 80 | M10: =SUM(M12:M18) -> 18 | N10: =+M10/$L10*100 -> 22.5 | O10: =SUM(O12:O18) -> 62 | P10: =+O10/$L10*100 -> 77.5
A12: SAN JOSÉ | B12: =+C12+E12 -> 20 | C12: 2 | D12: =+C12/$B12*100 -> 10 | E12: 18 | F12: =+E12/$B12*100 -> 90 | G12: =+H12+J12 -> 20 | H12: 18 | I12: =+H12/$G12*100 -> 90 | J12: 2 | K12: =+J12/$G12*100 -> 10 | L12: =+M12+O12 -> 20 | M12: 6 | N12: =+M12/$L12*100 -> 30 | O12: 14 | P12: =+O12/$L12*100 -> 70
A13: ALAJUELA | B13: =+C13+E13 -> 15 | C13: 2 | D13: =+C13/$B13*100 -> 13.33333333 | E13: 13 | F13: =+E13/$B13*100 -> 86.66666667 | G13: =+H13+J13 -> 15 | H13: 13 | I13: =+H13/$G13*100 -> 86.66666667 | J13: 2 | K13: =+J13/$G13*100 -> 13.33333333 | L13: =+M13+O13 -> 15 | M13: 4 | N13: =+M13/$L13*100 -> 26.66666667 | O13: 11 | P13: =+O13/$L13*100 -> 73.33333333
A14: CARTAGO | B14: 8 | C14: 2 | D14: 25 | E14: 6 | F14: 75 | G14: 8 | H14: 6 | I14: 75 | J14: 2 | K14: 25 | L14: 8 | M14: 1 | N14: 12.5 | O14: 7 | P14: 87.5
A15: HEREDIA | B15: 10 | C15: 2 | D15: 20 | E15: 8 | F15: 80 | G15: 10 | H15: 8 | I15: 80 | J15: 2 | K15: 20 | L15: 9 | M15: 1 | N15: 11.11111111 | O15: 8 | P15: 88.88888889
A16: GUANACASTE | B16: 11 | C16: 2 | D16: 18.18181818 | E16: 9 | F16: 81.81818182 | G16: 11 | H16: 9 | I16: 81.81818182 | J16: 2 | K16: 18.18181818 | L16: 11 | M16: 2 | N16: 18.18181818 | O16: 9 | P16: 81.81818182
A17: PUNTARENAS | B17: 11 | C17: 1 | D17: 9.090909091 | E17: 10 | F17: 90.90909091 | G17: 11 | H17: 10 | I17: 90.90909091 | J17: 1 | K17: 9.090909091 | L17: 11 | M17: 4 | N17: 36.36363636 | O17: 7 | P17: 63.63636364
A18: LIMÓN | B18: 6 | C18: 1 | D18: 16.66666667 | E18: 5 | F18: 83.33333333 | G18: 6 | H18: 5 | I18: 83.33333333 | J18: 1 | K18: 16.66666667 | L18: 6 | M18: 0 | N18: 0 | O18: 6 | P18: 100
A21: 1/ En los cantones de Aserrí y Hojancha el partido ganador fue Acción Ciudadana, pero no propuso candidaturas para Vicealcalde/sa Segundo/a.
A22: Fuente: Tribunal Supremo de Elecciones.

Sheet 1.15
A2: CUADRO 1.15 COSTA REGIDORES(AS) ELECTOS(AS), POR CARGO Y SEXO, SEGÚN PROVINCIA
A3: ELECCIONES MUNICIPALES FEBRERO 2016
A4: (cifras absolutas y relativas)
A6: PROVINCIA | B6: TOTAL | G6: EN PROPIEDAD | L6: EN SUPLENCIA
B7: TOTAL | C7: MUJERES | E7: HOMBRES | G7: TOTAL | H7: MUJERES | J7: HOMBRES | L7: TOTAL | M7: MUJERES | O7: HOMBRES
C8: Absoluto | D8: % | E8: Absoluto | F8: % | H8: Absoluto | I8: % | J8: Absoluto | K8: % | M8: Absoluto | N8: % | O8: Absoluto | P8: %
A9: TOTAL | B9: =+C9+E9 -> 1010 | C9: =+H9+M9 -> 461 | D9: =+C9/$B9*100 -> 45.64356436 | E9: =+J9+O9 -> 549 | F9: =+E9/$B9*100 -> 54.35643564 | G9: =+H9+J9 -> 505 | H9: =SUM(H10:H16) -> 204 | I9: =+H9/$G9*100 -> 40.3960396 | J9: =SUM(J10:J16) -> 301 | K9: =+J9/$G9*100 -> 59.6039604 | L9: =+M9+O9 -> 505 | M9: =SUM(M10:M16) -> 257 | N9: =+M9/$L9*100 -> 50.89108911 | O9: =SUM(O10:O16) -> 248 | P9: =+O9/$L9*100 -> 49.10891089
A10: SAN JOSÉ | B10: =+C10+E10 -> 276 | C10: =+H10+M10 -> 131 | D10: =+C10/$B10*100 -> 47.46376812 | E10: =+J10+O10 -> 145 | F10: =+E10/$B10*100 -> 52.53623188 | G10: =+H10+J10 -> 138 | H10: 57 | I10: =+H10/$G10*100 -> 41.30434783 | J10: 81 | K10: =+J10/$G10*100 -> 58.69565217 | L10: =+M10+O10 -> 138 | M10: 74 | N10: =+M10/$L10*100 -> 53.62318841 | O10: 64 | P10: =+O10/$L10*100 -> 46.37681159
A11: ALAJUELA | B11: =+C11+E11 -> 182 | C11: =+H11+M11 -> 80 | D11: =+C11/$B11*100 -> 43.95604396 | E11: =+J11+O11 -> 102 | F11: =+E11/$B11*100 -> 56.04395604 | G11: =+H11+J11 -> 91 | H11: 37 | I11: =+H11/$G11*100 -> 40.65934066 | J11: 54 | K11: =+J11/$G11*100 -> 59.34065934 | L11: =+M11+O11 -> 91 | M11: 43 | N11: =+M11/$L11*100 -> 47.25274725 | O11: 48 | P11: =+O11/$L11*100 -> 52.74725275
A12: CARTAGO | B12: 104 | C12: 50 | D12: 48.07692308 | E12: 54 | F12: 51.92307692 | G12: 52 | H12: 24 | I12: 46.15384615 | J12: 28 | K12: 53.84615385 | L12: 52 | M12: 26 | N12: 50 | O12: 26 | P12: 50
A13: HEREDIA | B13: 116 | C13: 52 | D13: 44.82758621 | E13: 64 | F13: 55.17241379 | G13: 58 | H13: 25 | I13: 43.10344828 | J13: 33 | K13: 56.89655172 | L13: 58 | M13: 27 | N13: 46.55172414 | O13: 31 | P13: 53.44827586
A14: GUANACASTE | B14: 122 | C14: 54 | D14: 44.26229508 | E14: 68 | F14: 55.73770492 | G14: 61 | H14: 21 | I14: 34.42622951 | J14: 40 | K14: 65.57377049 | L14: 61 | M14: 33 | N14: 54.09836066 | O14: 28 | P14: 45.90163934
A15: PUNTARENAS | B15: 126 | C15: 56 | D15: 44.44444444 | E15: 70 | F15: 55.55555556 | G15: 63 | H15: 25 | I15: 39.68253968 | J15: 38 | K15: 60.31746032 | L15: 63 | M15: 31 | N15: 49.20634921 | O15: 32 | P15: 50.79365079
A16: LIMÓN | B16: 84 | C16: 38 | D16: 45.23809524 | E16: 46 | F16: 54.76190476 | G16: 42 | H16: 15 | I16: 35.71428571 | J16: 27 | K16: 64.28571429 | L16: 42 | M16: 23 | N16: 54.76190476 | O16: 19 | P16: 45.23809524
A19: Fuente: Tribunal Supremo de Elecciones.

Sheet 1.16
A2: CUADRO 1.16 COSTA RICA: SÍNDICOS(AS) ELECTOS(AS), POR CARGO Y SEXO, SEGÚN PROVINCIA
A3: ELECCIONES MUNICIPALES FEBRERO 2016
A4: (cifras absolutas y relativas)
A6: PROVINCIA | B6: TOTAL | G6: EN PROPIEDAD | L6: EN SUPLENCIA
B7: TOTAL | C7: MUJERES | E7: HOMBRES | G7: TOTAL | H7: MUJERES | J7: HOMBRES | L7: TOTAL | M7: MUJERES | O7: HOMBRES
C8: Absoluto | D8: % | E8: Absoluto | F8: % | H8: Absoluto | I8: % | J8: Absoluto | K8: % | M8: Absoluto | N8: % | O8: Absoluto | P8: %
A9: TOTAL | B9: =+C9+E9 -> 951 | C9: =SUM(C10:C16) -> 475 | D9: =+C9/$B9*100 -> 49.94742376 | E9: =SUM(E10:E16) -> 476 | F9: =+E9/$B9*100 -> 50.05257624 | G9: =SUM(G10:G16) -> 480 | H9: =SUM(H10:H16) -> 174 | I9: =+H9/$G9*100 -> 36.25 | J9: =SUM(J10:J16) -> 306 | K9: =+J9/$G9*100 -> 63.75 | L9: =SUM(L10:L16) -> 471 | M9: =SUM(M10:M16) -> 301 | N9: =+M9/$L9*100 -> 63.90658174 | O9: =SUM(O10:O16) -> 170 | P9: =+O9/$L9*100 -> 36.09341826
A10: SAN JOSÉ | B10: =+C10+E10 -> 243 | C10: =+H10+M10 -> 121 | D10: =+C10/$B10*100 -> 49.79423868 | E10: =+J10+O10 -> 122 | F10: =+E10/$B10*100 -> 50.20576132 | G10: =+H10+J10 -> 122 | H10: 48 | I10: =+H10/$G10*100 -> 39.3442623 | J10: 74 | K10: =+J10/$G10*100 -> 60.6557377 | L10: =+M10+O10 -> 121 | M10: 73 | N10: =+M10/$L10*100 -> 60.33057851 | O10: 48 | P10: =+O10/$L10*100 -> 39.66942149
A11: ALAJUELA | B11: =+C11+E11 -> 224 | C11: =+H11+M11 -> 113 | D11: =+C11/$B11*100 -> 50.44642857 | E11: =+J11+O11 -> 111 | F11: =+E11/$B11*100 -> 49.55357143 | G11: =+H11+J11 -> 113 | H11: 39 | I11: =+H11/$G11*100 -> 34.51327434 | J11: 74 | K11: =+J11/$G11*100 -> 65.48672566 | L11: =+M11+O11 -> 111 | M11: 74 | N11: =+M11/$L11*100 -> 66.66666667 | O11: 37 | P11: =+O11/$L11*100 -> 33.33333333
A12: CARTAGO | B12: 101 | C12: 50 | D12: 49.5049505 | E12: 51 | F12: 50.4950495 | G12: 51 | H12: 18 | I12: 35.29411765 | J12: 33 | K12: 64.70588235 | L12: 50 | M12: 32 | N12: 64 | O12: 18 | P12: 36
A13: HEREDIA | B13: 93 | C13: 46 | D13: 49.46236559 | E13: 47 | F13: 50.53763441 | G13: 47 | H13: 19 | I13: 40.42553191 | J13: 28 | K13: 59.57446809 | L13: 46 | M13: 27 | N13: 58.69565217 | O13: 19 | P13: 41.30434783
A14: GUANACASTE | B14: 117 | C14: 58 | D14: 49.57264957 | E14: 59 | F14: 50.42735043 | G14: 59 | H14: 23 | I14: 38.98305085 | J14: 36 | K14: 61.01694915 | L14: 58 | M14: 35 | N14: 60.34482759 | O14: 23 | P14: 39.65517241
A15: PUNTARENAS | B15: 117 | C15: 59 | D15: 50.42735043 | E15: 58 | F15: 49.57264957 | G15: 59 | H15: 17 | I15: 28.81355932 | J15: 42 | K15: 71.18644068 | L15: 58 | M15: 42 | N15: 72.4137931 | O15: 16 | P15: 27.5862069
A16: LIMÓN | B16: 56 | C16: 28 | D16: 50 | E16: 28 | F16: 50 | G16: 29 | H16: 10 | I16: 34.48275862 | J16: 19 | K16: 65.51724138 | L16: 27 | M16: 18 | N16: 66.66666667 | O16: 9 | P16: 33.33333333
A19: Fuente: Tribunal Supremo de Elecciones.

Sheet 1.17
A2: CUADRO 1.17 COSTA RICA: CONCEJALES(AS)1/ ELECTOS(AS), POR CARGO Y SEXO, SEGÚN PROVINCIA
A3: ELECCIONES MUNICIPALES FEBRERO 2016
A4: (cifras absolutas y relativas)
A6: PROVINCIA | B6: TOTAL | G6: EN PROPIEDAD | L6: EN SUPLENCIA
B7: TOTAL | C7: MUJERES | E7: HOMBRES | G7: TOTAL | H7: MUJERES | J7: HOMBRES | L7: TOTAL | M7: MUJERES | O7: HOMBRES
C8: Absoluto | D8: % | E8: Absoluto | F8: % | H8: Absoluto | I8: % | J8: Absoluto | K8: % | M8: Absoluto | N8: % | O8: Absoluto | P8: %
A10: TOTAL | B10: =+G10+L10 -> 3800 | C10: =+H10+M10 -> 1848 | D10: =+C10/B10*100 -> 48.63157895 | E10: =+J10+O10 -> 1952 | F10: =+E10/B10*100 -> 51.36842105 | G10: =+H10+J10 -> 1920 | H10: =SUM(H12:H18) -> 926 | I10: =+H10/G10*100 -> 48.22916667 | J10: =SUM(J12:J18) -> 994 | K10: =+J10/G10*100 -> 51.77083333 | L10: =+M10+O10 -> 1880 | M10: =SUM(M12:M18) -> 922 | N10: =+M10/L10*100 -> 49.04255319 | O10: =SUM(O12:O18) -> 958 | P10: =+O10/L10*100 -> 50.95744681
A12: SAN JOSÉ | B12: =+C12+E12 -> 968 | C12: =+H12+M12 -> 483 | D12: =+C12/B12*100 -> 49.89669421 | E12: =+J12+O12 -> 485 | F12: =+E12/B12*100 -> 50.10330579 | G12: =+H12+J12 -> 488 | H12: 234 | I12: =+H12/G12*100 -> 47.95081967 | J12: 254 | K12: =+J12/G12*100 -> 52.04918033 | L12: =+M12+O12 -> 480 | M12: 249 | N12: =+M12/L12*100 -> 51.875 | O12: 231 | P12: =+O12/L12*100 -> 48.125
A13: ALAJUELA | B13: =+C13+E13 -> 896 | C13: =+H13+M13 -> 421 | D13: =+C13/B13*100 -> 46.98660714 | E13: =+J13+O13 -> 475 | F13: =+E13/B13*100 -> 53.01339286 | G13: =+H13+J13 -> 452 | H13: 209 | I13: =+H13/G13*100 -> 46.23893805 | J13: 243 | K13: =+J13/G13*100 -> 53.76106195 | L13: =+M13+O13 -> 444 | M13: 212 | N13: =+M13/L13*100 -> 47.74774775 | O13: 232 | P13: =+O13/L13*100 -> 52.25225225
A14: CARTAGO | B14: 399 | C14: 197 | D14: 49.37343358 | E14: 202 | F14: 50.62656642 | G14: 204 | H14: 100 | I14: 49.01960784 | J14: 104 | K14: 50.98039216 | L14: 195 | M14: 97 | N14: 49.74358974 | O14: 98 | P14: 50.25641026
A15: HEREDIA | B15: 369 | C15: 183 | D15: 49.59349593 | E15: 186 | F15: 50.40650407 | G15: 188 | H15: 98 | I15: 52.12765957 | J15: 90 | K15: 47.87234043 | L15: 181 | M15: 85 | N15: 46.96132597 | O15: 96 | P15: 53.03867403
A16: GUANACASTE | B16: 468 | C16: 223 | D16: 47.64957265 | E16: 245 | F16: 52.35042735 | G16: 236 | H16: 108 | I16: 45.76271186 | J16: 128 | K16: 54.23728814 | L16: 232 | M16: 115 | N16: 49.56896552 | O16: 117 | P16: 50.43103448
A17: PUNTARENAS | B17: 470 | C17: 228 | D17: 48.5106383 | E17: 242 | F17: 51.4893617 | G17: 236 | H17: 119 | I17: 50.42372881 | J17: 117 | K17: 49.57627119 | L17: 234 | M17: 109 | N17: 46.58119658 | O17: 125 | P17: 53.41880342
A18: LIMÓN | B18: 230 | C18: 113 | D18: 49.13043478 | E18: 117 | F18: 50.86956522 | G18: 116 | H18: 58 | I18: 50 | J18: 58 | K18: 50 | L18: 114 | M18: 55 | N18: 48.24561404 | O18: 59 | P18: 51.75438596
A21: 1/ Incluye Concejales de Distrito y Concejales Municipales de Distrito.
A22: Fuente: Tribunal Supremo de Elecciones.

Sheet 1.18
A2: CUADRO 1.18 COSTA RICA: INTENDENTES(AS) Y VICEINTENDENTES(AS) ELECTOS(AS)
A3: POR SEXO, SEGÚN PROVINCIA, ELECCIONES MUNICIPALES FEBRERO 2016
A4: (cifras absolutas y relativas)
A6: PROVINCIA | B6: INTENDENTE(AS) | G6: VICEINTENDENTE(AS)
B7: TOTAL | C7: MUJERES | E7: HOMBRES | G7: TOTAL | H7: MUJERES | J7: HOMBRES
C8: Absoluto | D8: % | E8: Absoluto | F8: % | H8: Absoluto | I8: % | J8: Absoluto | K8: %
A10: TOTAL | B10: =+C10+E10 -> 53 | C10: =SUM(C12:C15) -> 14 | D10: =+C10/$B10*100 -> 26.41509434 | E10: =SUM(E12:E15) -> 39 | F10: =+E10/$B10*100 -> 73.58490566 | G10: =+H10+J10 -> 8 | H10: =SUM(H12:H15) -> 5 | I10: =+H10/$G10*100 -> 62.5 | J10: =SUM(J12:J15) -> 3 | K10: =+J10/$G10*100 -> 37.5
A12: ALAJUELA | B12: =+C12+E12 -> 6 | C12: 2 | D12: =+C12/$B12*100 -> 33.33333333 | E12: 4 | F12: =+E12/$B12*100 -> 66.66666667 | G12: =+H12+J12 -> 1 | H12: 1 | I12: =+H12/$G12*100 -> 100 | J12: 0 | K12: =+J12/$G12*100 -> 0
A13: CARTAGO | B13: =+C13+E13 -> 13 | C13: 3 | D13: =+C13/$B13*100 -> 23.07692308 | E13: 10 | F13: =+E13/$B13*100 -> 76.92307692 | G13: =+H13+J13 -> 2 | H13: 2 | I13: =+H13/$G13*100 -> 100 | J13: 0 | K13: =+J13/$G13*100 -> 0
A14: GUANACASTE | B14: 7 | C14: 2 | D14: =+C14/$B14*100 -> 28.57142857 | E14: 5 | F14: =+E14/$B14*100 -> 71.42857143 | G14: 1 | H14: 0 | I14: =+H14/$G14*100 -> 0 | J14: 1 | K14: =+J14/$G14*100 -> 100
A15: PUNTARENAS | B15: 27 | C15: 7 | D15: =+C15/$B15*100 -> 25.92592593 | E15: 20 | F15: =+E15/$B15*100 -> 74.07407407 | G15: 4 | H15: 2 | I15: =+H15/$G15*100 -> 50 | J15: 2 | K15: =+J15/$G15*100 -> 50
A18: Fuente: Tribunal Supremo de Elecciones.

Sheet 1.19
A2: CUADRO 1.19 COSTA RICA: CANDIDATOS(AS) ELECTOS(AS) A ALCALDES(AS), REGIDORES(AS), INTENDENTES(AS), SÍNDICOS(AS) EN PROPIEDAD
A3: Y CONCEJALES(AS) EN PROPIEDAD, SEGÚN GRUPOS DE EDAD, ELECCIONES MUNICIPALES FEBRERO 2016
A4: (cifras absolutas y relativas)
A6: GRUPOS DE EDAD | B6: ALCALDES(AS) | D6: REGIDORES(AS) EN PROPIEDAD | F6: SÍNDICOS(AS) EN PROPIEDAD | H6: CONCEJALES(AS) EN PROPIEDAD 1/ | J6: INTENDENTES(AS)
B7: Absoluto | C7: % | D7: Absoluto | E7: % | F7: Absoluto | G7: % | H7: Absoluto | I7: % | J7: Absoluto | K7: %
A9: TOTAL | B9: =SUM(B10:B24) -> 81 | C9: =+B9/B$9*100 -> 100 | D9: =SUM(D10:D24) -> 505 | E9: =+D9/D$9*100 -> 100 | F9: =SUM(F10:F24) -> 480 | G9: =+F9/F$9*100 -> 100 | H9: =SUM(H10:H24) -> 1920 | I9: =+H9/H$9*100 -> 100 | J9: =SUM(J10:J24) -> 8 | K9: =+J9/J$9*100 -> 100
A10: MENOS DE 20 AÑOS | B10: 0 | C10: =+B10/B$9*100 -> 0 | D10: 1 | E10: =+D10/D$9*100 -> 0.198019802 | F10: 0 | G10: =+F10/F$9*100 -> 0 | H10: 29 | I10: =+H10/H$9*100 -> 1.510416667 | J10: 0 | K10: =+J10/J$9*100 -> 0
A11: DE 20 A 24 AÑOS | B11: 0 | C11: 0 | D11: 7 | E11: =+D11/D$9*100 -> 1.386138614 | F11: 9 | G11: =+F11/F$9*100 -> 1.875 | H11: 112 | I11: =+H11/H$9*100 -> 5.833333333 | J11: 0 | K11: =+J11/J$9*100 -> 0
A12: DE 25 A 29 AÑOS | B12: 1 | C12: =+B12/B$9*100 -> 1.234567901 | D12: 20 | E12: =+D12/D$9*100 -> 3.96039604 | F12: 23 | G12: =+F12/F$9*100 -> 4.791666667 | H12: 155 | I12: 8.072916667 | J12: 0 | K12: 0
A13: DE 30 A 34 AÑOS | B13: 5 | C13: =+B13/B$9*100 -> 6.172839506 | D13: 34 | E13: 6.732673267 | F13: 26 | G13: 5.416666667 | H13: 188 | I13: 9.791666667 | J13: 1 | K13: 12.5
A14: DE 35 A 39 AÑOS | B14: 5 | C14: 6.172839506 | D14: 49 | E14: 9.702970297 | F14: 43 | G14: 8.958333333 | H14: 209 | I14: 10.88541667 | J14: 2 | K14: 25
A15: DE 40 A 44 AÑOS | B15: 5 | C15: 6.172839506 | D15: 46 | E15: 9.108910891 | F15: 63 | G15: 13.125 | H15: 232 | I15: 12.08333333 | J15: 0 | K15: 0
A16: DE 45 A 49 AÑOS | B16: 14 | C16: 17.28395062 | D16: 79 | E16: 15.64356436 | F16: 68 | G16: 14.16666667 | H16: 260 | I16: 13.54166667 | J16: 3 | K16: 37.5
A17: DE 50 A 54 AÑOS | B17: 22 | C17: 27.16049383 | D17: 66 | E17: 13.06930693 | F17: 91 | G17: 18.95833333 | H17: 246 | I17: 12.8125 | J17: 1 | K17: 12.5
A18: DE 55 A 59 AÑOS | B18: 19 | C18: 23.45679012 | D18: 92 | E18: 18.21782178 | F18: 74 | G18: 15.41666667 | H18: 198 | I18: 10.3125 | J18: 1 | K18: 12.5
A19: DE 60 A 64 AÑOS | B19: 8 | C19: 9.87654321 | D19: 58 | E19: 11.48514851 | F19: 45 | G19: 9.375 | H19: 133 | I19: 6.927083333 | J19: 0 | K19: 0
A20: DE 65 A 69 AÑOS | B20: 1 | C20: 1.234567901 | D20: 34 | E20: 6.732673267 | F20: 28 | G20: 5.833333333 | H20: 90 | I20: 4.6875 | J20: 0 | K20: 0
A21: DE 70 A 74 AÑOS | B21: 1 | C21: 1.234567901 | D21: 16 | E21: 3.168316832 | F21: 8 | G21: 1.666666667 | H21: 40 | I21: 2.083333333 | J21: 0 | K21: 0
A22: DE 75 A 79 AÑOS | B22: 0 | C22: 0 | D22: 2 | E22: 0.396039604 | F22: 2 | G22: 0.4166666667 | H22: 21 | I22: 1.09375 | J22: 0 | K22: 0
A23: DE 80 A 84 AÑOS | B23: 0 | C23: 0 | D23: 1 | E23: 0.198019802 | F23: 0 | G23: 0 | H23: 6 | I23: 0.3125 | J23: 0 | K23: 0
A24: DE 85 Y MÁS | B24: 0 | C24: 0 | D24: 0 | E24: 0 | F24: 0 | G24: 0 | H24: 1 | I24: 0.05208333333 | J24: 0 | K24: 0
A27: 1/ Incluye Concejales de Distrito y Concejales Municipales de Distrito.
A28: Fuente: Tribunal Supremo de Elecciones.

Sheet 1.20
A2: CUADRO 1.20 COSTA RICA: CANDIDATOS(AS) ELECTOS(AS) A REGIDORES(AS), SÍNDICOS(AS) Y CONCEJALES(AS)
A3: POR SEXO, SEGÚN PROVINCIA Y CANTÓN, ELECCIONES MUNICIPALES FEBRERO 2016
A4: (cifras absolutas y relativas)
A6: PROVINCIA Y CANTÓN | B6: REGIDORES(AS) | G6: SÍNDICOS(AS) EN PROPIEDAD | L6: CONCEJALES(AS) EN PROPIEDAD 1/
B7: TOTAL | C7: MUJERES | E7: HOMBRES | G7: TOTAL | H7: MUJERES | J7: HOMBRES | L7: TOTAL | M7: MUJERES | O7: HOMBRES
C8: Absoluto | D8: % | E8: Absoluto | F8: % | H8: Absoluto | I8: % | J8: Absoluto | K8: % | M8: Absoluto | N8: % | O8: Absoluto | P8: %
A10: COSTA RICA | B10: =+C10+E10 -> 505 | C10: =+C11+C32+C48+C57+C68+C80+C92 -> 204 | D10: =+C10/$B10*100 -> 40.3960396 | E10: =+E11+E32+E48+E57+E68+E80+E92 -> 301 | F10: =+E10/$B10*100 -> 59.6039604 | G10: =+H10+J10 -> 480 | H10: =+H11+H32+H48+H57+H68+H80+H92 -> 174 | I10: =+H10/$G10*100 -> 36.25 | J10: =+J11+J32+J48+J57+J68+J80+J92 -> 306 | K10: =+J10/$G10*100 -> 63.75 | L10: =+M10+O10 -> 1920 | M10: =+M11+M32+M48+M57+M68+M80+M92 -> 926 | N10: =+M10/$L10*100 -> 48.22916667 | O10: =+O11+O32+O48+O57+O68+O80+O92 -> 994 | P10: =+O10/$L10*100 -> 51.77083333
A11: SAN JOSÉ | B11: =+C11+E11 -> 138 | C11: =SUM(C12:C31) -> 57 | D11: =+C11/$B11*100 -> 41.30434783 | E11: =SUM(E12:E31) -> 81 | F11: =+E11/$B11*100 -> 58.69565217 | G11: =+H11+J11 -> 122 | H11: =SUM(H12:H31) -> 48 | I11: =+H11/$G11*100 -> 39.3442623 | J11: =SUM(J12:J31) -> 74 | K11: =+J11/$G11*100 -> 60.6557377 | L11: =+M11+O11 -> 488 | M11: =SUM(M12:M31) -> 234 | N11: =+M11/$L11*100 -> 47.95081967 | O11: =SUM(O12:O31) -> 254 | P11: =+O11/$L11*100 -> 52.04918033
A12: SAN JOSÉ | B12: =+C12+E12 -> 11 | C12: 3 | D12: =+C12/$B12*100 -> 27.27272727 | E12: 8 | F12: =+E12/$B12*100 -> 72.72727273 | G12: =+H12+J12 -> 11 | H12: 8 | I12: =+H12/$G12*100 -> 72.72727273 | J12: 3 | K12: =+J12/$G12*100 -> 27.27272727 | L12: =+M12+O12 -> 44 | M12: 20 | N12: =+M12/$L12*100 -> 45.45454545 | O12: 24 | P12: =+O12/$L12*100 -> 54.54545455
A13: ESCAZÚ | B13: 7 | C13: 3 | D13: =+C13/$B13*100 -> 42.85714286 | E13: 4 | F13: =+E13/$B13*100 -> 57.14285714 | G13: 3 | H13: 1 | I13: =+H13/$G13*100 -> 33.33333333 | J13: 2 | K13: =+J13/$G13*100 -> 66.66666667 | L13: 12 | M13: 5 | N13: =+M13/$L13*100 -> 41.66666667 | O13: 7 | P13: =+O13/$L13*100 -> 58.33333333
A14: DESAMPARADOS | B14: 11 | C14: 5 | D14: 45.45454545 | E14: 6 | F14: 54.54545455 | G14: 13 | H14: 6 | I14: 46.15384615 | J14: 7 | K14: 53.84615385 | L14: 52 | M14: 25 | N14: 48.07692308 | O14: 27 | P14: 51.92307692
A15: PURISCAL | B15: 5 | C15: 2 | D15: 40 | E15: 3 | F15: 60 | G15: 9 | H15: 2 | I15: 22.22222222 | J15: 7 | K15: 77.77777778 | L15: 36 | M15: 12 | N15: 33.33333333 | O15: 24 | P15: 66.66666667
A16: TARRAZÚ | B16: 5 | C16: 1 | D16: 20 | E16: 4 | F16: 80 | G16: 3 | H16: 1 | I16: 33.33333333 | J16: 2 | K16: 66.66666667 | L16: 12 | M16: 6 | N16: 50 | O16: 6 | P16: 50
A17: ASERRÍ | B17: 7 | C17: 2 | D17: 28.57142857 | E17: 5 | F17: 71.42857143 | G17: 7 | H17: 1 | I17: 14.28571429 | J17: 6 | K17: 85.71428571 | L17: 28 | M17: 11 | N17: 39.28571429 | O17: 17 | P17: 60.71428571
A18: MORA | B18: 5 | C18: 2 | D18: 40 | E18: 3 | F18: 60 | G18: 7 | H18: 2 | I18: 28.57142857 | J18: 5 | K18: 71.42857143 | L18: 28 | M18: 13 | N18: 46.42857143 | O18: 15 | P18: 53.57142857
A19: GOICOECHEA | B19: 9 | C19: 3 | D19: 33.33333333 | E19: 6 | F19: 66.66666667 | G19: 7 | H19: 2 | I19: 28.57142857 | J19: 5 | K19: 71.42857143 | L19: 28 | M19: 16 | N19: 57.14285714 | O19: 12 | P19: 42.85714286
A20: SANTA ANA | B20: 7 | C20: 3 | D20: 42.85714286 | E20: 4 | F20: 57.14285714 | G20: 6 | H20: 2 | I20: 33.33333333 | J20: 4 | K20: 66.66666667 | L20: 24 | M20: 12 | N20: 50 | O20: 12 | P20: 50
A21: ALAJUELITA | B21: 7 | C21: 3 | D21: 42.85714286 | E21: 4 | F21: 57.14285714 | G21: 5 | H21: 4 | I21: 80 | J21: 1 | K21: 20 | L21: 20 | M21: 12 | N21: 60 | O21: 8 | P21: 40
A22: VÁZQUEZ DE CORONADO | B22: 7 | C22: 5 | D22: 71.42857143 | E22: 2 | F22: 28.57142857 | G22: 5 | H22: 3 | I22: 60 | J22: 2 | K22: 40 | L22: 20 | M22: 11 | N22: 55 | O22: 9 | P22: 45
A23: ACOSTA | B23: 5 | C23: 2 | D23: 40 | E23: 3 | F23: 60 | G23: 5 | H23: 2 | I23: 40 | J23: 3 | K23: 60 | L23: 20 | M23: 10 | N23: 50 | O23: 10 | P23: 50
A24: TIBÁS | B24: 7 | C24: 5 | D24: 71.42857143 | E24: 2 | F24: 28.57142857 | G24: 5 | H24: 3 | I24: 60 | J24: 2 | K24: 40 | L24: 20 | M24: 10 | N24: 50 | O24: 10 | P24: 50
A25: MORAVIA | B25: 7 | C25: 4 | D25: 57.14285714 | E25: 3 | F25: 42.85714286 | G25: 3 | H25: 1 | I25: 33.33333333 | J25: 2 | K25: 66.66666667 | L25: 12 | M25: 6 | N25: 50 | O25: 6 | P25: 50
A26: MONTES DE OCA | B26: 7 | C26: 2 | D26: 28.57142857 | E26: 5 | F26: 71.42857143 | G26: 4 | H26: 2 | I26: 50 | J26: 2 | K26: 50 | L26: 16 | M26: 11 | N26: 68.75 | O26: 5 | P26: 31.25
A27: TURRUBARES | B27: 5 | C27: 2 | D27: 40 | E27: 3 | F27: 60 | G27: 5 | H27: 4 | I27: 80 | J27: 1 | K27: 20 | L27: 20 | M27: 10 | N27: 50 | O27: 10 | P27: 50
A28: DOTA | B28: 5 | C28: 3 | D28: 60 | E28: 2 | F28: 40 | G28: 3 | H28: 1 | I28: 33.33333333 | J28: 2 | K28: 66.66666667 | L28: 12 | M28: 7 | N28: 58.33333333 | O28: 5 | P28: 41.66666667
A29: CURRIDABAT | B29: 7 | C29: 2 | D29: 28.57142857 | E29: 5 | F29: 71.42857143 | G29: 4 | H29: 0 | I29: 0 | J29: 4 | K29: 100 | L29: 16 | M29: 9 | N29: 56.25 | O29: 7 | P29: 43.75
A30: PÉREZ ZELEDÓN | B30: 9 | C30: 2 | D30: 22.22222222 | E30: 7 | F30: 77.77777778 | G30: 11 | H30: 1 | I30: 9.090909091 | J30: 10 | K30: 90.90909091 | L30: 44 | M30: 17 | N30: 38.63636364 | O30: 27 | P30: 61.36363636
A31: LEÓN CORTÉS CASTRO | B31: 5 | C31: 3 | D31: 60 | E31: 2 | F31: =+E31/$B31*100 -> 40 | G31: 6 | H31: 2 | I31: 33.33333333 | J31: 4 | K31: 66.66666667 | L31: 24 | M31: 11 | N31: 45.83333333 | O31: 13 | P31: 54.16666667
A32: ALAJUELA | B32: =+C32+E32 -> 91 | C32: =SUM(C33:C47) -> 37 | D32: =+C32/$B32*100 -> 40.65934066 | E32: =SUM(E33:E47) -> 54 | F32: =+E32/$B32*100 -> 59.34065934 | G32: =+H32+J32 -> 113 | H32: =SUM(H33:H47) -> 39 | I32: =+H32/$G32*100 -> 34.51327434 | J32: =SUM(J33:J47) -> 74 | K32: =+J32/$G32*100 -> 65.48672566 | L32: 452 | M32: =SUM(M33:M47) -> 209 | N32: 46.23893805 | O32: =SUM(O33:O47) -> 243 | P32: =+O32/$L32*100 -> 53.76106195
A33: ALAJUELA | B33: 11 | C33: 5 | D33: =+C33/$B33*100 -> 45.45454545 | E33: 6 | F33: =+E33/$B33*100 -> 54.54545455 | G33: 14 | H33: 3 | I33: =+H33/$G33*100 -> 21.42857143 | J33: 11 | K33: =+J33/$G33*100 -> 78.57142857 | L33: 56 | M33: 29 | N33: =+M33/$L33*100 -> 51.78571429 | O33: 27 | P33: =+O33/$L33*100 -> 48.21428571
A34: SAN RAMÓN | B34: 7 | C34: 2 | D34: 28.57142857 | E34: 5 | F34: =+E34/$B34*100 -> 71.42857143 | G34: 13 | H34: 3 | I34: 23.07692308 | J34: 10 | K34: 76.92307692 | L34: 52 | M34: 27 | N34: 51.92307692 | O34: 25 | P34: 48.07692308
A35: GRECIA | B35: 7 | C35: 2 | D35: 28.57142857 | E35: 5 | F35: 71.42857143 | G35: 8 | H35: 4 | I35: 50 | J35: 4 | K35: 50 | L35: 32 | M35: 15 | N35: 46.875 | O35: 17 | P35: 53.125
A36: SAN MATEO | B36: 5 | C36: 2 | D36: 40 | E36: 3 | F36: 60 | G36: 4 | H36: 3 | I36: 75 | J36: 1 | K36: 25 | L36: 16 | M36: 6 | N36: 37.5 | O36: 10 | P36: 62.5
A37: ATENAS | B37: 5 | C37: 2 | D37: 40 | E37: 3 | F37: 60 | G37: 8 | H37: 4 | I37: 50 | J37: 4 | K37: 50 | L37: 32 | M37: 12 | N37: 37.5 | O37: 20 | P37: 62.5
A38: NARANJO | B38: 5 | C38: 2 | D38: 40 | E38: 3 | F38: 60 | G38: 8 | H38: 2 | I38: 25 | J38: 6 | K38: 75 | L38: 32 | M38: 16 | N38: 50 | O38: 16 | P38: 50
A39: PALMARES | B39: 5 | C39: 1 | D39: 20 | E39: 4 | F39: 80 | G39: 7 | H39: 2 | I39: 28.57142857 | J39: 5 | K39: 71.42857143 | L39: 28 | M39: 10 | N39: 35.71428571 | O39: 18 | P39: 64.28571429
A40: POÁS | B40: 5 | C40: 2 | D40: 40 | E40: 3 | F40: 60 | G40: 5 | H40: 2 | I40: 40 | J40: 3 | K40: 60 | L40: 20 | M40: 8 | N40: 40 | O40: 12 | P40: 60
A41: OROTINA | B41: 5 | C41: 3 | D41: 60 | E41: 2 | F41: 40 | G41: 5 | H41: 2 | I41: 40 | J41: 3 | K41: 60 | L41: 20 | M41: 10 | N41: 50 | O41: 10 | P41: 50
A42: SAN CARLOS | B42: 9 | C42: 4 | D42: 44.44444444 | E42: 5 | F42: 55.55555556 | G42: 13 | H42: 6 | I42: 46.15384615 | J42: 7 | K42: 53.84615385 | L42: 52 | M42: 27 | N42: 51.92307692 | O42: 25 | P42: 48.07692308
A43: ZARCERO | B43: 5 | C43: 2 | D43: 40 | E43: 3 | F43: 60 | G43: 7 | H43: 3 | I43: 42.85714286 | J43: 4 | K43: 57.14285714 | L43: 28 | M43: 14 | N43: 50 | O43: 14 | P43: 50
A44: VALVERDE VEGA | B44: 5 | C44: 3 | D44: 60 | E44: 2 | F44: 40 | G44: 5 | H44: 2 | I44: 40 | J44: 3 | K44: 60 | L44: 20 | M44: 10 | N44: 50 | O44: 10 | P44: 50
A45: UPALA | B45: 7 | C45: 4 | D45: 57.14285714 | E45: 3 | F45: 42.85714286 | G45: 8 | H45: 2 | I45: 25 | J45: 6 | K45: 75 | L45: 32 | M45: 15 | N45: 46.875 | O45: 17 | P45: 53.125
A46: LOS CHILES | B46: 5 | C46: 1 | D46: 20 | E46: 4 | F46: 80 | G46: 4 | H46: 1 | I46: 25 | J46: 3 | K46: 75 | L46: 16 | M46: 5 | N46: 31.25 | O46: 11 | P46: 68.75
A47: GUATUSO | B47: 5 | C47: 2 | D47: 40 | E47: 3 | F47: 60 | G47: 4 | H47: 0 | I47: 0 | J47: 4 | K47: 100 | L47: 16 | M47: 5 | N47: 31.25 | O47: 11 | P47: 68.75
A48: CARTAGO | B48: =+C48+E48 -> 52 | C48: =SUM(C49:C56) -> 24 | D48: =+C48/$B48*100 -> 46.15384615 | E48: =SUM(E49:E56) -> 28 | F48: =+E48/$B48*100 -> 53.84615385 | G48: =+H48+J48 -> 51 | H48: =SUM(H49:H56) -> 18 | I48: =+H48/$G48*100 -> 35.29411765 | J48: =SUM(J49:J56) -> 33 | K48: =+J48/$G48*100 -> 64.70588235 | L48: =+M48+O48 -> 204 | M48: =SUM(M49:M56) -> 100 | N48: =+M48/$L48*100 -> 49.01960784 | O48: =SUM(O49:O56) -> 104 | P48: =+O48/$L48*100 -> 50.98039216
A49: CARTAGO | B49: 9 | C49: 3 | D49: =+C49/$B49*100 -> 33.33333333 | E49: 6 | F49: =+E49/$B49*100 -> 66.66666667 | G49: 11 | H49: 5 | I49: =+H49/$G49*100 -> 45.45454545 | J49: 6 | K49: =+J49/$G49*100 -> 54.54545455 | L49: 44 | M49: 17 | N49: =+M49/$L49*100 -> 38.63636364 | O49: 27 | P49: =+O49/$L49*100 -> 61.36363636
A50: PARAÍSO | B50: 7 | C50: 4 | D50: =+C50/$B50*100 -> 57.14285714 | E50: 3 | F50: =+E50/$B50*100 -> 42.85714286 | G50: 5 | H50: 2 | I50: 40 | J50: 3 | K50: 60 | L50: 20 | M50: 10 | N50: 50 | O50: 10 | P50: 50
A51: LA UNIÓN | B51: 9 | C51: 4 | D51: 44.44444444 | E51: 5 | F51: 55.55555556 | G51: 8 | H51: 3 | I51: 37.5 | J51: 5 | K51: 62.5 | L51: 32 | M51: 16 | N51: 50 | O51: 16 | P51: 50
A52: JIMÉNEZ | B52: 5 | C52: 1 | D52: 20 | E52: 4 | F52: 80 | G52: 3 | H52: 0 | I52: 0 | J52: 3 | K52: 100 | L52: 12 | M52: 6 | N52: 50 | O52: 6 | P52: 50
A53: TURRIALBA | B53: 7 | C53: 3 | D53: 42.85714286 | E53: 4 | F53: 57.14285714 | G53: 12 | H53: 3 | I53: 25 | J53: 9 | K53: 75 | L53: 48 | M53: 26 | N53: 54.16666667 | O53: 22 | P53: 45.83333333
A54: ALVARADO | B54: 5 | C54: 4 | D54: 80 | E54: 1 | F54: 20 | G54: 3 | H54: 2 | I54: 66.66666667 | J54: 1 | K54: 33.33333333 | L54: 12 | M54: 5 | N54: 41.66666667 | O54: 7 | P54: 58.33333333
A55: OREAMUNO | B55: 5 | C55: 2 | D55: 40 | E55: 3 | F55: 60 | G55: 5 | H55: 2 | I55: 40 | J55: 3 | K55: 60 | L55: 20 | M55: 13 | N55: 65 | O55: 7 | P55: 35
A56: EL GUARCO | B56: 5 | C56: 3 | D56: =+C56/$B56*100 -> 60 | E56: 2 | F56: 40 | G56: 4 | H56: 1 | I56: 25 | J56: 3 | K56: 75 | L56: 16 | M56: 7 | N56: 43.75 | O56: 9 | P56: 56.25
A57: HEREDIA | B57: =+C57+E57 -> 58 | C57: =SUM(C58:C67) -> 25 | D57: =+C57/$B57*100 -> 43.10344828 | E57: =SUM(E58:E67) -> 33 | F57: =+E57/$B57*100 -> 56.89655172 | G57: 47 | H57: =SUM(H58:H67) -> 19 | I57: 40.42553191 | J57: =SUM(J58:J67) -> 28 | K57: 59.57446809 | L57: 188 | M57: =SUM(M58:M67) -> 98 | N57: 52.12765957 | O57: =SUM(O58:O67) -> 90 | P57: 47.87234043
A58: HEREDIA | B58: 9 | C58: 4 | D58: =+C58/$B58*100 -> 44.44444444 | E58: 5 | F58: =+E58/$B58*100 -> 55.55555556 | G58: 5 | H58: 2 | I58: 40 | J58: 3 | K58: 60 | L58: 20 | M58: 10 | N58: 50 | O58: 10 | P58: 50
A59: BARVA | B59: 5 | C59: 2 | D59: =+C59/$B59*100 -> 40 | E59: 3 | F59: =+E59/$B59*100 -> 60 | G59: 6 | H59: 4 | I59: 66.66666667 | J59: 2 | K59: 33.33333333 | L59: 24 | M59: 12 | N59: 50 | O59: 12 | P59: 50
A60: SANTO DOMINGO | B60: 5 | C60: 3 | D60: 60 | E60: 2 | F60: 40 | G60: 8 | H60: 1 | I60: 12.5 | J60: 7 | K60: 87.5 | L60: 32 | M60: 18 | N60: 56.25 | O60: 14 | P60: 43.75
A61: SANTA BÁRBARA | B61: 5 | C61: 2 | D61: 40 | E61: 3 | F61: 60 | G61: 6 | H61: 1 | I61: 16.66666667 | J61: 5 | K61: 83.33333333 | L61: 24 | M61: 13 | N61: 54.16666667 | O61: 11 | P61: 45.83333333
A62: SAN RAFAEL | B62: 7 | C62: 1 | D62: 14.28571429 | E62: 6 | F62: 85.71428571 | G62: 5 | H62: 3 | I62: 60 | J62: 2 | K62: 40 | L62: 20 | M62: 11 | N62: 55 | O62: 9 | P62: 45
A63: SAN ISIDRO | B63: 5 | C63: 3 | D63: 60 | E63: 2 | F63: 40 | G63: 4 | H63: 2 | I63: 50 | J63: 2 | K63: 50 | L63: 16 | M63: 9 | N63: 56.25 | O63: 7 | P63: 43.75
A64: BELÉN | B64: 5 | C64: 2 | D64: 40 | E64: 3 | F64: 60 | G64: 3 | H64: 2 | I64: 66.66666667 | J64: 1 | K64: 33.33333333 | L64: 12 | M64: 6 | N64: 50 | O64: 6 | P64: 50
A65: FLORES | B65: 5 | C65: 4 | D65: 80 | E65: 1 | F65: 20 | G65: 3 | H65: 2 | I65: 66.66666667 | J65: 1 | K65: 33.33333333 | L65: 12 | M65: 6 | N65: 50 | O65: 6 | P65: 50
A66: SAN PABLO | B66: 5 | C66: 2 | D66: 40 | E66: 3 | F66: 60 | G66: 2 | H66: 0 | I66: 0 | J66: 2 | K66: 100 | L66: 8 | M66: 4 | N66: 50 | O66: 4 | P66: 50
A67: SARAPIQUÍ | B67: 7 | C67: 2 | D67: 28.57142857 | E67: 5 | F67: 71.42857143 | G67: 5 | H67: 2 | I67: 40 | J67: 3 | K67: 60 | L67: 20 | M67: 9 | N67: 45 | O67: 11 | P67: 55
A68: GUANACASTE | B68: 61 | C68: =SUM(C69:C79) -> 21 | D68: =+C68/$B68*100 -> 34.42622951 | E68: =SUM(E69:E79) -> 40 | F68: =+E68/$B68*100 -> 65.57377049 | G68: 59 | H68: =SUM(H69:H79) -> 23 | I68: 38.98305085 | J68: =SUM(J69:J79) -> 36 | K68: 61.01694915 | L68: 236 | M68: =SUM(M69:M79) -> 108 | N68: 45.76271186 | O68: =SUM(O69:O79) -> 128 | P68: 54.23728814
A69: LIBERIA | B69: 7 | C69: 3 | D69: =+C69/$B69*100 -> 42.85714286 | E69: 4 | F69: =+E69/$B69*100 -> 57.14285714 | G69: 5 | H69: 2 | I69: 40 | J69: 3 | K69: =+J69/$G69*100 -> 60 | L69: 20 | M69: 9 | N69: 45 | O69: 11 | P69: 55
A70: NICOYA | B70: 7 | C70: 2 | D70: =+C70/$B70*100 -> 28.57142857 | E70: 5 | F70: =+E70/$B70*100 -> 71.42857143 | G70: 7 | H70: 2 | I70: 28.57142857 | J70: 5 | K70: 71.42857143 | L70: 28 | M70: 13 | N70: 46.42857143 | O70: 15 | P70: 53.57142857
A71: SANTA CRUZ | B71: 7 | C71: 3 | D71: 42.85714286 | E71: 4 | F71: 57.14285714 | G71: 9 | H71: 4 | I71: 44.44444444 | J71: 5 | K71: 55.55555556 | L71: 36 | M71: 15 | N71: 41.66666667 | O71: 21 | P71: 58.33333333
A72: BAGACES | B72: 5 | C72: 2 | D72: 40 | E72: 3 | F72: 60 | G72: 4 | H72: 3 | I72: 75 | J72: 1 | K72: 25 | L72: 16 | M72: 8 | N72: 50 | O72: 8 | P72: 50
A73: CARRILLO | B73: 5 | C73: 1 | D73: 20 | E73: 4 | F73: 80 | G73: 4 | H73: 2 | I73: 50 | J73: 2 | K73: 50 | L73: 16 | M73: 6 | N73: 37.5 | O73: 10 | P73: 62.5
A74: CAÑAS | B74: 5 | C74: 2 | D74: 40 | E74: 3 | F74: 60 | G74: 5 | H74: 2 | I74: 40 | J74: 3 | K74: 60 | L74: 20 | M74: 12 | N74: 60 | O74: 8 | P74: 40
A75: ABANGARES | B75: 5 | C75: 2 | D75: 40 | E75: 3 | F75: 60 | G75: 4 | H75: 1 | I75: 25 | J75: 3 | K75: 75 | L75: 16 | M75: 7 | N75: 43.75 | O75: 9 | P75: 56.25
A76: TILARÁN | B76: =+C76+E76 -> 5 | C76: 1 | D76: 20 | E76: 4 | F76: 80 | G76: =+H76+J76 -> 7 | H76: 1 | I76: 14.28571429 | J76: 6 | K76: 85.71428571 | L76: =+M76+O76 -> 28 | M76: 13 | N76: 46.42857143 | O76: 15 | P76: 53.57142857
A77: NANDAYURE | B77: 5 | C77: 2 | D77: 40 | E77: 3 | F77: 60 | G77: 6 | H77: 1 | I77: =+H77/$G77*100 -> 16.66666667 | J77: 5 | K77: =+J77/$G77*100 -> 83.33333333 | L77: 24 | M77: 11 | N77: =+M77/$L77*100 -> 45.83333333 | O77: 13 | P77: =+O77/$L77*100 -> 54.16666667
A78: LA CRUZ | B78: 5 | C78: 2 | D78: 40 | E78: 3 | F78: 60 | G78: 4 | H78: 3 | I78: 75 | J78: 1 | K78: 25 | L78: 16 | M78: 7 | N78: 43.75 | O78: 9 | P78: 56.25
A79: HOJANCHA | B79: 5 | C79: 1 | D79: 20 | E79: 4 | F79: 80 | G79: 4 | H79: 2 | I79: 50 | J79: 2 | K79: 50 | L79: 16 | M79: 7 | N79: 43.75 | O79: 9 | P79: 56.25
A80: PUNTARENAS | B80: 63 | C80: =SUM(C81:C91) -> 25 | D80: =+C80/$B80*100 -> 39.68253968 | E80: =SUM(E81:E91) -> 38 | F80: =+E80/$B80*100 -> 60.31746032 | G80: 59 | H80: =SUM(H81:H91) -> 17 | I80: 28.81355932 | J80: =SUM(J81:J91) -> 42 | K80: 71.18644068 | L80: 236 | M80: =SUM(M81:M91) -> 119 | N80: 50.42372881 | O80: =SUM(O81:O91) -> 117 | P80: 49.57627119
A81: PUNTARENAS | B81: 9 | C81: 2 | D81: =+C81/$B81*100 -> 22.22222222 | E81: 7 | F81: =+E81/$B81*100 -> 77.77777778 | G81: 15 | H81: 4 | I81: 26.66666667 | J81: 11 | K81: 73.33333333 | L81: 60 | M81: 29 | N81: 48.33333333 | O81: 31 | P81: 51.66666667
A82: ESPARZA | B82: 5 | C82: 2 | D82: =+C82/$B82*100 -> 40 | E82: 3 | F82: =+E82/$B82*100 -> 60 | G82: 6 | H82: 4 | I82: 66.66666667 | J82: 2 | K82: 33.33333333 | L82: 24 | M82: 13 | N82: 54.16666667 | O82: 11 | P82: 45.83333333
A83: BUENOS AIRES | B83: 7 | C83: 3 | D83: 42.85714286 | E83: 4 | F83: 57.14285714 | G83: 9 | H83: 2 | I83: 22.22222222 | J83: 7 | K83: 77.77777778 | L83: 36 | M83: 18 | N83: 50 | O83: 18 | P83: 50
A84: MONTES DE ORO | B84: 5 | C84: 2 | D84: 40 | E84: 3 | F84: 60 | G84: 3 | H84: 2 | I84: 66.66666667 | J84: 1 | K84: 33.33333333 | L84: 12 | M84: 5 | N84: 41.66666667 | O84: 7 | P84: 58.33333333
A85: OSA | B85: 5 | C85: 3 | D85: 60 | E85: 2 | F85: 40 | G85: 6 | H85: 1 | I85: 16.66666667 | J85: 5 | K85: 83.33333333 | L85: 24 | M85: 16 | N85: 66.66666667 | O85: 8 | P85: 33.33333333
A86: AGUIRRE | B86: 5 | C86: 2 | D86: 40 | E86: 3 | F86: 60 | G86: 3 | H86: 1 | I86: 33.33333333 | J86: 2 | K86: 66.66666667 | L86: 12 | M86: 6 | N86: 50 | O86: 6 | P86: 50
A87: GOLFITO | B87: 5 | C87: 1 | D87: 20 | E87: 4 | F87: 80 | G87: 4 | H87: 2 | I87: 50 | J87: 2 | K87: 50 | L87: 16 | M87: 9 | N87: 56.25 | O87: 7 | P87: 43.75
A88: COTO BRUS | B88: 5 | C88: 3 | D88: 60 | E88: 2 | F88: 40 | G88: 6 | H88: 0 | I88: 0 | J88: 6 | K88: 100 | L88: 24 | M88: 11 | N88: 45.83333333 | O88: 13 | P88: 54.16666667
A89: PARRITA | B89: 5 | C89: 2 | D89: 40 | E89: 3 | F89: 60 | G89: 1 | H89: 0 | I89: 0 | J89: 1 | K89: 100 | L89: 4 | M89: 3 | N89: 75 | O89: 1 | P89: 25
A90: CORREDORES | B90: 7 | C90: 2 | D90: 28.57142857 | E90: 5 | F90: 71.42857143 | G90: 4 | H90: 0 | I90: 0 | J90: 4 | K90: 100 | L90: 16 | M90: 7 | N90: 43.75 | O90: 9 | P90: 56.25
A91: GARABITO | B91: 5 | C91: 3 | D91: 60 | E91: 2 | F91: 40 | G91: 2 | H91: 1 | I91: 50 | J91: 1 | K91: 50 | L91: 8 | M91: 2 | N91: 25 | O91: 6 | P91: 75
A92: LIMÓN | B92: 42 | C92: =SUM(C93:C98) -> 15 | D92: =+C92/$B92*100 -> 35.71428571 | E92: =SUM(E93:E98) -> 27 | F92: =+E92/$B92*100 -> 64.28571429 | G92: 29 | H92: =SUM(H93:H98) -> 10 | I92: 34.48275862 | J92: =SUM(J93:J98) -> 19 | K92: 65.51724138 | L92: 116 | M92: =SUM(M93:M98) -> 58 | N92: 50 | O92: =SUM(O93:O98) -> 58 | P92: 50
A93: LIMÓN | B93: 9 | C93: 4 | D93: =+C93/$B93*100 -> 44.44444444 | E93: 5 | F93: =+E93/$B93*100 -> 55.55555556 | G93: 4 | H93: 0 | I93: 0 | J93: 4 | K93: 100 | L93: 16 | M93: 7 | N93: 43.75 | O93: 9 | P93: 56.25
A94: POCOCÍ | B94: 9 | C94: 3 | D94: =+C94/$B94*100 -> 33.33333333 | E94: 6 | F94: =+E94/$B94*100 -> 66.66666667 | G94: 7 | H94: 0 | I94: 0 | J94: 7 | K94: 100 | L94: 28 | M94: 16 | N94: 57.14285714 | O94: 12 | P94: 42.85714286
A95: SIQUIRRES | B95: 7 | C95: 2 | D95: 28.57142857 | E95: 5 | F95: 71.42857143 | G95: 6 | H95: 5 | I95: 83.33333333 | J95: 1 | K95: 16.66666667 | L95: 24 | M95: 15 | N95: 62.5 | O95: 9 | P95: 37.5
A96: TALAMANCA | B96: 5 | C96: 2 | D96: 40 | E96: 3 | F96: 60 | G96: 4 | H96: 2 | I96: 50 | J96: 2 | K96: 50 | L96: 16 | M96: 9 | N96: 56.25 | O96: 7 | P96: 43.75
A97: MATINA | B97: 5 | C97: 1 | D97: 20 | E97: 4 | F97: 80 | G97: 3 | H97: 2 | I97: 66.66666667 | J97: 1 | K97: 33.33333333 | L97: 12 | M97: 4 | N97: 33.33333333 | O97: 8 | P97: 66.66666667
A98: GUÁCIMO | B98: 7 | C98: 3 | D98: =+C98/$B98*100 -> 42.85714286 | E98: 4 | F98: 57.14285714 | G98: 5 | H98: 1 | I98: 20 | J98: 4 | K98: 80 | L98: 20 | M98: 7 | N98: 35 | O98: 13 | P98: 65
A101: 1/ Incluye Concejales de Distrito y Concejales Municipales de Distrito.
A102: Fuente: Tribunal Supremo de Elecciones.

Sheet G1.3
A3: GRÁFICO 3 COSTA RICA: DISTRIBUCIÓN DE REGIDORES(AS) EN PROPIEDAD, POR SEXO Y GRUPOS DE EDAD. ELECCIONES MUNICIPALES, 7 DE FEBRERO 2016
A6: HOMBRES | B6: MUJERES
A8: 5 | B8: -3 | C8: 18 - 24 | D8: =CONCATENATE(C8," ") -> 18 - 24
A9: 11 | B9: -9 | C9: 25 - 29 | D9: 25 - 29
A10: 20 | B10: -14 | C10: 30 - 34 | D10: 30 - 34
A11: 26 | B11: -23 | C11: 35 - 39 | D11: 35 - 39
A12: 30 | B12: -16 | C12: 40 - 44 | D12: 40 - 44
A13: 44 | B13: -35 | C13: 45 - 49 | D13: 45 - 49
A14: 35 | B14: -31 | C14: 50 - 54 | D14: 50 - 54
A15: 61 | B15: -31 | C15: 55 - 59 | D15: 55 - 59
A16: 30 | B16: -28 | C16: 60 - 64 | D16: 60 - 64
A17: 23 | B17: -11 | C17: 65 - 69 | D17: 65 - 69
A18: 16 | B18: -3 | C18: 70 Y MÁS | D18: 70 Y MÁS
A20: =SUM(A8:A19) -> 301 | B20: =SUM(B8:B19) -> -204
L21: =CONCATENATE(K21," ") -> 
A28: FUENTE: Tribunal Supremo de Elecciones.

Sheet G1.4
A3: GRÁFICO 4 COSTA RICA: DISTRIBUCIÓN DE SÍNDICOS(AS) EN PROPIEDAD, POR SEXO Y GRUPOS DE EDAD. ELECCIONES MUNICIPALES, 7 DE FEBRERO 2016
A5: HOMBRES | B5: MUJERES
A7: 6 | B7: -3 | C7: 18 - 24 | D7: =CONCATENATE(C7," ") -> 18 - 24
A8: 14 | B8: -9 | C8: 25 - 29 | D8: 25 - 29
A9: 16 | B9: -10 | C9: 30 - 34 | D9: 30 - 34
A10: 18 | B10: -25 | C10: 35 - 39 | D10: 35 - 39
A11: 40 | B11: -23 | C11: 40 - 44 | D11: 40 - 44
A12: 42 | B12: -26 | C12: 45 - 49 | D12: 45 - 49
A13: 60 | B13: -31 | C13: 50 - 54 | D13: 50 - 54
A14: 51 | B14: -23 | C14: 55 - 59 | D14: 55 - 59
A15: 30 | B15: -15 | C15: 60 - 64 | D15: 60 - 64
A16: 19 | B16: -9 | C16: 65 - 69 | D16: 65 - 69
A17: 10 | B17: 0 | C17: 70 Y MÁS | D17: 70 Y MÁS
A19: =SUM(A7:A18) -> 306 | B19: =SUM(B7:B18) -> -174
L20: =CONCATENATE(K20," ") -> 
A27: FUENTE: Tribunal Supremo de Elecciones.

Sheet G1.5
A3: GRÁFICO 5 COSTA RICA: DISTRIBUCIÓN DE CONCEJALES(AS) EN PROPIEDAD 1/ POR SEXO Y GRUPOS DE EDAD, ELECCIONES MUNICIPALES, 7 DE FEBRERO 2016
A6: HOMBRES | B6: MUJERES
A8: 63 | B8: -78 | C8: 18 - 24 | D8: =CONCATENATE(C8," ") -> 18 - 24
A9: 69 | B9: -86 | C9: 25 - 29 | D9: 25 - 29
A10: 80 | B10: -108 | C10: 30 - 34 | D10: 30 - 34
A11: 95 | B11: -114 | C11: 35 - 39 | D11: 35 - 39
A12: 108 | B12: -124 | C12: 40 - 44 | D12: 40 - 44
A13: 134 | B13: -126 | C13: 45 - 49 | D13: 45 - 49
A14: 139 | B14: -107 | C14: 50 - 54 | D14: 50 - 54
A15: 123 | B15: -75 | C15: 55 - 59 | D15: 55 - 59
A16: 78 | B16: -55 | C16: 60 - 64 | D16: 60 - 64
A17: 57 | B17: -33 | C17: 65 - 69 | D17: 65 - 69
A18: 48 | B18: -20 | C18: 70 Y MÁS | D18: 70 Y MÁS
A20: =SUM(A8:A19) -> 994 | B20: =SUM(B8:B19) -> -926
A29: 1/ Incluye Concejales de Distrito y Concejales Municipales de Distrito.
A30: FUENTE: Tribunal Supremo de Elecciones.

Sheet 2.1
A2: CUADRO 2.1 COSTA RICA: JUNTAS, ELECTORADO, PARTICIPACIÓN, VOTOS POR PARTIDO, NULOS, BLANCOS Y ABSTENCIONISMO
A3: PARA ALCALDE(SA), POR PROVINCIA, ELECCIONES MUNICIPALES FEBRERO 2016
A5: JUNTAS, ELECTORADO, PARTICIPACIÓN, VOTOS POR PARTIDO, NULOS, BLANCOS Y ABSTENCIONISMO | B5: TOTAL | C5: PROVINCIA
C6: SAN JOSÉ | D6: ALAJUELA | E6: CARTAGO | F6: HEREDIA | G6: GUANACASTE | H6: PUNTARENAS | I6: LIMÓN
A8: JUNTAS | B8: 5630 | C8: 1766 | D8: 1102 | E8: 629 | F8: 511 | G8: 502 | H8: 648 | I8: 472
A9: ELECTORADO | B9: 3178364 | C9: 1088827 | D9: 604089 | E9: 374190 | F9: 319674 | G9: 231102 | H9: 299228 | I9: 261254
A10: VOTOS RECIBIDOS | B10: 1125556 | C10: 329709 | D10: 229680 | E10: 137026 | F10: 111210 | G10: 101837 | H10: 115993 | I10: 100101
A11: PORCENTAJE DE PARTICIPACIÓN | B11: =+B10/B9*100 -> 35.41306156 | C11: =+C10/C9*100 -> 30.28111904 | D11: 38.02088765 | E11: 36.61936449 | F11: 34.78856585 | G11: 44.06582375 | H11: 38.76408625 | I11: 38.3155856
A12: VOTOS POR PARTIDO | B12: 1096563 | C12: 322870 | D12: 224118 | E12: 133001 | F12: 109015 | G12: 99103 | H12: 112128 | I12: 96328
A13: ACCESIBILIDAD SIN EXCLUSIÓN | B13: 18624 | C13: 5156 | D13: 56 | E13: 7872 | F13: 0 | G13: 3046 | H13: 761 | I13: 1733
A14: ACCIÓN CANTONAL SIQUIRRES INDEPENDIENTE | B14: 363 | C14: 0 | D14: 0 | E14: 0 | F14: 0 | G14: 0 | H14: 0 | I14: 363
A15: ACCIÓN CIUDADANA | B15: 127466 | C15: 32043 | D15: 31432 | E15: 16361 | F15: 12107 | G15: 14100 | H15: 16005 | I15: 5418
A16: ACUERDO DE ALIANZA DE QUEPOS | B16: 404 | C16: 0 | D16: 0 | E16: 0 | F16: 0 | G16: 0 | H16: 404 | I16: 0
A17: ALIANZA CRISTIANA SANTANEÑA | B17: 365 | C17: 365 | D17: 0 | E17: 0 | F17: 0 | G17: 0 | H17: 0 | I17: 0
A18: ALIANZA DEMÓCRATA CRISTIANA | B18: 12389 | C18: 0 | D18: 0 | E18: 12389 | F18: 0 | G18: 0 | H18: 0 | I18: 0
A19: ALIANZA POR PALMARES | B19: 2349 | C19: 0 | D19: 2349 | E19: 0 | F19: 0 | G19: 0 | H19: 0 | I19: 0
A20: ALIANZA POR SAN JOSÉ | B20: 23925 | C20: 23925 | D20: 0 | E20: 0 | F20: 0 | G20: 0 | H20: 0 | I20: 0
A21: ALIANZA SANCARLEÑA | B21: 702 | C21: 0 | D21: 702 | E21: 0 | F21: 0 | G21: 0 | H21: 0 | I21: 0
A22: ALIANZA SOCIAL POR LA UNIÓN | B22: 3107 | C22: 0 | D22: 0 | E22: 3107 | F22: 0 | G22: 0 | H22: 0 | I22: 0
A23: AUTÉNTICO LABRADOR DE CORONADO | B23: 2686 | C23: 2686 | D23: 0 | E23: 0 | F23: 0 | G23: 0 | H23: 0 | I23: 0
A24: AUTÉNTICO LIMONENSE | B24: 13612 | C24: 0 | D24: 0 | E24: 0 | F24: 0 | G24: 0 | H24: 0 | I24: 13612
A25: AUTÉNTICO SIQUIRREÑO | B25: 2774 | C25: 0 | D25: 0 | E25: 0 | F25: 0 | G25: 0 | H25: 0 | I25: 2774
A26: AUTÓNOMO OROMONTANO | B26: 185 | C26: 0 | D26: 0 | E26: 0 | F26: 0 | G26: 0 | H26: 185 | I26: 0
A27: AVANCE MONTES DE OCA | B27: 1953 | C27: 1953 | D27: 0 | E27: 0 | F27: 0 | G27: 0 | H27: 0 | I27: 0
A28: BARVA UNIDA | B28: 628 | C28: 0 | D28: 0 | E28: 0 | F28: 628 | G28: 0 | H28: 0 | I28: 0
A29: COALICIÓN ALIANZA POR BELEN | B29: 1242 | C29: 0 | D29: 0 | E29: 0 | F29: 1242 | G29: 0 | H29: 0 | I29: 0
A30: COALICIÓN GENTE MONTES DE OCA | B30: 3707 | C30: 3707 | D30: 0 | E30: 0 | F30: 0 | G30: 0 | H30: 0 | I30: 0
A31: COALICIÓN SOMOS TIBÁS | B31: 2510 | C31: 2510 | D31: 0 | E31: 0 | F31: 0 | G31: 0 | H31: 0 | I31: 0
A32: COALICIÓN UNIDOS POR GUATUSO | B32: 458 | C32: 0 | D32: 458 | E32: 0 | F32: 0 | G32: 0 | H32: 0 | I32: 0
A33: CURRIDABAT SIGLO XXI | B33: 7713 | C33: 7713 | D33: 0 | E33: 0 | F33: 0 | G33: 0 | H33: 0 | I33: 0
A34: DE LOS TRABAJADORES | B34: 1048 | C34: 354 | D34: 541 | E34: 0 | F34: 0 | G34: 0 | H34: 153 | I34: 0
A35: DEL SOL | B35: 1903 | C35: 1903 | D35: 0 | E35: 0 | F35: 0 | G35: 0 | H35: 0 | I35: 0
A36: DEMÓCRATA | B36: 286 | C36: 286 | D36: 0 | E36: 0 | F36: 0 | G36: 0 | H36: 0 | I36: 0
A37: DESAMPARADOS UNIDO | B37: 1413 | C37: 1413 | D37: 0 | E37: 0 | F37: 0 | G37: 0 | H37: 0 | I37: 0
A38: ECOLÓGICO COMUNAL COSTARRICENSE | B38: 3663 | C38: 3663 | D38: 0 | E38: 0 | F38: 0 | G38: 0 | H38: 0 | I38: 0
A39: FRENTE AMPLIO | B39: 51778 | C39: 15493 | D39: 7134 | E39: 7391 | F39: 8757 | G39: 5193 | H39: 3489 | I39: 4321
A40: FUERZA DEMOCRÁTICA DESAMPARADEÑA | B40: 1115 | C40: 1115 | D40: 0 | E40: 0 | F40: 0 | G40: 0 | H40: 0 | I40: 0
A41: FUERZAS UNIDAS PARA EL CAMBIO | B41: 523 | C41: 523 | D41: 0 | E41: 0 | F41: 0 | G41: 0 | H41: 0 | I41: 0
A42: GARABITO ECOLÓGICO | B42: 273 | C42: 0 | D42: 0 | E42: 0 | F42: 0 | G42: 0 | H42: 273 | I42: 0
A43: INDEPENDIENTE ESCAZUCEÑO | B43: 880 | C43: 880 | D43: 0 | E43: 0 | F43: 0 | G43: 0 | H43: 0 | I43: 0
A44: INTEGRACIÓN NACIONAL | B44: 13366 | C44: 3637 | D44: 657 | E44: 0 | F44: 0 | G44: 5793 | H44: 3279 | I44: 0
A45: JUSTICIA GENERALEÑA | B45: 2128 | C45: 2128 | D45: 0 | E45: 0 | F45: 0 | G45: 0 | H45: 0 | I45: 0
A46: LIBERACIÓN NACIONAL | B46: 350594 | C46: 81562 | D46: 94391 | E46: 42534 | F46: 40704 | G46: 35310 | H46: 33727 | I46: 22366
A47: LIGA RAMONENSE | B47: 1675 | C47: 0 | D47: 1675 | E47: 0 | F47: 0 | G47: 0 | H47: 0 | I47: 0
A48: LIMÓN INDEPENDIENTE | B48: 486 | C48: 0 | D48: 0 | E48: 0 | F48: 0 | G48: 0 | H48: 0 | I48: 486
A49: MOVIMIENTO AVANCE SANTO DOMINGO | B49: 3127 | C49: 0 | D49: 0 | E49: 0 | F49: 3127 | G49: 0 | H49: 0 | I49: 0
A50: MOVIMIENTO LIBERTARIO | B50: 37317 | C50: 12952 | D50: 5335 | E50: 2867 | F50: 2344 | G50: 3916 | H50: 3144 | I50: 6759
A51: NUEVA GENERACIÓN | B51: 40919 | C51: 16526 | D51: 9397 | E51: 4260 | F51: 4118 | G51: 3886 | H51: 1839 | I51: 893
A52: NUEVA MAYORÍA GRIEGA | B52: 4985 | C52: 0 | D52: 4985 | E52: 0 | F52: 0 | G52: 0 | H52: 0 | I52: 0
A53: PARRITA INDEPENDIENTE | B53: 1026 | C53: 0 | D53: 0 | E53: 0 | F53: 0 | G53: 0 | H53: 1026 | I53: 0
A54: PROGRESO COMUNAL DESAMPARADEÑO | B54: 1000 | C54: 1000 | D54: 0 | E54: 0 | F54: 0 | G54: 0 | H54: 0 | I54: 0
A55: PUEBLO GARABITO | B55: 753 | C55: 0 | D55: 0 | E55: 0 | F55: 0 | G55: 0 | H55: 753 | I55: 0
A56: PURISCALEÑOS DE CORAZÓN | B56: 300 | C56: 300 | D56: 0 | E56: 0 | F56: 0 | G56: 0 | H56: 0 | I56: 0
A57: RECUPERANDO VALORES | B57: 1744 | C57: 0 | D57: 0 | E57: 0 | F57: 0 | G57: 0 | H57: 0 | I57: 1744
A58: RENOVACIÓN CARTAGO | B58: 2944 | C58: 0 | D58: 0 | E58: 2944 | F58: 0 | G58: 0 | H58: 0 | I58: 0
A59: RENOVACIÓN COSTARRICENSE | B59: 28923 | C59: 6430 | D59: 6656 | E59: 241 | F59: 655 | G59: 0 | H59: 3906 | I59: 11035
A60: RENOVEMOS ALAJUELA | B60: 5351 | C60: 0 | D60: 5351 | E60: 0 | F60: 0 | G60: 0 | H60: 0 | I60: 0
A61: REPUBLICANO SOCIAL CRISTIANO | B61: 66538 | C61: 20188 | D61: 17379 | E61: 3854 | F61: 5290 | G61: 5867 | H61: 7153 | I61: 6807
A62: RESCATE CANTONAL LA UNIÓN | B62: 2797 | C62: 0 | D62: 0 | E62: 2797 | F62: 0 | G62: 0 | H62: 0 | I62: 0
A63: RESTAURACIÓN NACIONAL | B63: 11467 | C63: 8801 | D63: 1297 | E63: 96 | F63: 639 | G63: 0 | H63: 634 | I63: 0
A64: RESTAURACIÓN PARRITEÑA | B64: 422 | C64: 0 | D64: 0 | E64: 0 | F64: 0 | G64: 0 | H64: 422 | I64: 0
A65: SOLIDARIDAD | B65: 1609 | C65: 1609 | D65: 0 | E65: 0 | F65: 0 | G65: 0 | H65: 0 | I65: 0
A66: TODO POR FLORES | B66: 1349 | C66: 0 | D66: 0 | E66: 0 | F66: 1349 | G66: 0 | H66: 0 | I66: 0
A67: UNIDAD SOCIAL CRISTIANA | B67: 201620 | C67: 51375 | D67: 34323 | E67: 19017 | F67: 28055 | G67: 21992 | H67: 28841 | I67: 18017
A68: UNIÓN GUARQUEÑO | B68: 2485 | C68: 0 | D68: 0 | E68: 2485 | F68: 0 | G68: 0 | H68: 0 | I68: 0
A69: VERDE | B69: 4786 | C69: 0 | D69: 0 | E69: 4786 | F69: 0 | G69: 0 | H69: 0 | I69: 0
A70: VIVA PUNTARENAS | B70: 6134 | C70: 0 | D70: 0 | E70: 0 | F70: 0 | G70: 0 | H70: 6134 | I70: 0
A71: YUNTA PROGRESISTA ESCAZUCEÑA | B71: 10674 | C71: 10674 | D71: 0 | E71: 0 | F71: 0 | G71: 0 | H71: 0 | I71: 0
A72: VOTOS NULOS | B72: 21886 | C72: 5243 | D72: 4202 | E72: 2926 | F72: 1708 | G72: 2075 | H72: 2775 | I72: 2957
A73: VOTOS BLANCOS | B73: 7107 | C73: 1596 | D73: 1360 | E73: 1099 | F73: 487 | G73: 659 | H73: 1090 | I73: 816
A74: ABSTENCIONISMO | B74: =+B9-B10 -> 2052808 | C74: 759118 | D74: 374409 | E74: 237164 | F74: 208464 | G74: 129265 | H74: 183235 | I74: 161153
A75: % ABSTENCIONISMO | B75: =+B74/B9*100 -> 64.58693844 | C75: =+C74/C9*100 -> 69.71888096 | D75: 61.97911235 | E75: 63.38063551 | F75: 65.21143415 | G75: 55.93417625 | H75: 61.23591375 | I75: 61.6844144
A78: Fuente: Tribunal Supremo de Elecciones.

Sheet 2.2
A2: CUADRO 2.2 PROVINCIA SAN JOSÉ: ELECTORADO, PARTICIPACIÓN, VOTOS POR PARTIDO, NULOS, BLANCOS Y ABSTENCIONISMO PARA ALCALDE(SA)
A3: POR CANTÓN, ELECCIONES MUNICIPALES FEBRERO 2016
A5: JUNTAS, ELECTORADO, PARTICIPACIÓN, VOTOS POR PARTIDO, NULOS, BLANCOS Y ABSTENCIONISMO | B5: TOTAL | C5: CANTÓN
C6: SAN JOSÉ | D6: ESCAZÚ | E6: DESAMPARADOS | F6: PURISCAL | G6: TARRAZÚ | H6: ASERRÍ | I6: MORA | J6: GOICOECHEA | K6: SANTA ANA | L6: ALAJUELITA | M6: VÁZQUEZ DE CORONADO | N6: ACOSTA | O6: TIBÁS | P6: MORAVIA | Q6: MONTES DE OCA | R6: TURRUBARES | S6: DOTA | T6: CURRIDABAT | U6: PÉREZ ZELEDÓN | V6: LEÓN CORTÉS CASTRO
A8: JUNTAS | B8: 1766 | C8: 347 | D8: 66 | E8: 243 | F8: 63 | G8: 25 | H8: 68 | I8: 41 | J8: 133 | K8: 51 | L8: 72 | M8: 76 | N8: 38 | O8: 79 | P8: 59 | Q8: 63 | R8: 15 | S8: 13 | T8: 70 | U8: 221 | V8: 23
A9: ELECTORADO | B9: 1088827 | C9: 231682 | D9: 44982 | E9: 156610 | F9: 27437 | G9: 11843 | H9: 41808 | I9: 20263 | J9: 88592 | K9: 32863 | L9: 49065 | M9: 51588 | N9: 16028 | O9: 55709 | P9: 43464 | Q9: 41908 | R9: 4484 | S9: 5376 | T9: 47469 | U9: 108626 | V9: 9030
A10: VOTOS RECIBIDOS | B10: 329709 | C10: 61147 | D10: 17496 | E10: 38119 | F10: 10450 | G10: 4629 | H10: 11821 | I10: 8247 | J10: 21497 | K10: 14061 | L10: 14952 | M10: 15660 | N10: 6493 | O10: 13569 | P10: 12589 | Q10: 13076 | R10: 2884 | S10: 2975 | T10: 15481 | U10: 40695 | V10: 3868
A11: PORCENTAJE DE PARTICIPACIÓN | B11: =B10/B9*100 -> 30.28111904 | C11: 26.39264164 | D11: 38.89555822 | E11: 24.34008045 | F11: 38.08725444 | G11: 39.08638014 | H11: 28.27449292 | I11: 40.69979766 | J11: 24.26517067 | K11: 42.78672063 | L11: 30.4738612 | M11: 30.35589672 | N11: 40.51035688 | O11: 24.35692617 | P11: 28.96420026 | Q11: 31.20167987 | R11: 64.3175736 | S11: 55.33854167 | T11: 32.61286313 | U11: 37.46340655 | V11: 42.83499446
A12: VOTOS POR PARTIDO | B12: 322870 | C12: 59792 | D12: 17214 | E12: 37312 | F12: 10176 | G12: 4509 | H12: 11541 | I12: 8073 | J12: 21024 | K12: 13832 | L12: 14647 | M12: 15377 | N12: 6338 | O12: 13272 | P12: 12428 | Q12: 12858 | R12: 2833 | S12: 2903 | T12: 15234 | U12: 39739 | V12: 3768
A13: ACCESIBILIDAD SIN EXCLUSIÓN | B13: 5156 | C13: 0 | D13: 176 | E13: 935 | F13: 0 | G13: 0 | H13: 0 | I13: 0 | J13: 3629 | K13: 134 | L13: 0 | M13: 0 | N13: 0 | O13: 0 | P13: 0 | Q13: 0 | R13: 0 | S13: 0 | T13: 85 | U13: 197 | V13: 0
A14: ACCIÓN CIUDADANA | B14: 32043 | C14: 3191 | D14: 203 | E14: 2255 | F14: 2330 | G14: 627 | H14: 2643 | I14: 1357 | J14: 1752 | K14: 1817 | L14: 703 | M14: 1792 | N14: 2674 | O14: 0 | P14: 4302 | Q14: 0 | R14: 0 | S14: 185 | T14: 1042 | U14: 4348 | V14: 822
A15: ALIANZA CRISTIANA SANTANEÑA | B15: 365 | C15: 0 | D15: 0 | E15: 0 | F15: 0 | G15: 0 | H15: 0 | I15: 0 | J15: 0 | K15: 365 | L15: 0 | M15: 0 | N15: 0 | O15: 0 | P15: 0 | Q15: 0 | R15: 0 | S15: 0 | T15: 0 | U15: 0 | V15: 0
A16: ALIANZA POR SAN JOSÉ | B16: 23925 | C16: 23925 | D16: 0 | E16: 0 | F16: 0 | G16: 0 | H16: 0 | I16: 0 | J16: 0 | K16: 0 | L16: 0 | M16: 0 | N16: 0 | O16: 0 | P16: 0 | Q16: 0 | R16: 0 | S16: 0 | T16: 0 | U16: 0 | V16: 0
A17: AUTÉNTICO LABRADOR DE CORONADO | B17: 2686 | C17: 0 | D17: 0 | E17: 0 | F17: 0 | G17: 0 | H17: 0 | I17: 0 | J17: 0 | K17: 0 | L17: 0 | M17: 2686 | N17: 0 | O17: 0 | P17: 0 | Q17: 0 | R17: 0 | S17: 0 | T17: 0 | U17: 0 | V17: 0
A18: AVANCE MONTES DE OCA | B18: 1953 | C18: 0 | D18: 0 | E18: 0 | F18: 0 | G18: 0 | H18: 0 | I18: 0 | J18: 0 | K18: 0 | L18: 0 | M18: 0 | N18: 0 | O18: 0 | P18: 0 | Q18: 1953 | R18: 0 | S18: 0 | T18: 0 | U18: 0 | V18: 0
A19: COALICIÓN GENTE MONTES DE OCA | B19: 3707 | C19: 0 | D19: 0 | E19: 0 | F19: 0 | G19: 0 | H19: 0 | I19: 0 | J19: 0 | K19: 0 | L19: 0 | M19: 0 | N19: 0 | O19: 0 | P19: 0 | Q19: 3707 | R19: 0 | S19: 0 | T19: 0 | U19: 0 | V19: 0
A20: COALICIÓN SOMOS TIBÁS | B20: 2510 | C20: 0 | D20: 0 | E20: 0 | F20: 0 | G20: 0 | H20: 0 | I20: 0 | J20: 0 | K20: 0 | L20: 0 | M20: 0 | N20: 0 | O20: 2510 | P20: 0 | Q20: 0 | R20: 0 | S20: 0 | T20: 0 | U20: 0 | V20: 0
A21: CURRIDABAT SIGLO XXI | B21: 7713 | C21: 0 | D21: 0 | E21: 0 | F21: 0 | G21: 0 | H21: 0 | I21: 0 | J21: 0 | K21: 0 | L21: 0 | M21: 0 | N21: 0 | O21: 0 | P21: 0 | Q21: 0 | R21: 0 | S21: 0 | T21: 7713 | U21: 0 | V21: 0
A22: DE LOS TRABAJADORES | B22: 354 | C22: 313 | D22: 0 | E22: 0 | F22: 0 | G22: 0 | H22: 0 | I22: 0 | J22: 0 | K22: 0 | L22: 0 | M22: 0 | N22: 0 | O22: 0 | P22: 0 | Q22: 0 | R22: 0 | S22: 0 | T22: 41 | U22: 0 | V22: 0
A23: DEL SOL | B23: 1903 | C23: 0 | D23: 0 | E23: 0 | F23: 0 | G23: 0 | H23: 0 | I23: 0 | J23: 0 | K23: 1903 | L23: 0 | M23: 0 | N23: 0 | O23: 0 | P23: 0 | Q23: 0 | R23: 0 | S23: 0 | T23: 0 | U23: 0 | V23: 0
A24: DEMÓCRATA | B24: 286 | C24: 0 | D24: 0 | E24: 0 | F24: 0 | G24: 0 | H24: 0 | I24: 0 | J24: 0 | K24: 0 | L24: 0 | M24: 286 | N24: 0 | O24: 0 | P24: 0 | Q24: 0 | R24: 0 | S24: 0 | T24: 0 | U24: 0 | V24: 0
A25: DESAMPARADOS UNIDO | B25: 1413 | C25: 0 | D25: 0 | E25: 1413 | F25: 0 | G25: 0 | H25: 0 | I25: 0 | J25: 0 | K25: 0 | L25: 0 | M25: 0 | N25: 0 | O25: 0 | P25: 0 | Q25: 0 | R25: 0 | S25: 0 | T25: 0 | U25: 0 | V25: 0
A26: ECOLÓGICO COMUNAL COSTARRICENSE | B26: 3663 | C26: 0 | D26: 0 | E26: 3663 | F26: 0 | G26: 0 | H26: 0 | I26: 0 | J26: 0 | K26: 0 | L26: 0 | M26: 0 | N26: 0 | O26: 0 | P26: 0 | Q26: 0 | R26: 0 | S26: 0 | T26: 0 | U26: 0 | V26: 0
A27: FRENTE AMPLIO | B27: 15493 | C27: 3503 | D27: 610 | E27: 2425 | F27: 396 | G27: 409 | H27: 1480 | I27: 308 | J27: 2140 | K27: 0 | L27: 422 | M27: 807 | N27: 0 | O27: 0 | P27: 714 | Q27: 0 | R27: 0 | S27: 203 | T27: 537 | U27: 1539 | V27: 0
A28: FUERZA DEMOCRÁTICA DESAMPARADEÑA | B28: 1115 | C28: 0 | D28: 0 | E28: 1115 | F28: 0 | G28: 0 | H28: 0 | I28: 0 | J28: 0 | K28: 0 | L28: 0 | M28: 0 | N28: 0 | O28: 0 | P28: 0 | Q28: 0 | R28: 0 | S28: 0 | T28: 0 | U28: 0 | V28: 0
A29: FUERZAS UNIDAS PARA EL CAMBIO | B29: 523 | C29: 523 | D29: 0 | E29: 0 | F29: 0 | G29: 0 | H29: 0 | I29: 0 | J29: 0 | K29: 0 | L29: 0 | M29: 0 | N29: 0 | O29: 0 | P29: 0 | Q29: 0 | R29: 0 | S29: 0 | T29: 0 | U29: 0 | V29: 0
A30: INDEPENDIENTE ESCAZUCEÑO | B30: 880 | C30: 0 | D30: 880 | E30: 0 | F30: 0 | G30: 0 | H30: 0 | I30: 0 | J30: 0 | K30: 0 | L30: 0 | M30: 0 | N30: 0 | O30: 0 | P30: 0 | Q30: 0 | R30: 0 | S30: 0 | T30: 0 | U30: 0 | V30: 0
A31: INTEGRACIÓN NACIONAL | B31: 3637 | C31: 3399 | D31: 0 | E31: 0 | F31: 0 | G31: 0 | H31: 0 | I31: 0 | J31: 0 | K31: 0 | L31: 0 | M31: 0 | N31: 0 | O31: 238 | P31: 0 | Q31: 0 | R31: 0 | S31: 0 | T31: 0 | U31: 0 | V31: 0
A32: JUSTICIA GENERALEÑA | B32: 2128 | C32: 0 | D32: 0 | E32: 0 | F32: 0 | G32: 0 | H32: 0 | I32: 0 | J32: 0 | K32: 0 | L32: 0 | M32: 0 | N32: 0 | O32: 0 | P32: 0 | Q32: 0 | R32: 0 | S32: 0 | T32: 0 | U32: 2128 | V32: 0
A33: LIBERACIÓN NACIONAL | B33: 81562 | C33: 9536 | D33: 1963 | E33: 12113 | F33: 2917 | G33: 1160 | H33: 5048 | I33: 1433 | J33: 5118 | K33: 4992 | L33: 1501 | M33: 2509 | N33: 1852 | O33: 4747 | P33: 3128 | Q33: 2365 | R33: 1199 | S33: 2173 | T33: 3040 | U33: 11914 | V33: 2854
A34: MOVIMIENTO LIBERTARIO | B34: 12952 | C34: 2051 | D34: 1621 | E34: 1220 | F34: 216 | G34: 112 | H34: 233 | I34: 125 | J34: 1647 | K34: 1778 | L34: 303 | M34: 216 | N34: 0 | O34: 1472 | P34: 551 | Q34: 462 | R34: 16 | S34: 7 | T34: 186 | U34: 644 | V34: 92
A35: NUEVA GENERACIÓN | B35: 16526 | C35: 1032 | D35: 0 | E35: 636 | F35: 236 | G35: 0 | H35: 474 | I35: 3616 | J35: 586 | K35: 366 | L35: 4145 | M35: 0 | N35: 0 | O35: 469 | P35: 1004 | Q35: 433 | R35: 1176 | S35: 46 | T35: 130 | U35: 2177 | V35: 0
A36: PROGRESO COMUNAL DESAMPARADEÑO | B36: 1000 | C36: 0 | D36: 0 | E36: 1000 | F36: 0 | G36: 0 | H36: 0 | I36: 0 | J36: 0 | K36: 0 | L36: 0 | M36: 0 | N36: 0 | O36: 0 | P36: 0 | Q36: 0 | R36: 0 | S36: 0 | T36: 0 | U36: 0 | V36: 0
A37: PURISCALEÑOS DE CORAZÓN | B37: 300 | C37: 0 | D37: 0 | E37: 0 | F37: 300 | G37: 0 | H37: 0 | I37: 0 | J37: 0 | K37: 0 | L37: 0 | M37: 0 | N37: 0 | O37: 0 | P37: 0 | Q37: 0 | R37: 0 | S37: 0 | T37: 0 | U37: 0 | V37: 0
A38: RENOVACIÓN COSTARRICENSE | B38: 6430 | C38: 786 | D38: 158 | E38: 677 | F38: 0 | G38: 0 | H38: 0 | I38: 0 | J38: 0 | K38: 125 | L38: 3399 | M38: 0 | N38: 0 | O38: 783 | P38: 340 | Q38: 0 | R38: 0 | S38: 0 | T38: 162 | U38: 0 | V38: 0
A39: REPUBLICANO SOCIAL CRISTIANO | B39: 20188 | C39: 3602 | D39: 423 | E39: 3279 | F39: 0 | G39: 973 | H39: 0 | I39: 0 | J39: 1118 | K39: 883 | L39: 837 | M39: 6161 | N39: 0 | O39: 792 | P39: 0 | Q39: 0 | R39: 65 | S39: 0 | T39: 579 | U39: 1476 | V39: 0
A40: RESTAURACIÓN NACIONAL | B40: 8801 | C40: 0 | D40: 0 | E40: 2633 | F40: 0 | G40: 0 | H40: 0 | I40: 0 | J40: 1108 | K40: 0 | L40: 0 | M40: 0 | N40: 0 | O40: 0 | P40: 219 | Q40: 2170 | R40: 0 | S40: 0 | T40: 420 | U40: 2251 | V40: 0
A41: SOLIDARIDAD | B41: 1609 | C41: 1609 | D41: 0 | E41: 0 | F41: 0 | G41: 0 | H41: 0 | I41: 0 | J41: 0 | K41: 0 | L41: 0 | M41: 0 | N41: 0 | O41: 0 | P41: 0 | Q41: 0 | R41: 0 | S41: 0 | T41: 0 | U41: 0 | V41: 0
A42: UNIDAD SOCIAL CRISTIANA | B42: 51375 | C42: 6322 | D42: 506 | E42: 3948 | F42: 3781 | G42: 1228 | H42: 1663 | I42: 1234 | J42: 3926 | K42: 1469 | L42: 3337 | M42: 920 | N42: 1812 | O42: 2261 | P42: 2170 | Q42: 1768 | R42: 377 | S42: 289 | T42: 1299 | U42: 13065 | V42: 0
A43: YUNTA PROGRESISTA ESCAZUCEÑA | B43: 10674 | C43: 0 | D43: 10674 | E43: 0 | F43: 0 | G43: 0 | H43: 0 | I43: 0 | J43: 0 | K43: 0 | L43: 0 | M43: 0 | N43: 0 | O43: 0 | P43: 0 | Q43: 0 | R43: 0 | S43: 0 | T43: 0 | U43: 0 | V43: 0
A44: VOTOS NULOS | B44: 5243 | C44: 1074 | D44: 233 | E44: 615 | F44: 186 | G44: 79 | H44: 199 | I44: 136 | J44: 381 | K44: 166 | L44: 264 | M44: 237 | N44: 115 | O44: 238 | P44: 129 | Q44: 183 | R44: 31 | S44: 37 | T44: 184 | U44: 689 | V44: 67
A45: VOTOS EN BLANCO | B45: 1596 | C45: 281 | D45: 49 | E45: 192 | F45: 88 | G45: 41 | H45: 81 | I45: 38 | J45: 92 | K45: 63 | L45: 41 | M45: 46 | N45: 40 | O45: 59 | P45: 32 | Q45: 35 | R45: 20 | S45: 35 | T45: 63 | U45: 267 | V45: 33
A46: ABSTENCIONISMO | B46: =+B9-B10 -> 759118 | C46: 170535 | D46: 27486 | E46: 118491 | F46: 16987 | G46: 7214 | H46: 29987 | I46: 12016 | J46: 67095 | K46: 18802 | L46: 34113 | M46: 35928 | N46: 9535 | O46: 42140 | P46: 30875 | Q46: 28832 | R46: 1600 | S46: 2401 | T46: 31988 | U46: 67931 | V46: 5162
A47: % ABSTENCIONISMO | B47: =+B46/B9*100 -> 69.71888096 | C47: 73.60735836 | D47: 61.10444178 | E47: 75.65991955 | F47: 61.91274556 | G47: 60.91361986 | H47: 71.72550708 | I47: 59.30020234 | J47: 75.73482933 | K47: 57.21327937 | L47: 69.5261388 | M47: 69.64410328 | N47: 59.48964312 | O47: 75.64307383 | P47: 71.03579974 | Q47: 68.79832013 | R47: 35.6824264 | S47: 44.66145833 | T47: 67.38713687 | U47: 62.53659345 | V47: 57.16500554
A50: Fuente: Tribunal Supremo de Elecciones.

Sheet 2.3
A2: CUADRO 2.3 PROVINCIA ALAJUELA: JUNTAS, ELECTORADO, PARTICIPACIÓN, VOTOS POR PARTIDO, NULOS, BLANCOS Y ABSTENCIONISMO PARA ALCALDE(SA)
A3: POR CANTÓN, ELECCIONES MUNICIPALES FEBRERO 2016
A5: JUNTAS, ELECTORADO, PARTICIPACIÓN, VOTOS POR PARTIDO, NULOS, BLANCOS Y ABSTENCIONISMO | B5: TOTAL | C5: CANTÓN
C6: ALAJUELA | D6: SAN RAMÓN | E6: GRECIA | F6: SAN MATEO | G6: ATENAS | H6: NARANJO | I6: PALMARES | J6: POÁS | K6: OROTINA | L6: SAN CARLOS | M6: ZARCERO | N6: VALVERDE VEGA | O6: UPALA | P6: LOS CHILES | Q6: GUATUSO
A8: JUNTAS | B8: 1102 | C8: 312 | D8: 113 | E8: 104 | F8: 11 | G8: 35 | H8: 57 | I8: 47 | J8: 36 | K8: 28 | L8: 200 | M8: 21 | N8: 27 | O8: 60 | P8: 28 | Q8: 23
A9: ELECTORADO | B9: 604089 | C9: 193568 | D9: 60762 | E9: 57118 | F9: 4365 | G9: 19661 | H9: 30801 | I9: 28151 | J9: 20803 | K9: 14762 | L9: 102906 | M9: 8802 | N9: 14208 | O9: 26574 | P9: 11212 | Q9: 10396
A10: VOTOS RECIBIDOS | B10: 229680 | C10: 56908 | D10: 22590 | E10: 21521 | F10: 2703 | G10: 9646 | H10: 13065 | I10: 12701 | J10: 9018 | K10: 6464 | L10: 42818 | M10: 4776 | N10: 6770 | O10: 11071 | P10: 4860 | Q10: 4769
A11: PORCENTAJE DE PARTICIPACIÓN | B11: =B10/B9*100 -> 38.02088765 | C11: =C10/C9*100 -> 29.39948752 | D11: 37.17784141 | E11: 37.67813999 | F11: 61.92439863 | G11: 49.06159402 | H11: 42.41745398 | I11: 45.11740258 | J11: 43.3495169 | K11: 43.78810459 | L11: 41.60884691 | M11: 54.26039536 | N11: 47.64921171 | O11: 41.66102205 | P11: 43.34641456 | Q11: 45.87341285
A12: VOTOS POR PARTIDO | B12: 224118 | C12: 55550 | D12: 21880 | E12: 21001 | F12: 2649 | G12: 9440 | H12: 12716 | I12: 12405 | J12: 8805 | K12: 6356 | L12: 41812 | M12: 4694 | N12: 6662 | O12: 10810 | P12: 4729 | Q12: 4609
A13: ACCESIBILIDAD SIN EXCLUSIÓN | B13: 56 | C13: 0 | D13: 0 | E13: 0 | F13: 0 | G13: 0 | H13: 0 | I13: 56 | J13: 0 | K13: 0 | L13: 0 | M13: 0 | N13: 0 | O13: 0 | P13: 0 | Q13: 0
A14: ACCIÓN CIUDADANA | B14: 31432 | C14: 3039 | D14: 3023 | E14: 840 | F14: 399 | G14: 2521 | H14: 2589 | I14: 3211 | J14: 1299 | K14: 0 | L14: 10928 | M14: 0 | N14: 386 | O14: 2435 | P14: 762 | Q14: 0
A15: ALIANZA POR PALMARES | B15: 2349 | C15: 0 | D15: 0 | E15: 0 | F15: 0 | G15: 0 | H15: 0 | I15: 2349 | J15: 0 | K15: 0 | L15: 0 | M15: 0 | N15: 0 | O15: 0 | P15: 0 | Q15: 0
A16: ALIANZA SANCARLEÑA | B16: 702 | C16: 0 | D16: 0 | E16: 0 | F16: 0 | G16: 0 | H16: 0 | I16: 0 | J16: 0 | K16: 0 | L16: 702 | M16: 0 | N16: 0 | O16: 0 | P16: 0 | Q16: 0
A17: COALICIÓN UNIDOS POR GUATUSO | B17: 458 | C17: 0 | D17: 0 | E17: 0 | F17: 0 | G17: 0 | H17: 0 | I17: 0 | J17: 0 | K17: 0 | L17: 0 | M17: 0 | N17: 0 | O17: 0 | P17: 0 | Q17: 458
A18: DE LOS TRABAJADORES | B18: 541 | C18: 285 | D18: 0 | E18: 0 | F18: 0 | G18: 0 | H18: 0 | I18: 0 | J18: 0 | K18: 0 | L18: 0 | M18: 0 | N18: 0 | O18: 0 | P18: 256 | Q18: 0
A19: FRENTE AMPLIO | B19: 7134 | C19: 1696 | D19: 1067 | E19: 748 | F19: 178 | G19: 370 | H19: 697 | I19: 276 | J19: 554 | K19: 0 | L19: 492 | M19: 0 | N19: 0 | O19: 228 | P19: 828 | Q19: 0
A20: INTEGRACIÓN NACIONAL | B20: 657 | C20: 0 | D20: 0 | E20: 0 | F20: 0 | G20: 0 | H20: 657 | I20: 0 | J20: 0 | K20: 0 | L20: 0 | M20: 0 | N20: 0 | O20: 0 | P20: 0 | Q20: 0
A21: LIBERACIÓN NACIONAL | B21: 94391 | C21: 33006 | D21: 8943 | E21: 6876 | F21: 1697 | G21: 2434 | H21: 1772 | I21: 3116 | J21: 2177 | K21: 3550 | L21: 18320 | M21: 2559 | N21: 1717 | O21: 5184 | P21: 1715 | Q21: 1325
A22: LIGA RAMONENSE | B22: 1675 | C22: 0 | D22: 1675 | E22: 0 | F22: 0 | G22: 0 | H22: 0 | I22: 0 | J22: 0 | K22: 0 | L22: 0 | M22: 0 | N22: 0 | O22: 0 | P22: 0 | Q22: 0
A23: MOVIMIENTO LIBERTARIO | B23: 5335 | C23: 1016 | D23: 235 | E23: 2159 | F23: 79 | G23: 224 | H23: 568 | I23: 348 | J23: 0 | K23: 0 | L23: 0 | M23: 44 | N23: 0 | O23: 98 | P23: 103 | Q23: 461
A24: NUEVA GENERACIÓN | B24: 9397 | C24: 466 | D24: 3304 | E24: 0 | F24: 0 | G24: 0 | H24: 0 | I24: 633 | J24: 122 | K24: 67 | L24: 2342 | M24: 0 | N24: 1856 | O24: 0 | P24: 0 | Q24: 607
A25: NUEVA MAYORÍA GRIEGA | B25: 4985 | C25: 0 | D25: 0 | E25: 4985 | F25: 0 | G25: 0 | H25: 0 | I25: 0 | J25: 0 | K25: 0 | L25: 0 | M25: 0 | N25: 0 | O25: 0 | P25: 0 | Q25: 0
A26: RENOVACIÓN COSTARRICENSE | B26: 6656 | C26: 1405 | D26: 0 | E26: 693 | F26: 0 | G26: 0 | H26: 2071 | I26: 294 | J26: 809 | K26: 60 | L26: 1092 | M26: 0 | N26: 0 | O26: 0 | P26: 232 | Q26: 0
A27: RENOVEMOS ALAJUELA | B27: 5351 | C27: 5351 | D27: 0 | E27: 0 | F27: 0 | G27: 0 | H27: 0 | I27: 0 | J27: 0 | K27: 0 | L27: 0 | M27: 0 | N27: 0 | O27: 0 | P27: 0 | Q27: 0
A28: REPUBLICANO SOCIAL CRISTIANO | B28: 17379 | C28: 1293 | D28: 1697 | E28: 2474 | F28: 101 | G28: 1121 | H28: 1345 | I28: 303 | J28: 1407 | K28: 53 | L28: 2820 | M28: 335 | N28: 0 | O28: 2865 | P28: 608 | Q28: 957
A29: RESTAURACIÓN NACIONAL | B29: 1297 | C29: 550 | D29: 224 | E29: 0 | F29: 0 | G29: 0 | H29: 0 | I29: 0 | J29: 319 | K29: 204 | L29: 0 | M29: 0 | N29: 0 | O29: 0 | P29: 0 | Q29: 0
A30: UNIDAD SOCIAL CRISTIANA | B30: 34323 | C30: 7443 | D30: 1712 | E30: 2226 | F30: 195 | G30: 2770 | H30: 3017 | I30: 1819 | J30: 2118 | K30: 2422 | L30: 5116 | M30: 1756 | N30: 2703 | O30: 0 | P30: 225 | Q30: 801
A31: VOTOS NULOS | B31: 4202 | C31: 1015 | D31: 503 | E31: 397 | F31: 38 | G31: 161 | H31: 279 | I31: 216 | J31: 176 | K31: 82 | L31: 805 | M31: 60 | N31: 87 | O31: 172 | P31: 97 | Q31: 114
A32: VOTOS EN BLANCO | B32: 1360 | C32: 343 | D32: 207 | E32: 123 | F32: 16 | G32: 45 | H32: 70 | I32: 80 | J32: 37 | K32: 26 | L32: 201 | M32: 22 | N32: 21 | O32: 89 | P32: 34 | Q32: 46
A33: ABSTENCIONISMO | B33: =+B9-B10 -> 374409 | C33: =+C9-C10 -> 136660 | D33: 38172 | E33: 35597 | F33: 1662 | G33: 10015 | H33: 17736 | I33: 15450 | J33: 11785 | K33: 8298 | L33: 60088 | M33: 4026 | N33: 7438 | O33: 15503 | P33: 6352 | Q33: 5627
A34: % ABSTENCIONISMO | B34: =+B33/B9*100 -> 61.97911235 | C34: =+C33/C9*100 -> 70.60051248 | D34: 62.82215859 | E34: 62.32186001 | F34: 38.07560137 | G34: 50.93840598 | H34: 57.58254602 | I34: 54.88259742 | J34: 56.6504831 | K34: 56.21189541 | L34: 58.39115309 | M34: 45.73960464 | N34: 52.35078829 | O34: 58.33897795 | P34: 56.65358544 | Q34: 54.12658715
A37: Fuente: Tribunal Supremo de Elecciones.

Sheet 2.4
A2: CUADRO 2.4 PROVINCIA CARTAGO: JUNTAS, ELECTORADO, PARTICIPACIÓN, VOTOS POR PARTIDO, NULOS, BLANCOS Y ABSTENCIONISMO
A3: PARA ALCALDE(SA), POR CANTÓN, ELECCIONES MUNICIPALES FEBRERO 2016
A5: JUNTAS, ELECTORADO, PARTICIPACIÓN, VOTOS POR PARTIDO, NULOS, BLANCOS Y ABSTENCIONISMO | B5: TOTAL | C5: CANTÓN
C6: CARTAGO | D6: PARAÍSO | E6: LA UNIÓN | F6: JIMÉNEZ | G6: TURRIALBA | H6: ALVARADO | I6: OREAMUNO | J6: EL GUARCO
A8: JUNTAS | B8: 629 | C8: 183 | D8: 74 | E8: 106 | F8: 22 | G8: 122 | H8: 19 | I8: 56 | J8: 47
A9: ELECTORADO | B9: 374190 | C9: 117991 | D9: 44765 | E9: 67581 | F9: 11681 | G9: 55945 | H9: 9985 | I9: 34952 | J9: 31290
A10: VOTOS RECIBIDOS | B10: 137026 | C10: 42281 | D10: 19127 | E10: 19294 | F10: 6529 | G10: 20395 | H10: 4830 | I10: 12108 | J10: 12462
A11: PORCENTAJE DE PARTICIPACIÓN | B11: =B10/B9*100 -> 36.61936449 | C11: 35.83408904 | D11: 42.72757735 | E11: 28.54944437 | F11: 55.89418714 | G11: 36.45544731 | H11: 48.37255884 | I11: 34.64179446 | J11: 39.8274209
A12: VOTOS POR PARTIDO | B12: 133001 | C12: 41233 | D12: 18383 | E12: 18873 | F12: 6236 | G12: 19776 | H12: 4654 | I12: 11717 | J12: 12129
A13: ACCESIBILIDAD SIN EXCLUSIÓN | B13: 7872 | C13: 2083 | D13: 5431 | E13: 212 | F13: 146 | G13: 0 | H13: 0 | I13: 0 | J13: 0
A14: ACCIÓN CIUDADANA | B14: 16361 | C14: 2887 | D14: 563 | E14: 924 | F14: 1435 | G14: 6234 | H14: 909 | I14: 2649 | J14: 760
A15: ALIANZA DEMÓCRATA CRISTIANA | B15: 12389 | C15: 6463 | D15: 1008 | E15: 1817 | F15: 170 | G15: 659 | H15: 136 | I15: 1399 | J15: 737
A16: ALIANZA SOCIAL POR LA UNIÓN | B16: 3107 | C16: 0 | D16: 0 | E16: 3107 | F16: 0 | G16: 0 | H16: 0 | I16: 0 | J16: 0
A17: FRENTE AMPLIO | B17: 7391 | C17: 2112 | D17: 436 | E17: 1087 | F17: 336 | G17: 1848 | H17: 0 | I17: 860 | J17: 712
A18: LIBERACIÓN NACIONAL | B18: 42534 | C18: 15870 | D18: 3128 | E18: 4652 | F18: 3080 | G18: 4363 | H18: 1707 | I18: 3255 | J18: 6479
A19: MOVIMIENTO LIBERTARIO | B19: 2867 | C19: 1090 | D19: 522 | E19: 954 | F19: 0 | G19: 0 | H19: 0 | I19: 176 | J19: 125
A20: NUEVA GENERACIÓN | B20: 4260 | C20: 476 | D20: 1825 | E20: 360 | F20: 0 | G20: 873 | H20: 726 | I20: 0 | J20: 0
A21: RENOVACIÓN CARTAGO | B21: 2944 | C21: 2944 | D21: 0 | E21: 0 | F21: 0 | G21: 0 | H21: 0 | I21: 0 | J21: 0
A22: RENOVACIÓN COSTARRICENSE | B22: 241 | C22: 0 | D22: 241 | E22: 0 | F22: 0 | G22: 0 | H22: 0 | I22: 0 | J22: 0
A23: REPUBLICANO SOCIAL CRISTIANO | B23: 3854 | C23: 825 | D23: 0 | E23: 591 | F23: 0 | G23: 1512 | H23: 308 | I23: 547 | J23: 71
A24: RESCATE CANTONAL LA UNIÓN | B24: 2797 | C24: 0 | D24: 0 | E24: 2797 | F24: 0 | G24: 0 | H24: 0 | I24: 0 | J24: 0
A25: RESTAURACIÓN NACIONAL | B25: 96 | C25: 0 | D25: 0 | E25: 0 | F25: 0 | G25: 0 | H25: 96 | I25: 0 | J25: 0
A26: UNIDAD SOCIAL CRISTIANA | B26: 19017 | C26: 5940 | D26: 1721 | E26: 1637 | F26: 1069 | G26: 4287 | H26: 772 | I26: 2831 | J26: 760
A27: UNIÓN GUARQUEÑO | B27: 2485 | C27: 0 | D27: 0 | E27: 0 | F27: 0 | G27: 0 | H27: 0 | I27: 0 | J27: 2485
A28: VERDE | B28: 4786 | C28: 543 | D28: 3508 | E28: 735 | F28: 0 | G28: 0 | H28: 0 | I28: 0 | J28: 0
A29: VOTOS NULOS | B29: 2926 | C29: 781 | D29: 576 | E29: 333 | F29: 100 | G29: 458 | H29: 128 | I29: 298 | J29: 252
A30: VOTOS EN BLANCO | B30: 1099 | C30: 267 | D30: 168 | E30: 88 | F30: 193 | G30: 161 | H30: 48 | I30: 93 | J30: 81
A31: ABSTENCIONISMO | B31: =+B9-B10 -> 237164 | C31: =+C9-C10 -> 75710 | D31: 25638 | E31: 48287 | F31: 5152 | G31: 35550 | H31: 5155 | I31: 22844 | J31: 18828
A32: % ABSTENCIONISMO | B32: =+B31/B9*100 -> 63.38063551 | C32: 64.16591096 | D32: 57.27242265 | E32: 71.45055563 | F32: 44.10581286 | G32: 63.54455269 | H32: 51.62744116 | I32: 65.35820554 | J32: 60.1725791
A35: Fuente: Tribunal Supremo de Elecciones.

Sheet 2.5
A2: CUADRO 2.5 PROVINCIA HEREDIA: ELECTORADO, PARTICIPACIÓN, VOTOS POR PARTIDO, NULOS, BLANCOS Y ABSTENCIONISMO
A3: PARA ALCALDE(SA), POR CANTÓN, ELECCIONES MUNICIPALES FEBRERO 2016
A5: JUNTAS, ELECTORADO, PARTICIPACIÓN, VOTOS POR PARTIDO, NULOS, BLANCOS Y ABSTENCIONISMO | B5: TOTAL | C5: CANTÓN
C6: HEREDIA | D6: BARVA | E6: SANTO DOMINGO | F6: SANTA BÁRBARA | G6: SAN RAFAEL | H6: SAN ISIDRO | I6: BELÉN | J6: FLORES | K6: SAN PABLO | L6: SARAPIQUÍ
A8: JUNTAS | B8: 511 | C8: 137 | D8: 50 | E8: 52 | F8: 42 | G8: 51 | H8: 26 | I8: 27 | J8: 24 | K8: 32 | L8: 70
A9: ELECTORADO | B9: 319674 | C9: 93490 | D9: 31461 | E9: 33424 | F9: 25704 | G9: 33543 | H9: 15301 | I9: 18013 | J9: 15949 | K9: 21083 | L9: 31706
A10: VOTOS RECIBIDOS | B10: 111210 | C10: 25685 | D10: 11248 | E10: 12069 | F10: 9501 | G10: 10895 | H10: 6797 | I10: 8060 | J10: 7091 | K10: 7786 | L10: 12078
A11: PORCENTAJE DE PARTICIPACIÓN | B11: =B10/B9*100 -> 34.78856585 | C11: =C10/C9*100 -> 27.47352658 | D11: 35.75220114 | E11: 36.10878411 | F11: 36.96311858 | G11: 32.48069642 | H11: 44.42193321 | I11: 44.74546161 | J11: 44.46046774 | K11: 36.93022815 | L11: =L10/L9*100 -> 38.0937362
A12: VOTOS POR PARTIDO | B12: 109015 | C12: 25238 | D12: 11026 | E12: 11819 | F12: 9300 | G12: 10648 | H12: 6682 | I12: 7961 | J12: 6969 | K12: 7658 | L12: 11714
A13: ACCIÓN CIUDADANA | B13: 12107 | C13: 1903 | D13: 2276 | E13: 1520 | F13: 802 | G13: 1898 | H13: 509 | I13: 0 | J13: 1355 | K13: 454 | L13: 1390
A14: BARVA UNIDA | B14: 628 | C14: 0 | D14: 628 | E14: 0 | F14: 0 | G14: 0 | H14: 0 | I14: 0 | J14: 0 | K14: 0 | L14: 0
A15: COALICIÓN ALIANZA POR BELEN | B15: 1242 | C15: 0 | D15: 0 | E15: 0 | F15: 0 | G15: 0 | H15: 0 | I15: 1242 | J15: 0 | K15: 0 | L15: 0
A16: FRENTE AMPLIO | B16: 8757 | C16: 1425 | D16: 3002 | E16: 0 | F16: 1085 | G16: 1249 | H16: 289 | I16: 0 | J16: 441 | K16: 441 | L16: 825
A17: LIBERACIÓN NACIONAL | B17: 40704 | C17: 13735 | D17: 2469 | E17: 3572 | F17: 3157 | G17: 4498 | H17: 2179 | I17: 1824 | J17: 1968 | K17: 2275 | L17: 5027
A18: MOVIMIENTO AVANCE SANTO DOMINGO | B18: 3127 | C18: 0 | D18: 0 | E18: 3127 | F18: 0 | G18: 0 | H18: 0 | I18: 0 | J18: 0 | K18: 0 | L18: 0
A19: MOVIMIENTO LIBERTARIO | B19: 2344 | C19: 583 | D19: 170 | E19: 518 | F19: 132 | G19: 588 | H19: 56 | I19: 71 | J19: 0 | K19: 77 | L19: 149
A20: NUEVA GENERACIÓN | B20: 4118 | C20: 1231 | D20: 0 | E20: 431 | F20: 1350 | G20: 0 | H20: 0 | I20: 0 | J20: 0 | K20: 330 | L20: 776
A21: RENOVACIÓN COSTARRICENSE | B21: 655 | C21: 361 | D21: 132 | E21: 0 | F21: 0 | G21: 0 | H21: 0 | I21: 0 | J21: 0 | K21: 0 | L21: 162
A22: REPUBLICANO SOCIAL CRISTIANO | B22: 5290 | C22: 0 | D22: 1055 | E22: 217 | F22: 1625 | G22: 790 | H22: 49 | I22: 848 | J22: 131 | K22: 47 | L22: 528
A23: RESTAURACIÓN NACIONAL | B23: 639 | C23: 0 | D23: 0 | E23: 0 | F23: 0 | G23: 0 | H23: 0 | I23: 0 | J23: 116 | K23: 523 | L23: 0
A24: TODO POR FLORES | B24: 1349 | C24: 0 | D24: 0 | E24: 0 | F24: 0 | G24: 0 | H24: 0 | I24: 0 | J24: 1349 | K24: 0 | L24: 0
A25: UNIDAD SOCIAL CRISTIANA | B25: 28055 | C25: 6000 | D25: 1294 | E25: 2434 | F25: 1149 | G25: 1625 | H25: 3600 | I25: 3976 | J25: 1609 | K25: 3511 | L25: 2857
A26: VOTOS NULOS | B26: 1708 | C26: 331 | D26: 171 | E26: 209 | F26: 161 | G26: 196 | H26: 83 | I26: 73 | J26: 103 | K26: 106 | L26: 275
A27: VOTOS EN BLANCO | B27: 487 | C27: 116 | D27: 51 | E27: 41 | F27: 40 | G27: 51 | H27: 32 | I27: 26 | J27: 19 | K27: 22 | L27: 89
A28: ABSTENCIONISMO | B28: =+B9-B10 -> 208464 | C28: =+C9-C10 -> 67805 | D28: 20213 | E28: 21355 | F28: 16203 | G28: 22648 | H28: 8504 | I28: 9953 | J28: 8858 | K28: 13297 | L28: 19628
A29: % ABSTENCIONISMO | B29: =+B28/B9*100 -> 65.21143415 | C29: =+C28/C9*100 -> 72.52647342 | D29: 64.24779886 | E29: 63.89121589 | F29: 63.03688142 | G29: 67.51930358 | H29: 55.57806679 | I29: 55.25453839 | J29: 55.53953226 | K29: 63.06977185 | L29: 61.9062638
A32: Fuente: Tribunal Supremo de Elecciones.

Sheet 2.6
A2: CUADRO 2.6 PROVINCIA GUANACASTE: ELECTORADO, PARTICIPACIÓN, VOTOS POR PARTIDO, NULOS, BLANCOS Y ABSTENCIONISMO
A3: PARA ALCALDE(SA), POR CANTÓN, ELECCIONES MUNICIPALES FEBRERO 2016
A5: JUNTAS, ELECTORADO, PARTICIPACIÓN, VOTOS POR PARTIDO, NULOS, BLANCOS Y ABSTENCIONISMO | B5: TOTAL | C5: CANTÓN
C6: LIBERIA | D6: NICOYA | E6: SANTA CRUZ | F6: BAGACES | G6: CARRILLO | H6: CAÑAS | I6: ABANGARES | J6: TILARÁN | K6: NANDAYURE | L6: LA CRUZ | M6: HOJANCHA
A8: JUNTAS | B8: 502 | C8: 69 | D8: 98 | E8: 80 | F8: 29 | G8: 43 | H8: 37 | I8: 35 | J8: 36 | K8: 29 | L8: 28 | M8: 18
A9: ELECTORADO | B9: 231102 | C9: 43058 | D9: 39567 | E9: 39432 | F9: 13067 | G9: 23197 | H9: 19065 | I9: 13237 | J9: 14622 | K9: 8278 | L9: 11808 | M9: 5771
A10: VOTOS RECIBIDOS | B10: 101837 | C10: 13427 | D10: 17925 | E10: 18098 | F10: 4961 | G10: 10672 | H10: 7072 | I10: 7341 | J10: 8298 | K10: 4782 | L10: 5592 | M10: 3669
A11: PORCENTAJE DE PARTICIPACIÓN | B11: =B10/B9*100 -> 44.06582375 | C11: 31.1835199 | D11: 45.30290394 | E11: 45.89673362 | F11: 37.96586822 | G11: 46.00594905 | H11: 37.09415159 | I11: 55.45818539 | J11: 56.75010259 | K11: 57.76757671 | L11: 47.35772358 | M11: 63.57650321
A12: VOTOS POR PARTIDO | B12: 99103 | C12: 13113 | D12: 17417 | E12: 17496 | F12: 4795 | G12: 10435 | H12: 6960 | I12: 7117 | J12: 8115 | K12: 4610 | L12: 5477 | M12: 3568
A13: ACCESIBILIDAD SIN EXCLUSIÓN | B13: 3046 | C13: 3046 | D13: 0 | E13: 0 | F13: 0 | G13: 0 | H13: 0 | I13: 0 | J13: 0 | K13: 0 | L13: 0 | M13: 0
A14: ACCIÓN CIUDADANA | B14: 14100 | C14: 2104 | D14: 1547 | E14: 2465 | F14: 1364 | G14: 1356 | H14: 405 | I14: 604 | J14: 1074 | K14: 608 | L14: 363 | M14: 2210
A15: FRENTE AMPLIO | B15: 5193 | C15: 380 | D15: 2120 | E15: 931 | F15: 0 | G15: 0 | H15: 70 | I15: 612 | J15: 0 | K15: 1080 | L15: 0 | M15: 0
A16: INTEGRACIÓN NACIONAL | B16: 5793 | C16: 0 | D16: 0 | E16: 4073 | F16: 0 | G16: 0 | H16: 0 | I16: 1720 | J16: 0 | K16: 0 | L16: 0 | M16: 0
A17: LIBERACIÓN NACIONAL | B17: 35310 | C17: 3193 | D17: 7686 | E17: 4229 | F17: 1466 | G17: 4335 | H17: 4848 | I17: 2371 | J17: 2452 | K17: 1316 | L17: 2485 | M17: 929
A18: MOVIMIENTO LIBERTARIO | B18: 3916 | C18: 804 | D18: 0 | E18: 334 | F18: 250 | G18: 283 | H18: 0 | I18: 200 | J18: 2045 | K18: 0 | L18: 0 | M18: 0
A19: NUEVA GENERACIÓN | B19: 3886 | C19: 1177 | D19: 0 | E19: 613 | F19: 780 | G19: 0 | H19: 0 | I19: 0 | J19: 0 | K19: 1316 | L19: 0 | M19: 0
A20: REPUBLICANO SOCIAL CRISTIANO | B20: 5867 | C20: 188 | D20: 552 | E20: 947 | F20: 446 | G20: 2654 | H20: 0 | I20: 354 | J20: 491 | K20: 155 | L20: 0 | M20: 80
A21: UNIDAD SOCIAL CRISTIANA | B21: 21992 | C21: 2221 | D21: 5512 | E21: 3904 | F21: 489 | G21: 1807 | H21: 1637 | I21: 1256 | J21: 2053 | K21: 135 | L21: 2629 | M21: 349
A22: VOTOS NULOS | B22: 2075 | C22: 240 | D22: 365 | E22: 443 | F22: 146 | G22: 186 | H22: 84 | I22: 170 | J22: 153 | K22: 137 | L22: 77 | M22: 74
A23: VOTOS EN BLANCO | B23: 659 | C23: 74 | D23: 143 | E23: 159 | F23: 20 | G23: 51 | H23: 28 | I23: 54 | J23: 30 | K23: 35 | L23: 38 | M23: 27
A24: ABSTENCIONISMO | B24: =+B9-B10 -> 129265 | C24: 29631 | D24: 21642 | E24: 21334 | F24: 8106 | G24: 12525 | H24: 11993 | I24: 5896 | J24: 6324 | K24: 3496 | L24: 6216 | M24: 2102
A25: % ABSTENCIONISMO | B25: =+B24/B9*100 -> 55.93417625 | C25: =+C24/C9*100 -> 68.8164801 | D25: 54.69709606 | E25: 54.10326638 | F25: 62.03413178 | G25: 53.99405095 | H25: 62.90584841 | I25: 44.54181461 | J25: 43.24989741 | K25: 42.23242329 | L25: 52.64227642 | M25: 36.42349679
A28: Fuente: Tribunal Supremo de Elecciones.

Sheet 2.7
A2: CUADRO 2.7 PROVINCIA PUNTARENAS: ELECTORADO, PARTICIPACIÓN, VOTOS POR PARTIDO, NULOS, BLANCOS Y ABSTENCIONISMO
A3: PARA ALCALDE(SA), POR CANTÓN, ELECCIONES MUNICIPALES FEBRERO 2016
A5: JUNTAS, ELECTORADO, PARTICIPACIÓN, VOTOS POR PARTIDO, NULOS, BLANCOS Y ABSTENCIONISMO | B5: TOTAL | C5: CANTÓN
C6: PUNTARENAS | D6: ESPARZA | E6: BUENOS AIRES | F6: MONTES DE ORO | G6: OSA | H6: AGUIRRE | I6: GOLFITO | J6: COTO BRUS | K6: PARRITA | L6: CORREDORES | M6: GARABITO
A8: JUNTAS | B8: 648 | C8: 174 | D8: 43 | E8: 75 | F8: 22 | G8: 52 | H8: 40 | I8: 61 | J8: 66 | K8: 31 | L8: 64 | M8: 20
A9: ELECTORADO | B9: 299228 | C9: 84342 | D9: 21685 | E9: 30931 | F9: 9941 | G9: 21229 | H9: 18798 | I9: 28587 | J9: 28684 | K9: 11285 | L9: 32790 | M9: 10956
A10: VOTOS RECIBIDOS | B10: 115993 | C10: 29822 | D10: 10499 | E10: 10584 | F10: 6495 | G10: 9429 | H10: 8172 | I10: 9648 | J10: 10399 | K10: 5382 | L10: 10597 | M10: 4966
A11: PORCENTAJE DE PARTICIPACIÓN | B11: =B10/B9*100 -> 38.76408625 | C11: 35.35842166 | D11: 48.41595573 | E11: 34.21809835 | F11: 65.33547933 | G11: 44.41565783 | H11: 43.47270986 | I11: 33.74960646 | J11: 36.25366058 | K11: 47.69162605 | L11: 32.31777981 | M11: 45.32676159
A12: VOTOS POR PARTIDO | B12: 112128 | C12: 28681 | D12: 10285 | E12: 10172 | F12: 6326 | G12: 9131 | H12: 7903 | I12: 9175 | J12: 10134 | K12: 5235 | L12: 10231 | M12: 4855
A13: ACCESIBILIDAD SIN EXCLUSIÓN | B13: 761 | C13: 428 | D13: 28 | E13: 0 | F13: 0 | G13: 0 | H13: 305 | I13: 0 | J13: 0 | K13: 0 | L13: 0 | M13: 0
A14: ACCIÓN CIUDADANA | B14: 16005 | C14: 3600 | D14: 643 | E14: 2370 | F14: 3116 | G14: 1376 | H14: 241 | I14: 1398 | J14: 1707 | K14: 386 | L14: 911 | M14: 257
A15: ACUERDO DE ALIANZA DE QUEPOS | B15: 404 | C15: 0 | D15: 0 | E15: 0 | F15: 0 | G15: 0 | H15: 404 | I15: 0 | J15: 0 | K15: 0 | L15: 0 | M15: 0
A16: AUTÓNOMO OROMONTANO | B16: 185 | C16: 0 | D16: 0 | E16: 0 | F16: 185 | G16: 0 | H16: 0 | I16: 0 | J16: 0 | K16: 0 | L16: 0 | M16: 0
A17: DE LOS TRABAJADORES | B17: 153 | C17: 153 | D17: 0 | E17: 0 | F17: 0 | G17: 0 | H17: 0 | I17: 0 | J17: 0 | K17: 0 | L17: 0 | M17: 0
A18: FRENTE AMPLIO | B18: 3489 | C18: 1476 | D18: 292 | E18: 206 | F18: 124 | G18: 231 | H18: 0 | I18: 500 | J18: 0 | K18: 0 | L18: 660 | M18: 0
A19: GARABITO ECOLÓGICO | B19: 273 | C19: 0 | D19: 0 | E19: 0 | F19: 0 | G19: 0 | H19: 0 | I19: 0 | J19: 0 | K19: 0 | L19: 0 | M19: 273
A20: INTEGRACIÓN NACIONAL | B20: 3279 | C20: 1300 | D20: 0 | E20: 0 | F20: 0 | G20: 906 | H20: 1073 | I20: 0 | J20: 0 | K20: 0 | L20: 0 | M20: 0
A21: LIBERACIÓN NACIONAL | B21: 33727 | C21: 7533 | D21: 3725 | E21: 3072 | F21: 2330 | G21: 2694 | H21: 1666 | I21: 2834 | J21: 2724 | K21: 1851 | L21: 3395 | M21: 1903
A22: MOVIMIENTO LIBERTARIO | B22: 3144 | C22: 757 | D22: 262 | E22: 144 | F22: 44 | G22: 45 | H22: 227 | I22: 226 | J22: 507 | K22: 336 | L22: 482 | M22: 114
A23: NUEVA GENERACIÓN | B23: 1839 | C23: 741 | D23: 0 | E23: 472 | F23: 0 | G23: 0 | H23: 626 | I23: 0 | J23: 0 | K23: 0 | L23: 0 | M23: 0
A24: PARRITA INDEPENDIENTE | B24: 1026 | C24: 0 | D24: 0 | E24: 0 | F24: 0 | G24: 0 | H24: 0 | I24: 0 | J24: 0 | K24: 1026 | L24: 0 | M24: 0
A25: PUEBLO GARABITO | B25: 753 | C25: 0 | D25: 0 | E25: 0 | F25: 0 | G25: 0 | H25: 0 | I25: 0 | J25: 0 | K25: 0 | L25: 0 | M25: 753
A26: RENOVACIÓN COSTARRICENSE | B26: 3906 | C26: 0 | D26: 0 | E26: 0 | F26: 0 | G26: 939 | H26: 1190 | I26: 258 | J26: 0 | K26: 179 | L26: 1311 | M26: 29
A27: REPUBLICANO SOCIAL CRISTIANO | B27: 7153 | C27: 2828 | D27: 2834 | E27: 573 | F27: 0 | G27: 0 | H27: 228 | I27: 0 | J27: 0 | K27: 60 | L27: 237 | M27: 393
A28: RESTAURACIÓN NACIONAL | B28: 634 | C28: 0 | D28: 0 | E28: 0 | F28: 0 | G28: 0 | H28: 0 | I28: 634 | J28: 0 | K28: 0 | L28: 0 | M28: 0
A29: RESTAURACIÓN PARRITEÑA | B29: 422 | C29: 0 | D29: 0 | E29: 0 | F29: 0 | G29: 0 | H29: 0 | I29: 0 | J29: 0 | K29: 422 | L29: 0 | M29: 0
A30: UNIDAD SOCIAL CRISTIANA | B30: 28841 | C30: 8039 | D30: 2501 | E30: 2900 | F30: 527 | G30: 1954 | H30: 1674 | I30: 994 | J30: 4909 | K30: 975 | L30: 3235 | M30: 1133
A31: VIVA PUNTARENAS | B31: 6134 | C31: 1826 | D31: 0 | E31: 435 | F31: 0 | G31: 986 | H31: 269 | I31: 2331 | J31: 287 | K31: 0 | L31: 0 | M31: 0
A32: VOTOS NULOS | B32: 2775 | C32: 730 | D32: 176 | E32: 282 | F32: 140 | G32: 218 | H32: 191 | I32: 382 | J32: 190 | K32: 117 | L32: 263 | M32: 86
A33: VOTOS EN BLANCO | B33: 1090 | C33: 411 | D33: 38 | E33: 130 | F33: 29 | G33: 80 | H33: 78 | I33: 91 | J33: 75 | K33: 30 | L33: 103 | M33: 25
A34: ABSTENCIONISMO | B34: =+B9-B10 -> 183235 | C34: =+C9-C10 -> 54520 | D34: 11186 | E34: 20347 | F34: 3446 | G34: 11800 | H34: 10626 | I34: 18939 | J34: 18285 | K34: 5903 | L34: 22193 | M34: 5990
A35: % ABSTENCIONISMO | B35: =+B34/B9*100 -> 61.23591375 | C35: 64.64157834 | D35: 51.58404427 | E35: 65.78190165 | F35: 34.66452067 | G35: 55.58434217 | H35: 56.52729014 | I35: 66.25039354 | J35: 63.74633942 | K35: 52.30837395 | L35: 67.68222019 | M35: 54.67323841
A38: Fuente: Tribunal Supremo de Elecciones.

Sheet 2.8
A2: CUADRO 2.8 PROVINCIA LIMÓN: JUNTAS, ELECTORADO, PARTICIPACIÓN, VOTOS POR PARTIDO, NULOS, BLANCOS Y ABSTENCIONISMO
A3: PARA ALCALDE(SA), POR CANTÓN, ELECCIONES MUNICIPALES FEBRERO 2016
A5: JUNTAS, ELECTORADO, PARTICIPACIÓN, VOTOS POR PARTIDO, NULOS, BLANCOS Y ABSTENCIONISMO | B5: TOTAL | C5: CANTÓN
C6: LIMÓN | D6: POCOCÍ | E6: SIQUIRRES | F6: TALAMANCA | G6: MATINA | H6: GUÁCIMO
A8: JUNTAS | B8: 472 | C8: 120 | D8: 150 | E8: 76 | F8: 38 | G8: 39 | H8: 49
A9: ELECTORADO | B9: 261254 | C9: 66628 | D9: 87921 | E9: 38953 | F9: 19165 | G9: 20908 | H9: 27679
A10: VOTOS RECIBIDOS | B10: 100101 | C10: 26487 | D10: 29349 | E10: 14868 | F10: 9197 | G10: 10637 | H10: 9563
A11: PORCENTAJE DE PARTICIPACIÓN | B11: =B10/B9*100 -> 38.3155856 | C11: =C10/C9*100 -> 39.75355706 | D11: =D10/D9*100 -> 33.38110349 | E11: 38.16907555 | F11: 47.98852074 | G11: 50.87526306 | H11: 34.54965859
A12: VOTOS POR PARTIDO | B12: 96328 | C12: 25472 | D12: 28223 | E12: 14344 | F12: 8838 | G12: 10181 | H12: 9270
A13: ACCESIBILIDAD SIN EXCLUSIÓN | B13: 1733 | C13: 0 | D13: 558 | E13: 1084 | F13: 0 | G13: 91 | H13: 0
A14: ACCIÓN CANTONAL SIQUIRRES INDEPENDIENTE | B14: 363 | C14: 0 | D14: 0 | E14: 363 | F14: 0 | G14: 0 | H14: 0
A15: ACCIÓN CIUDADANA | B15: 5418 | C15: 437 | D15: 1789 | E15: 690 | F15: 138 | G15: 696 | H15: 1668
A16: AUTÉNTICO LIMONENSE | B16: 13612 | C16: 13612 | D16: 0 | E16: 0 | F16: 0 | G16: 0 | H16: 0
A17: AUTÉNTICO SIQUIRREÑO | B17: 2774 | C17: 0 | D17: 0 | E17: 2774 | F17: 0 | G17: 0 | H17: 0
A18: FRENTE AMPLIO | B18: 4321 | C18: 462 | D18: 1832 | E18: 677 | F18: 597 | G18: 88 | H18: 665
A19: LIBERACIÓN NACIONAL | B19: 22366 | C19: 1740 | D19: 7078 | E19: 4497 | F19: 2292 | G19: 3263 | H19: 3496
A20: LIMÓN INDEPENDIENTE | B20: 486 | C20: 486 | D20: 0 | E20: 0 | F20: 0 | G20: 0 | H20: 0
A21: MOVIMIENTO LIBERTARIO | B21: 6759 | C21: 612 | D21: 3630 | E21: 383 | F21: 1834 | G21: 196 | H21: 104
A22: NUEVA GENERACIÓN | B22: 893 | C22: 0 | D22: 410 | E22: 483 | F22: 0 | G22: 0 | H22: 0
A23: RECUPERANDO VALORES | B23: 1744 | C23: 326 | D23: 0 | E23: 482 | F23: 0 | G23: 0 | H23: 936
A24: RENOVACIÓN COSTARRICENSE | B24: 11035 | C24: 1356 | D24: 6640 | E24: 1085 | F24: 256 | G24: 1293 | H24: 405
A25: REPUBLICANO SOCIAL CRISTIANO | B25: 6807 | C25: 1171 | D25: 2379 | E25: 205 | F25: 662 | G25: 2205 | H25: 185
A26: UNIDAD SOCIAL CRISTIANA | B26: 18017 | C26: 5270 | D26: 3907 | E26: 1621 | F26: 3059 | G26: 2349 | H26: 1811
A27: VOTOS NULOS | B27: 2957 | C27: 772 | D27: 913 | E27: 417 | F27: 249 | G27: 372 | H27: 234
A28: VOTOS EN BLANCO | B28: 816 | C28: 243 | D28: 213 | E28: 107 | F28: 110 | G28: 84 | H28: 59
A29: ABSTENCIONISMO | B29: =+B9-B10 -> 161153 | C29: =+C9-C10 -> 40141 | D29: 58572 | E29: 24085 | F29: 9968 | G29: 10271 | H29: 18116
A30: % ABSTENCIONISMO | B30: =+B29/B9*100 -> 61.6844144 | C30: =+C29/C9*100 -> 60.24644294 | D30: 66.61889651 | E30: 61.83092445 | F30: 52.01147926 | G30: 49.12473694 | H30: 65.45034141
A33: Fuente: Tribunal Supremo de Elecciones.

Sheet 2.9
A2: CUADRO 2.9 CANTÓN SAN JOSÉ: JUNTAS, ELECTORADO, PARTICIPACIÓN, VOTOS POR PARTIDO, NULOS, BLANCOS Y ABSTENCIONISMO PARA ALCALDE(SA)
A3: SEGÚN DISTRITO ADMINISTRATIVO Y ELECTORAL, ELECCIONES MUNICIPALES FEBRERO 2016
A5: DISTRITO ADMINISTRATIVO Y ELECTORAL | B5: JUNTAS | C5: ELECTORADO | D5: VOTOS RECIBIDOS | V5: ABSTENCIONISMO
D6: TOTAL GENERAL | E6: % PARTICIPACIÓN | F6: VOTOS POR PARTIDO | T6: VOTOS NULOS | U6: VOTOS BLANCOS | V6: ABSOLUTO | W6: %
F7: TOTAL | G7: ACCIÓN CIUDADANA | H7: ALIANZA POR SAN JOSÉ | I7: DE LOS TRABAJADORES | J7: FRENTE AMPLIO | K7: FUERZAS UNIDAS PARA EL CAMBIO | L7: INTEGRACIÓN NACIONAL | M7: LIBERACIÓN NACIONAL | N7: MOVIMIENTO LIBERTARIO | O7: NUEVA GENERACIÓN | P7: RENOVACIÓN COSTARRICENSE | Q7: REPUBLICANO SOCIAL CRISTIANO | R7: SOLIDARIDAD | S7: UNIDAD SOCIAL CRISTIANA
A9: CANTÓN SAN JOSÉ | B9: 347 | C9: 231682 | D9: 61147 | E9: 26.39264164 | F9: 59792 | G9: 3191 | H9: 23925 | I9: 313 | J9: 3503 | K9: 523 | L9: 3399 | M9: 9536 | N9: 2051 | O9: 1032 | P9: 786 | Q9: 3602 | R9: 1609 | S9: 6322 | T9: 1074 | U9: 281 | V9: 170535 | W9: 73.60735836
A10: DISTRITO 1 CARMEN | B10: 8 | C10: 4712 | D10: 1311 | E10: =+D10/C10*100 -> 27.82258065 | F10: 1287 | G10: 116 | H10: 340 | I10: 7 | J10: 96 | K10: 13 | L10: 106 | M10: 222 | N10: 62 | O10: 70 | P10: 8 | Q10: 35 | R10: 25 | S10: 187 | T10: 19 | U10: 5 | V10: =+C10-D10 -> 3401 | W10: =+V10/C10*100 -> 72.17741935
A11: CARMEN | B11: 2 | C11: 1138 | D11: 263 | E11: 23.11072056 | F11: 262 | G11: 16 | H11: 54 | I11: 0 | J11: 22 | K11: 2 | L11: 19 | M11: 37 | N11: 16 | O11: 12 | P11: 2 | Q11: 3 | R11: 13 | S11: 66 | T11: 1 | U11: 0 | V11: 875 | W11: =+V11/C11*100 -> 76.88927944
A12: ARANJUEZ | B12: 6 | C12: 3574 | D12: 1048 | E12: 29.32288752 | F12: 1025 | G12: 100 | H12: 286 | I12: 7 | J12: 74 | K12: 11 | L12: 87 | M12: 185 | N12: 46 | O12: 58 | P12: 6 | Q12: 32 | R12: 12 | S12: 121 | T12: 18 | U12: 5 | V12: 2526 | W12: 70.67711248
A13: DISTRITO 2 MERCED | B13: 15 | C13: 9817 | D13: 2726 | E13: 27.76815728 | F13: 2674 | G13: 123 | H13: 1028 | I13: 13 | J13: 120 | K13: 38 | L13: 300 | M13: 459 | N13: 77 | O13: 73 | P13: 32 | Q13: 98 | R13: 92 | S13: 221 | T13: 42 | U13: 10 | V13: 7091 | W13: 72.23184272
A14: BARRIO MÉXICO | B14: 12 | C14: 8241 | D14: 2246 | E14: 27.25397403 | F14: 2201 | G14: 96 | H14: 864 | I14: 10 | J14: 97 | K14: 36 | L14: 253 | M14: 378 | N14: 54 | O14: 64 | P14: 28 | Q14: 91 | R14: 62 | S14: 168 | T14: 36 | U14: 9 | V14: 5995 | W14: 72.74602597
A15: PITAHAYA | B15: 3 | C15: 1576 | D15: 480 | E15: 30.45685279 | F15: 473 | G15: 27 | H15: 164 | I15: 3 | J15: 23 | K15: 2 | L15: 47 | M15: 81 | N15: 23 | O15: 9 | P15: 4 | Q15: 7 | R15: 30 | S15: 53 | T15: 6 | U15: 1 | V15: 1096 | W15: 69.54314721
A16: DISTRITO 3 HOSPITAL | B16: 31 | C16: 19305 | D16: 5082 | E16: 26.32478632 | F16: 4942 | G16: 272 | H16: 2459 | I16: 20 | J16: 175 | K16: 32 | L16: 171 | M16: 856 | N16: 96 | O16: 53 | P16: 69 | Q16: 230 | R16: 85 | S16: 424 | T16: 99 | U16: 41 | V16: 14223 | W16: 73.67521368
A17: HOSPITAL | B17: 3 | C17: 1569 | D17: 302 | E17: 19.24792862 | F17: 298 | G17: 17 | H17: 117 | I17: 1 | J17: 21 | K17: 3 | L17: 10 | M17: 53 | N17: 10 | O17: 4 | P17: 6 | Q17: 14 | R17: 10 | S17: 32 | T17: 3 | U17: 1 | V17: 1267 | W17: 80.75207138
A18: CRISTO REY | B18: 6 | C18: 4181 | D18: 1291 | E18: 30.87778044 | F18: 1264 | G18: 52 | H18: 661 | I18: 3 | J18: 50 | K18: 4 | L18: 37 | M18: 219 | N18: 14 | O18: 19 | P18: 15 | Q18: 85 | R18: 7 | S18: 98 | T18: 21 | U18: 6 | V18: 2890 | W18: 69.12221956
A19: OMAR DENGO | B19: 15 | C19: 9831 | D19: 2523 | E19: 25.66371681 | F19: 2456 | G19: 146 | H19: 1304 | I19: 13 | J19: 75 | K19: 23 | L19: 76 | M19: 405 | N19: 33 | O19: 19 | P19: 38 | Q19: 93 | R19: 32 | S19: 199 | T19: 53 | U19: 14 | V19: 7308 | W19: 74.33628319
A20: SAN BOSCO | B20: 4 | C20: 2686 | D20: 904 | E20: 33.65599404 | F20: 884 | G20: 56 | H20: 372 | I20: 3 | J20: 27 | K20: 1 | L20: 47 | M20: 163 | N20: 36 | O20: 11 | P20: 7 | Q20: 37 | R20: 34 | S20: 90 | T20: 19 | U20: 1 | V20: 1782 | W20: 66.34400596
A21: C.P. CRISTO REY | B21: 3 | C21: 1038 | D21: 62 | E21: 5.973025048 | F21: 40 | G21: 1 | H21: 5 | I21: 0 | J21: 2 | K21: 1 | L21: 1 | M21: 16 | N21: 3 | O21: 0 | P21: 3 | Q21: 1 | R21: 2 | S21: 5 | T21: 3 | U21: 19 | V21: 976 | W21: 94.02697495
A22: DISTRITO 4 CATEDRAL | B22: 24 | C22: 15204 | D22: 4038 | E22: 26.55880032 | F22: 3962 | G22: 353 | H22: 1313 | I22: 18 | J22: 306 | K22: 35 | L22: 170 | M22: 672 | N22: 148 | O22: 43 | P22: 58 | Q22: 169 | R22: 86 | S22: 591 | T22: 62 | U22: 14 | V22: 11166 | W22: 73.44119968
A23: CATEDRAL | B23: 3 | C23: 1522 | D23: 319 | E23: 20.95926413 | F23: 311 | G23: 29 | H23: 101 | I23: 8 | J23: 25 | K23: 9 | L23: 17 | M23: 47 | N23: 12 | O23: 1 | P23: 2 | Q23: 10 | R23: 6 | S23: 44 | T23: 7 | U23: 1 | V23: 1203 | W23: 79.04073587
A24: GONZÁLEZ VÍQUEZ | B24: 10 | C24: 6714 | D24: 1663 | E24: 24.76913911 | F24: 1636 | G24: 105 | H24: 580 | I24: 6 | J24: 120 | K24: 16 | L24: 66 | M24: 261 | N24: 51 | O24: 21 | P24: 24 | Q24: 60 | R24: 28 | S24: 298 | T24: 23 | U24: 4 | V24: 5051 | W24: 75.23086089
A25: NACIONES UNIDAS | B25: 3 | C25: 1821 | D25: 558 | E25: 30.64250412 | F25: 547 | G25: 109 | H25: 194 | I25: 2 | J25: 32 | K25: 3 | L25: 11 | M25: 51 | N25: 13 | O25: 4 | P25: 10 | Q25: 25 | R25: 13 | S25: 80 | T25: 8 | U25: 3 | V25: 1263 | W25: 69.35749588
A26: BARRIO LUJÁN | B26: 8 | C26: 5147 | D26: 1498 | E26: 29.10433262 | F26: 1468 | G26: 110 | H26: 438 | I26: 2 | J26: 129 | K26: 7 | L26: 76 | M26: 313 | N26: 72 | O26: 17 | P26: 22 | Q26: 74 | R26: 39 | S26: 169 | T26: 24 | U26: 6 | V26: 3649 | W26: 70.89566738
A27: DISTRITO 5 ZAPOTE | B27: 26 | C27: 17989 | D27: 4832 | E27: 26.86085941 | F27: 4732 | G27: 327 | H27: 1578 | I27: 26 | J27: 428 | K27: 29 | L27: 299 | M27: 811 | N27: 188 | O27: 121 | P27: 56 | Q27: 314 | R27: 60 | S27: 495 | T27: 77 | U27: 23 | V27: 13157 | W27: 73.13914059
A28: ZAPOTE | B28: 19 | C28: 13190 | D28: 3420 | E28: 25.92873389 | F28: 3344 | G28: 202 | H28: 1182 | I28: 17 | J28: 297 | K28: 25 | L28: 189 | M28: 615 | N28: 119 | O28: 78 | P28: 35 | Q28: 275 | R28: 29 | S28: 281 | T28: 58 | U28: 18 | V28: 9770 | W28: 74.07126611
A29: CÓRDOBA | B29: 7 | C29: 4799 | D29: 1412 | E29: 29.42279642 | F29: 1388 | G29: 125 | H29: 396 | I29: 9 | J29: 131 | K29: 4 | L29: 110 | M29: 196 | N29: 69 | O29: 43 | P29: 21 | Q29: 39 | R29: 31 | S29: 214 | T29: 19 | U29: 5 | V29: 3387 | W29: 70.57720358
A30: DISTRITO 6 SAN FRANCISCO DE DOS RÍOS | B30: 24 | C30: 18415 | D30: 5117 | E30: 27.78713006 | F30: 5013 | G30: 329 | H30: 1612 | I30: 27 | J30: 388 | K30: 18 | L30: 378 | M30: 764 | N30: 161 | O30: 118 | P30: 80 | Q30: 311 | R30: 200 | S30: 627 | T30: 72 | U30: 32 | V30: 13298 | W30: 72.21286994
A31: SAN FRANCISCO DE DOS RÍOS | B31: 14 | C31: 11596 | D31: 3245 | E31: 27.98378751 | F31: 3183 | G31: 206 | H31: 1029 | I31: 11 | J31: 240 | K31: 10 | L31: 234 | M31: 473 | N31: 102 | O31: 91 | P31: 51 | Q31: 236 | R31: 94 | S31: 406 | T31: 41 | U31: 21 | V31: 8351 | W31: 72.01621249
A32: SANTA MARTA | B32: 10 | C32: 6819 | D32: 1872 | E32: 27.45270568 | F32: 1830 | G32: 123 | H32: 583 | I32: 16 | J32: 148 | K32: 8 | L32: 144 | M32: 291 | N32: 59 | O32: 27 | P32: 29 | Q32: 75 | R32: 106 | S32: 221 | T32: 31 | U32: 11 | V32: 4947 | W32: 72.54729432
A33: DISTRITO 7 URUCA | B33: 26 | C33: 15074 | D33: 3918 | E33: 25.99177392 | F33: 3804 | G33: 288 | H33: 1199 | I33: 14 | J33: 153 | K33: 26 | L33: 177 | M33: 784 | N33: 264 | O33: 49 | P33: 48 | Q33: 275 | R33: 117 | S33: 410 | T33: 83 | U33: 31 | V33: 11156 | W33: 74.00822608
A34: URUCA | B34: 5 | C34: 2967 | D34: 548 | E34: 18.46983485 | F34: 536 | G34: 46 | H34: 194 | I34: 1 | J34: 34 | K34: 0 | L34: 34 | M34: 75 | N34: 65 | O34: 9 | P34: 3 | Q34: 16 | R34: 6 | S34: 53 | T34: 9 | U34: 3 | V34: 2419 | W34: 81.53016515
A35: LA CAJA | B35: 5 | C35: 2901 | D35: 827 | E35: 28.50741124 | F35: 809 | G35: 76 | H35: 197 | I35: 0 | J35: 36 | K35: 1 | L35: 81 | M35: 126 | N35: 109 | O35: 27 | P35: 9 | Q35: 19 | R35: 9 | S35: 119 | T35: 11 | U35: 7 | V35: 2074 | W35: 71.49258876
A36: CORAZÓN DE JESÚS | B36: 2 | C36: 907 | D36: 296 | E36: 32.63506064 | F36: 281 | G36: 4 | H36: 96 | I36: 0 | J36: 3 | K36: 0 | L36: 16 | M36: 117 | N36: 3 | O36: 0 | P36: 2 | Q36: 29 | R36: 0 | S36: 11 | T36: 14 | U36: 1 | V36: 611 | W36: 67.36493936
A37: ROSSITER CARBALLO (LAS BRISAS) | B37: 2 | C37: 943 | D37: 429 | E37: 45.4931071 | F37: 415 | G37: 17 | H37: 105 | I37: 1 | J37: 3 | K37: 0 | L37: 6 | M37: 117 | N37: 8 | O37: 0 | P37: 5 | Q37: 119 | R37: 18 | S37: 16 | T37: 10 | U37: 4 | V37: 514 | W37: 54.5068929
A38: LA CARPIO | B38: 6 | C38: 4018 | D38: 746 | E38: 18.56645097 | F38: 718 | G38: 85 | H38: 176 | I38: 2 | J38: 28 | K38: 8 | L38: 4 | M38: 176 | N38: 34 | O38: 1 | P38: 6 | Q38: 66 | R38: 77 | S38: 55 | T38: 22 | U38: 6 | V38: 3272 | W38: 81.43354903
A39: PEREGRINA | B39: 5 | C39: 3281 | D39: 1039 | E39: 31.66717464 | F39: 1014 | G39: 58 | H39: 426 | I39: 10 | J39: 48 | K39: 15 | L39: 34 | M39: 163 | N39: 44 | O39: 12 | P39: 23 | Q39: 24 | R39: 7 | S39: 150 | T39: 16 | U39: 9 | V39: 2242 | W39: 68.33282536
A40: C.S.M. CAPEMCOL | B40: 1 | C40: 57 | D40: 33 | E40: 57.89473684 | F40: 31 | G40: 2 | H40: 5 | I40: 0 | J40: 1 | K40: 2 | L40: 2 | M40: 10 | N40: 1 | O40: 0 | P40: 0 | Q40: 2 | R40: 0 | S40: 6 | T40: 1 | U40: 1 | V40: 24 | W40: 42.10526316
A41: DISTRITO 8 MATA REDONDA | B41: 11 | C41: 7414 | D41: 2344 | E41: 31.61586188 | F41: 2304 | G41: 149 | H41: 737 | I41: 10 | J41: 102 | K41: 10 | L41: 130 | M41: 450 | N41: 159 | O41: 38 | P41: 11 | Q41: 80 | R41: 72 | S41: 356 | T41: 32 | U41: 8 | V41: 5070 | W41: 68.38413812
A42: MATA REDONDA | B42: 5 | C42: 3514 | D42: 1007 | E42: 28.65680137 | F42: 996 | G42: 55 | H42: 286 | I42: 5 | J42: 30 | K42: 0 | L42: 59 | M42: 218 | N42: 100 | O42: 22 | P42: 5 | Q42: 20 | R42: 23 | S42: 173 | T42: 9 | U42: 2 | V42: 2507 | W42: 71.34319863
A43: PERPETUO SOCORRO | B43: 6 | C43: 3900 | D43: 1337 | E43: 34.28205128 | F43: 1308 | G43: 94 | H43: 451 | I43: 5 | J43: 72 | K43: 10 | L43: 71 | M43: 232 | N43: 59 | O43: 16 | P43: 6 | Q43: 60 | R43: 49 | S43: 183 | T43: 23 | U43: 6 | V43: 2563 | W43: 65.71794872
A44: DISTRITO 9 PAVAS | B44: 74 | C44: 49723 | D44: 12988 | E44: 26.12070873 | F44: 12666 | G44: 551 | H44: 4761 | I44: 58 | J44: 472 | K44: 93 | L44: 681 | M44: 1969 | N44: 476 | O44: 234 | P44: 160 | Q44: 1432 | R44: 280 | S44: 1499 | T44: 270 | U44: 52 | V44: 36735 | W44: 73.87929127
A45: PAVAS | B45: 21 | C45: 14635 | D45: 4184 | E45: 28.58899898 | F45: 4123 | G45: 248 | H45: 1224 | I45: 11 | J45: 175 | K45: 13 | L45: 299 | M45: 705 | N45: 262 | O45: 115 | P45: 51 | Q45: 543 | R45: 34 | S45: 443 | T45: 51 | U45: 10 | V45: 10451 | W45: 71.41100102
A46: RINCÓN GRANDE | B46: 29 | C46: 20097 | D46: 4786 | E46: 23.81449968 | F46: 4627 | G46: 153 | H46: 2172 | I46: 27 | J46: 174 | K46: 57 | L46: 172 | M46: 731 | N46: 70 | O46: 63 | P46: 64 | Q46: 165 | R46: 131 | S46: 648 | T46: 140 | U46: 19 | V46: 15311 | W46: 76.18550032
A47: MARÍA REINA | B47: 9 | C47: 5651 | D47: 1589 | E47: 28.11891701 | F47: 1562 | G47: 96 | H47: 498 | I47: 8 | J47: 52 | K47: 6 | L47: 115 | M47: 189 | N47: 100 | O47: 50 | P47: 19 | Q47: 304 | R47: 16 | S47: 109 | T47: 18 | U47: 9 | V47: 4062 | W47: 71.88108299
A48: VILLA ESPERANZA | B48: 14 | C48: 9199 | D48: 2402 | E48: 26.11153386 | F48: 2329 | G48: 51 | H48: 865 | I48: 10 | J48: 71 | K48: 14 | L48: 95 | M48: 340 | N48: 42 | O48: 5 | P48: 26 | Q48: 417 | R48: 97 | S48: 296 | T48: 61 | U48: 12 | V48: 6797 | W48: 73.88846614
A49: C.S.M. MANUEL ANTONIO CHAPUÍ | B49: 1 | C49: 141 | D49: 27 | E49: 19.14893617 | F49: 25 | G49: 3 | H49: 2 | I49: 2 | J49: 0 | K49: 3 | L49: 0 | M49: 4 | N49: 2 | O49: 1 | P49: 0 | Q49: 3 | R49: 2 | S49: 3 | T49: 0 | U49: 2 | V49: 114 | W49: 80.85106383
A50: DISTRITO 10 HATILLO | B50: 64 | C50: 43885 | D50: 11211 | E50: 25.54631423 | F50: 10970 | G50: 347 | H50: 5471 | I50: 65 | J50: 682 | K50: 144 | L50: 551 | M50: 1555 | N50: 211 | O50: 135 | P50: 161 | Q50: 393 | R50: 453 | S50: 802 | T50: 202 | U50: 39 | V50: 32674 | W50: 74.45368577
A51: HATILLO | B51: 25 | C51: 17189 | D51: 4445 | E51: 25.85956135 | F51: 4362 | G51: 154 | H51: 1992 | I51: 15 | J51: 389 | K51: 29 | L51: 336 | M51: 590 | N51: 82 | O51: 69 | P51: 67 | Q51: 93 | R51: 155 | S51: 391 | T51: 65 | U51: 18 | V51: 12744 | W51: 74.14043865
A52: SAGRADA FAMILIA | B52: 9 | C52: 5916 | D52: 1460 | E52: 24.67883705 | F52: 1421 | G52: 43 | H52: 739 | I52: 7 | J52: 37 | K52: 56 | L52: 20 | M52: 252 | N52: 19 | O52: 7 | P52: 8 | Q52: 84 | R52: 68 | S52: 81 | T52: 35 | U52: 4 | V52: 4456 | W52: 75.32116295
A53: INVU # 8 | B53: 23 | C53: 15945 | D53: 3922 | E53: 24.59705237 | F53: 3841 | G53: 114 | H53: 2098 | I53: 24 | J53: 203 | K53: 50 | L53: 151 | M53: 509 | N53: 78 | O53: 38 | P53: 69 | Q53: 143 | R53: 137 | S53: 227 | T53: 67 | U53: 14 | V53: 12023 | W53: 75.40294763
A54: COLONIA 15 DE SETIEMBRE | B54: 7 | C54: 4835 | D54: 1384 | E54: 28.6246122 | F54: 1346 | G54: 36 | H54: 642 | I54: 19 | J54: 53 | K54: 9 | L54: 44 | M54: 204 | N54: 32 | O54: 21 | P54: 17 | Q54: 73 | R54: 93 | S54: 103 | T54: 35 | U54: 3 | V54: 3451 | W54: 71.3753878
A55: DISTRITO 11 SAN SEBASTIÁN | B55: 44 | C55: 30144 | D55: 7580 | E55: 25.14596603 | F55: 7438 | G55: 336 | H55: 3427 | I55: 55 | J55: 581 | K55: 85 | L55: 436 | M55: 994 | N55: 209 | O55: 98 | P55: 103 | Q55: 265 | R55: 139 | S55: 710 | T55: 116 | U55: 26 | V55: 22564 | W55: 74.85403397
A56: SAN SEBASTIÁN | B56: 16 | C56: 11176 | D56: 2842 | E56: 25.42949177 | F56: 2794 | G56: 154 | H56: 1379 | I56: 17 | J56: 134 | K56: 57 | L56: 127 | M56: 357 | N56: 86 | O56: 43 | P56: 49 | Q56: 114 | R56: 41 | S56: 236 | T56: 40 | U56: 8 | V56: 8334 | W56: 74.57050823
A57: PASO ANCHO SUR | B57: 14 | C57: 9577 | D57: 2312 | E57: 24.14117156 | F57: 2268 | G57: 87 | H57: 983 | I57: 16 | J57: 249 | K57: 14 | L57: 162 | M57: 264 | N57: 60 | O57: 24 | P57: 30 | Q57: 62 | R57: 60 | S57: 257 | T57: 36 | U57: 8 | V57: 7265 | W57: 75.85882844
A58: PASO ANCHO NORTE | B58: 9 | C58: 6121 | D58: 1578 | E58: 25.78010129 | F58: 1544 | G58: 57 | H58: 665 | I58: 18 | J58: 128 | K58: 6 | L58: 69 | M58: 284 | N58: 32 | O58: 19 | P58: 21 | Q58: 62 | R58: 24 | S58: 159 | T58: 30 | U58: 4 | V58: 4543 | W58: 74.21989871
A59: COLONIA KENNEDY | B59: 5 | C59: 3270 | D59: 848 | E59: 25.93272171 | F59: 832 | G59: 38 | H59: 400 | I59: 4 | J59: 70 | K59: 8 | L59: 78 | M59: 89 | N59: 31 | O59: 12 | P59: 3 | Q59: 27 | R59: 14 | S59: 58 | T59: 10 | U59: 6 | V59: 2422 | W59: 74.06727829
A61: Fuente: Tribunal Supremo de Elecciones.

Sheet 2.10
A2: CUADRO 2.10 CANTÓN ESCAZÚ: JUNTAS, ELECTORADO, PARTICIPACIÓN, VOTOS POR PARTIDO, NULOS, BLANCOS Y ABSTENCIONISMO PARA ALCALDE(SA)
A3: SEGÚN DISTRITO ADMINISTRATIVO Y ELECTORAL, ELECCIONES MUNICIPALES FEBRERO 2016
A5: DISTRITO ADMINISTRATIVO Y ELECTORAL | B5: JUNTAS | C5: ELECTORADO | D5: VOTOS RECIBIDOS | S5: ABSTENCIONISMO
D6: TOTAL GENERAL | E6: % PARTICIPACIÓN | F6: VOTOS POR PARTIDO | Q6: VOTOS NULOS | R6: VOTOS BLANCOS | S6: ABSOLUTO | T6: %
F7: TOTAL | G7: ACCESIBILIDAD SIN EXCLUSIÓN | H7: ACCIÓN CIUDADANA | I7: FRENTE AMPLIO | J7: INDEPENDIENTE ESCAZUCEÑO | K7: LIBERACIÓN NACIONAL | L7: MOVIMIENTO LIBERTARIO | M7: RENOVACIÓN COSTARRICENSE | N7: REPUBLICANO SOCIAL CRISTIANO | O7: UNIDAD SOCIAL CRISTIANA | P7: YUNTA PROGRESISTA ESCAZUCEÑA
A9: CANTÓN ESCAZÚ | B9: 66 | C9: 44982 | D9: 17496 | E9: 38.89555822 | F9: 17214 | G9: 176 | H9: 203 | I9: 610 | J9: 880 | K9: 1963 | L9: 1621 | M9: 158 | N9: 423 | O9: 506 | P9: 10674 | Q9: 233 | R9: 49 | S9: 27486 | T9: 61.10444178
A10: DISTRITO 1 ESCAZÚ | B10: 18 | C10: 12121 | D10: 5172 | E10: =+D10/C10*100 -> 42.66974672 | F10: 5086 | G10: 43 | H10: 64 | I10: 216 | J10: 278 | K10: 627 | L10: 341 | M10: 38 | N10: 91 | O10: 143 | P10: 3245 | Q10: 73 | R10: 13 | S10: =+C10-D10 -> 6949 | T10: =+S10/C10*100 -> 57.33025328
A11: ESCAZÚ | B11: 18 | C11: 12121 | D11: 5172 | E11: =+D11/C11*100 -> 42.66974672 | F11: 5086 | G11: 43 | H11: 64 | I11: 216 | J11: 278 | K11: 627 | L11: 341 | M11: 38 | N11: 91 | O11: 143 | P11: 3245 | Q11: 73 | R11: 13 | S11: 6949 | T11: 57.33025328
A12: DISTRITO 2 SAN ANTONIO | B12: 20 | C12: 14503 | D12: 5782 | E12: 39.8676136 | F12: 5668 | G12: 110 | H12: 59 | I12: 181 | J12: 347 | K12: 478 | L12: 218 | M12: 58 | N12: 229 | O12: 177 | P12: 3811 | Q12: 93 | R12: 21 | S12: 8721 | T12: 60.1323864
A13: SAN ANTONIO | B13: 15 | C13: 11338 | D13: 4582 | E13: 40.41277121 | F13: 4492 | G13: 96 | H13: 52 | I13: 137 | J13: 309 | K13: 363 | L13: 184 | M13: 46 | N13: 179 | O13: 130 | P13: 2996 | Q13: 71 | R13: 19 | S13: 6756 | T13: 59.58722879
A14: BEBEDERO O SAN FRANCISCO | B14: 1 | C14: 526 | D14: 174 | E14: 33.07984791 | F14: 168 | G14: 0 | H14: 2 | I14: 4 | J14: 5 | K14: 16 | L14: 5 | M14: 2 | N14: 3 | O14: 4 | P14: 127 | Q14: 5 | R14: 1 | S14: 352 | T14: 66.92015209
A15: CARMEN (CHIVERRAL) | B15: 4 | C15: 2639 | D15: 1026 | E15: 38.87836302 | F15: 1008 | G15: 14 | H15: 5 | I15: 40 | J15: 33 | K15: 99 | L15: 29 | M15: 10 | N15: 47 | O15: 43 | P15: 688 | Q15: 17 | R15: 1 | S15: 1613 | T15: 61.12163698
A16: DISTRITO 3 SAN RAFAEL | B16: 28 | C16: 18358 | D16: 6542 | E16: 35.63569016 | F16: 6460 | G16: 23 | H16: 80 | I16: 213 | J16: 255 | K16: 858 | L16: 1062 | M16: 62 | N16: 103 | O16: 186 | P16: 3618 | Q16: 67 | R16: 15 | S16: 11816 | T16: 64.36430984
A17: SAN RAFAEL | B17: 13 | C17: 8960 | D17: 3122 | E17: 34.84375 | F17: 3091 | G17: 8 | H17: 30 | I17: 90 | J17: 126 | K17: 521 | L17: 611 | M17: 27 | N17: 47 | O17: 93 | P17: 1538 | Q17: 25 | R17: 6 | S17: 5838 | T17: 65.15625
A18: GUACHIPELÍN (SAN GABRIEL) | B18: 8 | C18: 5513 | D18: 2038 | E18: 36.96716851 | F18: 2010 | G18: 10 | H18: 23 | I18: 51 | J18: 62 | K18: 172 | L18: 306 | M18: 21 | N18: 29 | O18: 54 | P18: 1282 | Q18: 23 | R18: 5 | S18: 3475 | T18: 63.03283149
A19: BELO HORIZONTE NORTE | B19: 6 | C19: 3838 | D19: 1362 | E19: 35.48723293 | F19: 1342 | G19: 5 | H19: 27 | I19: 72 | J19: 64 | K19: 156 | L19: 145 | M19: 14 | N19: 27 | O19: 36 | P19: 796 | Q19: 18 | R19: 2 | S19: 2476 | T19: 64.51276707
A20: H.A. MAGDALA | B20: 1 | C20: 47 | D20: 20 | E20: 42.55319149 | F20: 17 | G20: 0 | H20: 0 | I20: 0 | J20: 3 | K20: 9 | L20: 0 | M20: 0 | N20: 0 | O20: 3 | P20: 2 | Q20: 1 | R20: 2 | S20: 27 | T20: 57.44680851
A23: Fuente: Tribunal Supremo de Elecciones.

Sheet 2.11
A2: CUADRO 2.11 CANTÓN DESAMPARADOS: JUNTAS, ELECTORADO, PARTICIPACIÓN, VOTOS POR PARTIDO, NULOS, BLANCOS Y ABSTENCIONISMO PARA ALCALDE(SA)
A3: SEGÚN DISTRITO ADMINISTRATIVO Y ELECTORAL, ELECCIONES MUNICIPALES FEBRERO 2016
A5: DISTRITO ADMINISTRATIVO Y ELECTORAL | B5: JUNTAS | C5: ELECTORADO | D5: VOTOS RECIBIDOS | W5: ABSTENCIONISMO
D6: TOTAL GENERAL | E6: % PARTICIPACIÓN | F6: VOTOS POR PARTIDO | U6: VOTOS NULOS | V6: VOTOS BLANCOS | W6: ABSOLUTO | X6: %
F7: TOTAL | G7: ACCESIBILIDAD SIN EXCLUSIÓN | H7: ACCIÓN CIUDADANA | I7: DESAMPARADOS UNIDO | J7: ECOLÓGICO COMUNAL COSTARRICENSE | K7: FRENTE AMPLIO | L7: FUERZA DEMOCRÁTICA DESAMPARADEÑA | M7: LIBERACIÓN NACIONAL | N7: MOVIMIENTO LIBERTARIO | O7: NUEVA GENERACIÓN | P7: PROGRESO COMUNAL DESAMPARADEÑO | Q7: RENOVACIÓN COSTARRICENSE | R7: REPUBLICANO SOCIAL CRISTIANO | S7: RESTAURACIÓN NACIONAL | T7: UNIDAD SOCIAL CRISTIANA
A9: CANTÓN DESAMPARADOS | B9: 243 | C9: 156610 | D9: 38119 | E9: 24.34008045 | F9: 37312 | G9: 935 | H9: 2255 | I9: 1413 | J9: 3663 | K9: 2425 | L9: 1115 | M9: 12113 | N9: 1220 | O9: 636 | P9: 1000 | Q9: 677 | R9: 3279 | S9: 2633 | T9: 3948 | U9: 615 | V9: 192 | W9: 118491 | X9: 75.65991955
A10: DISTRITO 1 DESAMPARADOS | B10: 45 | C10: 30746 | D10: 7452 | E10: =+D10/C10*100 -> 24.23729916 | F10: 7332 | G10: 187 | H10: 381 | I10: 251 | J10: 639 | K10: 645 | L10: 231 | M10: 2189 | N10: 140 | O10: 124 | P10: 92 | Q10: 151 | R10: 659 | S10: 943 | T10: 700 | U10: 99 | V10: 21 | W10: =+C10-D10 -> 23294 | X10: =+W10/C10*100 -> 75.76270084
A11: DESAMPARADOS | B11: 13 | C11: 9938 | D11: 2983 | E11: =+D11/C11*100 -> 30.01609982 | F11: 2945 | G11: 38 | H11: 139 | I11: 109 | J11: 205 | K11: 234 | L11: 98 | M11: 895 | N11: 56 | O11: 33 | P11: 19 | Q11: 35 | R11: 292 | S11: 545 | T11: 247 | U11: 32 | V11: 6 | W11: =+C11-D11 -> 6955 | X11: =+W11/C11*100 -> 69.98390018
A12: CALLE FALLAS | B12: 21 | C12: 14289 | D12: 3074 | E12: 21.513052 | F12: 3026 | G12: 137 | H12: 185 | I12: 84 | J12: 315 | K12: 295 | L12: 98 | M12: 849 | N12: 60 | O12: 41 | P12: 43 | Q12: 67 | R12: 276 | S12: 287 | T12: 289 | U12: 41 | V12: 7 | W12: 11215 | X12: 78.486948
A13: SAN JERÓNIMO | B13: 10 | C13: 6453 | D13: 1355 | E13: 20.99798543 | F13: 1326 | G13: 12 | H13: 57 | I13: 58 | J13: 119 | K13: 115 | L13: 34 | M13: 415 | N13: 24 | O13: 50 | P13: 30 | Q13: 49 | R13: 91 | S13: 111 | T13: 161 | U13: 21 | V13: 8 | W13: 5098 | X13: 79.00201457
A14: H.A. OFELIA CARVAJAL DE NARANJO | B14: 1 | C14: 66 | D14: 40 | E14: 60.60606061 | F14: 35 | G14: 0 | H14: 0 | I14: 0 | J14: 0 | K14: 1 | L14: 1 | M14: 30 | N14: 0 | O14: 0 | P14: 0 | Q14: 0 | R14: 0 | S14: 0 | T14: 3 | U14: 5 | V14: 0 | W14: 26 | X14: 39.39393939
A15: DISTRITO 2 SAN MIGUEL | B15: 44 | C15: 27458 | D15: 6524 | E15: 23.75992425 | F15: 6394 | G15: 160 | H15: 623 | I15: 148 | J15: 411 | K15: 275 | L15: 184 | M15: 2145 | N15: 213 | O15: 53 | P15: 555 | Q15: 111 | R15: 707 | S15: 458 | T15: 351 | U15: 91 | V15: 39 | W15: 20934 | X15: 76.24007575
A16: SAN MIGUEL | B16: 13 | C16: 8620 | D16: 1908 | E16: 22.13457077 | F16: 1868 | G16: 46 | H16: 381 | I16: 44 | J16: 149 | K16: 84 | L16: 76 | M16: 477 | N16: 57 | O16: 17 | P16: 50 | Q16: 29 | R16: 184 | S16: 147 | T16: 127 | U16: 28 | V16: 12 | W16: 6712 | X16: 77.86542923
A17: JERICÓ | B17: 2 | C17: 873 | D17: 392 | E17: 44.90263459 | F17: 384 | G17: 8 | H17: 3 | I17: 8 | J17: 6 | K17: 11 | L17: 1 | M17: 319 | N17: 5 | O17: 0 | P17: 0 | Q17: 3 | R17: 14 | S17: 2 | T17: 4 | U17: 4 | V17: 4 | W17: 481 | X17: 55.09736541
A18: HIGUITO | B18: 13 | C18: 8815 | D18: 1885 | E18: 21.38400454 | F18: 1853 | G18: 61 | H18: 134 | I18: 44 | J18: 90 | K18: 66 | L18: 85 | M18: 583 | N18: 57 | O18: 19 | P18: 304 | Q18: 24 | R18: 112 | S18: 165 | T18: 109 | U18: 23 | V18: 9 | W18: 6930 | X18: 78.61599546
A19: PACAYA | B19: 1 | C19: 82 | D19: 57 | E19: 69.51219512 | F19: 57 | G19: 0 | H19: 0 | I19: 0 | J19: 0 | K19: 0 | L19: 0 | M19: 54 | N19: 0 | O19: 0 | P19: 1 | Q19: 0 | R19: 1 | S19: 1 | T19: 0 | U19: 0 | V19: 0 | W19: 25 | X19: 30.48780488
A20: EL LLANO | B20: 5 | C20: 3081 | D20: 774 | E20: 25.12171373 | F20: 761 | G20: 11 | H20: 30 | I20: 20 | J20: 39 | K20: 35 | L20: 6 | M20: 336 | N20: 14 | O20: 8 | P20: 96 | Q20: 6 | R20: 94 | S20: 40 | T20: 26 | U20: 10 | V20: 3 | W20: 2307 | X20: 74.87828627
A21: MANZANO (MANZANILLO) | B21: 1 | C21: 172 | D21: 64 | E21: 37.20930233 | F21: 63 | G21: 2 | H21: 4 | I21: 2 | J21: 0 | K21: 2 | L21: 0 | M21: 38 | N21: 4 | O21: 0 | P21: 0 | Q21: 0 | R21: 5 | S21: 1 | T21: 5 | U21: 0 | V21: 1 | W21: 108 | X21: 62.79069767
A22: LAS LOMAS | B22: 2 | C22: 886 | D22: 238 | E22: 26.86230248 | F22: 229 | G22: 0 | H22: 7 | I22: 2 | J22: 9 | K22: 29 | L22: 2 | M22: 96 | N22: 9 | O22: 0 | P22: 15 | Q22: 2 | R22: 33 | S22: 11 | T22: 14 | U22: 8 | V22: 1 | W22: 648 | X22: 73.13769752
A23: LA CAPRI | B23: 7 | C23: 4929 | D23: 1206 | E23: 24.46743761 | F23: 1179 | G23: 32 | H23: 64 | I23: 28 | J23: 118 | K23: 48 | L23: 14 | M23: 242 | N23: 67 | O23: 9 | P23: 89 | Q23: 47 | R23: 264 | S23: 91 | T23: 66 | U23: 18 | V23: 9 | W23: 3723 | X23: 75.53256239
A24: DISTRITO 3 SAN JUAN DE DIOS | B24: 18 | C24: 12588 | D24: 2406 | E24: 19.11344137 | F24: 2347 | G24: 53 | H24: 93 | I24: 112 | J24: 186 | K24: 249 | L24: 60 | M24: 555 | N24: 216 | O24: 28 | P24: 12 | Q24: 57 | R24: 185 | S24: 62 | T24: 479 | U24: 45 | V24: 14 | W24: 10182 | X24: 80.88655863
A25: SAN JUAN DE DIOS | B25: 18 | C25: 12588 | D25: 2406 | E25: 19.11344137 | F25: 2347 | G25: 53 | H25: 93 | I25: 112 | J25: 186 | K25: 249 | L25: 60 | M25: 555 | N25: 216 | O25: 28 | P25: 12 | Q25: 57 | R25: 185 | S25: 62 | T25: 479 | U25: 45 | V25: 14 | W25: 10182 | X25: 80.88655863
A26: DISTRITO 4 SAN RAFAEL ARRIBA | B26: 20 | C26: 11389 | D26: 2394 | E26: 21.02028273 | F26: 2345 | G26: 48 | H26: 210 | I26: 73 | J26: 265 | K26: 172 | L26: 113 | M26: 808 | N26: 76 | O26: 37 | P26: 22 | Q26: 39 | R26: 168 | S26: 61 | T26: 253 | U26: 38 | V26: 11 | W26: 8995 | X26: 78.97971727
A27: SAN RAFAEL ARRIBA | B27: 16 | C27: 10823 | D27: 2275 | E27: 21.02004989 | F27: 2231 | G27: 44 | H27: 194 | I27: 72 | J27: 265 | K27: 171 | L27: 113 | M27: 757 | N27: 72 | O27: 33 | P27: 21 | Q27: 36 | R27: 159 | S27: 61 | T27: 233 | U27: 33 | V27: 11 | W27: 8548 | X27: 78.97995011
A28: C.P. SAN RAFAEL ARRIBA | B28: 2 | C28: 480 | D28: 73 | E28: 15.20833333 | F28: 71 | G28: 3 | H28: 16 | I28: 1 | J28: 0 | K28: 1 | L28: 0 | M28: 32 | N28: 2 | O28: 2 | P28: 0 | Q28: 1 | R28: 5 | S28: 0 | T28: 8 | U28: 2 | V28: 0 | W28: 407 | X28: 84.79166667
A29: H.A. SAN CAYETANO | B29: 1 | C29: 56 | D29: 20 | E29: 35.71428571 | F29: 18 | G29: 1 | H29: 0 | I29: 0 | J29: 0 | K29: 0 | L29: 0 | M29: 4 | N29: 0 | O29: 0 | P29: 0 | Q29: 0 | R29: 3 | S29: 0 | T29: 10 | U29: 2 | V29: 0 | W29: 36 | X29: 64.28571429
A30: H.A. COM MORICE (LA CASONA) | B30: 1 | C30: 30 | D30: 26 | E30: 86.66666667 | F30: 25 | G30: 0 | H30: 0 | I30: 0 | J30: 0 | K30: 0 | L30: 0 | M30: 15 | N30: 2 | O30: 2 | P30: 1 | Q30: 2 | R30: 1 | S30: 0 | T30: 2 | U30: 1 | V30: 0 | W30: 4 | X30: 13.33333333
A31: DISTRITO 5 SAN ANTONIO | B31: 12 | C31: 9016 | D31: 2372 | E31: 26.30878438 | F31: 2342 | G31: 17 | H31: 160 | I31: 43 | J31: 411 | K31: 174 | L31: 109 | M31: 648 | N31: 41 | O31: 31 | P31: 39 | Q31: 63 | R31: 176 | S31: 125 | T31: 305 | U31: 23 | V31: 7 | W31: 6644 | X31: 73.69121562
A32: SAN ANTONIO | B32: 12 | C32: 9016 | D32: 2372 | E32: 26.30878438 | F32: 2342 | G32: 17 | H32: 160 | I32: 43 | J32: 411 | K32: 174 | L32: 109 | M32: 648 | N32: 41 | O32: 31 | P32: 39 | Q32: 63 | R32: 176 | S32: 125 | T32: 305 | U32: 23 | V32: 7 | W32: 6644 | X32: 73.69121562
A33: DISTRITO 6 FRAILES | B33: 6 | C33: 2839 | D33: 928 | E33: 32.68756604 | F33: 891 | G33: 6 | H33: 63 | I33: 67 | J33: 16 | K33: 37 | L33: 57 | M33: 547 | N33: 1 | O33: 2 | P33: 6 | Q33: 4 | R33: 16 | S33: 6 | T33: 63 | U33: 18 | V33: 19 | W33: 1911 | X33: 67.31243396
A34: FRAILES | B34: 3 | C34: 1769 | D34: 551 | E34: 31.14754098 | F34: 527 | G34: 2 | H34: 30 | I34: 52 | J34: 13 | K34: 26 | L34: 54 | M34: 295 | N34: 1 | O34: 1 | P34: 5 | Q34: 3 | R34: 11 | S34: 4 | T34: 30 | U34: 10 | V34: 14 | W34: 1218 | X34: 68.85245902
A35: BUSTAMANTE O ALCIRA | B35: 2 | C35: 881 | D35: 298 | E35: 33.82519864 | F35: 291 | G35: 4 | H35: 33 | I35: 14 | J35: 3 | K35: 9 | L35: 3 | M35: 201 | N35: 0 | O35: 1 | P35: 1 | Q35: 0 | R35: 4 | S35: 1 | T35: 17 | U35: 6 | V35: 1 | W35: 583 | X35: 66.17480136
A36: VIOLETA (RINCÓN MORALES) | B36: 1 | C36: 189 | D36: 79 | E36: 41.7989418 | F36: 73 | G36: 0 | H36: 0 | I36: 1 | J36: 0 | K36: 2 | L36: 0 | M36: 51 | N36: 0 | O36: 0 | P36: 0 | Q36: 1 | R36: 1 | S36: 1 | T36: 16 | U36: 2 | V36: 4 | W36: 110 | X36: 58.2010582
A37: DISTRITO 7 PATARRÁ | B37: 10 | C37: 6509 | D37: 1842 | E37: 28.29927792 | F37: 1803 | G37: 41 | H37: 60 | I37: 24 | J37: 165 | K37: 84 | L37: 35 | M37: 560 | N37: 19 | O37: 87 | P37: 136 | Q37: 32 | R37: 382 | S37: 51 | T37: 127 | U37: 33 | V37: 6 | W37: 4667 | X37: 71.70072208
A38: PATARRÁ | B38: 5 | C38: 3153 | D38: 1044 | E38: 33.11132255 | F38: 1028 | G38: 18 | H38: 31 | I38: 14 | J38: 114 | K38: 51 | L38: 20 | M38: 291 | N38: 11 | O38: 4 | P38: 115 | Q38: 15 | R38: 237 | S38: 28 | T38: 79 | U38: 13 | V38: 3 | W38: 2109 | X38: 66.88867745
A39: GUATUSO | B39: 5 | C39: 3356 | D39: 798 | E39: 23.77830751 | F39: 775 | G39: 23 | H39: 29 | I39: 10 | J39: 51 | K39: 33 | L39: 15 | M39: 269 | N39: 8 | O39: 83 | P39: 21 | Q39: 17 | R39: 145 | S39: 23 | T39: 48 | U39: 20 | V39: 3 | W39: 2558 | X39: 76.22169249
A40: DISTRITO 8 SAN CRISTÓBAL | B40: 7 | C40: 3089 | D40: 1334 | E40: 43.18549692 | F40: 1306 | G40: 2 | H40: 33 | I40: 309 | J40: 32 | K40: 19 | L40: 3 | M40: 809 | N40: 7 | O40: 4 | P40: 6 | Q40: 8 | R40: 12 | S40: 4 | T40: 58 | U40: 18 | V40: 10 | W40: 1755 | X40: 56.81450308
A41: SAN CRISTÓBAL SUR | B41: 2 | C41: 814 | D41: 358 | E41: 43.98034398 | F41: 347 | G41: 1 | H41: 6 | I41: 86 | J41: 5 | K41: 4 | L41: 0 | M41: 208 | N41: 2 | O41: 0 | P41: 0 | Q41: 4 | R41: 1 | S41: 2 | T41: 28 | U41: 5 | V41: 6 | W41: 456 | X41: 56.01965602
A42: SAN CRISTÓBAL NORTE | B42: 2 | C42: 810 | D42: 381 | E42: 47.03703704 | F42: 374 | G42: 0 | H42: 17 | I42: 23 | J42: 22 | K42: 5 | L42: 0 | M42: 285 | N42: 1 | O42: 0 | P42: 2 | Q42: 0 | R42: 9 | S42: 1 | T42: 9 | U42: 5 | V42: 2 | W42: 429 | X42: 52.96296296
A43: CRISTO REY | B43: 2 | C43: 1003 | D43: 429 | E43: 42.77168495 | F43: 421 | G43: 1 | H43: 9 | I43: 189 | J43: 2 | K43: 9 | L43: 3 | M43: 180 | N43: 2 | O43: 2 | P43: 2 | Q43: 3 | R43: 0 | S43: 1 | T43: 18 | U43: 6 | V43: 2 | W43: 574 | X43: 57.22831505
A44: EMPALME ARRIBA GUARIA (PARTE OESTE) | B44: 1 | C44: 462 | D44: 166 | E44: 35.93073593 | F44: 164 | G44: 0 | H44: 1 | I44: 11 | J44: 3 | K44: 1 | L44: 0 | M44: 136 | N44: 2 | O44: 2 | P44: 2 | Q44: 1 | R44: 2 | S44: 0 | T44: 3 | U44: 2 | V44: 0 | W44: 296 | X44: 64.06926407
A45: DISTRITO 9 ROSARIO | B45: 7 | C45: 2886 | D45: 991 | E45: 34.33818434 | F45: 958 | G45: 70 | H45: 39 | I45: 115 | J45: 14 | K45: 42 | L45: 3 | M45: 545 | N45: 8 | O45: 3 | P45: 1 | Q45: 4 | R45: 30 | S45: 3 | T45: 81 | U45: 22 | V45: 11 | W45: 1895 | X45: 65.66181566
A46: ROSARIO | B46: 2 | C46: 1394 | D46: 463 | E46: 33.21377331 | F46: 451 | G46: 57 | H46: 21 | I46: 39 | J46: 4 | K46: 19 | L46: 0 | M46: 243 | N46: 3 | O46: 1 | P46: 0 | Q46: 0 | R46: 17 | S46: 1 | T46: 46 | U46: 9 | V46: 3 | W46: 931 | X46: 66.78622669
A47: GUADARRAMA | B47: 1 | C47: 345 | D47: 95 | E47: 27.53623188 | F47: 94 | G47: 2 | H47: 3 | I47: 7 | J47: 1 | K47: 0 | L47: 0 | M47: 65 | N47: 0 | O47: 0 | P47: 0 | Q47: 1 | R47: 5 | S47: 0 | T47: 10 | U47: 1 | V47: 0 | W47: 250 | X47: 72.46376812
A48: LA JOYA | B48: 1 | C48: 155 | D48: 48 | E48: 30.96774194 | F48: 45 | G48: 1 | H48: 0 | I48: 4 | J48: 1 | K48: 0 | L48: 1 | M48: 29 | N48: 0 | O48: 1 | P48: 0 | Q48: 2 | R48: 5 | S48: 1 | T48: 0 | U48: 1 | V48: 2 | W48: 107 | X48: 69.03225806
A49: TRINIDAD (PARTE ESTE) | B49: 1 | C49: 663 | D49: 169 | E49: 25.49019608 | F49: 162 | G49: 10 | H49: 15 | I49: 15 | J49: 3 | K49: 18 | L49: 1 | M49: 67 | N49: 4 | O49: 1 | P49: 0 | Q49: 1 | R49: 2 | S49: 1 | T49: 24 | U49: 4 | V49: 3 | W49: 494 | X49: 74.50980392
A50: LLANO BONITO | B50: 1 | C50: 116 | D50: 70 | E50: 60.34482759 | F50: 68 | G50: 0 | H50: 0 | I50: 15 | J50: 0 | K50: 2 | L50: 0 | M50: 50 | N50: 1 | O50: 0 | P50: 0 | Q50: 0 | R50: 0 | S50: 0 | T50: 0 | U50: 1 | V50: 1 | W50: 46 | X50: 39.65517241
A51: CHIROGRES | B51: 1 | C51: 213 | D51: 146 | E51: 68.54460094 | F51: 138 | G51: 0 | H51: 0 | I51: 35 | J51: 5 | K51: 3 | L51: 1 | M51: 91 | N51: 0 | O51: 0 | P51: 1 | Q51: 0 | R51: 1 | S51: 0 | T51: 1 | U51: 6 | V51: 2 | W51: 67 | X51: 31.45539906
A52: DISTRITO 10 DAMAS | B52: 14 | C52: 9127 | D52: 2322 | E52: 25.44099923 | F52: 2254 | G52: 54 | H52: 93 | I52: 50 | J52: 534 | K52: 132 | L52: 60 | M52: 657 | N52: 59 | O52: 78 | P52: 27 | Q52: 43 | R52: 108 | S52: 179 | T52: 180 | U52: 54 | V52: 14 | W52: 6805 | X52: 74.55900077
A53: FÁTIMA DE DAMAS | B53: 4 | C53: 2510 | D53: 808 | E53: 32.19123506 | F53: 785 | G53: 16 | H53: 25 | I53: 4 | J53: 239 | K53: 47 | L53: 38 | M53: 225 | N53: 25 | O53: 9 | P53: 13 | Q53: 11 | R53: 36 | S53: 44 | T53: 53 | U53: 15 | V53: 8 | W53: 1702 | X53: 67.80876494
A54: SAN LORENZO | B54: 10 | C54: 6617 | D54: 1514 | E54: 22.88045942 | F54: 1469 | G54: 38 | H54: 68 | I54: 46 | J54: 295 | K54: 85 | L54: 22 | M54: 432 | N54: 34 | O54: 69 | P54: 14 | Q54: 32 | R54: 72 | S54: 135 | T54: 127 | U54: 39 | V54: 6 | W54: 5103 | X54: 77.11954058
A55: DISTRITO 11 SAN RAFAEL ABAJO | B55: 23 | C55: 15764 | D55: 3071 | E55: 19.48109617 | F55: 2998 | G55: 43 | H55: 219 | I55: 112 | J55: 187 | K55: 227 | L55: 68 | M55: 1146 | N55: 140 | O55: 53 | P55: 37 | Q55: 44 | R55: 296 | S55: 159 | T55: 267 | U55: 58 | V55: 15 | W55: 12693 | X55: 80.51890383
A56: SAN RAFAEL ABAJO | B56: 16 | C56: 11023 | D56: 2077 | E56: 18.84242039 | F56: 2029 | G56: 28 | H56: 158 | I56: 90 | J56: 106 | K56: 172 | L56: 56 | M56: 716 | N56: 109 | O56: 42 | P56: 27 | Q56: 31 | R56: 201 | S56: 107 | T56: 186 | U56: 39 | V56: 9 | W56: 8946 | X56: 81.15757961
A57: VALENCIA | B57: 7 | C57: 4741 | D57: 994 | E57: 20.96604092 | F57: 969 | G57: 15 | H57: 61 | I57: 22 | J57: 81 | K57: 55 | L57: 12 | M57: 430 | N57: 31 | O57: 11 | P57: 10 | Q57: 13 | R57: 95 | S57: 52 | T57: 81 | U57: 19 | V57: 6 | W57: 3747 | X57: 79.03395908
A58: DISTRITO 12 GRAVILIAS | B58: 19 | C58: 12766 | D58: 3750 | E58: 29.37490208 | F58: 3682 | G58: 73 | H58: 191 | I58: 75 | J58: 632 | K58: 278 | L58: 158 | M58: 901 | N58: 155 | O58: 122 | P58: 41 | Q58: 79 | R58: 196 | S58: 447 | T58: 334 | U58: 54 | V58: 14 | W58: 9016 | X58: 70.62509792
A59: GRAVILIAS | B59: 11 | C59: 7193 | D59: 2022 | E59: 28.11066314 | F59: 1994 | G59: 38 | H59: 121 | I59: 51 | J59: 290 | K59: 143 | L59: 80 | M59: 598 | N59: 66 | O59: 58 | P59: 21 | Q59: 43 | R59: 94 | S59: 200 | T59: 191 | U59: 25 | V59: 3 | W59: 5171 | X59: 71.88933686
A60: EL PORVENIR | B60: 8 | C60: 5573 | D60: 1728 | E60: 31.00663915 | F60: 1688 | G60: 35 | H60: 70 | I60: 24 | J60: 342 | K60: 135 | L60: 78 | M60: 303 | N60: 89 | O60: 64 | P60: 20 | Q60: 36 | R60: 102 | S60: 247 | T60: 143 | U60: 29 | V60: 11 | W60: 3845 | X60: 68.99336085
A61: DISTRITO 13 LOS GUIDO | B61: 18 | C61: 12433 | D61: 2733 | E61: 21.98182257 | F61: 2660 | G61: 181 | H61: 90 | I61: 34 | J61: 171 | K61: 91 | L61: 34 | M61: 603 | N61: 145 | O61: 14 | P61: 26 | Q61: 42 | R61: 344 | S61: 135 | T61: 750 | U61: 62 | V61: 11 | W61: 9700 | X61: 78.01817743
A62: LOS GUIDO | B62: 18 | C62: 12433 | D62: 2733 | E62: 21.98182257 | F62: 2660 | G62: 181 | H62: 90 | I62: 34 | J62: 171 | K62: 91 | L62: 34 | M62: 603 | N62: 145 | O62: 14 | P62: 26 | Q62: 42 | R62: 344 | S62: 135 | T62: 750 | U62: 62 | V62: 11 | W62: 9700 | X62: 78.01817743
A65: Fuente: Tribunal Supremo de Elecciones.

Sheet 2.12
A2: CUADRO 2.12 CANTÓN PURISCAL: JUNTAS, ELECTORADO, PARTICIPACIÓN, VOTOS POR PARTIDO, NULOS, BLANCOS Y ABSTENCIONISMO PARA ALCALDE(SA)
A3: SEGÚN DISTRITO ADMINISTRATIVO Y ELECTORAL, ELECCIONES MUNICIPALES FEBRERO 2016
A5: DISTRITO ADMINISTRATIVO Y ELECTORAL | B5: JUNTAS | C5: ELECTORADO | D5: VOTOS RECIBIDOS | P5: ABSTENCIONISMO
D6: TOTAL GENRAL | E6: % PARTICIPACIÓN | F6: VOTOS POR PARTIDO | N6: VOTOS NULOS | O6: VOTOS BLANCOS | P6: ABSOLUTO | Q6: %
B7: JUNTAS | F7: TOTAL | G7: ACCIÓN CIUDADANA | H7: FRENTE AMPLIO | I7: LIBERACIÓN NACIONAL | J7: MOVIMIENTO LIBERTARIO | K7: NUEVA GENERACIÓN | L7: PURISCALEÑOS DE CORAZÓN | M7: UNIDAD SOCIAL CRISTIANA
A9: CANTÓN PURISCAL | B9: 63 | C9: 27437 | D9: 10450 | E9: 38.08725444 | F9: 10176 | G9: 2330 | H9: 396 | I9: 2917 | J9: 216 | K9: 236 | L9: 300 | M9: 3781 | N9: 186 | O9: 88 | P9: 16987 | Q9: 61.91274556
A10: DISTRITO 1 SANTIAGO | B10: 18 | C10: 10333 | D10: 3856 | E10: =+D10/C10*100 -> 37.31733282 | F10: 3767 | G10: 1128 | H10: 157 | I10: 883 | J10: 72 | K10: 123 | L10: 153 | M10: 1251 | N10: 64 | O10: 25 | P10: =+C10-D10 -> 6477 | Q10: =+P10/C10*100 -> 62.68266718
A11: SANTIAGO | B11: 12 | C11: 8049 | D11: 2975 | E11: =+D11/C11*100 -> 36.96111318 | F11: 2915 | G11: 863 | H11: 115 | I11: 677 | J11: 54 | K11: 95 | L11: 133 | M11: 978 | N11: 48 | O11: 12 | P11: 5074 | Q11: 63.03888682
A12: POZOS | B12: 2 | C12: 878 | D12: 303 | E12: 34.51025057 | F12: 285 | G12: 101 | H12: 16 | I12: 66 | J12: 9 | K12: 6 | L12: 5 | M12: 82 | N12: 12 | O12: 6 | P12: 575 | Q12: 65.48974943
A13: CARIT | B13: 1 | C13: 642 | D13: 276 | E13: 42.99065421 | F13: 274 | G13: 61 | H13: 10 | I13: 74 | J13: 3 | K13: 4 | L13: 3 | M13: 119 | N13: 2 | O13: 0 | P13: 366 | Q13: 57.00934579
A14: BAJO BADILLA | B14: 1 | C14: 72 | D14: 15 | E14: 20.83333333 | F14: 15 | G14: 3 | H14: 2 | I14: 8 | J14: 0 | K14: 0 | L14: 0 | M14: 2 | N14: 0 | O14: 0 | P14: 57 | Q14: 79.16666667
A15: H.A. CORAZÓN DE JESÚS | B15: 1 | C15: 46 | D15: 34 | E15: 73.91304348 | F15: 32 | G15: 3 | H15: 5 | I15: 15 | J15: 1 | K15: 0 | L15: 1 | M15: 7 | N15: 0 | O15: 2 | P15: 12 | Q15: 26.08695652
A16: SANTA CECILIA | B16: 1 | C16: 646 | D16: 253 | E16: 39.16408669 | F16: 246 | G16: 97 | H16: 9 | I16: 43 | J16: 5 | K16: 18 | L16: 11 | M16: 63 | N16: 2 | O16: 5 | P16: 393 | Q16: 60.83591331
A17: DISTRITO 2 MERCEDES SUR | B17: 12 | C17: 4280 | D17: 1853 | E17: 43.29439252 | F17: 1792 | G17: 352 | H17: 84 | I17: 471 | J17: 34 | K17: 42 | L17: 44 | M17: 765 | N17: 44 | O17: 17 | P17: 2427 | Q17: 56.70560748
A18: MERCEDES SUR | B18: 1 | C18: 532 | D18: 265 | E18: 49.81203008 | F18: 259 | G18: 85 | H18: 8 | I18: 78 | J18: 4 | K18: 3 | L18: 2 | M18: 79 | N18: 5 | O18: 1 | P18: 267 | Q18: 50.18796992
A19: MERCEDES NORTE | B19: 2 | C19: 1190 | D19: 536 | E19: 45.04201681 | F19: 517 | G19: 67 | H19: 49 | I19: 165 | J19: 6 | K19: 25 | L19: 10 | M19: 195 | N19: 14 | O19: 5 | P19: 654 | Q19: 54.95798319
A20: BOCANA | B20: 1 | C20: 104 | D20: 39 | E20: 37.5 | F20: 36 | G20: 6 | H20: 0 | I20: 11 | J20: 2 | K20: 0 | L20: 0 | M20: 17 | N20: 3 | O20: 0 | P20: 65 | Q20: 62.5
A21: JILGUERAL | B21: 1 | C21: 165 | D21: 69 | E21: 41.81818182 | F21: 66 | G21: 16 | H21: 1 | I21: 9 | J21: 1 | K21: 0 | L21: 1 | M21: 38 | N21: 0 | O21: 3 | P21: 96 | Q21: 58.18181818
A22: TÚFARES | B22: 1 | C22: 84 | D22: 41 | E22: 48.80952381 | F22: 40 | G22: 0 | H22: 0 | I22: 12 | J22: 0 | K22: 1 | L22: 3 | M22: 24 | N22: 0 | O22: 1 | P22: 43 | Q22: 51.19047619
A23: SALITRALES | B23: 1 | C23: 184 | D23: 61 | E23: 33.15217391 | F23: 58 | G23: 9 | H23: 0 | I23: 16 | J23: 2 | K23: 0 | L23: 2 | M23: 29 | N23: 3 | O23: 0 | P23: 123 | Q23: 66.84782609
A24: ALTO LA PALMA | B24: 1 | C24: 285 | D24: 113 | E24: 39.64912281 | F24: 108 | G24: 23 | H24: 0 | I24: 20 | J24: 1 | K24: 0 | L24: 2 | M24: 62 | N24: 4 | O24: 1 | P24: 172 | Q24: 60.35087719
A25: LLANO GRANDE | B25: 1 | C25: 101 | D25: 33 | E25: 32.67326733 | F25: 33 | G25: 2 | H25: 0 | I25: 10 | J25: 0 | K25: 0 | L25: 1 | M25: 20 | N25: 0 | O25: 0 | P25: 68 | Q25: 67.32673267
A26: SANTA MARTA | B26: 1 | C26: 332 | D26: 194 | E26: 58.43373494 | F26: 188 | G26: 30 | H26: 2 | I26: 22 | J26: 15 | K26: 1 | L26: 10 | M26: 108 | N26: 5 | O26: 1 | P26: 138 | Q26: 41.56626506
A27: CERBATANA | B27: 2 | C27: 1303 | D27: 502 | E27: 38.52647736 | F27: 487 | G27: 114 | H27: 24 | I27: 128 | J27: 3 | K27: 12 | L27: 13 | M27: 193 | N27: 10 | O27: 5 | P27: 801 | Q27: 61.47352264
A28: DISTRITO 3 BARBACOAS | B28: 7 | C28: 3440 | D28: 1238 | E28: 35.98837209 | F28: 1209 | G28: 227 | H28: 51 | I28: 384 | J28: 63 | K28: 29 | L28: 36 | M28: 419 | N28: 21 | O28: 8 | P28: 2202 | Q28: 64.01162791
A29: BARBACOAS (SAN ISIDRO) | B29: 2 | C29: 1244 | D29: 442 | E29: 35.53054662 | F29: 430 | G29: 119 | H29: 11 | I29: 92 | J29: 23 | K29: 19 | L29: 11 | M29: 155 | N29: 9 | O29: 3 | P29: 802 | Q29: 64.46945338
A30: PIEDADES | B30: 2 | C30: 774 | D30: 268 | E30: 34.625323 | F30: 262 | G30: 49 | H30: 12 | I30: 50 | J30: 35 | K30: 3 | L30: 13 | M30: 100 | N30: 5 | O30: 1 | P30: 506 | Q30: 65.374677
A31: SAN JUAN | B31: 2 | C31: 1072 | D31: 419 | E31: 39.0858209 | F31: 408 | G31: 54 | H31: 28 | I31: 214 | J31: 2 | K31: 7 | L31: 8 | M31: 95 | N31: 7 | O31: 4 | P31: 653 | Q31: 60.9141791
A32: CORTEZAL | B32: 1 | C32: 350 | D32: 109 | E32: 31.14285714 | F32: 109 | G32: 5 | H32: 0 | I32: 28 | J32: 3 | K32: 0 | L32: 4 | M32: 69 | N32: 0 | O32: 0 | P32: 241 | Q32: 68.85714286
A33: DISTRITO 4 GRIFO ALTO | B33: 3 | C33: 946 | D33: 493 | E33: 52.1141649 | F33: 483 | G33: 31 | H33: 24 | I33: 236 | J33: 1 | K33: 2 | L33: 5 | M33: 184 | N33: 5 | O33: 5 | P33: 453 | Q33: 47.8858351
A34: GRIFO ALTO | B34: 2 | C34: 797 | D34: 406 | E34: 50.94102886 | F34: 396 | G34: 29 | H34: 24 | I34: 208 | J34: 1 | K34: 2 | L34: 5 | M34: 127 | N34: 5 | O34: 5 | P34: 391 | Q34: 49.05897114
A35: GRIFO BAJO | B35: 1 | C35: 149 | D35: 87 | E35: 58.38926174 | F35: 87 | G35: 2 | H35: 0 | I35: 28 | J35: 0 | K35: 0 | L35: 0 | M35: 57 | N35: 0 | O35: 0 | P35: 62 | Q35: 41.61073826
A36: DISTRITO 5 SAN RAFAEL | B36: 3 | C36: 1274 | D36: 587 | E36: 46.07535322 | F36: 568 | G36: 56 | H36: 8 | I36: 155 | J36: 5 | K36: 7 | L36: 8 | M36: 329 | N36: 11 | O36: 8 | P36: 687 | Q36: 53.92464678
A37: SAN RAFAEL ARRIBA | B37: 2 | C37: 946 | D37: 417 | E37: 44.08033827 | F37: 406 | G37: 53 | H37: 8 | I37: 112 | J37: 5 | K37: 6 | L37: 8 | M37: 214 | N37: 8 | O37: 3 | P37: 529 | Q37: 55.91966173
A38: FLORALIA | B38: 1 | C38: 328 | D38: 170 | E38: 51.82926829 | F38: 162 | G38: 3 | H38: 0 | I38: 43 | J38: 0 | K38: 1 | L38: 0 | M38: 115 | N38: 3 | O38: 5 | P38: 158 | Q38: 48.17073171
A39: DISTRITO 6 CANDELARITA | B39: 3 | C39: 1415 | D39: 533 | E39: 37.66784452 | F39: 517 | G39: 133 | H39: 4 | I39: 210 | J39: 10 | K39: 2 | L39: 8 | M39: 150 | N39: 9 | O39: 7 | P39: 882 | Q39: 62.33215548
A40: CANDELARITA | B40: 2 | C40: 753 | D40: 255 | E40: 33.86454183 | F40: 245 | G40: 63 | H40: 3 | I40: 103 | J40: 8 | K40: 1 | L40: 3 | M40: 64 | N40: 6 | O40: 4 | P40: 498 | Q40: 66.13545817
A41: PEDERNAL O SAN PEDRO | B41: 1 | C41: 662 | D41: 278 | E41: 41.9939577 | F41: 272 | G41: 70 | H41: 1 | I41: 107 | J41: 2 | K41: 1 | L41: 5 | M41: 86 | N41: 3 | O41: 3 | P41: 384 | Q41: 58.0060423
A42: DISTRITO 7 DESAMPARADITOS | B42: 1 | C42: 568 | D42: 298 | E42: 52.46478873 | F42: 294 | G42: 66 | H42: 4 | I42: 30 | J42: 1 | K42: 4 | L42: 0 | M42: 189 | N42: 1 | O42: 3 | P42: 270 | Q42: 47.53521127
A43: DESAMPARADITOS | B43: 1 | C43: 568 | D43: 298 | E43: 52.46478873 | F43: 294 | G43: 66 | H43: 4 | I43: 30 | J43: 1 | K43: 4 | L43: 0 | M43: 189 | N43: 1 | O43: 3 | P43: 270 | Q43: 47.53521127
A44: DISTRITO 8 SAN ANTONIO | B44: 5 | C44: 2963 | D44: 829 | E44: 27.97840027 | F44: 808 | G44: 213 | H44: 47 | I44: 207 | J44: 14 | K44: 22 | L44: 36 | M44: 269 | N44: 17 | O44: 4 | P44: 2134 | Q44: 72.02159973
A45: SAN ANTONIO | B45: 4 | C45: 2763 | D45: 758 | E45: 27.43394861 | F45: 739 | G45: 194 | H45: 42 | I45: 193 | J45: 12 | K45: 21 | L45: 33 | M45: 244 | N45: 16 | O45: 3 | P45: 2005 | Q45: 72.56605139
A46: CHARCÓN (RÍO VIEJO) | B46: 1 | C46: 200 | D46: 71 | E46: 35.5 | F46: 69 | G46: 19 | H46: 5 | I46: 14 | J46: 2 | K46: 1 | L46: 3 | M46: 25 | N46: 1 | O46: 1 | P46: 129 | Q46: 64.5
A47: DISTRITO 9 CHIRES | B47: 11 | C47: 2218 | D47: 763 | E47: 34.40036069 | F47: 738 | G47: 124 | H47: 17 | I47: 341 | J47: 16 | K47: 5 | L47: 10 | M47: 225 | N47: 14 | O47: 11 | P47: 1455 | Q47: 65.59963931
A48: GUARUMAL | B48: 1 | C48: 212 | D48: 74 | E48: 34.90566038 | F48: 73 | G48: 5 | H48: 1 | I48: 53 | J48: 5 | K48: 1 | L48: 0 | M48: 8 | N48: 0 | O48: 1 | P48: 138 | Q48: 65.09433962
A49: ZAPATÓN (SAN CARLOS) | B49: 1 | C49: 339 | D49: 121 | E49: 35.69321534 | F49: 116 | G49: 32 | H49: 7 | I49: 27 | J49: 0 | K49: 0 | L49: 2 | M49: 48 | N49: 2 | O49: 3 | P49: 218 | Q49: 64.30678466
A50: GAMALOTILLO | B50: 1 | C50: 257 | D50: 85 | E50: 33.07392996 | F50: 82 | G50: 5 | H50: 0 | I50: 41 | J50: 0 | K50: 0 | L50: 0 | M50: 36 | N50: 2 | O50: 1 | P50: 172 | Q50: 66.92607004
A51: LOS ÁNGELES | B51: 1 | C51: 133 | D51: 47 | E51: 35.33834586 | F51: 46 | G51: 2 | H51: 2 | I51: 16 | J51: 1 | K51: 0 | L51: 1 | M51: 24 | N51: 0 | O51: 1 | P51: 86 | Q51: 64.66165414
A52: LA GLORIA | B52: 1 | C52: 201 | D52: 44 | E52: 21.89054726 | F52: 42 | G52: 17 | H52: 0 | I52: 16 | J52: 1 | K52: 1 | L52: 0 | M52: 7 | N52: 1 | O52: 1 | P52: 157 | Q52: 78.10945274
A53: MASTATAL | B53: 1 | C53: 108 | D53: 50 | E53: 46.2962963 | F53: 48 | G53: 9 | H53: 2 | I53: 20 | J53: 1 | K53: 1 | L53: 3 | M53: 12 | N53: 1 | O53: 1 | P53: 58 | Q53: 53.7037037
A54: SAN MARTÍN | B54: 1 | C54: 114 | D54: 42 | E54: 36.84210526 | F54: 42 | G54: 4 | H54: 2 | I54: 10 | J54: 3 | K54: 0 | L54: 0 | M54: 23 | N54: 0 | O54: 0 | P54: 72 | Q54: 63.15789474
A55: CRISTO REY | B55: 1 | C55: 453 | D55: 165 | E55: 36.42384106 | F55: 159 | G55: 30 | H55: 1 | I55: 89 | J55: 5 | K55: 0 | L55: 2 | M55: 32 | N55: 5 | O55: 1 | P55: 288 | Q55: 63.57615894
A56: SAN MIGUEL | B56: 1 | C56: 147 | D56: 52 | E56: 35.37414966 | F56: 48 | G56: 17 | H56: 0 | I56: 17 | J56: 0 | K56: 0 | L56: 0 | M56: 14 | N56: 2 | O56: 2 | P56: 95 | Q56: 64.62585034
A57: VISTA DE MAR NORTE | B57: 1 | C57: 207 | D57: 68 | E57: 32.85024155 | F57: 67 | G57: 3 | H57: 2 | I57: 39 | J57: 0 | K57: 2 | L57: 1 | M57: 20 | N57: 1 | O57: 0 | P57: 139 | Q57: 67.14975845
A58: BAJO REY | B58: 1 | C58: 47 | D58: 15 | E58: 31.91489362 | F58: 15 | G58: 0 | H58: 0 | I58: 13 | J58: 0 | K58: 0 | L58: 1 | M58: 1 | N58: 0 | O58: 0 | P58: 32 | Q58: 68.08510638
A61: Fuente: Tribunal Supremo de Elecciones.

Sheet 2.13
A2: CUADRO 2.13 CANTÓN TARRAZÚ: JUNTAS, ELECTORADO, PARTICIPACIÓN, VOTOS POR PARTIDO, NULOS, BLANCOS Y ABSTENCIONISMO
A3: PARA ALCALDE(SA), SEGÚN DISTRITO ADMINISTRATIVO Y ELECTORAL, ELECCIONES MUNICIPALES FEBRERO 2016
A5: DISTRITO ADMINISTRATIVO Y ELECTORAL | B5: JUNTAS | C5: ELECTORADO | D5: VOTOS RECIBIDOS | O5: ABSTENCIONISMO
D6: TOTAL GENERAL | E6: % PARTICIPACIÓN | F6: VOTOS POR PARTIDO | M6: VOTOS NULOS | N6: VOTOS BLANCOS | O6: ABSOLUTO | P6: %
B7: JUNTAS | F7: TOTAL | G7: ACCIÓN CIUDADANA | H7: FRENTE AMPLIO | I7: LIBERACIÓN NACIONAL | J7: MOVIMIENTO LIBERTARIO | K7: REPUBLICANO SOCIAL CRISTIANO | L7: UNIDAD SOCIAL CRISTIANA
A9: CANTÓN TARRAZÚ | B9: 25 | C9: 11843 | D9: 4629 | E9: 39.08638014 | F9: 4509 | G9: 627 | H9: 409 | I9: 1160 | J9: 112 | K9: 973 | L9: 1228 | M9: 79 | N9: 41 | O9: 7214 | P9: 60.91361986
A10: DISTRITO 1 SAN MARCOS | B10: 13 | C10: 7500 | D10: 3055 | E10: =+D10/C10*100 -> 40.73333333 | F10: 2980 | G10: 407 | H10: 305 | I10: 771 | J10: 98 | K10: 708 | L10: 691 | M10: 48 | N10: 27 | O10: =+C10-D10 -> 4445 | P10: =+O10/C10*100 -> 59.26666667
A11: SAN MARCOS | B11: 7 | C11: 4754 | D11: 2065 | E11: =+D11/C11*100 -> 43.4371056 | F11: 2014 | G11: 283 | H11: 216 | I11: 527 | J11: 30 | K11: 527 | L11: 431 | M11: 30 | N11: 21 | O11: 2689 | P11: 56.5628944
A12: SAN PEDRO | B12: 1 | C12: 446 | D12: 200 | E12: 44.84304933 | F12: 196 | G12: 17 | H12: 29 | I12: 47 | J12: 1 | K12: 32 | L12: 70 | M12: 2 | N12: 2 | O12: 246 | P12: 55.15695067
A13: GUADALUPE | B13: 2 | C13: 1060 | D13: 406 | E13: 38.30188679 | F13: 397 | G13: 59 | H13: 43 | I13: 90 | J13: 54 | K13: 57 | L13: 94 | M13: 7 | N13: 2 | O13: 654 | P13: 61.69811321
A14: RODEO NORTE | B14: 2 | C14: 1176 | D14: 361 | E14: 30.69727891 | F14: 353 | G14: 47 | H14: 17 | I14: 95 | J14: 13 | K14: 89 | L14: 92 | M14: 7 | N14: 1 | O14: 815 | P14: 69.30272109
A15: H.A. LOS SANTOS | B15: 1 | C15: 64 | D15: 23 | E15: 35.9375 | F15: 20 | G15: 1 | H15: 0 | I15: 12 | J15: 0 | K15: 3 | L15: 4 | M15: 2 | N15: 1 | O15: 41 | P15: 64.0625
A16: DISTRITO 2 SAN LORENZO | B16: 9 | C16: 2949 | D16: 1023 | E16: 34.68972533 | F16: 1001 | G16: 131 | H16: 53 | I16: 269 | J16: 10 | K16: 209 | L16: 329 | M16: 17 | N16: 5 | O16: 1926 | P16: 65.31027467
A17: SAN MARTÍN | B17: 1 | C17: 129 | D17: 55 | E17: 42.63565891 | F17: 53 | G17: 2 | H17: 0 | I17: 16 | J17: 0 | K17: 5 | L17: 30 | M17: 2 | N17: 0 | O17: 74 | P17: 57.36434109
A18: SAN LORENZO | B18: 3 | C18: 2140 | D18: 691 | E18: 32.28971963 | F18: 677 | G18: 107 | H18: 47 | I18: 192 | J18: 9 | K18: 124 | L18: 198 | M18: 12 | N18: 2 | O18: 1449 | P18: 67.71028037
A19: ESQUIPULAS | B19: 1 | C19: 32 | D19: 14 | E19: 43.75 | F19: 13 | G19: 0 | H19: 2 | I19: 2 | J19: 0 | K19: 0 | L19: 9 | M19: 1 | N19: 0 | O19: 18 | P19: 56.25
A20: SAN MIGUEL O SALADO | B20: 1 | C20: 121 | D20: 66 | E20: 54.54545455 | F20: 65 | G20: 12 | H20: 2 | I20: 10 | J20: 0 | K20: 23 | L20: 18 | M20: 0 | N20: 1 | O20: 55 | P20: 45.45454545
A21: ZAPOTAL | B21: 1 | C21: 200 | D21: 77 | E21: 38.5 | F21: 73 | G21: 3 | H21: 1 | I21: 43 | J21: 0 | K21: 14 | L21: 12 | M21: 2 | N21: 2 | O21: 123 | P21: 61.5
A22: NÁPOLES | B22: 1 | C22: 276 | D22: 82 | E22: 29.71014493 | F22: 82 | G22: 6 | H22: 1 | I22: 5 | J22: 0 | K22: 34 | L22: 36 | M22: 0 | N22: 0 | O22: 194 | P22: 70.28985507
A23: QUEBRADA ARROYO | B23: 1 | C23: 51 | D23: 38 | E23: 74.50980392 | F23: 38 | G23: 1 | H23: 0 | I23: 1 | J23: 1 | K23: 9 | L23: 26 | M23: 0 | N23: 0 | O23: 13 | P23: 25.49019608
A24: DISTRITO 3 SAN CARLOS | B24: 3 | C24: 1394 | D24: 551 | E24: 39.52654232 | F24: 528 | G24: 89 | H24: 51 | I24: 120 | J24: 4 | K24: 56 | L24: 208 | M24: 14 | N24: 9 | O24: 843 | P24: 60.47345768
A25: SAN CARLOS | B25: 2 | C25: 890 | D25: 343 | E25: 38.53932584 | F25: 324 | G25: 68 | H25: 43 | I25: 45 | J25: 3 | K25: 36 | L25: 129 | M25: 13 | N25: 6 | O25: 547 | P25: 61.46067416
A26: SAN JERÓNIMO | B26: 1 | C26: 504 | D26: 208 | E26: 41.26984127 | F26: 204 | G26: 21 | H26: 8 | I26: 75 | J26: 1 | K26: 20 | L26: 79 | M26: 1 | N26: 3 | O26: 296 | P26: 58.73015873
A29: Fuente: Tribunal Supremo de Elecciones.

Sheet 2.14
A2: CUADRO 2.14 CANTÓN ASERRÍ: JUNTAS, ELECTORADO, PARTICIPACIÓN, VOTOS POR PARTIDO, NULOS, BLANCOS Y ABSTENCIONISMO PARA ALCALDE(SA)
A3: SEGÚN DISTRITO ADMINISTRATIVO Y ELECTORAL, ELECCIONES MUNICIPALES FEBRERO 2016
A5: DISTRITO ADMINISTRATIVO Y ELECTORAL | B5: JUNTAS | C5: ELECTORADO | D5: VOTOS RECIBIDOS | O5: ABSTENCIONISMO
D6: VOTOS RECIBIDOS | E6: % PARTICIPACIÓN | F6: VOTOS POR PARTIDO | M6: VOTOS NULOS | N6: VOTOS BLANCOS | O6: ABSOLUTO | P6: %
B7: JUNTAS | F7: TOTAL | G7: ACCIÓN CIUDADANA | H7: FRENTE AMPLIO | I7: LIBERACIÓN NACIONAL | J7: MOVIMIENTO LIBERTARIO | K7: NUEVA GENERACIÓN | L7: UNIDAD SOCIAL CRISTIANA
A9: CANTÓN ASERRÍ | B9: 68 | C9: 41808 | D9: 11821 | E9: 28.27449292 | F9: 11541 | G9: 2643 | H9: 1480 | I9: 5048 | J9: 233 | K9: 474 | L9: 1663 | M9: 199 | N9: 81 | O9: 29987 | P9: 71.72550708
A10: DISTRITO 1 ASERRÍ | B10: 32 | C10: 23704 | D10: 5974 | E10: =+D10/C10*100 -> 25.20249747 | F10: 5841 | G10: 993 | H10: 807 | I10: 2491 | J10: 133 | K10: 349 | L10: 1068 | M10: 103 | N10: 30 | O10: =+C10-D10 -> 17730 | P10: =+O10/C10*100 -> 74.79750253
A11: ASERRÍ | B11: 23 | C11: 18271 | D11: 4711 | E11: =+D11/C11*100 -> 25.78402934 | F11: 4608 | G11: 769 | H11: 650 | I11: 2011 | J11: 79 | K11: 304 | L11: 795 | M11: 77 | N11: 26 | O11: 13560 | P11: 74.21597066
A12: POÁS | B12: 8 | C12: 5397 | D12: 1234 | E12: 22.86455438 | F12: 1205 | G12: 224 | H12: 157 | I12: 478 | J12: 54 | K12: 45 | L12: 247 | M12: 26 | N12: 3 | O12: 4163 | P12: 77.13544562
A13: H.A. SAN FRANCISCO DE ASÍS | B13: 1 | C13: 36 | D13: 29 | E13: 80.55555556 | F13: 28 | G13: 0 | H13: 0 | I13: 2 | J13: 0 | K13: 0 | L13: 26 | M13: 0 | N13: 1 | O13: 7 | P13: 19.44444444
A14: DISTRITO 2 TARBACA | B14: 4 | C14: 1708 | D14: 662 | E14: 38.7587822 | F14: 650 | G14: 160 | H14: 58 | I14: 371 | J14: 3 | K14: 11 | L14: 47 | M14: 7 | N14: 5 | O14: 1046 | P14: 61.2412178
A15: TARBACA O PRAGA | B15: 2 | C15: 1234 | D15: 469 | E15: 38.00648298 | F15: 458 | G15: 110 | H15: 56 | I15: 244 | J15: 2 | K15: 11 | L15: 35 | M15: 6 | N15: 5 | O15: 765 | P15: 61.99351702
A16: EL TIGRE | B16: 1 | C16: 184 | D16: 90 | E16: 48.91304348 | F16: 90 | G16: 12 | H16: 1 | I16: 69 | J16: 1 | K16: 0 | L16: 7 | M16: 0 | N16: 0 | O16: 94 | P16: 51.08695652
A17: CEDRAL | B17: 1 | C17: 290 | D17: 103 | E17: 35.51724138 | F17: 102 | G17: 38 | H17: 1 | I17: 58 | J17: 0 | K17: 0 | L17: 5 | M17: 1 | N17: 0 | O17: 187 | P17: 64.48275862
A18: DISTRITO 3 VUELTA DE JORCO | B18: 9 | C18: 4896 | D18: 1701 | E18: 34.74264706 | F18: 1661 | G18: 608 | H18: 85 | I18: 702 | J18: 30 | K18: 29 | L18: 207 | M18: 25 | N18: 15 | O18: 3195 | P18: 65.25735294
A19: JOCOTAL ABAJO | B19: 1 | C19: 204 | D19: 76 | E19: 37.25490196 | F19: 73 | G19: 19 | H19: 2 | I19: 36 | J19: 0 | K19: 1 | L19: 15 | M19: 3 | N19: 0 | O19: 128 | P19: 62.74509804
A20: VUELTA DE JORCO | B20: 5 | C20: 3237 | D20: 1025 | E20: 31.66512203 | F20: 1004 | G20: 380 | H20: 69 | I20: 322 | J20: 29 | K20: 26 | L20: 178 | M20: 12 | N20: 9 | O20: 2212 | P20: 68.33487797
A21: MONTE REDONDO | B21: 1 | C21: 651 | D21: 279 | E21: 42.85714286 | F21: 274 | G21: 149 | H21: 5 | I21: 112 | J21: 0 | K21: 2 | L21: 6 | M21: 3 | N21: 2 | O21: 372 | P21: 57.14285714
A22: LEGUA DE LOS NARANJOS | B22: 1 | C22: 319 | D22: 104 | E22: 32.60188088 | F22: 97 | G22: 50 | H22: 7 | I22: 36 | J22: 0 | K22: 0 | L22: 4 | M22: 5 | N22: 2 | O22: 215 | P22: 67.39811912
A23: URUCA | B23: 1 | C23: 485 | D23: 217 | E23: 44.74226804 | F23: 213 | G23: 10 | H23: 2 | I23: 196 | J23: 1 | K23: 0 | L23: 4 | M23: 2 | N23: 2 | O23: 268 | P23: 55.25773196
A24: DISTRITO 4 SAN GABRIEL | B24: 7 | C24: 3750 | D24: 1112 | E24: 29.65333333 | F24: 1081 | G24: 319 | H24: 167 | I24: 435 | J24: 8 | K24: 14 | L24: 138 | M24: 23 | N24: 8 | O24: 2638 | P24: 70.34666667
A25: SAN GABRIEL | B25: 5 | C25: 2983 | D25: 917 | E25: 30.7408649 | F25: 890 | G25: 273 | H25: 156 | I25: 367 | J25: 7 | K25: 13 | L25: 74 | M25: 19 | N25: 8 | O25: 2066 | P25: 69.2591351
A26: LIMONAL | B26: 1 | C26: 290 | D26: 124 | E26: 42.75862069 | F26: 123 | G26: 35 | H26: 4 | I26: 22 | J26: 0 | K26: 0 | L26: 62 | M26: 1 | N26: 0 | O26: 166 | P26: 57.24137931
A27: TRANQUERILLAS | B27: 1 | C27: 477 | D27: 71 | E27: 14.88469602 | F27: 68 | G27: 11 | H27: 7 | I27: 46 | J27: 1 | K27: 1 | L27: 2 | M27: 3 | N27: 0 | O27: 406 | P27: 85.11530398
A28: DISTRITO 5 LEGUA | B28: 5 | C28: 1123 | D28: 538 | E28: 47.90739092 | F28: 523 | G28: 261 | H28: 45 | I28: 171 | J28: 10 | K28: 7 | L28: 29 | M28: 5 | N28: 10 | O28: 585 | P28: 52.09260908
A29: LEGUA | B29: 1 | C29: 573 | D29: 257 | E29: =+D29/C29*100 -> 44.85165794 | F29: 250 | G29: 136 | H29: 8 | I29: 82 | J29: 7 | K29: 5 | L29: 12 | M29: 4 | N29: 3 | O29: 316 | P29: 55.14834206
A30: BAJO DE PARRITA | B30: 1 | C30: 78 | D30: 43 | E30: 55.12820513 | F30: 43 | G30: 29 | H30: 2 | I30: 12 | J30: 0 | K30: 0 | L30: 0 | M30: 0 | N30: 0 | O30: 35 | P30: 44.87179487
A31: ALTO AGUACATE | B31: 1 | C31: 96 | D31: 42 | E31: 43.75 | F31: 40 | G31: 23 | H31: 2 | I31: 13 | J31: 2 | K31: 0 | L31: 0 | M31: 0 | N31: 2 | O31: 54 | P31: 56.25
A32: LAGUNA (BAJO BIJAGUAL) | B32: 1 | C32: 180 | D32: 102 | E32: 56.66666667 | F32: 99 | G32: 49 | H32: 1 | I32: 36 | J32: 1 | K32: 1 | L32: 11 | M32: 1 | N32: 2 | O32: 78 | P32: 43.33333333
A33: CARMEN | B33: 1 | C33: 196 | D33: 94 | E33: 47.95918367 | F33: 91 | G33: 24 | H33: 32 | I33: 28 | J33: 0 | K33: 1 | L33: 6 | M33: 0 | N33: 3 | O33: 102 | P33: 52.04081633
A34: DISTRITO 6 MONTERREY | B34: 2 | C34: 711 | D34: 295 | E34: 41.49085795 | F34: 293 | G34: 111 | H34: 4 | I34: 149 | J34: 4 | K34: 0 | L34: 25 | M34: 0 | N34: 2 | O34: 416 | P34: 58.50914205
A35: MONTERREY | B35: 1 | C35: 567 | D35: 260 | E35: 45.85537919 | F35: 258 | G35: 84 | H35: 3 | I35: 145 | J35: 3 | K35: 0 | L35: 23 | M35: 0 | N35: 2 | O35: 307 | P35: 54.14462081
A36: OJO DE AGUA (PARTE NORTE) | B36: 1 | C36: 144 | D36: 35 | E36: 24.30555556 | F36: 35 | G36: 27 | H36: 1 | I36: 4 | J36: 1 | K36: 0 | L36: 2 | M36: 0 | N36: 0 | O36: 109 | P36: 75.69444444
A37: DISTRITO 7 SALITRILLOS | B37: 9 | C37: 5916 | D37: 1539 | E37: 26.01419878 | F37: 1492 | G37: 191 | H37: 314 | I37: 729 | J37: 45 | K37: 64 | L37: 149 | M37: 36 | N37: 11 | O37: 4377 | P37: 73.98580122
A38: SALITRILLOS | B38: 6 | C38: 3795 | D38: 999 | E38: 26.32411067 | F38: 975 | G38: 138 | H38: 114 | I38: 532 | J38: 40 | K38: 40 | L38: 111 | M38: 17 | N38: 7 | O38: 2796 | P38: 73.67588933
A39: SANTA TERESITA | B39: 3 | C39: 2121 | D39: 540 | E39: 25.45968883 | F39: 517 | G39: 53 | H39: 200 | I39: 197 | J39: 5 | K39: 24 | L39: 38 | M39: 19 | N39: 4 | O39: 1581 | P39: 74.54031117
A42: Fuente: Tribunal Supremo de Elecciones.

Sheet 2.15
A2: CUADRO 2.15 CANTÓN MORA: JUNTAS, ELECTORADO, PARTICIPACIÓN, VOTOS POR PARTIDO, NULOS, BLANCOS Y ABSTENCIONISMO PARA ALCALDE(SA)
A3: SEGÚN DISTRITO ADMINISTRATIVO Y ELECTORAL, ELECCIONES MUNICIPALES FEBRERO 2016
A5: DISTRITO ADMINISTRATIVO Y ELECTORAL | B5: JUNTAS | C5: ELECTORADO | D5: VOTOS RECIBIDOS | O5: ABSTENCIONISMO
D6: TOTAL GENERAL | E6: % PARTICIPACIÓN | F6: VOTOS POR PARTIDO | M6: VOTOS NULOS | N6: VOTOS BLANCOS | O6: ABSOLUTO | P6: %
B7: JUNTAS | F7: TOTAL | G7: ACCIÓN CIUDADANA | H7: FRENTE AMPLIO | I7: LIBERACIÓN NACIONAL | J7: MOVIMIENTO LIBERTARIO | K7: NUEVA GENERACIÓN | L7: UNIDAD SOCIAL CRISTIANA
A9: CANTÓN MORA | B9: 41 | C9: 20263 | D9: 8247 | E9: 40.69979766 | F9: 8073 | G9: 1357 | H9: 308 | I9: 1433 | J9: 125 | K9: 3616 | L9: 1234 | M9: 136 | N9: 38 | O9: 12016 | P9: 59.30020234
A10: DISTRITO 1 COLÓN | B10: 20 | C10: 11488 | D10: 5034 | E10: =+D10/C10*100 -> 43.81963788 | F10: 4964 | G10: 1035 | H10: 172 | I10: 707 | J10: 61 | K10: 2443 | L10: 546 | M10: 59 | N10: 11 | O10: =+C10-D10 -> 6454 | P10: =+O10/C10*100 -> 56.18036212
A11: COLÓN | B11: 12 | C11: 7972 | D11: 3635 | E11: =+D11/C11*100 -> 45.59708981 | F11: 3583 | G11: 798 | H11: 148 | I11: 508 | J11: 33 | K11: 1702 | L11: 394 | M11: 46 | N11: 6 | O11: 4337 | P11: 54.40291019
A12: TICUFRES | B12: 1 | C12: 273 | D12: 93 | E12: 34.06593407 | F12: 92 | G12: 15 | H12: 1 | I12: 13 | J12: 0 | K12: 24 | L12: 39 | M12: 1 | N12: 0 | O12: 180 | P12: 65.93406593
A13: RODEO | B13: 1 | C13: 312 | D13: 181 | E13: 58.01282051 | F13: 178 | G13: 18 | H13: 2 | I13: 13 | J13: 1 | K13: 133 | L13: 11 | M13: 1 | N13: 2 | O13: 131 | P13: 41.98717949
A14: BRASIL | B14: 3 | C14: 1568 | D14: 558 | E14: 35.58673469 | F14: 554 | G14: 98 | H14: 12 | I14: 88 | J14: 22 | K14: 280 | L14: 54 | M14: 3 | N14: 1 | O14: 1010 | P14: 64.41326531
A15: SAN BOSCO | B15: 2 | C15: 1136 | D15: 453 | E15: 39.87676056 | F15: 445 | G15: 97 | H15: 7 | I15: 79 | J15: 1 | K15: 218 | L15: 43 | M15: 7 | N15: 1 | O15: 683 | P15: 60.12323944
A16: SAN RAFAEL (CEDRAL) | B16: 1 | C16: 227 | D16: 114 | E16: 50.22026432 | F16: 112 | G16: 9 | H16: 2 | I16: 6 | J16: 4 | K16: 86 | L16: 5 | M16: 1 | N16: 1 | O16: 113 | P16: 49.77973568
A17: DISTRITO 2 GUAYABO | B17: 5 | C17: 3008 | D17: 882 | E17: 29.32180851 | F17: 865 | G17: 150 | H17: 73 | I17: 129 | J17: 8 | K17: 337 | L17: 168 | M17: 12 | N17: 5 | O17: 2126 | P17: 70.67819149
A18: GUAYABO | B18: 3 | C18: 1856 | D18: 571 | E18: 30.76508621 | F18: 562 | G18: 35 | H18: 66 | I18: 86 | J18: 8 | K18: 232 | L18: 135 | M18: 7 | N18: 2 | O18: 1285 | P18: 69.23491379
A19: CORROGRES (LA FILA EL CARMEN) | B19: 2 | C19: 1152 | D19: 311 | E19: 26.99652778 | F19: 303 | G19: 115 | H19: 7 | I19: 43 | J19: 0 | K19: 105 | L19: 33 | M19: 5 | N19: 3 | O19: 841 | P19: 73.00347222
A20: DISTRITO 3 TABARCIA | B20: 8 | C20: 3213 | D20: 1249 | E20: 38.87332711 | F20: 1191 | G20: 83 | H20: 49 | I20: 330 | J20: 53 | K20: 363 | L20: 313 | M20: 41 | N20: 17 | O20: 1964 | P20: 61.12667289
A21: TABARCIA | B21: 2 | C21: 1339 | D21: 454 | E21: 33.90589993 | F21: 437 | G21: 31 | H21: 14 | I21: 115 | J21: 42 | K21: 120 | L21: 115 | M21: 13 | N21: 4 | O21: 885 | P21: 66.09410007
A22: PIEDRAS BLANCAS | B22: 1 | C22: 495 | D22: 244 | E22: 49.29292929 | F22: 235 | G22: 9 | H22: 10 | I22: 79 | J22: 1 | K22: 40 | L22: 96 | M22: 6 | N22: 3 | O22: 251 | P22: 50.70707071
A23: MORADO | B23: 1 | C23: 617 | D23: 207 | E23: 33.54943274 | F23: 194 | G23: 9 | H23: 12 | I23: 61 | J23: 6 | K23: 61 | L23: 45 | M23: 11 | N23: 2 | O23: 410 | P23: 66.45056726
A24: CORRALAR | B24: 1 | C24: 307 | D24: 143 | E24: 46.57980456 | F24: 137 | G24: 13 | H24: 1 | I24: 23 | J24: 4 | K24: 73 | L24: 23 | M24: 4 | N24: 2 | O24: 164 | P24: 53.42019544
A25: BAJO DE LOAIZA (SAN LORENZO) | B25: 1 | C25: 223 | D25: 108 | E25: 48.43049327 | F25: 96 | G25: 13 | H25: 10 | I25: 33 | J25: 0 | K25: 28 | L25: 12 | M25: 7 | N25: 5 | O25: 115 | P25: 51.56950673
A26: BAJO DE BUSTAMANTE O ÁNGELES | B26: 1 | C26: 126 | D26: 51 | E26: 40.47619048 | F26: 50 | G26: 6 | H26: 2 | I26: 17 | J26: 0 | K26: 13 | L26: 12 | M26: 0 | N26: 1 | O26: 75 | P26: 59.52380952
A27: BAJO DE JORCO (PARTE OESTE) | B27: 1 | C27: 106 | D27: 42 | E27: 39.62264151 | F27: 42 | G27: 2 | H27: 0 | I27: 2 | J27: 0 | K27: 28 | L27: 10 | M27: 0 | N27: 0 | O27: 64 | P27: 60.37735849
A28: DISTRITO 4 PIEDRAS NEGRAS | B28: 1 | C28: 256 | D28: 172 | E28: 67.1875 | F28: 170 | G28: 3 | H28: 3 | I28: 84 | J28: 0 | K28: 71 | L28: 9 | M28: 2 | N28: 0 | O28: 84 | P28: 32.8125
A29: PIEDRAS NEGRAS | B29: 1 | C29: 256 | D29: 172 | E29: 67.1875 | F29: 170 | G29: 3 | H29: 3 | I29: 84 | J29: 0 | K29: 71 | L29: 9 | M29: 2 | N29: 0 | O29: 84 | P29: 32.8125
A30: DISTRITO 5 PICAGRES | B30: 3 | C30: 547 | D30: 288 | E30: 52.65082267 | F30: 282 | G30: 2 | H30: 2 | I30: 65 | J30: 2 | K30: 184 | L30: 27 | M30: 3 | N30: 3 | O30: 259 | P30: 47.34917733
A31: PICAGRES | B31: 1 | C31: 207 | D31: 95 | E31: 45.89371981 | F31: 95 | G31: 0 | H31: 1 | I31: 44 | J31: 1 | K31: 41 | L31: 8 | M31: 0 | N31: 0 | O31: 112 | P31: 54.10628019
A32: LLANO GRANDE | B32: 1 | C32: 312 | D32: 179 | E32: 57.37179487 | F32: 173 | G32: 1 | H32: 1 | I32: 18 | J32: 1 | K32: 137 | L32: 15 | M32: 3 | N32: 3 | O32: 133 | P32: 42.62820513
A33: SAN ISIDRO DE CHUCAS (BALSILLA) | B33: 1 | C33: 28 | D33: 14 | E33: 50 | F33: 14 | G33: 1 | H33: 0 | I33: 3 | J33: 0 | K33: 6 | L33: 4 | M33: 0 | N33: 0 | O33: 14 | P33: 50
A34: DISTRITO 6 JARIS | B34: 2 | C34: 854 | D34: 262 | E34: 30.67915691 | F34: 255 | G34: 19 | H34: 8 | I34: 57 | J34: 1 | K34: 113 | L34: 57 | M34: 6 | N34: 1 | O34: 592 | P34: 69.32084309
A35: JARIS | B35: 2 | C35: 854 | D35: 262 | E35: 30.67915691 | F35: 255 | G35: 19 | H35: 8 | I35: 57 | J35: 1 | K35: 113 | L35: 57 | M35: 6 | N35: 1 | O35: 592 | P35: 69.32084309
A36: DISTRITO 7 QUITIRRISÍ | B36: 2 | C36: 897 | D36: 360 | E36: 40.13377926 | F36: 346 | G36: 65 | H36: 1 | I36: 61 | J36: 0 | K36: 105 | L36: 114 | M36: 13 | N36: 1 | O36: 537 | P36: 59.86622074
A37: QUITIRRISÍ | B37: 2 | C37: 897 | D37: 360 | E37: 40.13377926 | F37: 346 | G37: 65 | H37: 1 | I37: 61 | J37: 0 | K37: 105 | L37: 114 | M37: 13 | N37: 1 | O37: 537 | P37: 59.86622074
A40: Fuente: Tribunal Supremo de Elecciones.

Sheet 2.16
A2: CUADRO 2.16 CANTÓN GOICOECHEA: JUNTAS, ELECTORADO, PARTICIPACIÓN, VOTOS POR PARTIDO, NULOS, BLANCOS Y ABSTENCIONISMO PARA ALCALDE(SA)
A3: SEGÚN DISTRITO ADMINISTRATIVO Y ELECTORAL, ELECCIONES MUNICIPALES FEBRERO 2016
A5: DISTRITO ADMINISTRATIVO Y ELECTORAL | B5: JUNTAS | C5: ELECTORADO | D5: VOTOS RECIBIDOS | R5: ABSTENCIONISMO
D6: TOTAL GENERAL | E6: % PARTICIPACIÓN | F6: VOTOS POR PARTIDO | P6: VOTOS NULOS | Q6: VOTOS BLANCOS | R6: ABSOLUTO | S6: %
B7: JUNTAS | F7: TOTAL | G7: ACCESIBILIDAD SIN EXCLUSIÓN | H7: ACCIÓN CIUDADANA | I7: FRENTE AMPLIO | J7: LIBERACIÓN NACIONAL | K7: MOVIMIENTO LIBERTARIO | L7: NUEVA GENERACIÓN | M7: REPUBLICANO SOCIAL CRISTIANO | N7: RESTAURACIÓN NACIONAL | O7: UNIDAD SOCIAL CRISTIANA
A9: CANTÓN GOICOECHEA | B9: 133 | C9: 88592 | D9: 21497 | E9: 24.26517067 | F9: 21024 | G9: 3629 | H9: 1752 | I9: 2140 | J9: 5118 | K9: 1647 | L9: 586 | M9: 1118 | N9: 1108 | O9: 3926 | P9: 381 | Q9: 92 | R9: 67095 | S9: 75.73482933
A10: DISTRITO 1 GUADALUPE | B10: 31 | C10: 20468 | D10: 4911 | E10: =+D10/C10*100 -> 23.99355091 | F10: 4796 | G10: 825 | H10: 322 | I10: 564 | J10: 1177 | K10: 411 | L10: 146 | M10: 212 | N10: 248 | O10: 891 | P10: 91 | Q10: 24 | R10: =+C10-D10 -> 15557 | S10: =+R10/C10*100 -> 76.00644909
A11: GUADALUPE | B11: 30 | C11: 20338 | D11: 4868 | E11: =+D11/C11*100 -> 23.93549022 | F11: 4754 | G11: 820 | H11: 320 | I11: 563 | J11: 1158 | K11: 410 | L11: 144 | M11: 209 | N11: 248 | O11: 882 | P11: 90 | Q11: 24 | R11: 15470 | S11: 76.06450978
A12: H.A.CARLOS MARÍA ULLOA | B12: 1 | C12: 130 | D12: 43 | E12: 33.07692308 | F12: 42 | G12: 5 | H12: 2 | I12: 1 | J12: 19 | K12: 1 | L12: 2 | M12: 3 | N12: 0 | O12: 9 | P12: 1 | Q12: 0 | R12: 87 | S12: 66.92307692
A13: DISTRITO 2 SAN FRANCISCO | B13: 3 | C13: 2041 | D13: 825 | E13: 40.42136208 | F13: 804 | G13: 125 | H13: 40 | I13: 78 | J13: 230 | K13: 185 | L13: 15 | M13: 28 | N13: 26 | O13: 77 | P13: 19 | Q13: 2 | R13: 1216 | S13: 59.57863792
A14: SAN FRANCISCO | B14: 3 | C14: 2041 | D14: 825 | E14: 40.42136208 | F14: 804 | G14: 125 | H14: 40 | I14: 78 | J14: 230 | K14: 185 | L14: 15 | M14: 28 | N14: 26 | O14: 77 | P14: 19 | Q14: 2 | R14: 1216 | S14: 59.57863792
A15: DISTRITO 3 CALLE BLANCOS | B15: 18 | C15: 11922 | D15: 3133 | E15: 26.27914779 | F15: 3071 | G15: 439 | H15: 303 | I15: 334 | J15: 585 | K15: 387 | L15: 61 | M15: 234 | N15: 97 | O15: 631 | P15: 46 | Q15: 16 | R15: 8789 | S15: 73.72085221
A16: CALLE BLANCOS Y SAN GABRIEL | B16: 17 | C16: 11899 | D16: 3124 | E16: 26.25430708 | F16: 3062 | G16: 439 | H16: 302 | I16: 334 | J16: 579 | K16: 386 | L16: 61 | M16: 234 | N16: 97 | O16: 630 | P16: 46 | Q16: 16 | R16: 8775 | S16: 73.74569292
A17: H.A. CORTEZA AMARILLA-EMMANUEL | B17: 1 | C17: 23 | D17: 9 | E17: 39.13043478 | F17: 9 | G17: 0 | H17: 1 | I17: 0 | J17: 6 | K17: 1 | L17: 0 | M17: 0 | N17: 0 | O17: 1 | P17: 0 | Q17: 0 | R17: 14 | S17: 60.86956522
A18: DISTRITO 4 MATA DE PLÁTANO | B18: 19 | C18: 12715 | D18: 3164 | E18: 24.88399528 | F18: 3101 | G18: 544 | H18: 241 | I18: 443 | J18: 691 | K18: 145 | L18: 202 | M18: 157 | N18: 135 | O18: 543 | P18: 52 | Q18: 11 | R18: 9551 | S18: 75.11600472
A19: MATA DE PLÁTANO O CARMEN | B19: 19 | C19: 12715 | D19: 3164 | E19: 24.88399528 | F19: 3101 | G19: 544 | H19: 241 | I19: 443 | J19: 691 | K19: 145 | L19: 202 | M19: 157 | N19: 135 | O19: 543 | P19: 52 | Q19: 11 | R19: 9551 | S19: 75.11600472
A20: DISTRITO 5 IPÍS | B20: 33 | C20: 22868 | D20: 4908 | E20: 21.4623054 | F20: 4817 | G20: 883 | H20: 350 | I20: 408 | J20: 1409 | K20: 208 | L20: 105 | M20: 355 | N20: 353 | O20: 746 | P20: 73 | Q20: 18 | R20: 17960 | S20: 78.5376946
A21: IPÍS ABAJO | B21: 8 | C21: 5515 | D21: 1112 | E21: 20.1631913 | F21: 1095 | G21: 180 | H21: 86 | I21: 128 | J21: 279 | K21: 51 | L21: 39 | M21: 138 | N21: 48 | O21: 146 | P21: 16 | Q21: 1 | R21: 4403 | S21: 79.8368087
A22: LOS ÁNGELES | B22: 9 | C22: 6245 | D22: 1483 | E22: 23.7469976 | F22: 1454 | G22: 297 | H22: 77 | I22: 116 | J22: 529 | K22: 54 | L22: 34 | M22: 72 | N22: 108 | O22: 167 | P22: 27 | Q22: 2 | R22: 4762 | S22: 76.2530024
A23: FACIO Y LA MORA | B23: 16 | C23: 11108 | D23: 2313 | E23: 20.82283039 | F23: 2268 | G23: 406 | H23: 187 | I23: 164 | J23: 601 | K23: 103 | L23: 32 | M23: 145 | N23: 197 | O23: 433 | P23: 30 | Q23: 15 | R23: 8795 | S23: 79.17716961
A24: DISTRITO 6 RANCHO REDONDO | B24: 6 | C24: 3136 | D24: 1095 | E24: 34.91709184 | F24: 1077 | G24: 159 | H24: 209 | I24: 61 | J24: 296 | K24: 21 | L24: 5 | M24: 22 | N24: 32 | O24: 272 | P24: 15 | Q24: 3 | R24: 2041 | S24: 65.08290816
A25: RANCHO REDONDO | B25: 2 | C25: 772 | D25: 408 | E25: 52.84974093 | F25: 405 | G25: 35 | H25: 30 | I25: 8 | J25: 157 | K25: 6 | L25: 2 | M25: 6 | N25: 6 | O25: 155 | P25: 2 | Q25: 1 | R25: 364 | S25: 47.15025907
A26: VISTA DE MAR | B26: 4 | C26: 2364 | D26: 687 | E26: 29.06091371 | F26: 672 | G26: 124 | H26: 179 | I26: 53 | J26: 139 | K26: 15 | L26: 3 | M26: 16 | N26: 26 | O26: 117 | P26: 13 | Q26: 2 | R26: 1677 | S26: 70.93908629
A27: DISTRITO 7 PURRAL | B27: 23 | C27: 15442 | D27: 3461 | E27: 22.41289988 | F27: 3358 | G27: 654 | H27: 287 | I27: 252 | J27: 730 | K27: 290 | L27: 52 | M27: 110 | N27: 217 | O27: 766 | P27: 85 | Q27: 18 | R27: 11981 | S27: 77.58710012
A28: PURRAL | B28: 15 | C28: 10032 | D28: 2090 | E28: 20.83333333 | F28: 2037 | G28: 416 | H28: 168 | I28: 172 | J28: 423 | K28: 150 | L28: 45 | M28: 82 | N28: 135 | O28: 446 | P28: 43 | Q28: 10 | R28: 7942 | S28: 79.16666667
A29: CUADROS | B29: 8 | C29: 5410 | D29: 1371 | E29: 25.34195933 | F29: 1321 | G29: 238 | H29: 119 | I29: 80 | J29: 307 | K29: 140 | L29: 7 | M29: 28 | N29: 82 | O29: 320 | P29: 42 | Q29: 8 | R29: 4039 | S29: 74.65804067
A32: Fuente: Tribunal Supremo de Elecciones.

Sheet 2.17
A2: CUADRO 2.17 CANTÓN SANTA ANA: JUNTAS, ELECTORADO, PARTICIPACIÓN, VOTOS POR PARTIDO, NULOS, BLANCOS Y ABSTENCIONISMO PARA ALCALDE(SA)
A3: SEGÚN DISTRITO ADMINISTRATIVO Y ELECTORAL, ELECCIONES MUNICIPALES FEBRERO 2016
A5: DISTRITO ADMINISTRATIVO Y ELECTORAL | B5: JUNTAS | C5: ELECTORADO | D5: VOTOS RECIBIDOS | S5: ABSTENCIONISMO
D6: TOTAL GENERAL | E6: % PARTICIPACIÓN | F6: VOTOS POR PARTIDO | Q6: VOTOS NULOS | R6: VOTOS BLANCOS | S6: ABSOLUTO | T6: %
B7: JUNTAS | F7: TOTAL | G7: ACCESIBILIDAD SIN EXCLUSIÓN | H7: ACCIÓN CIUDADANA | I7: ALIANZA CRISTIANA SANTANEÑA | J7: DEL SOL | K7: LIBERACIÓN NACIONAL | L7: MOVIMIENTO LIBERTARIO | M7: NUEVA GENERACIÓN | N7: RENOVACIÓN COSTARRICENSE | O7: REPUBLICANO SOCIAL CRISTIANO | P7: UNIDAD SOCIAL CRISTIANA
A9: CANTÓN SANTA ANA | B9: 51 | C9: 32863 | D9: 14061 | E9: 42.78672063 | F9: 13832 | G9: 134 | H9: 1817 | I9: 365 | J9: 1903 | K9: 4992 | L9: 1778 | M9: 366 | N9: 125 | O9: 883 | P9: 1469 | Q9: 166 | R9: =+R10+R13+R16+R20+R23+R25 -> 63 | S9: 18802 | T9: 57.21327937
A10: DISTRITO 1 SANTA ANA | B10: 13 | C10: 8404 | D10: 4011 | E10: =+D10/C10*100 -> 47.72727273 | F10: 3956 | G10: 37 | H10: 561 | I10: 105 | J10: 523 | K10: 1339 | L10: 560 | M10: 134 | N10: 42 | O10: 324 | P10: 331 | Q10: 41 | R10: 14 | S10: =+C10-D10 -> 4393 | T10: =+S10/C10*100 -> 52.27272727
A11: SANTA ANA | B11: 10 | C11: 6749 | D11: 3211 | E11: =+D11/C11*100 -> 47.57741888 | F11: 3170 | G11: 23 | H11: 423 | I11: 80 | J11: 424 | K11: 1056 | L11: 502 | M11: 116 | N11: 25 | O11: 287 | P11: 234 | Q11: 29 | R11: 12 | S11: =+C11-D11 -> 3538 | T11: =+S11/C11*100 -> 52.42258112
A12: SAN RAFAEL | B12: 3 | C12: 1655 | D12: 800 | E12: 48.33836858 | F12: 786 | G12: 14 | H12: 138 | I12: 25 | J12: 99 | K12: 283 | L12: 58 | M12: 18 | N12: 17 | O12: 37 | P12: 97 | Q12: 12 | R12: 2 | S12: =+C12-D12 -> 855 | T12: =+S12/C12*100 -> 51.66163142
A13: DISTRITO 2 SALITRAL | B13: 5 | C13: 2703 | D13: 1304 | E13: 48.2426933 | F13: 1287 | G13: 10 | H13: 137 | I13: 43 | J13: 50 | K13: 624 | L13: 115 | M13: 37 | N13: 12 | O13: 77 | P13: 182 | Q13: 13 | R13: 4 | S13: =+C13-D13 -> 1399 | T13: =+S13/C13*100 -> 51.7573067
A14: SALITRAL | B14: 4 | C14: 2411 | D14: 1175 | E14: 48.73496474 | F14: 1158 | G14: 9 | H14: 129 | I14: 36 | J14: 50 | K14: 549 | L14: 111 | M14: 35 | N14: 11 | O14: 65 | P14: 163 | Q14: 13 | R14: 4 | S14: =+C14-D14 -> 1236 | T14: =+S14/C14*100 -> 51.26503526
A15: MATINILLA | B15: 1 | C15: 292 | D15: 129 | E15: 44.17808219 | F15: 129 | G15: 1 | H15: 8 | I15: 7 | J15: 0 | K15: 75 | L15: 4 | M15: 2 | N15: 1 | O15: 12 | P15: 19 | Q15: 0 | R15: 0 | S15: =+C15-D15 -> 163 | T15: =+S15/C15*100 -> 55.82191781
A16: DISTRITO 3 POZOS | B16: 16 | C16: 10071 | D16: 3910 | E16: 38.82434714 | F16: 3824 | G16: 17 | H16: 626 | I16: 115 | J16: 666 | K16: 1193 | L16: 534 | M16: 82 | N16: 23 | O16: 188 | P16: 380 | Q16: 60 | R16: 26 | S16: =+C16-D16 -> 6161 | T16: =+S16/C16*100 -> 61.17565286
A17: POZOS | B17: 12 | C17: 7990 | D17: 3074 | E17: 38.47309136 | F17: 3010 | G17: 12 | H17: 490 | I17: 66 | J17: 569 | K17: 938 | L17: 455 | M17: 65 | N17: 11 | O17: 134 | P17: 270 | Q17: 44 | R17: 20 | S17: =+C17-D17 -> 4916 | T17: =+S17/C17*100 -> 61.52690864
A18: HONDURAS | B18: 2 | C18: 991 | D18: 423 | E18: 42.68415742 | F18: 410 | G18: 3 | H18: 63 | I18: 20 | J18: 63 | K18: 98 | L18: 36 | M18: 6 | N18: 7 | O18: 40 | P18: 74 | Q18: 9 | R18: 4 | S18: =+C18-D18 -> 568 | T18: =+S18/C18*100 -> 57.31584258
A19: LAGOS DE LINDORA | B19: 2 | C19: 1090 | D19: 413 | E19: 37.88990826 | F19: 404 | G19: 2 | H19: 73 | I19: 29 | J19: 34 | K19: 157 | L19: 43 | M19: 11 | N19: 5 | O19: 14 | P19: 36 | Q19: 7 | R19: 2 | S19: =+C19-D19 -> 677 | T19: =+S19/C19*100 -> 62.11009174
A20: DISTRITO 4 URUCA | B20: 8 | C20: 5422 | D20: 2203 | E20: 40.63076356 | F20: 2160 | G20: 47 | H20: 218 | I20: 54 | J20: 273 | K20: 742 | L20: 359 | M20: 39 | N20: 35 | O20: 161 | P20: 232 | Q20: 27 | R20: 16 | S20: =+C20-D20 -> 3219 | T20: =+S20/C20*100 -> 59.36923644
A21: RÍO ORO | B21: 7 | C21: 4826 | D21: 1943 | E21: 40.26108579 | F21: 1904 | G21: 44 | H21: 202 | I21: 45 | J21: 264 | K21: 635 | L21: 324 | M21: 33 | N21: 18 | O21: 137 | P21: 202 | Q21: 25 | R21: 14 | S21: =+C21-D21 -> 2883 | T21: =+S21/C21*100 -> 59.73891421
A22: LA MINA | B22: 1 | C22: 596 | D22: 260 | E22: 43.62416107 | F22: 256 | G22: 3 | H22: 16 | I22: 9 | J22: 9 | K22: 107 | L22: 35 | M22: 6 | N22: 17 | O22: 24 | P22: 30 | Q22: 2 | R22: 2 | S22: =+C22-D22 -> 336 | T22: =+S22/C22*100 -> 56.37583893
A23: DISTRITO 5 PIEDADES | B23: 7 | C23: 4828 | D23: 2027 | E23: 41.98425849 | F23: 2005 | G23: 16 | H23: 197 | I23: 45 | J23: 310 | K23: 871 | L23: 149 | M23: 68 | N23: 9 | O23: 97 | P23: 243 | Q23: 20 | R23: 2 | S23: =+C23-D23 -> 2801 | T23: =+S23/C23*100 -> 58.01574151
A24: PIEDADES | B24: 7 | C24: 4828 | D24: 2027 | E24: 41.98425849 | F24: 2005 | G24: 16 | H24: 197 | I24: 45 | J24: 310 | K24: 871 | L24: 149 | M24: 68 | N24: 9 | O24: 97 | P24: 243 | Q24: 20 | R24: 2 | S24: =+C24-D24 -> 2801 | T24: =+S24/C24*100 -> 58.01574151
A25: DISTRITO 6 BRASIL | B25: 2 | C25: 1435 | D25: 606 | E25: 42.22996516 | F25: 600 | G25: 7 | H25: 78 | I25: 3 | J25: 81 | K25: 223 | L25: 61 | M25: 6 | N25: 4 | O25: 36 | P25: 101 | Q25: 5 | R25: 1 | S25: =+C25-D25 -> 829 | T25: =+S25/C25*100 -> 57.77003484
A26: BRASIL | B26: 2 | C26: 1435 | D26: 606 | E26: =+D26/C26*100 -> 42.22996516 | F26: 600 | G26: 7 | H26: 78 | I26: 3 | J26: 81 | K26: 223 | L26: 61 | M26: 6 | N26: 4 | O26: 36 | P26: 101 | Q26: 5 | R26: 1 | S26: =+C26-D26 -> 829 | T26: =+S26/C26*100 -> 57.77003484
A29: Fuente: Tribunal Supremo de Elecciones.

Sheet 2.18
A2: CUADRO 2.18 CANTÓN ALAJUELITA: JUNTAS, ELECTORADO, PARTICIPACIÓN, VOTOS POR PARTIDO, NULOS, BLANCOS Y ABSTENCIONISMO PARA ALCALDE(SA)
A3: SEGÚN DISTRITO ADMINISTRATIVO Y ELECTORAL, ELECCIONES MUNICIPALES FEBRERO 2016
A5: DISTRITO ADMINISTRATIVO Y ELECTORAL | B5: JUNTAS | C5: ELECTORADO | D5: VOTOS RECIBIDOS | Q5: ABSTENCIONISMO
D6: TOTAL GENERAL | E6: % PARTICIPACIÓN | F6: VOTOS POR PARTIDO | O6: VOTOS NULOS | P6: VOTOS BLANCOS | Q6: ABSOLUTO | R6: %
B7: JUNTAS | F7: TOTAL | G7: ACCIÓN CIUDADANA | H7: FRENTE AMPLIO | I7: LIBERACIÓN NACIONAL | J7: MOVIMIENTO LIBERTARIO | K7: NUEVA GENERACIÓN | L7: RENOVACIÓN COSTARRICENSE | M7: REPUBLICANO SOCIAL CRISTIANO | N7: UNIDAD SOCIAL CRISTIANA
A9: CANTÓN ALAJUELITA | B9: 72 | C9: 49065 | D9: 14952 | E9: 30.4738612 | F9: 14647 | G9: 703 | H9: 422 | I9: 1501 | J9: 303 | K9: 4145 | L9: 3399 | M9: 837 | N9: 3337 | O9: 264 | P9: 41 | Q9: 34113 | R9: 69.5261388
A10: DISTRITO 1 ALAJUELITA | B10: 13 | C10: 10028 | D10: 3676 | E10: =+D10/C10*100 -> 36.65735939 | F10: 3620 | G10: 75 | H10: 72 | I10: 353 | J10: 33 | K10: 1655 | L10: 533 | M10: 177 | N10: 722 | O10: 48 | P10: 8 | Q10: =+C10-D10 -> 6352 | R10: =+Q10/C10*100 -> 63.34264061
A11: ALAJUELITA | B11: 13 | C11: 10028 | D11: 3676 | E11: =+D11/C11*100 -> 36.65735939 | F11: 3620 | G11: 75 | H11: 72 | I11: 353 | J11: 33 | K11: 1655 | L11: 533 | M11: 177 | N11: 722 | O11: 48 | P11: 8 | Q11: 6352 | R11: 63.34264061
A12: DISTRITO 2 SAN JOSÉCITO | B12: 11 | C12: 7498 | D12: 2575 | E12: 34.34249133 | F12: 2524 | G12: 147 | H12: 54 | I12: 292 | J12: 30 | K12: 841 | L12: 338 | M12: 269 | N12: 553 | O12: 43 | P12: 8 | Q12: 4923 | R12: 65.65750867
A13: SAN JOSÉCITO | B13: 11 | C13: 7498 | D13: 2575 | E13: 34.34249133 | F13: 2524 | G13: 147 | H13: 54 | I13: 292 | J13: 30 | K13: 841 | L13: 338 | M13: 269 | N13: 553 | O13: 43 | P13: 8 | Q13: 4923 | R13: 65.65750867
A14: DISTRITO 3 SAN ANTONIO | B14: 3 | C14: 1681 | D14: 665 | E14: 39.55978584 | F14: 650 | G14: 88 | H14: 15 | I14: 48 | J14: 7 | K14: 169 | L14: 156 | M14: 37 | N14: 130 | O14: 9 | P14: 6 | Q14: 1016 | R14: 60.44021416
A15: SAN ANTONIO O EL LLANO | B15: 2 | C15: 1337 | D15: 495 | E15: 37.02318624 | F15: 483 | G15: 11 | H15: 7 | I15: 34 | J15: 3 | K15: 155 | L15: 140 | M15: 36 | N15: 97 | O15: 7 | P15: 5 | Q15: 842 | R15: 62.97681376
A16: LÁMPARAS O CORAZÓN DE JESÚS | B16: 1 | C16: 344 | D16: 170 | E16: 49.41860465 | F16: 167 | G16: 77 | H16: 8 | I16: 14 | J16: 4 | K16: 14 | L16: 16 | M16: 1 | N16: 33 | O16: 2 | P16: 1 | Q16: 174 | R16: 50.58139535
A17: DISTRITO 4 CONCEPCIÓN | B17: 18 | C17: 12147 | D17: 3217 | E17: 26.48390549 | F17: 3145 | G17: 169 | H17: 125 | I17: 307 | J17: 62 | K17: 636 | L17: 1070 | M17: 156 | N17: 620 | O17: 63 | P17: 9 | Q17: 8930 | R17: 73.51609451
A18: CONCEPCIÓN ABAJO | B18: 12 | C18: 7982 | D18: 2220 | E18: 27.8125783 | F18: 2171 | G18: 123 | H18: 95 | I18: 247 | J18: 26 | K18: 494 | L18: 666 | M18: 114 | N18: 406 | O18: 42 | P18: 7 | Q18: 5762 | R18: 72.1874217
A19: CONCEPCIÓN ARRIBA | B19: 6 | C19: 4165 | D19: 997 | E19: 23.93757503 | F19: 974 | G19: 46 | H19: 30 | I19: 60 | J19: 36 | K19: 142 | L19: 404 | M19: 42 | N19: 214 | O19: 21 | P19: 2 | Q19: 3168 | R19: 76.06242497
A20: DISTRITO 5 SAN FELIPE | B20: 27 | C20: 17711 | D20: 4819 | E20: 27.2090791 | F20: 4708 | G20: 224 | H20: 156 | I20: 501 | J20: 171 | K20: 844 | L20: 1302 | M20: 198 | N20: 1312 | O20: 101 | P20: 10 | Q20: 12892 | R20: 72.7909209
A21: SAN FELIPE | B21: 8 | C21: 5101 | D21: 1610 | E21: 31.56243874 | F21: 1583 | G21: 63 | H21: 41 | I21: 134 | J21: 28 | K21: 431 | L21: 276 | M21: 59 | N21: 551 | O21: 24 | P21: 3 | Q21: 3491 | R21: 68.43756126
A22: AURORA | B22: 13 | C22: 8963 | D22: 2312 | E22: 25.79493473 | F22: 2251 | G22: 117 | H22: 92 | I22: 262 | J22: 128 | K22: 295 | L22: 730 | M22: 123 | N22: 504 | O22: 56 | P22: 5 | Q22: 6651 | R22: 74.20506527
A23: TEJARCILLOS (JUAN RAFAEL MORA) | B23: 6 | C23: 3647 | D23: 897 | E23: 24.59555799 | F23: 874 | G23: 44 | H23: 23 | I23: 105 | J23: 15 | K23: 118 | L23: 296 | M23: 16 | N23: 257 | O23: 21 | P23: 2 | Q23: 2750 | R23: 75.40444201
A26: Fuente: Tribunal Supremo de Elecciones.

Sheet 2.19
A2: CUADRO 2.19 CANTÓN VÁZQUEZ DE CORONADO: JUNTAS, ELECTORADO, PARTICIPACIÓN, VOTOS POR PARTIDO, NULOS, BLANCOS Y ABSTENCIONISMO PARA ALCALDE(SA)
A3: SEGÚN DISTRITO ADMINISTRATIVO Y ELECTORAL, ELECCIONES MUNICIPALES FEBRERO 2016
A5: DISTRITO ADMINISTRATIVO Y ELECTORAL | B5: JUNTAS | C5: ELECTORADO | D5: VOTOS RECIBIDOS | Q5: ABSTENCIONISMO
D6: TOTAL GENERAL | E6: % PARTICIPACIÓN | F6: VOTOS POR PARTIDO | O6: VOTOS NULOS | P6: VOTOS BLANCOS | Q6: ABSOLUTO | R6: %
B7: JUNTAS | F7: TOTAL | G7: ACCIÓN CIUDADANA | H7: AUTÉNTICO LABRADOR DE CORONADO | I7: DEMÓCRATA | J7: FRENTE AMPLIO | K7: LIBERACIÓN NACIONAL | L7: MOVIMIENTO LIBERTARIO | M7: REPUBLICANO SOCIAL CRISTIANO | N7: UNIDAD SOCIAL CRISTIANA
A9: CANTÓN VÁZQUEZ DE CORONADO | B9: 76 | C9: 51588 | D9: 15660 | E9: 30.35589672 | F9: 15377 | G9: 1792 | H9: 2686 | I9: 286 | J9: 807 | K9: 2509 | L9: 216 | M9: 6161 | N9: 920 | O9: 237 | P9: 46 | Q9: 35928 | R9: 69.64410328
A10: DISTRITO 1 SAN ISIDRO | B10: 21 | C10: 15239 | D10: 4980 | E10: =+D10/C10*100 -> 32.67930967 | F10: 4909 | G10: 650 | H10: 940 | I10: 56 | J10: 196 | K10: 682 | L10: 41 | M10: 2031 | N10: 313 | O10: 56 | P10: 15 | Q10: =+C10-D10 -> 10259 | R10: =+Q10/C10*100 -> 67.32069033
A11: SAN ISIDRO | B11: 16 | C11: 11791 | D11: 3956 | E11: =+D11/C11*100 -> 33.55101348 | F11: 3900 | G11: 523 | H11: 753 | I11: 45 | J11: 142 | K11: 564 | L11: 36 | M11: 1609 | N11: 228 | O11: 47 | P11: 9 | Q11: =+C11-D11 -> 7835 | R11: =+Q11/C11*100 -> 66.44898652
A12: CORAZÓN DE JESÚS | B12: 5 | C12: 3448 | D12: 1024 | E12: 29.69837587 | F12: 1009 | G12: 127 | H12: 187 | I12: 11 | J12: 54 | K12: 118 | L12: 5 | M12: 422 | N12: 85 | O12: 9 | P12: 6 | Q12: 2424 | R12: 70.30162413
A13: DISTRITO 2 SAN RAFAEL | B13: 9 | C13: 5577 | D13: 2076 | E13: 37.22431415 | F13: 2024 | G13: 180 | H13: 355 | I13: 35 | J13: 62 | K13: 507 | L13: 16 | M13: 787 | N13: 82 | O13: 43 | P13: 9 | Q13: 3501 | R13: 62.77568585
A14: SAN RAFAEL | B14: 7 | C14: 4707 | D14: 1740 | E14: 36.96622052 | F14: 1698 | G14: 161 | H14: 252 | I14: 29 | J14: 47 | K14: 425 | L14: 13 | M14: 701 | N14: 70 | O14: 34 | P14: 8 | Q14: 2967 | R14: 63.03377948
A15: LAS NUBES | B15: 2 | C15: 870 | D15: 336 | E15: 38.62068966 | F15: 326 | G15: 19 | H15: 103 | I15: 6 | J15: 15 | K15: 82 | L15: 3 | M15: 86 | N15: 12 | O15: 9 | P15: 1 | Q15: 534 | R15: 61.37931034
A16: DISTRITO 3 DULCE NOMBRE DE JESÚS | B16: 14 | C16: 9351 | D16: 2478 | E16: 26.49983959 | F16: 2421 | G16: 325 | H16: 440 | I16: 39 | J16: 141 | K16: 332 | L16: 106 | M16: 904 | N16: 134 | O16: 50 | P16: 7 | Q16: 6873 | R16: 73.50016041
A17: JESÚS O DULCE NOMBRE | B17: 14 | C17: 9351 | D17: 2478 | E17: 26.49983959 | F17: 2421 | G17: 325 | H17: 440 | I17: 39 | J17: 141 | K17: 332 | L17: 106 | M17: 904 | N17: 134 | O17: 50 | P17: 7 | Q17: 6873 | R17: 73.50016041
A18: DISTRITO 4 PATALILLO | B18: 24 | C18: 16190 | D18: 4427 | E18: 27.34403953 | F18: 4368 | G18: 504 | H18: 714 | I18: 136 | J18: 362 | K18: 749 | L18: 41 | M18: 1543 | N18: 319 | O18: 52 | P18: 7 | Q18: 11763 | R18: 72.65596047
A19: SAN ANTONIO | B19: 24 | C19: 16190 | D19: 4427 | E19: 27.34403953 | F19: 4368 | G19: 504 | H19: 714 | I19: 136 | J19: 362 | K19: 749 | L19: 41 | M19: 1543 | N19: 319 | O19: 52 | P19: 7 | Q19: 11763 | R19: 72.65596047
A20: DISTRITO 5 CASCAJAL | B20: 8 | C20: 5231 | D20: 1699 | E20: 32.47944944 | F20: 1655 | G20: 133 | H20: 237 | I20: 20 | J20: 46 | K20: 239 | L20: 12 | M20: 896 | N20: 72 | O20: 36 | P20: 8 | Q20: 3532 | R20: 67.52055056
A21: SAN PEDRO | B21: 7 | C21: 4540 | D21: 1458 | E21: 32.11453744 | F21: 1422 | G21: 99 | H21: 212 | I21: 17 | J21: 38 | K21: 222 | L21: 12 | M21: 766 | N21: 56 | O21: 29 | P21: 7 | Q21: 3082 | R21: 67.88546256
A22: CASCAJAL | B22: 1 | C22: 691 | D22: 241 | E22: 34.87698987 | F22: 233 | G22: 34 | H22: 25 | I22: 3 | J22: 8 | K22: 17 | L22: 0 | M22: 130 | N22: 16 | O22: 7 | P22: 1 | Q22: 450 | R22: =+Q22/C22*100 -> 65.12301013
A25: Fuente: Tribunal Supremo de Elecciones.

Sheet 2.20
A2: CUADRO 2.20 CANTÓN ACOSTA: JUNTAS, ELECTORADO, PARTICIPACIÓN, VOTOS POR PARTIDO, NULOS, BLANCOS Y ABSTENCIONISMO PARA ALCALDE(SA)
A3: SEGÚN DISTRITO ADMINISTRATIVO Y ELECTORAL, ELECCIONES MUNICIPALES FEBRERO 2016
A5: DISTRITO ADMINISTRATIVO Y ELECTORAL | B5: JUNTAS | C5: ELECTORADO | D5: VOTOS RECIBIDOS | L5: ABSTENCIONISMO
D6: TOTAL GENERAL | E6: % PARTICIPACIÓN | F6: VOTOS POR PARTIDO | J6: VOTOS NULOS | K6: VOTOS BLANCOS | L6: ABSOLUTO | M6: %
B7: JUNTAS | F7: TOTAL | G7: ACCIÓN CIUDADANA | H7: LIBERACIÓN NACIONAL | I7: UNIDAD SOCIAL CRISTIANA
A9: CANTÓN ACOSTA | B9: 38 | C9: 16028 | D9: 6493 | E9: 40.51035688 | F9: 6338 | G9: 2674 | H9: 1852 | I9: 1812 | J9: 115 | K9: 40 | L9: 9535 | M9: 59.48964312
A10: DISTRITO 1 SAN IGNACIO | B10: 13 | C10: 7214 | D10: 3163 | E10: =+D10/C10*100 -> 43.8453008 | F10: 3099 | G10: 1248 | H10: 960 | I10: 891 | J10: 53 | K10: 11 | L10: =+C10-D10 -> 4051 | M10: =+L10/C10*100 -> 56.1546992
A11: SAN IGNACIO | B11: 6 | C11: 3950 | D11: 1683 | E11: =+D11/C11*100 -> 42.60759494 | F11: 1652 | G11: 722 | H11: 557 | I11: 373 | J11: 25 | K11: 6 | L11: =+C11-D11 -> 2267 | M11: =+L11/C11*100 -> 57.39240506
A12: TABLAZO | B12: 2 | C12: 912 | D12: 382 | E12: 41.88596491 | F12: 376 | G12: 175 | H12: 94 | I12: 107 | J12: 4 | K12: 2 | L12: 530 | M12: 58.11403509
A13: CHIRRACA (PARTE ESTE) | B13: 2 | C13: 883 | D13: 459 | E13: 51.98187995 | F13: 452 | G13: 115 | H13: 113 | I13: 224 | J13: 6 | K13: 1 | L13: 424 | M13: 48.01812005
A14: SAN LUIS | B14: 2 | C14: 1435 | D14: 618 | E14: 43.06620209 | F14: 601 | G14: 228 | H14: 189 | I14: 184 | J14: 17 | K14: 0 | L14: 817 | M14: 56.93379791
A15: H.A. ACOSTA | B15: 1 | C15: 34 | D15: 21 | E15: 61.76470588 | F15: 18 | G15: 8 | H15: 7 | I15: 3 | J15: 1 | K15: 2 | L15: 13 | M15: 38.23529412
A16: DISTRITO 2 GUAITIL | B16: 5 | C16: 1944 | D16: 737 | E16: 37.91152263 | F16: 716 | G16: 215 | H16: 310 | I16: 191 | J16: 15 | K16: 6 | L16: 1207 | M16: 62.08847737
A17: GUAITIL | B17: 1 | C17: 552 | D17: 234 | E17: 42.39130435 | F17: 229 | G17: 58 | H17: 97 | I17: 74 | J17: 3 | K17: 2 | L17: 318 | M17: 57.60869565
A18: TOLEDO | B18: 1 | C18: 161 | D18: 57 | E18: 35.40372671 | F18: 55 | G18: 16 | H18: 29 | I18: 10 | J18: 1 | K18: 1 | L18: 104 | M18: 64.59627329
A19: COYOLAR | B19: 1 | C19: 113 | D19: 35 | E19: 30.97345133 | F19: 32 | G19: 19 | H19: 3 | I19: 10 | J19: 3 | K19: 0 | L19: 78 | M19: 69.02654867
A20: LA CRUZ | B20: 1 | C20: 383 | D20: 140 | E20: 36.5535248 | F20: 135 | G20: 77 | H20: 34 | I20: 24 | J20: 3 | K20: 2 | L20: 243 | M20: 63.4464752
A21: OCOCA | B21: 1 | C21: 735 | D21: 271 | E21: 36.8707483 | F21: 265 | G21: 45 | H21: 147 | I21: 73 | J21: 5 | K21: 1 | L21: 464 | M21: 63.1292517
A22: DISTRITO 3 PALMICHAL | B22: 7 | C22: 3519 | D22: 1377 | E22: 39.13043478 | F22: 1351 | G22: 575 | H22: 429 | I22: 347 | J22: 19 | K22: 7 | L22: 2142 | M22: 60.86956522
A23: AGUA BLANCA (PARTE NORTE) | B23: 1 | C23: 576 | D23: 292 | E23: 50.69444444 | F23: 287 | G23: 110 | H23: 94 | I23: 83 | J23: 3 | K23: 2 | L23: 284 | M23: 49.30555556
A24: PALMICHAL | B24: 3 | C24: 2020 | D24: 688 | E24: 34.05940594 | F24: 677 | G24: 310 | H24: 241 | I24: 126 | J24: 9 | K24: 2 | L24: 1332 | M24: 65.94059406
A25: SEVILLA (CACAO) | B25: 1 | C25: 219 | D25: 112 | E25: 51.14155251 | F25: 107 | G25: 29 | H25: 17 | I25: 61 | J25: 2 | K25: 3 | L25: 107 | M25: 48.85844749
A26: BAJO DE JORCO (PARTE ESTE) | B26: 1 | C26: 331 | D26: 147 | E26: 44.41087613 | F26: 146 | G26: 66 | H26: 16 | I26: 64 | J26: 1 | K26: 0 | L26: 184 | M26: 55.58912387
A27: BAJO CACAO O CERDAS | B27: 1 | C27: 373 | D27: 138 | E27: 36.99731903 | F27: 134 | G27: 60 | H27: 61 | I27: 13 | J27: 4 | K27: 0 | L27: 235 | M27: 63.00268097
A28: DISTRITO 4 CANGREJAL | B28: 5 | C28: 1467 | D28: 495 | E28: 33.74233129 | F28: 475 | G28: 218 | H28: 75 | I28: 182 | J28: 13 | K28: 7 | L28: 972 | M28: 66.25766871
A29: CANGREJAL | B29: 1 | C29: 416 | D29: 147 | E29: 35.33653846 | F29: 143 | G29: 102 | H29: 14 | I29: 27 | J29: 2 | K29: 2 | L29: 269 | M29: 64.66346154
A30: CEIBA ESTE | B30: 1 | C30: 416 | D30: 121 | E30: 29.08653846 | F30: 114 | G30: 43 | H30: 22 | I30: 49 | J30: 7 | K30: 0 | L30: 295 | M30: 70.91346154
A31: LLANO DE LA MESA | B31: 1 | C31: 159 | D31: 57 | E31: 35.8490566 | F31: 57 | G31: 11 | H31: 28 | I31: 18 | J31: 0 | K31: 0 | L31: 102 | M31: 64.1509434
A32: ESCUADRA | B32: 1 | C32: 143 | D32: 41 | E32: 28.67132867 | F32: 39 | G32: 27 | H32: 0 | I32: 12 | J32: 2 | K32: 0 | L32: 102 | M32: 71.32867133
A33: LINDA VISTA | B33: 1 | C33: 333 | D33: 129 | E33: 38.73873874 | F33: 122 | G33: 35 | H33: 11 | I33: 76 | J33: 2 | K33: 5 | L33: 204 | M33: 61.26126126
A34: DISTRITO 5 SABANILLAS | B34: 8 | C34: 1884 | D34: 721 | E34: 38.26963907 | F34: 697 | G34: 418 | H34: 78 | I34: 201 | J34: 15 | K34: 9 | L34: 1163 | M34: 61.73036093
A35: SABANILLAS | B35: 1 | C35: 690 | D35: 231 | E35: 33.47826087 | F35: 221 | G35: 102 | H35: 39 | I35: 80 | J35: 5 | K35: 5 | L35: 459 | M35: 66.52173913
A36: TÉRUEL | B36: 1 | C36: 301 | D36: 75 | E36: 24.91694352 | F36: 72 | G36: 47 | H36: 7 | I36: 18 | J36: 1 | K36: 2 | L36: 226 | M36: 75.08305648
A37: BIJAGUAL | B37: 1 | C37: 238 | D37: 104 | E37: 43.69747899 | F37: 101 | G37: 42 | H37: 13 | I37: 46 | J37: 2 | K37: 1 | L37: 134 | M37: 56.30252101
A38: ZONCUANO | B38: 1 | C38: 105 | D38: 39 | E38: 37.14285714 | F38: 37 | G38: 3 | H38: 3 | I38: 31 | J38: 1 | K38: 1 | L38: 66 | M38: 62.85714286
A39: LAS LIMAS | B39: 1 | C39: 77 | D39: 25 | E39: 32.46753247 | F39: 25 | G39: 16 | H39: 2 | I39: 7 | J39: 0 | K39: 0 | L39: 52 | M39: 67.53246753
A40: CASPIROLA | B40: 1 | C40: 109 | D40: 58 | E40: 53.21100917 | F40: 58 | G40: 44 | H40: 3 | I40: 11 | J40: 0 | K40: 0 | L40: 51 | M40: 46.78899083
A41: URUCA | B41: 1 | C41: 178 | D41: 77 | E41: 43.25842697 | F41: 74 | G41: 68 | H41: 2 | I41: 4 | J41: 3 | K41: 0 | L41: 101 | M41: 56.74157303
A42: VEGAS DEL PARRITA | B42: 1 | C42: 186 | D42: 112 | E42: 60.21505376 | F42: 109 | G42: 96 | H42: 9 | I42: 4 | J42: 3 | K42: 0 | L42: 74 | M42: 39.78494624
A45: Fuente: Tribunal Supremo de Elecciones.

Sheet 2.21
A2: CUADRO 2.21 CANTÓN TIBÁS: JUNTAS, ELECTORADO, PARTICIPACIÓN, VOTOS POR PARTIDO, NULOS, BLANCOS Y ABSTENCIONISMO PARA ALCALDE(SA)
A3: SEGÚN DISTRITO ADMINISTRATIVO Y ELECTORAL, ELECCIONES MUNICIPALES FEBRERO 2016
A5: DISTRITO ADMINISTRATIVO Y ELECTORAL | B5: JUNTAS | C5: ELECTORADO | D5: VOTOS RECIBIDOS | Q5: ABSTENCIONISMO
D6: TOTAL GENERAL | E6: % PARTICIPACIÓN | F6: VOTOS POR PARTIDO | O6: VOTOS NULOS | P6: VOTOS BLANCOS | Q6: ABSOLUTO | R6: %
B7: JUNTAS | F7: TOTAL | G7: COALICIÓN SOMOS TIBÁS | H7: INTEGRACIÓN NACIONAL | I7: LIBERACIÓN NACIONAL | J7: MOVIMIENTO LIBERTARIO | K7: NUEVA GENERACIÓN | L7: RENOVACIÓN COSTARRICENSE | M7: REPUBLICANO SOCIAL CRISTIANO | N7: UNIDAD SOCIAL CRISTIANA
A9: CANTÓN TIBÁS | B9: 79 | C9: 55709 | D9: 13569 | E9: 24.35692617 | F9: 13272 | G9: 2510 | H9: 238 | I9: 4747 | J9: 1472 | K9: 469 | L9: 783 | M9: 792 | N9: 2261 | O9: 238 | P9: 59 | Q9: 42140 | R9: 75.64307383
A10: DISTRITO 1 SAN JUAN | B10: 29 | C10: 21847 | D10: 5489 | E10: =+D10/C10*100 -> 25.12473108 | F10: 5393 | G10: 1134 | H10: 110 | I10: 2038 | J10: 599 | K10: 251 | L10: 172 | M10: 302 | N10: 787 | O10: 72 | P10: 24 | Q10: =+C10-D10 -> 16358 | R10: =+Q10/C10*100 -> 74.87526892
A11: SAN JUAN | B11: 20 | C11: 15797 | D11: 4118 | E11: =+D11/C11*100 -> 26.06824081 | F11: 4048 | G11: 799 | H11: 63 | I11: 1625 | J11: 444 | K11: 196 | L11: 106 | M11: 170 | N11: 645 | O11: 52 | P11: 18 | Q11: 11679 | R11: 73.93175919
A12: FLORIDA (INVU) | B12: 9 | C12: 6050 | D12: 1371 | E12: 22.66115702 | F12: 1345 | G12: 335 | H12: 47 | I12: 413 | J12: 155 | K12: 55 | L12: 66 | M12: 132 | N12: 142 | O12: 20 | P12: 6 | Q12: 4679 | R12: 77.33884298
A13: DISTRITO 2 CINCO ESQUINAS | B13: 11 | C13: 7360 | D13: 1455 | E13: 19.76902174 | F13: 1412 | G13: 215 | H13: 26 | I13: 514 | J13: 173 | K13: 18 | L13: 62 | M13: 99 | N13: 305 | O13: 36 | P13: 7 | Q13: 5905 | R13: 80.23097826
A14: CINCO ESQUINAS | B14: 11 | C14: 7360 | D14: 1455 | E14: 19.76902174 | F14: 1412 | G14: 215 | H14: 26 | I14: 514 | J14: 173 | K14: 18 | L14: 62 | M14: 99 | N14: 305 | O14: 36 | P14: 7 | Q14: 5905 | R14: 80.23097826
A15: DISTRITO 3 ANSELMO LLORENTE | B15: 13 | C15: 8584 | D15: 2289 | E15: 26.66589003 | F15: 2256 | G15: 669 | H15: 33 | I15: 914 | J15: 186 | K15: 117 | L15: 60 | M15: 106 | N15: 171 | O15: 27 | P15: 6 | Q15: 6295 | R15: 73.33410997
A16: ANSELMO LLORENTE | B16: 13 | C16: 8584 | D16: 2289 | E16: 26.66589003 | F16: 2256 | G16: 669 | H16: 33 | I16: 914 | J16: 186 | K16: 117 | L16: 60 | M16: 106 | N16: 171 | O16: 27 | P16: 6 | Q16: 6295 | R16: 73.33410997
A17: DISTRITO 4 LEÓN XIII | B17: 11 | C17: 7583 | D17: 1822 | E17: 24.02742978 | F17: 1756 | G17: 71 | H17: 30 | I17: 395 | J17: 111 | K17: 21 | L17: 359 | M17: 174 | N17: 595 | O17: 54 | P17: 12 | Q17: 5761 | R17: 75.97257022
A18: LEÓN XIII | B18: 11 | C18: 7583 | D18: 1822 | E18: 24.02742978 | F18: 1756 | G18: 71 | H18: 30 | I18: 395 | J18: 111 | K18: 21 | L18: 359 | M18: 174 | N18: 595 | O18: 54 | P18: 12 | Q18: 5761 | R18: 75.97257022
A19: DISTRITO 5 COLIMA | B19: 15 | C19: 10335 | D19: 2514 | E19: 24.32510885 | F19: 2455 | G19: 421 | H19: 39 | I19: 886 | J19: 403 | K19: 62 | L19: 130 | M19: 111 | N19: 403 | O19: 49 | P19: 10 | Q19: 7821 | R19: 75.67489115
A20: COLIMA | B20: 6 | C20: 4046 | D20: 1060 | E20: 26.19871478 | F20: 1040 | G20: 205 | H20: 11 | I20: 400 | J20: 124 | K20: 19 | L20: 42 | M20: 49 | N20: 190 | O20: 15 | P20: 5 | Q20: 2986 | R20: 73.80128522
A21: CUATRO REINAS | B21: 9 | C21: 6289 | D21: 1454 | E21: 23.11973287 | F21: 1415 | G21: 216 | H21: 28 | I21: 486 | J21: 279 | K21: 43 | L21: 88 | M21: 62 | N21: 213 | O21: 34 | P21: 5 | Q21: 4835 | R21: 76.88026713
A24: Fuente: Tribunal Supremo de Elecciones.

Sheet 2.22
A2: CUADRO 2.22 CANTÓN MORAVIA: JUNTAS, ELECTORADO, PARTICIPACIÓN, VOTOS POR PARTIDO, NULOS, BLANCOS Y ABSTENCIONISMO PARA ALCALDE(SA)
A3: SEGÚN DISTRITO ADMINISTRATIVO Y ELECTORAL, ELECCIONES MUNICIPALES FEBRERO 2016
A5: DISTRITO ADMINISTRATIVO Y ELECTORAL | B5: JUNTAS | C5: ELECTORADO | D5: VOTOS RECIBIDOS | Q5: ABSTENCIONISMO
D6: TOTAL GENERAL | E6: % PARTICIPACIÓN | F6: VOTOS POR PARTIDO | O6: VOTOS NULOS | P6: VOTOS BLANCOS | Q6: ABSOLUTO | R6: %
B7: JUNTAS | F7: TOTAL | G7: ACCIÓN CIUDADANA | H7: FRENTE AMPLIO | I7: LIBERACIÓN NACIONAL | J7: MOVIMIENTO LIBERTARIO | K7: NUEVA GENERACIÓN | L7: RENOVACIÓN COSTARRICENSE | M7: RESTAURACIÓN NACIONAL | N7: UNIDAD SOCIAL CRISTIANA
A9: CANTÓN MORAVIA | B9: 59 | C9: 43464 | D9: 12589 | E9: 28.96420026 | F9: 12428 | G9: 4302 | H9: 714 | I9: 3128 | J9: 551 | K9: 1004 | L9: 340 | M9: 219 | N9: 2170 | O9: 129 | P9: 32 | Q9: 30875 | R9: 71.03579974
A10: DISTRITO 1 SAN VICENTE | B10: 32 | C10: 26001 | D10: 7844 | E10: =+D10/C10*100 -> 30.16807046 | F10: 7771 | G10: 3046 | H10: 475 | I10: 1962 | J10: 369 | K10: 644 | L10: 127 | M10: 119 | N10: 1029 | O10: 56 | P10: 17 | Q10: =+C10-D10 -> 18157 | R10: =+Q10/C10*100 -> 69.83192954
A11: SAN VICENTE | B11: 26 | C11: 22604 | D11: 6829 | E11: =+D11/C11*100 -> 30.211467 | F11: 6777 | G11: 2748 | H11: 410 | I11: 1685 | J11: 330 | K11: 515 | L11: 101 | M11: 93 | N11: 895 | O11: 42 | P11: 10 | Q11: =+C11-D11 -> 15775 | R11: =+Q11/C11*100 -> 69.788533
A12: H.A. CASA NAZARETH | B12: 1 | C12: 33 | D12: 18 | E12: 54.54545455 | F12: 18 | G12: 2 | H12: 2 | I12: 6 | J12: 2 | K12: 0 | L12: 0 | M12: 2 | N12: 4 | O12: 0 | P12: 0 | Q12: 15 | R12: 45.45454545
A13: LA ISLA | B13: 5 | C13: 3364 | D13: 997 | E13: 29.6373365 | F13: 976 | G13: 296 | H13: 63 | I13: 271 | J13: 37 | K13: 129 | L13: 26 | M13: 24 | N13: 130 | O13: 14 | P13: 7 | Q13: 2367 | R13: 70.3626635
A14: DISTRITO 2 SAN JERÓNIMO | B14: 7 | C14: 4092 | D14: 1343 | E14: 32.82013685 | F14: 1313 | G14: 377 | H14: 35 | I14: 273 | J14: 98 | K14: 138 | L14: 45 | M14: 11 | N14: 336 | O14: 25 | P14: 5 | Q14: 2749 | R14: 67.17986315
A15: SAN JERÓNIMO | B15: 4 | C15: 2293 | D15: 773 | E15: 33.71129525 | F15: 751 | G15: 266 | H15: 19 | I15: 160 | J15: 79 | K15: 79 | L15: 28 | M15: 5 | N15: 115 | O15: 19 | P15: 3 | Q15: 1520 | R15: 66.28870475
A16: PLATANARES | B16: 3 | C16: 1799 | D16: 570 | E16: 31.68426904 | F16: 562 | G16: 111 | H16: 16 | I16: 113 | J16: 19 | K16: 59 | L16: 17 | M16: 6 | N16: 221 | O16: 6 | P16: 2 | Q16: 1229 | R16: 68.31573096
A17: DISTRITO 3 LA TRINIDAD | B17: 20 | C17: 13371 | D17: 3402 | E17: 25.44312318 | F17: 3344 | G17: 879 | H17: 204 | I17: 893 | J17: 84 | K17: 222 | L17: 168 | M17: 89 | N17: 805 | O17: 48 | P17: 10 | Q17: 9969 | R17: 74.55687682
A18: LA TRINIDAD (GUAYABAL) | B18: 15 | C18: 10351 | D18: 2475 | E18: 23.91073326 | F18: 2433 | G18: 744 | H18: 167 | I18: 604 | J18: 53 | K18: 160 | L18: 135 | M18: 64 | N18: 506 | O18: 36 | P18: 6 | Q18: 7876 | R18: 76.08926674
A19: LOS SITIOS | B19: 5 | C19: 3020 | D19: 927 | E19: 30.69536424 | F19: 911 | G19: 135 | H19: 37 | I19: 289 | J19: 31 | K19: 62 | L19: 33 | M19: 25 | N19: 299 | O19: 12 | P19: 4 | Q19: 2093 | R19: 69.30463576
A22: Fuente: Tribunal Supremo de Elecciones.

Sheet 2.23
A2: CUADRO 2.23 CANTÓN MONTES DE OCA: JUNTAS, ELECTORADO, PARTICIPACIÓN, VOTOS POR PARTIDO, NULOS, BLANCOS Y ABSTENCIONISMO PARA ALCALDE(SA)
A3: SEGÚN DISTRITO ADMINISTRATIVO Y ELECTORAL, ELECCIONES MUNICIPALES FEBRERO 2016
A5: DISTRITO ADMINISTRATIVO Y ELECTORAL | B5: JUNTAS | C5: ELECTORADO | D5: VOTOS RECIBIDOS | P5: ABSTENCIONISMO
D6: TOTAL GENERAL | E6: % PARTICIPACIÓN | F6: VOTOS POR PARTIDO | N6: VOTOS NULOS | O6: VOTOS BLANCOS | P6: ABSOLUTO | Q6: %
B7: JUNTAS | F7: TOTAL | G7: AVANCE MONTES DE OCA | H7: COALICIÓN GENTE MONTES DE OCA | I7: LIBERACIÓN NACIONAL | J7: MOVIMIENTO LIBERTARIO | K7: NUEVA GENERACIÓN | L7: RESTAURACIÓN NACIONAL | M7: UNIDAD SOCIAL CRISTIANA
A9: CANTÓN MONTES DE OCA | B9: 63 | C9: 41908 | D9: 13076 | E9: 31.20167987 | F9: 12858 | G9: 1953 | H9: 3707 | I9: 2365 | J9: 462 | K9: 433 | L9: 2170 | M9: 1768 | N9: 183 | O9: 35 | P9: 28832 | Q9: 68.79832013
A10: DISTRITO 1 SAN PEDRO | B10: 32 | C10: 21003 | D10: 6162 | E10: =+D10/C10*100 -> 29.3386659 | F10: 6071 | G10: 1091 | H10: 1675 | I10: 1189 | J10: 269 | K10: 201 | L10: 1114 | M10: 532 | N10: 77 | O10: 14 | P10: =+C10-D10 -> 14841 | Q10: =+P10/C10*100 -> 70.6613341
A11: SAN PEDRO | B11: 14 | C11: 9498 | D11: 2565 | E11: =+D11/C11*100 -> 27.00568541 | F11: 2529 | G11: 476 | H11: 697 | I11: 397 | J11: 192 | K11: 80 | L11: 485 | M11: 202 | N11: 29 | O11: 7 | P11: =+C11-D11 -> 6933 | Q11: 72.99431459
A12: LOURDES | B12: 17 | C12: 11449 | D12: 3561 | E12: 31.10315311 | F12: 3506 | G12: 614 | H12: 974 | I12: 770 | J12: 76 | K12: 121 | L12: 624 | M12: 327 | N12: 48 | O12: 7 | P12: 7888 | Q12: 68.89684689
A13: H.A. MONTES DE OCA | B13: 1 | C13: 56 | D13: 36 | E13: 64.28571429 | F13: 36 | G13: 1 | H13: 4 | I13: 22 | J13: 1 | K13: 0 | L13: 5 | M13: 3 | N13: 0 | O13: 0 | P13: 20 | Q13: 35.71428571
A14: DISTRITO 2 SABANILLA | B14: 17 | C14: 11756 | D14: 4030 | E14: 34.28036747 | F14: 3965 | G14: 547 | H14: 1173 | I14: 685 | J14: 105 | K14: 145 | L14: 618 | M14: 692 | N14: 59 | O14: 6 | P14: 7726 | Q14: 65.71963253
A15: SABANILLA | B15: 12 | C15: 8301 | D15: 2750 | E15: 33.12853873 | F15: 2709 | G15: 350 | H15: 801 | I15: 527 | J15: 85 | K15: 93 | L15: 396 | M15: 457 | N15: 39 | O15: 2 | P15: 5551 | Q15: 66.87146127
A16: CEDROS | B16: 5 | C16: 3455 | D16: 1280 | E16: 37.04775687 | F16: 1256 | G16: 197 | H16: 372 | I16: 158 | J16: 20 | K16: 52 | L16: 222 | M16: 235 | N16: 20 | O16: 4 | P16: 2175 | Q16: 62.95224313
A17: DISTRITO 3 MERCEDES | B17: 4 | C17: 2782 | D17: 979 | E17: 35.19051042 | F17: 964 | G17: 140 | H17: 310 | I17: 221 | J17: 19 | K17: 35 | L17: 111 | M17: 128 | N17: 13 | O17: 2 | P17: 1803 | Q17: 64.80948958
A18: BETANIA | B18: 4 | C18: 2782 | D18: 979 | E18: 35.19051042 | F18: 964 | G18: 140 | H18: 310 | I18: 221 | J18: 19 | K18: 35 | L18: 111 | M18: 128 | N18: 13 | O18: 2 | P18: 1803 | Q18: 64.80948958
A19: DISTRITO 4 SAN RAFAEL | B19: 10 | C19: 6367 | D19: 1905 | E19: 29.91989948 | F19: 1858 | G19: 175 | H19: 549 | I19: 270 | J19: 69 | K19: 52 | L19: 327 | M19: 416 | N19: 34 | O19: 13 | P19: 4462 | Q19: 70.08010052
A20: SAN RAFAEL | B20: 10 | C20: 6367 | D20: 1905 | E20: 29.91989948 | F20: 1858 | G20: 175 | H20: 549 | I20: 270 | J20: 69 | K20: 52 | L20: 327 | M20: 416 | N20: 34 | O20: 13 | P20: 4462 | Q20: 70.08010052
A23: Fuente: Tribunal Supremo de Elecciones.

Sheet 2.24
A2: CUADRO 2.24 CANTÓN TURRUBARES: JUNTAS, ELECTORADO, PARTICIPACIÓN, VOTOS POR PARTIDO, NULOS, BLANCOS Y ABSTENCIONISMO PARA ALCALDE(SA)
A3: SEGÚN DISTRITO ADMINISTRATIVO Y ELECTORAL, ELECCIONES MUNICIPALES FEBRERO 2016
A5: DISTRITO ADMINISTRATIVO Y ELECTORAL | B5: JUNTAS | C5: ELECTORADO | D5: VOTOS RECIBIDOS | N5: ABSTENCIONISMO
D6: TOTAL GENERAL | E6: % PARTICIPACIÓN | F6: VOTOS POR PARTIDO | L6: VOTOS NULOS | M6: VOTOS BLANCOS | N6: ABSOLUTO | O6: %
B7: JUNTAS | F7: TOTAL | G7: LIBERACIÓN NACIONAL | H7: MOVIMIENTO LIBERTARIO | I7: NUEVA GENERACIÓN | J7: REPUBLICANO SOCIAL CRISTIANO | K7: UNIDAD SOCIAL CRISTIANA
A9: CANTÓN TURRUBARES | B9: 15 | C9: 4484 | D9: 2884 | E9: 64.3175736 | F9: 2833 | G9: 1199 | H9: 16 | I9: 1176 | J9: 65 | K9: 377 | L9: 31 | M9: 20 | N9: 1600 | O9: 35.6824264
A10: DISTRITO 1 SAN PABLO | B10: 2 | C10: 1252 | D10: 828 | E10: =+D10/C10*100 -> 66.1341853 | F10: 817 | G10: 355 | H10: 5 | I10: 367 | J10: 33 | K10: 57 | L10: 7 | M10: 4 | N10: =+C10-D10 -> 424 | O10: =+N10/C10*100 -> 33.8658147
A11: SAN PABLO | B11: 2 | C11: 1252 | D11: 828 | E11: =+D11/C11*100 -> 66.1341853 | F11: 817 | G11: 355 | H11: 5 | I11: 367 | J11: 33 | K11: 57 | L11: 7 | M11: 4 | N11: =+C11-D11 -> 424 | O11: =+N11/C11*100 -> 33.8658147
A12: DISTRITO 2 SAN PEDRO | B12: 1 | C12: 510 | D12: 387 | E12: 75.88235294 | F12: 379 | G12: 122 | H12: 1 | I12: 92 | J12: 16 | K12: 148 | L12: 6 | M12: 2 | N12: 123 | O12: 24.11764706
A13: SAN PEDRO | B13: 1 | C13: 510 | D13: 387 | E13: 75.88235294 | F13: 379 | G13: 122 | H13: 1 | I13: 92 | J13: 16 | K13: 148 | L13: 6 | M13: 2 | N13: 123 | O13: 24.11764706
A14: DISTRITO 3 SAN JUAN DE MATA | B14: 2 | C14: 912 | D14: 495 | E14: 54.27631579 | F14: 482 | G14: 227 | H14: 2 | I14: 221 | J14: 2 | K14: 30 | L14: 6 | M14: 7 | N14: 417 | O14: 45.72368421
A15: SAN JUAN DE MATA | B15: 1 | C15: 414 | D15: 229 | E15: 55.31400966 | F15: 223 | G15: 98 | H15: 0 | I15: 105 | J15: 0 | K15: 20 | L15: 2 | M15: 4 | N15: 185 | O15: 44.68599034
A16: EL BARRO | B16: 1 | C16: 498 | D16: 266 | E16: 53.41365462 | F16: 259 | G16: 129 | H16: 2 | I16: 116 | J16: 2 | K16: 10 | L16: 4 | M16: 3 | N16: 232 | O16: 46.58634538
A17: DISTRITO 4 SAN LUIS | B17: 4 | C17: 489 | D17: 343 | E17: 70.14314928 | F17: 336 | G17: 133 | H17: 2 | I17: 117 | J17: 5 | K17: 79 | L17: 6 | M17: 1 | N17: 146 | O17: 29.85685072
A18: SAN LUIS | B18: 1 | C18: 121 | D18: 89 | E18: 73.55371901 | F18: 84 | G18: 20 | H18: 0 | I18: 37 | J18: 1 | K18: 26 | L18: 4 | M18: 1 | N18: 32 | O18: 26.44628099
A19: SAN RAFAEL | B19: 1 | C19: 79 | D19: 57 | E19: 72.15189873 | F19: 57 | G19: 5 | H19: 1 | I19: 27 | J19: 2 | K19: 22 | L19: 0 | M19: 0 | N19: 22 | O19: 27.84810127
A20: SAN FRANCISCO | B20: 1 | C20: 212 | D20: 147 | E20: 69.33962264 | F20: 145 | G20: 94 | H20: 1 | I20: 36 | J20: 1 | K20: 13 | L20: 2 | M20: 0 | N20: 65 | O20: 30.66037736
